Workbook

Sheet 1-1
A1: 1. 연구개발활동 국제비교
A2: International Comparison of R&D Activities
A4: 1-1) 주요국의 연구개발 관련 주요 지표
A5: Main indicators concerning R&D activities in major countries
A7: 지표 Indicators | B7: 단위 Unit | C7: 한국 (2022) Korea | D7: 미국 (2021) United States | E7: 일본 (2021) Japan | F7: 독일 (2021) Germany | G7: 프랑스 (2021) France | H7: 영국 (2021) United Kingdom | I7: 중국 (2021) China
A8: ㅇ 연구개발비 R&D expenditure | B8: 억 달러 USD, 0.1 billions | C8: =87224.6691694005/100 -> 872.2466917 | D8: 8060.13 | E8: 1649.7299 | F8: 1338.668026 | G8: 656.4074825 | H8: 910.1274301 | I8: 4335.0001
A9: - 배율(한국을 1로 본 경우) Multiplier | B9: 배 | C9: =C8/$C$8 -> 1 | D9: =D8/$C$8 -> 9.240654137 | E9: =E8/$C$8 -> 1.891357016 | F9: 1.534735573 | G9: 0.7525479761 | H9: 1.043428928 | I9: 4.969924382
A10: - GDP 대비 As a percent of GDP | B10: % | C10: 5.21 | D10: 3.457045678 | E10: 3.295810199 | F10: 3.128822192 | G10: 2.219182077 | H10: 2.914758136 | I10: 2.432597216
A11: - 정부 : 민간 Gov't vs Business enterprise | B11: % | C11: 23 : 77 | D11: 25 : 75 | E11: 21 : 79 | F11: 30 : 70 | G11: 37 : 63 | H11: 31 : 69 | I11: 19 : 78
A12: ㅇ 연구원 Researchers | B12: 천 명(FTE) 1,000 Person | C12: 488.8 | D12: 1,493.1 (2020) | E12: 704.5 | F12: 461.6 | G12: 333.8 | H12: 295.8 (2017) | I12: 2405.5
A13: - 배율 Multiplier | B13: 배 | C13: =C12/$C$12 -> 1 | D13: =1493.1/$C$12 -> 3.054623568 | E13: =E12/$C$12 -> 1.441284779 | F13: 0.9443535188 | G13: 0.6828968903 | H13: =295.8/$C$12 -> 0.6051554828 | I13: 4.921235679
A14: - 인구만명당 Researchers per 10,000 population | B14: 명 Person | C14: 94.34147783 | D14: 45.0045364 | E14: 56.13472295 | F14: 55.48884562 | G14: 48.91845946 | H14: 44.79739552 | I14: 17.02894945
A15: - 연구원 1인당 연구개발비 R&D expenditure per researcher | B15: 천 달러 1,000 USD | C15: 178.4561199 | D15: 489.1442158 | E15: 234.1696546 | F15: 289.9778024 | G15: 196.646939 | H15: 210.7298269 | I15: 180.2113141
A16: ㅇ 특허 Patent
A17: - 삼극특허 건수(2020) Number of triadic patent families | B17: 건 Case | C17: 3379.3111 | D17: 13293.6595 | E17: 17052.5389 | F17: 4453.9593 | G17: 1874.5855 | H17: 1731.824 | I17: 6038.7958
A18: - PCT 출원건수(2022) Number of PCT Filings | B18: 건 Case | C18: 22022 | D18: 58839 | E18: 50355 | F18: 17477 | G18: 7763 | H18: 5712 | I18: 70012
A19: ㅇ 과학기술논문발표건수(2022) Number of scientific and technical papers | B19: 천 건 1,000 Case | C19: 76.1 | D19: 451.249 | E19: 91.308 | F19: 131.087 | G19: 81.627 | H19: 150.975 | I19: 714.702
A21: 주 : 1. 연구원은 상근상당 연구원 기준임
A22: 2. 중국은 정부재원과 민간재원의 비율 합이 100.0%가 되지 않음
A23: 3. 연구개발비 하위 항목 중 '정부:민간'에서 정부는 정부재원과 공공재원을, 민간은 민간재원과 외국재원을 포함함

Sheet 1-2
A1: 1-2) 주요국의 연구개발비 및 GDP 대비 연구개발비 비율
A2: R&D expenditure and as a percentage of GDP in major countries
O4: (단위 : 백만달러 Unit : US dollar, Millions)
A5: 연도별 Year | B5: 한국 Korea | D5: 미국 United States | F5: 일본 Japan | H5: 독일 Germany | J5: 프랑스 France | L5: 영국 United Kingdom | N5: 중국 China
C6: GDP 대비(%) As a percent of GDP(%) | E6: GDP 대비(%) As a percent of GDP(%) | G6: GDP 대비(%) As a percent of GDP(%) | I6: GDP 대비(%) As a percent of GDP(%) | K6: GDP 대비(%) As a percent of GDP(%) | M6: GDP 대비(%) As a percent of GDP(%) | O6: GDP 대비(%) As a percent of GDP(%)
A7: 1991 | B7: 5670.633581 | C7: 1.714954691 | D7: 161391 | E7: 2.620779786 | F7: 95940.99749 | G7: 2.629913501 | H7: 44604.77779 | I7: 2.386656577 | J7: 28906.23083 | K7: 2.27747064 | L7: 21396.25936 | M7: 1.872320461 | N7: 2995.458535 | O7: 0.7246337296
A8: 1992 | B8: 6390.69732 | C8: 1.797584715 | D8: 165838 | E8: 2.543400047 | F8: 102652.7846 | G8: 2.57876092 | H8: 48453.94446 | I8: 2.273039026 | J8: 31995.24063 | K8: 2.283088518 | L8: 21703.34203 | M8: 1.839713168 | N8: 3591.018157 | O8: 0.7281987167
A9: 1993 | B9: 7666.902311 | C9: 1.952204334 | D9: 166153 | E9: 2.422564273 | F9: 114542.1313 | G9: 2.524655489 | H9: 45691.12957 | I9: 2.205968539 | J9: 30675.24529 | K9: 2.318812289 | L9: 19781.11966 | M9: 1.863581515 | N9: 4304.266015 | O9: 0.69522779
A10: 1994 | B10: 9822.125268 | C10: 2.119432452 | D10: 169621 | E10: 2.327645214 | F10: 123541.3898 | G10: 2.471422294 | H10: 46885.30504 | I10: 2.126300029 | J10: 31621.31419 | K10: 2.268425747 | L10: 20942.20165 | M10: 1.836322256 | N10: 3553.418405 | O10: 0.6296787458
A11: 1995 | B11: 12240.58994 | C11: 2.160377108 | D11: 184086 | E11: 2.409581781 | F11: 142133.8894 | G11: 2.563019132 | H11: 55208.09581 | I11: 2.135198115 | J11: 35879.58452 | K11: 2.241079151 | L11: 22146.45524 | M11: 1.645044937 | N11: 4175.219606 | O11: 0.5684554425
A12: 1996 | B12: 13522.21839 | C12: 2.216161975 | D12: 197802 | E12: 2.450130197 | F12: 130126.6842 | G12: 2.643028325 | H12: 53557.65624 | I12: 2.144611477 | J12: 35692.94993 | K12: 2.222799402 | L12: 22366.52012 | M12: 1.573209783 | N12: 4864.944507 | O12: 0.563235933
A13: 1997 | B13: 12828.65069 | C13: 2.248296408 | D13: 212478 | E13: 2.477140331 | F13: 122273.9439 | G13: 2.721765284 | H13: 48404.94852 | I13: 2.188321291 | J13: 31193.35262 | K13: 2.146989216 | L13: 23994.32908 | M13: 1.53640854 | N13: 6141.993243 | O13: 0.6387254594
A14: 1998 | B14: 8079.212982 | C14: 2.110255795 | D14: 226227 | E14: 2.496210615 | F14: 115879.211 | G14: 2.827451354 | H14: 49618.71015 | I14: 2.216129308 | J14: 31487.36032 | K14: 2.094757636 | L14: 25594.36858 | M14: 1.546491737 | N14: 6656.876385 | O14: 0.6468886267
A15: 1999 | B15: 10023.00271 | C15: 2.015671913 | D15: 244980 | E15: 2.543615668 | F15: 131973.3268 | G15: 2.84671783 | H15: 51532.76144 | I15: 2.347792355 | J15: 31470.67459 | K15: 2.107667383 | L15: 27390.09163 | M15: 1.621284094 | N15: 8201.008667 | O15: 0.7496323059
A16: 2000 | B16: 12251.38042 | C16: 2.125194895 | D16: 268558 | E16: 2.619834724 | F16: 142015.9818 | G16: 2.858408118 | H16: 46942.81175 | I16: 2.409817362 | J16: 28589.13554 | K16: 2.093460978 | L16: 26807.63953 | M16: 1.609055318 | N16: 10819.16491 | O16: 0.8931632497
A17: 2001 | B17: 12481.13248 | C17: 2.278647331 | D17: 279061 | E17: 2.637146781 | F17: 127893.9895 | G17: 2.923484997 | H17: 46784.0655 | I17: 2.40437244 | J17: 29454.90192 | K17: 2.138042517 | L17: 26323.85861 | M17: 1.596580179 | N17: 12594.79806 | O17: 0.9403309126
A18: 2002 | B18: 13842.31895 | C18: 2.207744358 | D18: 278414 | E18: 2.54745401 | F18: 124027.105 | G18: 2.965137192 | H18: 50636.47607 | I18: 2.436220998 | J18: 32648.06455 | K18: 2.174494514 | L18: 28817.65167 | M18: 1.613727062 | N18: 15556.43994 | O18: 1.057860257
A19: 2003 | B19: 16001.97011 | C19: 2.277224627 | D19: 292157 | E19: 2.550152971 | F19: 135279.3444 | G19: 2.993195203 | H19: 61905.93497 | I19: 2.474613872 | J19: 39103.18815 | K19: 2.119937208 | L19: 32488.17905 | M19: 1.579621728 | N19: 18601.22167 | O19: 1.120366462
A20: 2004 | B20: 19354.73017 | C20: 2.44213845 | D20: 303824 | E20: 2.486855413 | F20: 145876.4049 | G20: 2.981245971 | H20: 68534.78696 | I20: 2.43518833 | J20: 44398.08942 | K20: 2.094612844 | L20: 37072.21063 | M20: 1.529982923 | N20: 23757.12549 | O20: 1.214982433
A21: 2005 | B21: 23581.70991 | C21: 2.522896183 | D21: 326231 | E21: 2.50192554 | F21: 151269.302 | G21: 3.130918982 | H21: 69518.39886 | I21: 2.441928279 | J21: 45070.47015 | K21: 2.051505823 | L21: 39420.50698 | M21: 1.549052151 | N21: 29898.44181 | O21: 1.307915592
A22: 2006 | B22: 28624.02941 | C22: 2.719338038 | D22: 351669 | E22: 2.545451755 | F22: 148525.8227 | G22: 3.227655613 | H22: 74038.49665 | I22: 2.472315478 | J22: 47592.74289 | K22: 2.050937992 | L22: 42693.0175 | M22: 1.575401759 | N22: 37663.7606 | O22: 1.368536788
A23: 2007 | B23: 33679.99914 | C23: 2.872581495 | D23: 378524 | E23: 2.615158473 | F23: 150791.5572 | G23: 3.292571953 | H23: 84285.7366 | I23: 2.460480567 | J23: 53864.04508 | K23: 2.024512996 | L23: 50016.48152 | M23: 1.617089298 | N23: 48770.63941 | O23: 1.373694104
A24: 2008 | B24: 31358.27994 | C24: 2.988872005 | D24: 405405 | E24: 2.744812375 | F24: 168124.0816 | G24: 3.292238812 | H24: 97943.59214 | I24: 2.615133026 | J24: 60398.49042 | K24: 2.061169195 | L24: 47137.52514 | M24: 1.607864557 | N24: 66430.43582 | O24: 1.445920088
A25: 2009 | B25: 29695.53806 | C25: 3.146685578 | D25: 404201 | E25: 2.791816062 | F25: 169046.8415 | G25: 3.195898318 | H25: 93559.34518 | I25: 2.742662559 | J25: 59745.36416 | K25: 2.21206518 | L25: 40291.06476 | M25: 1.666595785 | N25: 84932.71088 | O25: 1.664795447
A26: 2010 | B26: 37921.61794 | C26: 3.315776721 | D26: 408496 | E26: 2.714444909 | F26: 178816.3745 | G26: 3.104951313 | H26: 92819.00068 | I26: 2.730237388 | J26: 57627.35404 | K26: 2.178573219 | L26: 40733.70737 | M26: 1.634973372 | N26: 104317.5242 | O26: 1.713721488
A27: 2011 | B27: 45017.97362 | C27: 3.591985221 | D27: 427126 | E27: 2.738034393 | F27: 199795.1809 | G27: 3.205366018 | H27: 105188.7525 | I27: 2.805546283 | J27: 62793.20002 | K27: 2.191614526 | L27: 43867.81192 | M27: 1.645206047 | N27: 134443.4223 | O27: 1.780343022
A28: 2012 | B28: 49209.96412 | C28: 3.850404604 | D28: 434442 | E28: 2.672836236 | F28: 199066.3169 | G28: 3.173705284 | H28: 101640.1332 | I28: 2.881655551 | J28: 59767.14487 | K28: 2.227065823 | L28: 42660.3396 | M28: 1.57631063 | N28: 163147.429 | O28: 1.912141
A29: 2013 | B29: 54156.98363 | C29: 3.951238982 | D29: 455128 | E29: 2.702147502 | F29: 170909.9497 | G29: 3.27895603 | H29: 105890.2148 | I29: 2.835986547 | J29: 62902.40323 | K29: 2.237025131 | L29: 45141.25451 | M29: 1.620106873 | N29: 191204.9817 | O29: 1.99786394
A30: 2014 | B30: 60535.43444 | C30: 4.077864757 | D30: 477003 | E30: 2.717859421 | F30: 164924.6601 | G30: 3.367875199 | H30: 111921.924 | I30: 2.877840495 | J30: 64999.38889 | K30: 2.27591667 | L30: 69411.90989 | M30: 2.264499065 | N30: 211862.4483 | O30: 2.02243256
A31: 2015 | B31: 58321.96465 | C31: 3.978200252 | D31: 507401 | E31: 2.786995271 | F31: 144047.1916 | G31: 3.240707296 | H31: 98504.6189 | I31: 2.933791744 | J31: 54321.16752 | K31: 2.227016847 | L31: 66629.32266 | M31: 2.270272535 | N31: 227537.6899 | O31: 2.05701037
A32: 2016 | B32: 59792.79217 | C32: 3.987037181 | D32: 533465 | E32: 2.853500804 | F32: 155447.0742 | G32: 3.106656458 | H32: 102027.2453 | I32: 2.940389187 | J32: 54958.78776 | K32: 2.222383891 | L32: 62401.19951 | M32: 2.311445435 | N32: 235936.4936 | O32: 2.10032842
A33: 2017 | B33: 69663.24434 | C33: 4.292055599 | D33: 565685 | E33: 2.904324138 | F33: 156127.8728 | G33: 3.166356159 | H33: 112463.7836 | I33: 3.047099499 | J33: 57064.22912 | K33: 2.198880135 | L33: 62342.73344 | M33: 2.32319828 | N33: 260493.6781 | O33: 2.116029774 | S33: `
A34: 2018 | B34: 77923.62476 | C34: 4.51633384 | D34: 618066 | E34: 3.010102051 | F34: 162275.8388 | G34: 3.219196015 | H34: 123609.3321 | I34: 3.110105484 | J34: 61307.81213 | K34: 2.196660102 | L34: 77854.12764 | M34: 2.704824767 | N34: 297431.3371 | O34: 2.140578042
A35: 2019 | B35: 76411.81107 | C35: 4.62702858 | D35: 677881 | E35: 3.170486698 | F35: 164709.1919 | G35: 3.218237396 | H35: 123170.6774 | I35: 3.167009968 | J35: 59811.08862 | K35: 2.191788762 | L35: 76155.49273 | M35: 2.665521179 | N35: 320531.8955 | O35: 2.244626073
A36: 2020 | B36: 78855.86246 | C36: 4.795714408 | D36: 730329 | E36: 3.467770953 | F36: 165043.4745 | G36: 3.268971126 | H36: 121738.7097 | I36: 3.131357974 | J36: 60219.20069 | K36: 2.281886124 | L36: 79283.89744 | M36: 2.931437992 | N36: 353484.074 | O36: 2.406660076
A37: 2021 | B37: 89282.83116 | C37: 4.909879684 | D37: 806013 | E37: 3.457045678 | F37: 164972.99 | G37: 3.295810199 | H37: 133866.8026 | I37: 3.128822192 | J37: 65640.74825 | K37: 2.219182077 | L37: 91012.74301 | M37: 2.914758136 | N37: 433500.01 | O37: 2.432597216
A38: 2022 | B38: 87224.66917 | C38: 5.210813595
A40: 자료 : 1. OECD, Main Science and Technology Indicators 2023-september, 2023
A41: 2. 과학기술정보통신부·한국과학기술기획평가원, 연구개발활동조사보고서, 각 연도

Sheet 1-3
A1: 1-3) 주요국의 연구원 1인당 연구개발비
A2: R&D expenditure per researcher in major countries
A5: 국가별 · 연도별 Country · Year | C5: 연구개발비(억달러) R&D expenditure (USD, 0.1 billions) | E5: 연구원(명) Researchers (person) | F5: 연구원 1인당 연구개발비(천 달러) R&D expenditure per researcher (1,000 USD)
D6: 정부·공공재원 비율(%)
A7: 한국 Korea | B7: 1991 | C7: ='[1]1-2'!B7/100 -> 56.70633581 | D7: 19.4 | E7: 76,252(73,275) | F7: 74.4(77.4)
B8: 1992 | C8: ='[1]1-2'!B8/100 -> 63.9069732 | D8: 17.2 | E8: 88,764(85,268) | F8: 72.0(75.0)
B9: 1993 | C9: ='[1]1-2'!B9/100 -> 76.66902311 | D9: 16.7 | E9: 98,764(93,680) | F9: 77.6(81.8)
B10: 1994 | C10: ='[1]1-2'!B10/100 -> 98.22125268 | D10: 23.8 | E10: 117,446(89,018) | F10: 83.7(110.4)
B11: 1995 | C11: ='[1]1-2'!B11/100 -> 122.4058994 | D11: 23.72777764 | E11: 128,315(100,456) | F11: 95.4(121.8)
B12: 1996 | C12: ='[1]1-2'!B12/100 -> 135.2221839 | D12: 25.00434361 | E12: 132,023(99,433) | F12: 102.4(136.0)
B13: 1997 | C13: ='[1]1-2'!B13/100 -> 128.2865069 | D13: 27.44845705 | E13: 138,438(102,660) | F13: 92.5(124.8)
B14: 1998 | C14: ='[1]1-2'!B14/100 -> 80.79212982 | D14: 30.7949188 | E14: 129,767(92,541) | F14: 62.3(87.4)
B15: 1999 | C15: ='[1]1-2'!B15/100 -> 100.2300271 | D15: 29.98191876 | E15: 134,568(100,210) | F15: 74.5(100.1)
B16: 2000 | C16: ='[1]1-2'!B16/100 -> 122.5138042 | D16: 27.56147398 | E16: 159,973(108,370) | F16: 76.5(113.0)
B17: 2001 | C17: ='[1]1-2'!B17/100 -> 124.8113248 | D17: 27.07256953 | E17: 178,937(136,337) | F17: 69.7(91.5)
B18: 2002 | C18: ='[1]1-2'!B18/100 -> 138.4231895 | D18: 27.35892548 | E18: 189,888(141,917) | F18: 72.9(97.6)
B19: 2003 | C19: ='[1]1-2'!B19/100 -> 160.0197011 | D19: 25.57189981 | E19: 198,171(151,254) | F19: 80.8(105.8)
B20: 2004 | C20: ='[1]1-2'!B20/100 -> 193.5473017 | D20: 24.54810063 | E20: 209,979(156,220) | F20: 92.2(124.0)
B21: 2005 | C21: ='[1]1-2'!B21/100 -> 235.8170991 | D21: 24.33063907 | E21: 234,702(179,812) | F21: 100.5(131.2)
B22: 2006 | C22: ='[1]1-2'!B22/100 -> 286.2402941 | D22: 24.25280679 | E22: 256,598(199,990) | F22: 111.6(143.2)
B23: 2007 | C23: ='[1]1-2'!B23/100 -> 336.7999914 | D23: 26.12498208 | E23: 289,098(221,928) | F23: 116.5(151.8)
B24: 2008 | C24: ='[1]1-2'!B24/100 -> 313.5827994 | D24: 26.81094225 | E24: 300,050(236,137) | F24: 104.3(132.6)
B25: 2009 | C25: ='[1]1-2'!B25/100 -> 296.9553806 | D25: 28.70913319 | E25: 323,175(244,077) | F25: 91.9(121.7)
B26: 2010 | C26: ='[1]1-2'!B26/100 -> 379.2161794 | D26: 27.97919045 | E26: 345,912(264,118) | F26: 109.7(143.6)
B27: 2011 | C27: ='[1]1-2'!B27/100 -> 450.1797362 | D27: 26.06367557 | E27: 375,176(288,901) | F27: 120.0(155.8)
B28: 2012 | C28: ='[1]1-2'!B28/100 -> 492.0996412 | D28: 24.92704932 | E28: 401,724(315,589) | F28: 122.5(156.0)
B29: 2013 | C29: ='[1]1-2'!B29/100 -> 541.5698363 | D29: 24.01604791 | E29: 410,333(321,842) | F29: 132.0(168.3)
B30: 2014 | C30: ='[1]1-2'!B30/100 -> 605.3543444 | D30: 23.96676339 | E30: 437,447(345,463) | F30: 138.4(175.2)
B31: 2015 | C31: ='[1]1-2'!B31/100 -> 583.2196465 | D31: 24.70235445 | E31: 453,262(356,447) | F31: 128.6(163.6)
B32: 2016 | C32: ='[1]1-2'!B32/100 -> 597.9279217 | D32: 23.64371727 | E32: 460,769(361,292) | F32: 129.8(165.5)
B33: 2017 | C33: ='[1]1-2'!B33/100 -> 696.6324434 | D33: 22.51214178 | E33: 482,796(383,100) | F33: 144.4(181.8)
B34: 2018 | C34: ='[1]1-2'!B34/100 -> 779.2362476 | D34: 21.41990695 | E34: 514,170(408,370) | F34: 151.5(190.8)
B35: 2019 | C35: ='[1]1-2'!B35/100 -> 764.1181107 | D35: 21.44425263 | E35: 538,136(430,690) | F35: 142.0(177.4)
B36: 2020 | C36: ='[1]1-2'!B36/100 -> 788.5586246 | D36: 23.18774769 | E36: 558,045(446,739) | F36: 141.3(176.5)
B37: 2021 | C37: ='[1]1-2'!B37/100 -> 892.8283116 | D37: 23.59122419 | E37: 586,666(470,728) | F37: 152.2(189.7)
B38: 2022 | C38: ='[1]1-2'!B38/100 -> 872.2466917 | D38: 23.4 | E38: 601,530(488,774) | F38: 145.0(178.5)
A39: 미국 United States | B39: 2008 | C39: 4054.05 | D39: 36.32614299 | E39: 1113988 | F39: =C39*100000/E39 -> 363.9222326
B40: 2009 | C40: 4042.01 | D40: 38.95710303 | E40: 1162720 | F40: 347.6339961
B41: 2010 | C41: 4084.96 | D41: 39.14848615 | E41: 1099864 | F41: 371.4059193
B42: 2011 | C42: 4271.26 | D42: 37.48964006 | E42: 1144866 | F42: 373.0794696
B43: 2012 | C43: 4344.42 | D43: 36.39795416 | E43: 1150722 | F43: 377.5386236
B44: 2013 | C44: 4551.28 | D44: 34.44920989 | E44: 1188093 | F44: 383.074389
B45: 2014 | C45: 4770.03 | D45: 33.01907954 | E45: 1230471 | F45: 387.6588721
B46: 2015 | C46: 5074.01 | D46: 31.80245999 | E46: 1252907 | F46: 404.9789809
B47: 2016 | C47: 5334.65 | D47: 30.28614811 | E47: 1248221 | F47: 427.3802476
B48: 2017 | C48: 5656.85 | D48: 29.59244102 | E48: 1300600 | F48: 434.9415654
B49: 2018 | C49: 6180.66 | D49: 28.79740999 | E49: 1410842 | F49: 438.0830738
B50: 2019 | C50: 6778.81 | D50: 27.22424732 | E50: 1435937 | F50: 472.0826889
B51: 2020 | C51: 7303.29 | D51: 27.05465619 | E51: 1493075 | F51: 489.1442158
B52: 2021 | C52: 8060.13 | D52: 25.35666298
A53: 일본 Japan | B53: 2008 | C53: 1681.240816 | D53: 21.44899472 | E53: 656676 | F53: 256.0228812
B54: 2009 | C54: 1690.468415 | D54: 24.3077514 | E54: 655530 | F54: 257.8781161
B55: 2010 | C55: 1788.163745 | D55: 23.62216393 | E55: 656032 | F55: 272.5726405
B56: 2011 | C56: 1997.951809 | D56: 22.99726975 | E56: 656651 | F56: 304.2638798
B57: 2012 | C57: 1990.663169 | D57: 23.43821221 | E57: 646347 | F57: 307.9867577
B58: 2013 | C58: 1709.099497 | D58: 23.99719689 | E58: 660489 | F58: 258.7627496
B59: 2014 | C59: 1649.246601 | D59: 22.29254697 | E59: 682935 | F59: 241.4939345
B60: 2015 | C60: 1440.471916 | D60: 21.54838148 | E60: 662071 | F60: 217.5706103
B61: 2016 | C61: 1554.470742 | D61: 21.1814029 | E61: 665566 | F61: 233.5562126
B62: 2017 | C62: 1561.278728 | D62: 21.09041203 | E62: 676292 | F62: 230.8586718
B63: 2018 | C63: 1622.758388 | D63: 20.33033179 | E63: 678134 | F63: =C63*100000/E63 -> 239.2976002
B64: 2019 | C64: 1647.091919 | D64: 20.50293363 | E64: 681821 | F64: =C64*100000/E64 -> 241.572483
B65: 2020 | C65: 1650.434745 | D65: 21.15557952 | E65: 689889 | F65: 239.2319264
B66: 2021 | C66: 1649.7299 | D66: 21.31598163 | E66: 704502 | F66: 234.1696546
A67: 독일 Germany | B67: 2008 | C67: 979.4359214 | D67: 28.79317899 | E67: 302641 | F67: =C67*100000/E67 -> 323.629621
B68: 2009 | C68: 935.5934518 | D68: 30.07318448 | E68: 317307 | F68: 294.8543372
B69: 2010 | C69: 928.1900068 | D69: 30.60016156 | E69: 327996 | F69: 282.9882092
B70: 2011 | C70: 1051.887525 | D70: 30.23582712 | E70: 338689 | F70: 310.5762294
B71: 2012 | C71: 1016.401332 | D71: 29.60206182 | E71: 352419 | F71: 288.4070757
B72: 2013 | C72: 1058.902148 | D72: 29.40414114 | E72: 354463 | F72: 298.7341833
B73: 2014 | C73: 1119.21924 | D73: 29.01777974 | E73: 351923 | F73: 318.0295803
B74: 2015 | C74: 985.046189 | D74: 28.17472685 | E74: 387982 | F74: 253.8896622
B75: 2016 | C75: 1020.272453 | D75: 28.83125503 | E75: 399605 | F75: 255.3202421
B76: 2017 | C76: 1124.637836 | D76: 28.06597402 | E76: 419617 | F76: 268.0153177
B77: 2018 | C77: 1236.093321 | D77: 28.19441794 | E77: 433685.036 | F77: 285.0209758
B78: 2019 | C78: 1231.706774 | D78: 28.16502115 | E78: 450697.27 | F78: 273.2891579
B79: 2020 | C79: 1217.387097 | D79: 30.07664328 | E79: 450796.4441 | F79: 270.0525066
B80: 2021 | C80: 1338.668026 | D80: 30.28498716 | E80: 461645 | F80: 289.9778024
A81: 프랑스 France | B81: 2008 | C81: 603.9849042 | D81: 41.21622475 | E81: 227678.5299 | F81: 265.2796926
B82: 2009 | C82: 597.4536416 | D82: 40.69979144 | E82: 234366.0471 | F82: 254.9232916
B83: 2010 | C83: 576.2735404 | D83: 38.95965339 | E83: 243533.2276 | F83: 236.6303548
B84: 2011 | C84: 627.9320002 | D84: 37.20861375 | E84: 249246.6 | F84: 251.9320224
B85: 2012 | C85: 597.6714487 | D85: 37.07507722 | E85: 258913 | F85: 230.8387175
B86: 2013 | C86: 629.0240323 | D86: 37.04083755 | E86: 265465.8112 | F86: 236.951052
B87: 2014 | C87: 649.9938889 | D87: 37.86546429 | E87: 271772.2718 | F87: 239.1685821
B88: 2015 | C88: 543.2116752 | D88: 39.02611163 | E88: 279470 | F88: 194.3720883
B89: 2016 | C89: 549.5878776 | D89: 36.19996954 | E89: 285487.9646 | F89: 192.5082476
B90: 2017 | C90: 570.6422912 | D90: 36.1734854 | E90: 296324.277 | F90: 192.5735876
B91: 2018 | C91: 613.0781213 | D91: 35.51556675 | E91: 305438.6168 | F91: 200.7205663
B92: 2019 | C92: 598.1108862 | D92: 35.19993427 | E92: 313373.7036 | F92: 190.8618622
B93: 2020 | C93: 602.1920069 | D93: 35.7945466 | E93: 321398 | F93: 187.366445
B94: 2021 | C94: 656.4074825 | D94: 36.88483986 | E94: 333800 | F94: 196.646939
A95: 영국 United Kingdom | B95: 2008 | C95: 471.3752514 | D95: 36.83136261 | E95: 251931.7 | F95: =C95*100000/E95 -> 187.1043824
B96: 2009 | C96: 402.9106476 | D96: 38.82328833 | E96: 256124.1127 | F96: 157.3107051
B97: 2010 | C97: 407.3370737 | D97: 38.32623928 | E97: 256584.957 | F97: 158.753295
B98: 2011 | C98: 438.6781192 | D98: 36.37914221 | E98: 251357.6 | F98: 174.5235152
B99: 2012 | C99: 426.603396 | D99: 34.54972969 | E99: 256156.4 | F99: 166.5402059
B100: 2013 | C100: 451.4125451 | D100: 35.11537622 | E100: 267698.5 | F100: 168.6272224
B101: 2014 | C101: 694.1190989 | E101: 276583.8 | F101: 250.9615888
B102: 2015 | C102: 666.2932266 | E102: 285855 | F102: 233.0878335
B103: 2016 | C103: 624.0119951 | E103: 291103 | F103: 214.3612382
B104: 2017 | C104: 623.4273344 | E104: 295842 | F104: 210.7298269
B105: 2018 | C105: 778.5412764 | D105: 30.27194634
B106: 2019 | C106: 761.5549273 | D106: 29.83594363
B107: 2020 | C107: 792.8389744 | D107: 30.68080239
B108: 2021 | C108: 910.1274301 | D108: 30.82337623
A109: 중국 China | B109: 2008 | C109: 664.3043582 | D109: 23.58937516 | E109: 1592420 | F109: 41.71665504
B110: 2009 | C110: 849.3271088 | D110: 23.40996205 | E110: 1152311 | F110: 73.70641335
B111: 2010 | C111: 1043.175242 | D111: 24.0181169 | E111: 1210840.8 | F111: 86.15296426
B112: 2011 | C112: 1344.434223 | D112: 21.67564849 | E112: 1318086 | F112: 101.998976
B113: 2012 | C113: 1631.47429 | D113: 21.57027362 | E113: 1404017 | F113: 116.2004655
B114: 2013 | C114: 1912.049817 | D114: 21.10789351 | E114: 1484039.7 | F114: 128.8408805
B115: 2014 | C115: 2118.624483 | D115: 20.25319062 | E115: 1524280.3 | F115: 138.9917906
B116: 2015 | C116: 2275.376899 | D116: 21.26478742 | E116: 1619027.7 | F116: 140.539714
B117: 2016 | C117: 2359.364936 | D117: 20.03481537 | E117: 1692175.8 | F117: 139.4278854
B118: 2017 | C118: 2604.936781 | D118: 19.8081416 | E118: 1740442.2 | F118: 149.6709733
B119: 2018 | C119: 2974.313371 | D119: 20.21879927 | E119: 1866108.8 | F119: 159.3858499
B120: 2019 | C120: 3205.318955 | D120: 20.49041169 | E120: 2109459.8 | F120: 151.949753
B121: 2020 | C121: 3534.84074 | D121: 19.78245119 | E121: 2281134 | F121: 154.9598025
B122: 2021 | C122: 4335.0001 | D122: 18.95694349 | E122: 2405509.4 | F122: 180.2113141
A124: 주 : 1. 상근상당 연구원 기준임. 한국은 괄호 안의 수치가 상근상당 연구원
A125: 2. 공란은 데이터 없음
A126: 자료 : OECD, Main Science and Technology Indicators 2023-september, 2023

Sheet 1-4
A1: 1-4) 주요국의 연구원 및 인구 만명당 연구원
A2: Researchers and researchers per 10,000 population in major countries
O4: (단위 : 명 Unit : person)
A5: 연도별 Year | B5: 한국 Korea | D5: 미국 United States | F5: 일본 Japan | H5: 독일 Germany | J5: 프랑스 France | L5: 영국 United Kingdom | N5: 중국 China
C6: 인구만명당 per 10,000 population | E6: 인구만명당 per 10,000 population | G6: 인구만명당 per 10,000 population | I6: 인구만명당 per 10,000 population | K6: 인구만명당 per 10,000 population | M6: 인구만명당 per 10,000 population | O6: 인구만명당 per 10,000 population
A7: 1991 | B7: 76,252(73,275) | C7: 17.6(16.9) | D7: 746013 | E7: 29.42503846 | F7: 491102 | G7: 39.57276734 | H7: 241869 | I7: 30.24383229 | J7: 129780 | K7: 22.16642755 | L7: 128000 | M7: 22.28451052 | N7: 471400 | O7: 4.070003367
A8: 1992 | B8: 88,764(85,268) | C8: 20.3(19.5) | D8: 765328 | E8: 29.78834043 | F8: 511407 | G8: 41.05477374 | J8: 141710 | K8: 24.08395649 | L8: 129000 | M8: 22.4016671 | N8: 471900 | O8: 4.027447065
A9: 1993 | B9: 98,764(93,680) | C9: 22.3(21.2) | D9: 781100 | E9: 30.00975865 | F9: 526501 | G9: 42.14098193 | H9: 230107 | I9: 28.42722309 | J9: 145898 | K9: 24.68872155 | L9: 131000 | M9: 22.69813217 | N9: 489200 | O9: 4.127677886
A10: 1994 | B10: 117,446(89,018) | C10: 26.3(19.9) | D10: 774215 | E10: 29.38699209 | F10: 541015 | G10: 43.24107228 | J10: 149193 | K10: 25.15265953 | L10: 134000 | M10: 23.15854965 | N10: 552000 | O10: 4.605757196
A11: 1995 | B11: 128,315(100,456) | C11: 28.5(22.3) | D11: 796403 | E11: 29.87392531 | F11: 551990 | G11: 44.00570809 | H11: 231128 | I11: 28.42623112 | J11: 151248.85 | K11: 25.40716445 | L11: 145673 | M11: 25.10521327 | N11: 522000 | O11: 4.309739847
A12: 1996 | B12: 132,023(99,433) | C12: 29.0(21.8) | D12: 842662 | E12: 31.24279793 | F12: 617365 | G12: 49.1098631 | H12: 230189 | I12: 28.25583679 | J12: 154827 | K12: 25.91593854 | L12: 144735 | M12: 24.88394883 | N12: 548000 | O12: 4.477526575
A13: 1997 | B13: 138,438(102,660) | C13: 30.1(22.3) | D13: 881103 | E13: 32.27980129 | F13: 625442 | G13: 49.63392085 | H13: 235793 | I13: 28.92810698 | J13: 154742.4 | K13: 25.80975732 | L13: 145641.2 | M13: 24.9753404 | N13: 588700 | O13: 4.761943281
A14: 1998 | B14: 129,767(92,541) | C14: 28.0(20.0) | D14: 937717 | E14: 33.95630699 | F14: 652845 | G14: 51.6699776 | H14: 237712 | I14: 29.18645483 | J14: 155727.04 | K14: 25.87859612 | L14: 157662 | M14: 26.96229158 | N14: 485500 | O14: 3.891440434
A15: 1999 | B15: 134,568(100,210) | C15: 28.9(21.5) | D15: 965180 | E15: 34.55364303 | F15: 658910 | G15: 52.05194846 | H15: 254691 | I15: 31.28036649 | J15: 160424 | K15: 26.52206259 | L15: 167573.03 | M15: 28.55514791 | N15: 531100 | O15: 4.222250489
A16: 2000 | B16: 159,973(108,370) | C16: 34.0(23.1) | D16: 976950 | E16: 34.59479175 | F16: 647572 | G16: 51.0578644 | H16: 257874 | I16: 31.65768442 | J16: 172070 | K16: 28.25312382 | L16: 170554.39 | M16: 28.96348708 | N16: 695062 | O16: 5.484026731
A17: 2001 | B17: 178,937(136,337) | C17: 37.8(28.8) | D17: 998449 | E17: 35.0056622 | F17: 653021 | G17: 51.36558852 | H17: 264385 | I17: 32.43311211 | J17: 177372 | K17: 28.91243398 | L17: 182143.84 | M17: 30.8128229 | N17: 742726 | O17: 5.819505277
A18: 2002 | B18: 189,888(141,917) | C18: 39.9(29.8) | D18: 1022068 | E18: 35.49401816 | F18: 623035 | G18: 48.90384615 | H18: 265812 | I18: 32.58378484 | J18: 186420 | K18: 30.1670011 | L18: 198162.98 | M18: 33.37987737 | N18: 810525 | O18: 6.309895448
A19: 2003 | B19: 198,171(151,254) | C19: 41.4(31.6) | D19: 1090500 | E19: 37.52245154 | F19: 652369 | G19: 51.11247787 | H19: 268942 | I19: 32.97919043 | J19: 192789.9118 | K19: 30.97773147 | L19: 216689.87 | M19: 36.3348039 | N19: 862108 | O19: 6.671268388
A20: 2004 | B20: 209,979(156,220) | C20: 43.7(32.5) | D20: 1060047 | E20: 36.14675614 | F20: 653747 | G20: 51.18034353 | H20: 270215 | I20: 33.17312414 | J20: 202377.2 | K20: 32.27963952 | L20: 228969.09 | M20: 38.19334279 | N20: 926252 | O20: 7.125673139
A21: 2005 | B21: 234,702(179,812) | C21: 48.7(37.3) | D21: 1048102 | E21: 35.40968874 | F21: 680631 | G21: 53.27627099 | H21: 272148 | I21: 33.45931126 | J21: 202506.79 | K21: 32.05844573 | L21: 248599.3 | M21: 41.14996772 | N21: 1118698 | O21: 8.555615039
A22: 2006 | B22: 256,598(199,990) | C22: 53.0(41.3) | D22: 1069469 | E22: 35.78997918 | F22: 684884 | G22: 53.57436756 | H22: 279822 | I22: 34.4722999 | J22: 210591.0899 | K22: 33.10660115 | L22: 254009 | M22: 41.75925165 | N22: 1223756.4 | O22: 9.309813767
A23: 2007 | B23: 289,098(221,928) | C23: 59.4(45.6) | D23: 1064617 | E23: 35.28773998 | F23: 684311 | G23: 53.47015159 | H23: 290853 | I23: 35.91132458 | J23: 221851.0428 | K23: 34.66260063 | L23: 252650.8 | M23: 41.20269411 | N23: 1423381 | O23: 10.77266157
A24: 2008 | B24: 300,050(236,137) | C24: 61.2(48.1) | D24: 1113988 | E24: 36.57900526 | F24: 656676 | G24: 51.28478269 | H24: 302641 | I24: 37.47226487 | J24: 227678.5299 | K24: 35.37523188 | L24: 251931.7 | M24: 40.74982208 | N24: 1592420 | O24: 11.99093387
A25: 2009 | B25: 323,175(244,077) | C25: 65.5(49.5) | D25: 1162720 | E25: 37.84403073 | F25: 655530 | G25: 51.19968133 | H25: 317307 | I25: 39.42534448 | J25: 234366.0471 | K25: 36.22797983 | L25: 256124.1127 | M25: 41.13716656 | N25: 1152311 | O25: 8.63477707
A26: 2010 | B26: 345,912(264,118) | C26: 69.8(53.3) | D26: 1099864 | E26: 35.49791989 | F26: 656032 | G26: 51.23528815 | H26: 327996 | I26: 40.85446664 | J26: 243533.2276 | K26: 37.46031096 | L26: 256584.957 | M26: 40.88351769 | N26: 1210840.8 | O26: 9.029993064
A27: 2011 | B27: 375,176(288,901) | C27: 75.1(57.9) | D27: 1144866 | E27: 36.6597608 | F27: 656651 | G27: 51.36868209 | H27: 338689 | I27: 42.19109312 | J27: 249246.6 | K27: 38.15193632 | L27: 251357.6 | M27: 39.71835348 | N27: 1318086 | O27: 9.769678911
A28: 2012 | B28: 401,724(315,589) | C28: 80.0(62.9) | D28: 1150722 | E28: 36.56277703 | F28: 646347 | G28: 50.67321563 | H28: 352419 | I28: 43.81903862 | J28: 258913 | K28: 39.43778465 | L28: 256156.4 | M28: 40.20977945 | N28: 1404017 | O28: 10.32957873
A29: 2013 | B29: 410,333(321,842) | C29: 81.4(63.8) | D29: 1188093 | E29: 37.46757322 | F29: 660489 | G29: 51.87099966 | H29: 354463 | I29: 43.95295489 | J29: 265465.8112 | K29: 40.22757818 | L29: 267698.5 | M29: 41.75872773 | N29: 1484039.7 | O29: 10.8541148
A30: 2014 | B30: 437,447(345,463) | C30: 86.2(68.1) | D30: 1230471 | E30: 38.50022372 | F30: 682935 | G30: 53.66370165 | H30: 351923 | I30: 43.45640443 | J30: 271772.2718 | K30: 40.98387498 | L30: 276583.8 | M30: 42.81681812 | N30: 1524280.3 | O30: 11.07391642
A31: 2015 | B31: 453,262(356,447) | C31: 88.8(69.9) | D31: 1252907 | E31: 38.89650526 | F31: 662071 | G31: 52.08646055 | H31: 387982 | I31: 47.49617442 | J31: 279470 | K31: 41.97443715 | L31: 285855 | M31: 43.90339426 | N31: 1619027.7 | O31: 11.70443517
A32: 2016 | B32: 460,769(361,292) | C32: 90.0(70.5) | D32: 1248221 | E32: 38.45306199 | F32: 665566 | G32: 52.43443391 | H32: 399605 | I32: 48.52578659 | J32: 285487.9646 | K32: 42.71789508 | L32: 291103 | M32: 44.34301121 | N32: 1692175.8 | O32: 12.1536414
A33: 2017 | B33: 482,796(383,100) | C33: 94.0(74.6) | D33: 1300600 | E33: 39.79073609 | F33: 676292 | G33: 53.37489937 | H33: 419617 | I33: 50.76605732 | J33: 296324.277 | K33: 44.15040556 | L33: 295842 | M33: 44.79739552 | N33: 1740442.2 | O33: 12.4307533
A34: 2018 | B34: 514,170(408,370) | C34: 99.7(79.2) | D34: 1410842 | E34: 42.90960297 | F34: 678134 | G34: 53.63159685 | H34: 433685.036 | I34: 52.31045232 | J34: 305438.6168 | K34: 45.28438032 | N34: 1866108.8 | O34: 13.27803844
A35: 2019 | B35: 538,136(430,690) | C35: 104.0(83.2) | D35: 1435937 | E35: 43.4457041 | F35: 681821 | G35: 54.04119464 | H35: 450697.27 | I35: 54.24010085 | J35: 313373.7036 | K35: 46.25032522 | N35: 2109459.8 | O35: 14.95985902
A36: 2020 | B36: 558,045(446,739) | C36: 107.7(86.2) | D36: 1493075 | E36: 45.0045364 | F36: 689889 | G36: 54.88010348 | H36: 450796.4441 | I36: 54.20767476 | J36: 321398 | K36: 47.26302168 | N36: 2281134 | O36: 16.15396708
A37: 2021 | B37: 586,666(470,728) | C37: 113.4(91.0) | F37: 704502 | G37: 56.13472295 | H37: 461645 | I37: 55.48884562 | J37: 333800 | K37: 48.91845946 | N37: 2405509.4 | O37: 17.02894945
A38: 2022 | B38: 601,530(488,774) | C38: 116.1(94.3)
A40: 주 : 상근상당 연구원 기준임. 한국은 괄호 안의 수치가 상근상당 연구원
A41: 자료 : OECD, Main Science and Technology Indicators 2023-september, 2023

Sheet 1-5
A1: 1-5) 주요국의 연구개발단계별 연구개발비 비율
A2: Percentage of R&D expenditure by type of R&D in major countries
V3: (단위 : % Unit : %)
A4: 연도 Year | B4: 한국 Korea | E4: 미국 United States | I4: 일본 Japan | M4: 프랑스 France | Q4: 영국 United Kingdom | T4: 중국 China
B5: 기초 Basic research | C5: 응용 Applied research | D5: 개발 Exper-imental develop-ment | E5: 기초 Basic research | F5: 응용 Applied research | G5: 개발 Exper-imental develop-ment | H5: 기타 Others | I5: 기초 Basic research | J5: 응용 Applied research | K5: 개발 Exper-imental develop-ment | L5: 기타 Others | M5: 기초 Basic research | N5: 응용 Applied research | O5: 개발 Exper-imental develop-ment | P5: 기타 Others | Q5: 기초 Basic research | R5: 응용 Applied research | S5: 개발 Exper-imental develop-ment | T5: 기초 Basic research | U5: 응용 Applied research | V5: 개발 Exper-imental develop-ment
A6: 1991 | B6: 14.83695809 | C6: 30.7327267 | D6: 54.43031521 | E6: 16.81630326 | F6: 23.93627897 | G6: 58.92831694 | H6: 0.3197204305 | I6: 12.30735183 | J6: 22.72143549 | K6: 57.3178683 | L6: 7.653335365 | M6: 20.29010595 | N6: 30.90274441 | O6: 48.80696462 | T6: 4.659475731 | U6: 24.36347673 | V6: 70.97077637
A7: 1992 | B7: 12.60038272 | C7: 26.32427018 | D7: 61.0753471 | E7: 16.64515973 | F7: 22.87533617 | G7: 60.18584402 | H7: 0.294263076 | I7: 12.81914491 | J7: 22.39961613 | K7: 56.76583575 | L7: 8.015410944 | M7: 20.8157066 | N7: 31.6811794 | O7: 47.50293197 | T7: 4.504368025 | U7: 25.35979397 | V7: 70.13078826
A8: 1993 | B8: 13.1535387 | C8: 24.33231166 | D8: 62.51414964 | E8: 17.29911588 | F8: 22.43895687 | G8: 60.00794448 | H8: 0.2539827749 | I8: 13.50429031 | J8: 21.94992712 | K8: 55.92304457 | L8: 8.622736365 | M8: 21.69242802 | N8: 29.26070916 | O8: 49.04686282 | T8: 4.79012943 | U8: 25.76912221 | V8: 69.44074836
A9: 1994 | B9: 14.3378267 | C9: 23.82374303 | D9: 61.83843027 | E9: 17.48073647 | F9: 21.58812883 | G9: 60.68706115 | H9: 0.2440735522 | I9: 13.66992455 | J9: 22.45345857 | K9: 55.26836843 | L9: 8.608247518 | M9: 22.21601248 | N9: 29.06176102 | O9: 48.72154276 | T9: 5.518187161 | U9: 27.29706785 | V9: 67.18147979
A10: 1995 | B10: 12.46550234 | C10: 25.02074233 | D10: 62.51375534 | E10: 16.08487337 | F10: 22.2374325 | G10: 61.42726769 | H10: 0.2504264311 | I10: 14.16785524 | J10: 22.47738732 | K10: 54.98863952 | L10: 8.366118249 | M10: 22.19924342 | N10: 29.55548111 | O10: 48.24497879 | T10: 5.179385701 | U10: 26.39020333 | V10: 68.42754309
A11: 1996 | B11: 13.22865427 | C11: 26.90987762 | D11: 60 | E11: 16.58173325 | F11: 21.82485516 | G11: 61.36287803 | H11: 0.2305335639 | I11: 12.15962531 | J11: 22.33292899 | K11: 59.47454309 | L11: 6.032903156 | M11: 21.97757018 | N11: 28.49913461 | O11: 49.5234928 | T11: 5.003955696 | U11: 24.50553797 | V11: 70.49050633
A12: 1997 | B12: 13.2653508 | C12: 28.48034337 | D12: 58 | E12: 17.28037726 | F12: 21.89214883 | G12: 60.55262192 | H12: 0.2748519847 | I12: 11.96692204 | J12: 22.53558328 | K12: 59.77014393 | L12: 5.727350692 | M12: 22.01727474 | N12: 29.63978354 | O12: 48.34213108 | T12: 5.389268599 | U12: 26.01539791 | V12: 68.59533349
A13: 1998 | B13: 13.98448034 | C13: 25.12617534 | D13: 61 | E13: 15.40134467 | F13: 20.44274114 | G13: 63.9486003 | H13: 0.2068718588 | I13: 12.03286069 | J13: 22.62536115 | K13: 59.42872513 | L13: 5.913072199 | M13: 25.07992794 | N13: 26.75547765 | O13: 48.16534656 | T13: 5.252939469 | U13: 22.61394978 | V13: 72.13311076
A14: 1999 | B14: 13.63454835 | C14: 25.71095939 | D14: 60.65449226 | E14: 15.62658176 | F14: 21.16621765 | G14: 62.9908564 | H14: 0.2159359948 | I14: 12.25065328 | J14: 21.5816363 | K14: 60.19038576 | L14: 5.977319223 | M14: 24.41526207 | N14: 27.52011377 | O14: 48.06483074 | T14: 4.993371631 | U14: 22.32287524 | V14: 72.6852261
A15: 2000 | B15: 12.60885897 | C15: 24.33540519 | D15: 63.05573585 | E15: 15.65136767 | F15: 21.03940303 | G15: 63.08283499 | H15: 0.2267666575 | I15: 12.37861145 | J15: 21.96140991 | K15: 59.77218526 | L15: 5.887794707 | M15: 23.60054081 | N15: 32.6075513 | O15: 43.79194666 | T15: 5.217575768 | U15: 16.96013577 | V15: 77.82228847
A16: 2001 | B16: 12.56954763 | C16: 25.29987061 | D16: 62.13058176 | E16: 16.61393029 | F16: 23.00608111 | G16: 60.19293273 | H16: 0.1870558767 | I16: 12.17355507 | J16: 21.23419383 | K16: 59.90281575 | L16: 6.689435014 | M16: 23.31010963 | N16: 33.47462567 | O16: 43.21526775 | T16: 5.333435653 | U16: 17.73175505 | V16: 76.9348093
A17: 2002 | B17: 13.69826075 | C17: 21.72343024 | D17: 64.57830901 | E17: 18.10253795 | F17: 18.15282277 | G17: 63.56397308 | H17: 0.1806662021 | I17: 12.6456895 | J17: 20.99955132 | K17: 60.97393877 | L17: 5.380820106 | M17: 23.41269238 | N17: 35.68557651 | O17: 40.90189041 | T17: 5.731593663 | U17: 19.15967692 | V17: 75.10872942
A18: 2003 | B18: 14.46676253 | C18: 20.84042308 | D18: 64.69281439 | E18: 18.76491065 | F18: 20.87336603 | G18: 60.0906362 | H18: 0.271087121 | I18: 12.61251769 | J18: 21.21903024 | K18: 60.92048392 | L18: 5.247968017 | M18: 24.08119449 | N18: 36.20999046 | O18: 39.70882084 | T18: 5.693575729 | U18: 20.22888616 | V18: 74.07753811
A19: 2004 | B19: 15.32273018 | C19: 21.23997273 | D19: 63.4372971 | E19: 18.55652798 | F19: 22.81657412 | G19: 58.2674781 | H19: 0.3597489328 | I19: 11.975472 | J19: 21.16679601 | K19: 61.55125244 | L19: 5.306479137 | M19: 23.76128879 | N19: 37.13216921 | O19: 39.106542 | T19: 5.95932524 | U19: 20.36687636 | V19: 73.6737984
A20: 2005 | B20: 15.34579047 | C20: 20.8406665 | D20: 63.81354303 | E20: 18.36091604 | F20: 21.38607306 | G20: 59.96395192 | H20: 0.2890589797 | I20: 11.99989326 | J20: 21.02896557 | K20: 61.79819733 | L20: 5.172962189 | M20: 23.94741982 | N20: 38.58579377 | O20: 37.46678641 | T20: 5.355569006 | U20: 17.69533714 | V20: 76.94908977
A21: 2006 | B21: 15.15145805 | C21: 19.85722715 | D21: 64.9913148 | E21: 17.50282226 | F21: 21.75312581 | G21: 60.52765527 | H21: 0.2163966685 | I21: 11.64191833 | J21: 20.45527559 | K21: 62.93141998 | L21: 4.971392226 | M21: 23.8940851 | N21: 39.04736889 | O21: 37.05854073 | T21: 5.186506488 | U21: 16.8001389 | V21: 78.01335129
A22: 2007 | B22: 15.71396864 | C22: 19.8420471 | D22: 64.44398426 | E22: 17.56506853 | F22: 22.10216525 | G22: 60.16527354 | H22: 0.1674926821 | I22: 11.55074597 | J22: 21.51736184 | K22: 61.9760503 | L22: 4.955830413 | M22: 24.89796094 | N22: 38.53324138 | O22: 36.56879768 | Q22: 15.73799117 | R22: 43.95316095 | S22: 40.30869986 | T22: 4.703682401 | U22: 13.28603363 | V22: 82.01028397
A23: 2008 | B23: 16.05044347 | C23: 19.63551202 | D23: 64.31404451 | E23: 17.38212405 | F23: 18.43317177 | G23: 64.0295507 | H23: 0.1549068216 | I23: 11.38526166 | J23: 21.68097629 | K23: 62.60221162 | L23: 4.331549994 | M23: 25.34532006 | N23: 39.33423014 | O23: 35.3204498 | Q23: 15.84792544 | R23: 44.05291154 | S23: 40.09912012 | T23: 4.783775068 | U23: 12.46008414 | V23: 82.7561408
A24: 2009 | B24: 18.05791386 | C24: 19.96990754 | D24: 61.9721786 | E24: 18.40148837 | F24: 17.96977246 | G24: 63.31478646 | H24: 0.3139527116 | I24: 12.46041747 | J24: 22.34014931 | K24: 60.48599371 | L24: 4.713439418 | M24: 26.08394222 | N24: 39.62377702 | O24: 34.29228076 | Q24: 16.81513788 | R24: 45.62705888 | S24: 37.55780324 | T24: 4.658407873 | U24: 12.59528005 | V24: 82.74631208
A25: 2010 | B25: 18.22152555 | C25: 19.93546337 | D25: 61.84301108 | E25: 18.69981591 | F25: 19.34339626 | G25: 61.49264619 | H25: 0.4641416317 | I25: 12.12996274 | J25: 21.24875243 | K25: 61.94157302 | L25: 4.67972444 | M25: 25.10799462 | N25: 38.19284585 | O25: 32.78510681 | P25: 3.914052717 | Q25: 17.81314013 | R25: 46.2301798 | S25: 35.95743874 | T25: 4.594526899 | U25: 12.65528149 | V25: 82.75019161
A26: 2011 | B26: 18.06601663 | C26: 20.27751826 | D26: 61.65646511 | E26: 17.22021137 | F26: 19.17256266 | G26: 63.39393996 | H26: 0.2132860093 | I26: 12.25997404 | J26: 21.03070426 | K26: 62.11749152 | L26: 4.591842701 | M26: 24.33505114 | N26: 37.04678588 | O26: 34.78410855 | P26: 3.834056645 | Q26: 16.37380979 | R26: 46.89751896 | S26: 36.72867124 | T26: 4.740576253 | U26: 11.83825025 | V26: 83.4211735
A27: 2012 | B27: 18.31071297 | C27: 19.06696209 | D27: 62.62232494 | E27: 16.99720561 | F27: 19.98471603 | G27: 62.85096745 | H27: 0.1671109147 | I27: 12.45888218 | J27: 20.75279974 | K27: 62.07716767 | L27: 4.711150671 | M27: 24.11857596 | N27: 37.29068786 | O27: 35.22925237 | P27: 3.361483814 | Q27: 16.7744205 | R27: 45.72280234 | S27: 37.50277716 | T27: 4.843530685 | U27: 11.28302537 | V27: 83.87344395
A28: 2013 | B28: 17.98582541 | C28: 19.08212842 | D28: 62.93204618 | E28: 17.38785572 | F28: 19.36993549 | G28: 63.05391011 | H28: 0.1882986764 | I28: 12.6253436 | J28: 20.87017126 | K28: 61.8336172 | L28: 4.670873827 | M28: 24.31556489 | N28: 37.77233038 | O28: 34.49886565 | P28: 3.413217967 | Q28: 16.81725778 | R28: 45.63966878 | S28: 37.54307344 | T28: 4.684477707 | U28: 10.712908 | V28: 84.60261429
A29: 2014 | B29: 17.63984403 | C29: 18.92000189 | D29: 63.44015408 | E29: 17.35188248 | F29: 19.23908235 | G29: 63.1920554 | H29: 0.2167701251 | I29: 12.25687262 | J29: 19.9316521 | K29: 63.42653243 | L29: 4.384943137 | M29: 23.90036884 | N29: 38.6069942 | O29: 34.33486228 | P29: 3.157774687 | T29: 4.713892951 | U29: 10.74499117 | V29: 84.54111588
A30: 2015 | B30: 17.2252361 | C30: 20.8385165 | D30: 61.9362474 | E30: 16.72207978 | F30: 19.49661116 | G30: 63.50322526 | H30: 0.2778867208 | I30: 11.91170478 | J30: 19.85688052 | K30: 63.68561522 | L30: 4.545799486 | M30: 23.76736913 | N30: 37.90250753 | O30: 35.24766584 | P30: 3.082457499 | T30: 5.053837626 | U30: 10.78788023 | V30: 84.15828186
A31: 2016 | B31: 15.97373093 | C31: 22.5074713 | D31: 61.51879777 | E31: 16.47249585 | F31: 20.86060004 | G31: 62.48732344 | H31: 0.179580666 | I31: 12.57150021 | J31: 18.85373779 | K31: 64.03967495 | L31: 4.535087142 | M31: 22.302959 | N31: 42.23449179 | O31: 35.46254719 | T31: 5.249123788 | U31: 10.27314394 | V31: 84.47773227
A32: 2017 | B32: 14.45769859 | C32: 21.97751017 | D32: 63.56479124 | E32: 15.99034799 | F32: 20.34948779 | G32: 63.46447228 | H32: 0.1958687255 | I32: 13.11389183 | J32: 18.66985069 | K32: 63.89120152 | L32: 4.325055211 | M32: 22.78844797 | N32: 41.96074491 | O32: 35.46012501 | T32: 5.540623455 | U32: 10.50321396 | V32: 83.95616259
A33: 2018 | B33: 14.20815263 | C33: 21.95846956 | D33: 63.83337781 | E33: 15.92791061 | F33: 19.4752664 | G33: 64.37095715 | H33: 0.225865846 | I33: 12.57412391 | J33: 18.99025256 | K33: 64.27486468 | L33: 4.160764686 | M33: 22.63575966 | N33: 41.20609742 | O33: 36.01107798 | T33: 5.541085749 | U33: 11.13365522 | V33: 83.32525903
A34: 2019 | B34: 14.66898367 | C34: 22.50511059 | D34: 62.82590574 | E34: 15.57898805 | F34: 19.46993646 | G34: 64.73245304 | H34: 0.2187699611 | I34: 12.49648703 | J34: 18.56512214 | K34: 64.79438432 | L34: 4.144006527 | M34: 22.67172096 | N34: 41.36512427 | O34: 35.96315477 | T34: 6.031415414 | U34: 11.28300394 | V34: 82.6855806
A35: 2020 | B35: 14.44918335 | C35: 21.57329415 | D35: 63.9775225 | E35: 15.4042904 | F35: 18.42785923 | G35: 65.91426604 | H35: 0.2537212681 | I35: 12.28701597 | J35: 18.56152448 | K35: 64.90532984 | L35: 4.246129709 | M35: 22.69704158 | N35: 40.88751335 | O35: 36.41544317 | T35: 6.013977922 | U35: 11.30334966 | V35: 82.6826725
A36: 2021 | B36: 14.78448644 | C36: 21.02150292 | D36: 64.19401064 | E36: 14.76179665 | F36: 18.07142068 | G36: 67.03068065 | H36: 0.1361020232 | I36: 12.66946747 | J36: 18.76099847 | K36: 64.4700668 | L36: 4.099461746 | M36: 22.99292676 | N36: 41.78214006 | O36: 35.22493318
A37: 2022 | B37: 15.01906331 | C37: 19.93499291 | D37: 65.04594379
A39: 주 : 1. 공란은 데이터 없음
A40: 2. 프랑스는 2010년(조사대상년도)부터 '기타' 추가됨
A41: 3. 사사오입으로 인해 합계(100.0%) 수치 마지막 단위에서 차이 발생할 수도 있음
A42: 자료 : OECD, Research & Development Statistics 2023, 2023

Sheet 1-6
A1: 1-6) 주요국의 연구수행주체별 연구개발비 비율
A2: Percentage of R&D expenditure by sector of performance in major countries
F4: (단위 : % Unit : %)
A5: 국가 · 연도 Country · Year | C5: 공공연구기관 Public research institutes | E5: 대학 Higher educations | F5: 기업체 Business enterprises
C6: 국립·공립·출연(연) Government | D6: 비영리법인 Private non-profit
A7: 한국 Korea | B7: 1995 | C7: 16.95810629 | D7: 1.148485595 | E7: 8.165916468 | F7: 73.72749165
B8: 1996 | C8: 16.21583832 | D8: 1.21023529 | E8: 9.365842224 | F8: 73.20808417
B9: 1997 | C9: 15.77635359 | D9: 1.201602815 | E9: 10.43508239 | F9: 72.58696121
B10: 1998 | C10: 17.45863868 | D10: 1.060730904 | E10: 11.15918444 | F10: 70.32144598
B11: 1999 | C11: 14.45170978 | D11: 2.149658876 | E11: 12.00680068 | F11: 71.39183066
B12: 2000 | C12: 13.31462517 | D12: 1.358313077 | E12: 11.27821704 | F12: 74.04884471
B13: 2001 | C13: 12.36004099 | D13: 1.048370813 | E13: 10.4079626 | F13: 76.18362559
B14: 2002 | C14: 13.40725045 | D14: 1.326481533 | E14: 10.37279999 | F14: 74.89346803
B15: 2003 | C15: 12.59159456 | D15: 1.18153951 | E15: 10.13527365 | F15: 76.09159228
B16: 2004 | C16: 12.06139413 | D16: 1.160288557 | E16: 10.06185393 | F16: 76.71646338
B17: 2005 | C17: 11.8607284 | D17: 1.357372742 | E17: 9.928555312 | F17: 76.85334355
B18: 2006 | C18: 11.55986545 | D18: 1.22843244 | E18: 9.953570733 | F18: 77.25813138
B19: 2007 | C19: 11.6558146 | D19: 1.450208393 | E19: 10.65166731 | F19: 76.2423097
B20: 2008 | C20: 12.05731407 | D20: 1.431086235 | E20: 11.14482984 | F20: 75.36676985
B21: 2009 | C21: 13.01865539 | D21: 1.636243625 | E21: 11.0846966 | F21: 74.26040438
B22: 2010 | C22: 12.67379517 | D22: 1.705773542 | E22: 10.82083371 | F22: 74.79959757
B23: 2011 | C23: 11.72849965 | D23: 1.647437559 | E23: 10.0897459 | F23: 76.5343169
B24: 2012 | C24: 11.25369393 | D24: 1.280566076 | E24: 9.516532792 | F24: 77.9492072
B25: 2013 | C25: 10.91364587 | D25: 1.330189391 | E25: 9.24154266 | F25: 78.51462207
B26: 2014 | C26: 11.21289607 | D26: 1.516078725 | E26: 9.04846612 | F26: 78.22255909
B27: 2015 | C27: 11.74255052 | D27: 1.635501024 | E27: 9.094799301 | F27: 77.52714915
B28: 2016 | C28: 11.54450843 | D28: 1.585815206 | E28: 9.134557346 | F28: 77.73511902
B29: 2017 | C29: 10.69907722 | D29: 1.413266766 | E29: 8.481522957 | F29: 79.40613306
B30: 2018 | C30: 10.07387259 | D30: 1.40870641 | E30: 8.224099743 | F30: 80.29332125
B31: 2019 | C31: 9.992599744 | D31: 1.426939593 | E31: 8.278372787 | F31: 80.30208788
B32: 2020 | C32: 10.10799455 | D32: 1.838235735 | E32: 8.975178989 | F32: 79.07859072
B33: 2021 | C33: 9.770970243 | D33: 1.975224996 | E33: 9.135548675 | F33: 79.11826011
B34: 2022 | C34: 9.539584371 | D34: 1.92871912 | E34: 9.149123131 | F34: 79.38257338
A35: 미국 United States | B35: 1991 | C35: 14.78273262 | D35: 2.88244078 | E35: 11.2806786 | F35: 71.054148
B36: 1992 | C36: 14.89405323 | D36: 3.010769546 | E36: 11.69092729 | F36: 70.40424993
B37: 1993 | C37: 15.01989131 | D37: 3.169969847 | E37: 12.33501652 | F37: 69.47512233
B38: 1994 | C38: 14.75289027 | D38: 3.300888451 | E38: 12.73839914 | F38: 69.20841169
B39: 1995 | C39: 14.02225047 | D39: 3.16536836 | E39: 12.28610541 | F39: 70.52681899
B40: 1996 | C40: 12.89370178 | D40: 3.138997583 | E40: 11.99077866 | F40: 71.97652198
B41: 1997 | C41: 12.14290421 | D41: 3.125970689 | E41: 11.59037642 | F41: 73.14121933
B42: 1998 | C42: 11.62549121 | D42: 3.201651439 | E42: 11.30855291 | F42: 73.86474647
B43: 1999 | C43: 11.16499306 | D43: 3.291289085 | E43: 11.21520124 | F43: 74.32851661
B44: 2000 | C44: 10.82671155 | D44: 3.576880972 | E44: 11.13949314 | F44: 74.45728669
B45: 2001 | C45: 11.93502496 | D45: 3.937848714 | E45: 11.73578537 | F45: 72.39169931
B46: 2002 | C46: 12.91062949 | D46: 4.280316363 | E46: 13.17606155 | F46: 69.63299259
B47: 2003 | C47: 12.98377242 | D47: 4.423306647 | E47: 13.88876529 | F47: 68.70415564
B48: 2004 | C48: 12.71163568 | D48: 4.477921428 | E48: 14.25035547 | F48: 68.55975828
B49: 2005 | C49: 12.37711928 | D49: 4.35397004 | E49: 13.94410709 | F49: 69.32480359
B50: 2006 | C50: 12.1034268 | D50: 4.000352604 | E50: 13.46976845 | F50: 70.42673651
B51: 2007 | C51: 11.91153005 | D51: 3.893808583 | E51: 13.05861716 | F51: 71.13604421
B52: 2008 | C52: 11.52230486 | D52: 3.93655727 | E52: 12.83999951 | F52: 71.70113837
B53: 2009 | C53: 12.18947999 | D53: 4.361443935 | E53: 13.58457797 | F53: 69.86449811
B54: 2010 | C54: 13.01506012 | D54: 4.472259214 | E54: 14.21898868 | F54: 68.29369198
B55: 2011 | C55: 12.87044104 | D55: 4.207891816 | E55: 14.06797994 | F55: 68.8536872
B56: 2012 | C56: 12.27735808 | D56: 4.133808426 | E56: 14.01683079 | F56: 69.57223289
B57: 2013 | C57: 11.50709251 | D57: 4.104559596 | E57: 13.52322863 | F57: 70.86533898
B58: 2014 | C58: 11.3429056 | D58: 4.154481209 | E58: 13.07140626 | F58: 71.43099729
B59: 2015 | C59: 10.77372729 | D59: 4.096759762 | E59: 12.73844553 | F59: 72.39087034
B60: 2016 | C60: 9.842820054 | D60: 4.279381028 | E60: 12.70786275 | F60: 73.16993617
B61: 2017 | C61: 9.568752928 | D61: 4.214536359 | E61: 12.57130735 | F61: 73.64540336
B62: 2018 | C62: 9.742972433 | D62: 4.062511123 | E62: 12.11488741 | F62: 74.07962904
B63: 2019 | C63: 9.559347437 | D63: 3.911305967 | E63: 11.52798205 | F63: 75.00136455
B64: 2020 | C64: 9.124791703 | D64: 3.848265645 | E64: 11.06925783 | F64: 75.95782175
B65: 2021 | C65: 8.291181408 | D65: 3.680337662 | E65: 10.4260105 | F65: 77.60247043
A66: 일본 Japan | B66: 1991 | C66: 8.102017566 | D66: 4.437154071 | E66: 12.07294985 | F66: 75.38787851
B67: 1992 | C67: 8.923090579 | D67: 4.710573988 | E67: 12.82890264 | F67: 73.53744049
B68: 1993 | C68: 10.03891753 | D68: 4.853475567 | E68: 14.02550088 | F68: 71.08210603
B69: 1994 | C69: 9.712815845 | D69: 5.043203656 | E69: 14.12394326 | F69: 71.12004516
B70: 1995 | C70: 10.39813304 | D70: 4.78733207 | E70: 14.53359998 | F70: 70.28093492
B71: 1996 | C71: 9.385584997 | D71: 4.79864512 | E71: 14.75699358 | F71: 71.05876218
B72: 1997 | C72: 8.834482558 | D72: 4.846326525 | E72: 14.27420385 | F72: 72.04498707
B73: 1998 | C73: 9.248435795 | D73: 4.707353445 | E73: 14.84691055 | F73: 71.19730021
B74: 1999 | C74: 9.856745247 | D74: 4.587405023 | E74: 14.84207718 | F74: 70.71377255
B75: 2000 | C75: 9.890160511 | D75: 4.620030432 | E75: 14.52853205 | F75: 70.96128355
B76: 2001 | C76: 9.535102442 | D76: 2.326282833 | E76: 14.46465127 | F76: 73.67395059
B77: 2002 | C77: 9.537406425 | D77: 2.139110195 | E77: 13.88158181 | F77: 74.44188871
B78: 2003 | C78: 9.310090419 | D78: 2.052921805 | E78: 13.66002646 | F78: 74.97696131
B79: 2004 | C79: 9.488502727 | D79: 1.893181686 | E79: 13.42684855 | F79: 75.19146703
B80: 2005 | C80: 8.29023276 | D80: 1.85798499 | E80: 13.4041044 | F80: 76.44767785
B81: 2006 | C81: 8.281147757 | D81: 1.869215364 | E81: 12.69429021 | F81: 77.15534666
B82: 2007 | C82: 7.76839103 | D82: 1.747453486 | E82: 12.59359668 | F82: 77.8905588
B83: 2008 | C83: 8.329088312 | D83: 1.57234011 | E83: 11.6367808 | F83: 78.46179078
B84: 2009 | C84: 9.214585053 | D84: 1.612987655 | E84: 13.41032037 | F84: 75.76210692
B85: 2010 | C85: 9.024437901 | D85: 1.589012415 | E85: 12.87236456 | F85: 76.51418512
B86: 2011 | C86: 8.375466555 | D86: 1.450781803 | E86: 13.21085819 | F86: 76.96289346
B87: 2012 | C87: 8.620159722 | D87: 1.400715909 | E87: 13.35618543 | F87: 76.62293894
B88: 2013 | C88: 9.168409315 | D88: 1.275228538 | E88: 13.4658196 | F88: 76.09054255
B89: 2014 | C89: 8.325804058 | D89: 1.339353549 | E89: 12.5781188 | F89: 77.75672359
B90: 2015 | C90: 7.898760568 | D90: 1.332102015 | E90: 12.27806042 | F90: 78.49107699
B91: 2016 | C91: 7.548668844 | D91: 1.38103347 | E91: 12.31760825 | F91: 78.75268944
B92: 2017 | C92: 7.813759742 | D92: 1.378017379 | E92: 12.01258364 | F92: 78.79563924
B93: 2018 | C93: 7.752268066 | D93: 1.266180159 | E93: 11.5596818 | F93: 79.42186998
B94: 2019 | C94: 7.81121849 | D94: 1.342090908 | E94: 11.69242213 | F94: 79.15426847
B95: 2020 | C95: 8.277022579 | D95: 1.3679541 | E95: 11.70066724 | F95: 78.65435608
B96: 2021 | C96: 8.356093577 | D96: 1.211852164 | E96: 11.87214602 | F96: 78.55990824
A97: 독일 Germany | B97: 1991 | C97: 14.41835149 | E97: 16.2363366 | F97: 69.34521608
B98: 1992 | C98: 14.21602922 | E98: 17.08394825 | F98: 68.70002252
B99: 1993 | C99: 15.20965661 | E99: 17.64829552 | F99: 67.14204787
B100: 1994 | C100: 15.24949243 | E100: 18.14677245 | F100: 66.60373512
B101: 1995 | C101: 15.48890321 | E101: 18.22145117 | F101: 66.28964779
B102: 1996 | C102: 15.30148136 | E102: 18.66223516 | F102: 66.03628159
B103: 1997 | C103: 14.61526201 | E103: 18.02147358 | F103: 67.36327438
B104: 1998 | C104: 14.66526081 | E104: 17.38451587 | F104: 67.95020997
B105: 1999 | C105: 13.71507878 | E105: 16.7483277 | F105: 69.53659779
B106: 2000 | C106: 13.52261811 | E106: 16.43341139 | F106: 70.0439705
B107: 2001 | C107: 13.68004141 | E107: 16.76652286 | F107: 69.55343573
B108: 2002 | C108: 13.69419926 | E108: 17.30623414 | F108: 68.9995666
B109: 2003 | C109: 13.35225899 | E109: 17.16022736 | F109: 69.48751364
B110: 2004 | C110: 13.63858544 | E110: 16.73282771 | F110: 69.62858686
B111: 2005 | C111: 14.0784832 | E111: 16.75221388 | F111: 69.16930292
B112: 2006 | C112: 13.83167063 | E112: 16.38657356 | F112: 69.78175581
B113: 2007 | C113: 13.88629137 | E113: 16.14079667 | F113: 69.97291196
B114: 2008 | C114: 14.03484672 | E114: 16.78034666 | F114: 69.18480662
B115: 2009 | C115: 14.80621379 | E115: 17.69785849 | F115: 67.49592762
B116: 2010 | C116: 14.78803954 | E116: 18.18413622 | F116: 67.02782424
B117: 2011 | C117: 14.52221079 | E117: 17.88770463 | F117: 67.59008458
B118: 2012 | C118: 14.33509394 | E118: 17.67117206 | F118: 67.99373402
B119: 2013 | C119: 14.87734633 | E119: 17.93778514 | F119: 67.18491243
B120: 2014 | C120: 14.62367113 | E120: 17.72209986 | F120: 67.65422901
B121: 2015 | C121: 14.06324757 | E121: 17.28305657 | F121: 68.65369587
B122: 2016 | C122: 13.80098756 | E122: 18.03846539 | F122: 68.16054704
B123: 2017 | C123: 13.54446934 | E123: 17.35979836 | F123: 69.09573229
B124: 2018 | C124: 13.536023 | E124: 17.57894992 | F124: 68.88502709
B125: 2019 | C125: 13.65339152 | E125: 17.42580191 | F125: 68.92080657
B126: 2020 | C126: 14.62621461 | E126: 18.72899262 | F126: 66.64479277
B127: 2020 | C127: 14.80874792 | E127: 18.25472517 | F127: 66.93652691
A128: 프랑스 France | B128: 1991 | C128: 22.6514066 | D128: 0.7839732471 | E128: 15.08336077 | F128: 61.48119807
B129: 1992 | C129: 20.91306343 | D129: 1.327512729 | E129: 15.27687597 | F129: 62.48390166
B130: 1993 | C130: 21.12352565 | D130: 1.350441225 | E130: 15.82825335 | F130: 61.69783733
B131: 1994 | C131: 20.62906193 | D131: 1.34937316 | E131: 16.1805164 | F131: 61.83990932
B132: 1995 | C132: 20.9896665 | D132: 1.32350666 | E132: 16.70569605 | F132: 60.98108724
B133: 1996 | C133: 20.26858282 | D133: 1.347295551 | E133: 16.83955134 | F133: 61.54457029
B134: 1997 | C134: 18.66520932 | D134: 1.385761207 | E134: 17.41456395 | F134: 62.53446553
B135: 1998 | C135: 18.64070917 | D135: 1.490632272 | E135: 17.60765633 | F135: 62.2609484
B136: 1999 | C136: 18.14205529 | D136: 1.518377479 | E136: 17.16267342 | F136: 63.17689382
B137: 2000 | C137: 17.3208609 | D137: 1.419511785 | E137: 18.75180916 | F137: 62.50781815
B138: 2001 | C138: 16.51710064 | D138: 1.386216046 | E138: 18.90479537 | F138: 63.19188795
B139: 2002 | C139: 16.53338524 | D139: 1.355245318 | E139: 18.86084369 | F139: 63.25052575
B140: 2003 | C140: 16.6812523 | D140: 1.340576015 | E140: 19.36102159 | F140: 62.6171501
B141: 2004 | C141: 16.97857779 | D141: 1.284389451 | E141: 18.63324567 | F141: 63.10378709
B142: 2005 | C142: 17.76911581 | D142: 1.2875582 | E142: 18.8274209 | F142: 62.1159051
B143: 2006 | C143: 16.49850119 | D143: 1.217037132 | E143: 19.20326149 | F143: 63.08120019
B144: 2007 | C144: 16.35222507 | D144: 1.172549163 | E144: 19.49616144 | F144: 62.97906433
B145: 2008 | C145: 15.98470365 | D145: 1.248553474 | E145: 20.03599894 | F145: 62.73074394
B146: 2009 | C146: 16.30877686 | D146: 1.195961235 | E146: 20.80275781 | F146: 61.69250409
B147: 2010 | C147: 14.01649354 | D147: 1.245264659 | E147: 21.57903401 | F147: 63.15920779
B148: 2011 | C148: 13.85231717 | D148: 1.247087384 | E148: 20.94671662 | F148: 63.95396084
B149: 2012 | C149: 13.15525858 | D149: 1.437755379 | E149: 20.82843928 | F149: 64.57871874
B150: 2013 | C150: 13.05935871 | D150: 1.473986029 | E150: 20.87979722 | F150: 64.58687916
B151: 2014 | C151: 12.73744115 | D151: 1.510213408 | E151: 22.12130515 | F151: 63.6310353
B152: 2015 | C152: 12.96918137 | D152: 1.56844079 | E152: 20.78742672 | F152: 64.67495111
B153: 2016 | C153: 12.70955426 | D153: 1.64324639 | E153: 20.54142075 | F153: 65.1057786
B154: 2017 | C154: 12.41729009 | D154: 1.580406131 | E154: 20.63553263 | F154: 65.36677114
B155: 2018 | C155: 12.43773332 | D155: 1.57568893 | E155: 20.44909061 | F155: 65.53748714
B156: 2019 | C156: 12.32708209 | D156: 1.645772118 | E156: 20.10570899 | F156: 65.92143679
B157: 2020 | C157: 11.82559063 | D157: 1.981534501 | E157: 20.51872897 | F157: 65.6741459
B158: 2021 | C158: 11.72031307 | D158: 2.068835333 | E158: 20.48386263 | F158: 65.72698897
A159: 영국 United Kingdom | B159: 1991 | C159: 14.4823607 | D159: 1.813386086 | E159: 16.65018134 | F159: 67.05407188
B160: 1992 | C160: 14.93126314 | D160: 1.812227074 | E160: 17.22060488 | F160: 66.0359049
B161: 1993 | C161: 14.62029539 | D161: 1.758256756 | E161: 17.52949383 | F161: 66.09195402
B162: 1994 | C162: 14.98808845 | D162: 1.229154792 | E162: 19.16809167 | F162: 64.61466509
B163: 1995 | C163: 14.56372252 | D163: 1.263405423 | E163: 19.21402359 | F163: 64.95884847
B164: 1996 | C164: 14.43708147 | D164: 1.236049107 | E164: 19.47614397 | F164: 64.85072545
B165: 1997 | C165: 13.7651297 | D165: 1.297026596 | E165: 19.74059468 | F165: 65.19656673
B166: 1998 | C166: 13.45013041 | D166: 1.313746838 | E166: 19.67055311 | F166: 65.56556964
B167: 1999 | C167: 12.23885623 | D167: 1.36433712 | E167: 19.63515196 | F167: 66.76165469
B168: 2000 | C168: 12.63235128 | D168: 1.819618467 | E168: 20.58817001 | F168: 64.96000202
B169: 2001 | C169: 10.02953079 | D169: 1.777315979 | E169: 22.68948923 | F169: 65.50366401
B170: 2002 | C170: 9.189298828 | D170: 1.943020002 | E170: 24.01834843 | F170: 64.84933274
B171: 2003 | C171: 10.39144441 | D171: 1.854950975 | E171: 24.04500932 | F171: 63.70859529
B172: 2004 | C172: 10.71507944 | D172: 2.006114154 | E172: 24.7154054 | F172: 62.56340101
B173: 2005 | C173: 10.55799494 | D173: 2.317214914 | E173: 25.73704408 | F173: 61.38774607
B174: 2006 | C174: 9.992199318 | D174: 2.23073641 | E174: 26.12323353 | F174: 61.65383074
B175: 2007 | C175: 9.160554993 | D175: 2.227885872 | E175: 26.08087215 | F175: 62.53068698
B176: 2008 | C176: 9.152995933 | D176: 2.355483522 | E176: 26.49736668 | F176: 61.99415347
B177: 2009 | C177: 9.163457523 | D177: 2.480706476 | E177: 27.94661223 | F177: 60.40922377
B178: 2010 | C178: 9.526803733 | D178: 2.478825582 | E178: 27.04529929 | F178: 60.94909339
B179: 2011 | C179: 8.578618466 | D179: 1.811926354 | E179: 26.02877314 | F179: 63.58068204
B180: 2012 | C180: 8.046360068 | D180: 1.906243057 | E180: 26.70332519 | F180: 63.34407169
B181: 2013 | C181: 7.899193423 | D181: 1.7942795 | E181: 26.41826349 | F181: 63.88826359
B182: 2014 | C182: 5.267911539 | D182: 1.31330348 | E182: 18.70035108 | F182: 74.7184339
B183: 2015 | C183: 4.795251937 | D183: 1.59903641 | E183: 17.5874515 | F183: 76.01826016
B184: 2016 | C184: 4.697916002 | D184: 1.562733615 | E184: 16.67588056 | F184: 77.06346983
B185: 2017 | C185: 4.553574433 | D185: 1.557179183 | E185: 16.81271673 | F185: 77.07652965
B186: 2018 | C186: 4.46237252 | D186: 1.340401438 | E186: 23.94859253 | F186: 70.24863352
B187: 2019 | C187: 4.461511232 | D187: 1.378963804 | E187: 23.45649712 | F187: 70.70302784
B188: 2020 | C188: 4.979848464 | D188: 1.451825831 | E188: 22.42670934 | F188: 71.14161637
B189: 2021 | C189: 5.085551058 | D189: 1.470345997 | E189: 22.5245715 | F189: 70.91953144
A190: 중국 China | B190: 1991 | C190: 49.55474727 | E190: 8.60403863 | F190: 39.82189891
B191: 1992 | C191: 46.26066758 | E191: 9.670251982 | F191: 41.79669747
B192: 1993 | C192: 44.88931898 | E192: 11.20116124 | F192: 41.69589936
B193: 1994 | C193: 42.06883041 | E193: 12.63305688 | F193: 43.13002024
B194: 1995 | C194: 42.05454702 | E194: 12.11964782 | F194: 43.67489747
B195: 1996 | C195: 42.80310522 | E195: 11.81269778 | F195: 43.24812104
B196: 1997 | C196: 40.59234818 | E196: 11.32453453 | F196: 46.05232147
B197: 1998 | C197: 42.5551604 | E197: 10.38793729 | F197: 44.82508347
B198: 1999 | C198: 38.47400206 | E198: 9.353365739 | F198: 49.58756812
B199: 2000 | C199: 31.4719231 | E199: 8.567488961 | F199: 59.96058794
B200: 2001 | C200: 29.74349628 | E200: 9.82081191 | F200: 60.43569181
B201: 2002 | C201: 28.68126747 | E201: 10.13513514 | F201: 61.18359739
... 21 more rows

Sheet 1-7,8
A1: 1-7) 주요국의 기업 연구개발비 대비 하이테크산업 연구개발비 비율
A2: Percentage of R&D expenditure for high-technology industry to BERD in major countries
H4: (단위 : % Unit : %)
A5: 연도 국가 Year Country | B5: 2016 | C5: 2017 | D5: 2018 | E5: 2019 | F5: 2020 | G5: 2021 | H5: 2022
A6: 한국 Korea | B6: 53.65866186 | C6: 54.08974352 | D6: 54.47621594 | E6: 53.86642287 | F6: 53.03352271 | G6: 52.80285691 | H6: 52.73452914
A7: 미국 United States | B7: 44.30701545 | C7: 42.09315909 | D7: 40.97023387 | E7: 38.64857184 | F7: 39.38442039
A8: 일본 Japan | B8: 30.45860764 | C8: 30.59954498 | D8: 29.90916141 | E8: 28.56269655 | F8: 31.13889413 | G8: 27.29723309
A9: 독일 Germany | B9: 22.10311018 | C9: 20.15139423 | D9: 21.1010065 | E9: 20.63802908 | F9: 21.38895146
A10: 프랑스 France | B10: 23.34439853 | C10: 21.85909038
A12: 주 : 하이테크산업은 제약(pharmaceutical industry), 항공우주(aerospace industry), 컴퓨터/전자/광학(computer, electronic and optical industry)의 합, 중국은 항공우주 데이터 결측으로 주요국 비교에서 제외
A13: 자료 : OECD, Main Science and Technology Indicators 2023-september, 2023
A15: 1-8) 주요국의 연구개발인력(FTE 기준)
A16: R&D personnel(FTE) in major countries
H17: (단위 : 명 Unit : person)
A18: 국가 Country | B18: 연구개발인력 R&D personnel | D18: 연구원 Researchers | F18: 연구보조원 Other R&D Personnel
A19: 한국(2022) Korea | B19: 602,196 (100.0) | D19: 488,774 (81.2) | F19: 113,422 (18.8) | J19: 한 국 (2016) Korea | K19: 447,408 (100.0) | M19: 361,292 (80.8) | O19: 86,117 (19.2)
A20: 미국(2020) United States | B20: 2,415,108 (100.0) | D20: 1,493,075 (61.8) | F20: 922,033 (38.2) | J20: 미 국 (2015) United States | M20: 1379977 | R20: 872340 | S20: 665566 | T20: =R20-S20 -> 206774 | U20: =S20/R20*100 -> 76.29662746 | V20: =T20/R20*100 -> 23.70337254
A21: 일본(2021) Japan | B21: 942,024 (100.0) | D21: 704,502 (74.8) | F21: 237,522 (25.2) | J21: 일 본 (2015) Japan | K21: 875,005 (100.0) | M21: 662,071 (75.7) | O21: 212,934 (24.3) | R21: 656727 | S21: 400821 | T21: =R21-S21 -> 255906 | U21: =S21/R21*100 -> 61.03312335 | V21: =T21/R21*100 -> 38.96687665
A22: 독일(2021) Germany | B22: 753,940 (100.0) | D22: 461,645 (61.2) | F22: 292,295 (38.8) | J22: 독 일 (2015) Germany | K22: 640,516 (100.0) | M22: 387,982 (60.6) | O22: 252,534 (39.4) | R22: .. | S22: ..
A23: 프랑스(2021) France | B23: 496,250 (100.0) | D23: 333,800 (67.3) | F23: 162,450 (32.7) | J23: 프랑스 (2015) France | K23: 428,643 (100.0) | M23: 277,631 (64.8) | O23: 151,011 (35.2) | R23: 419898 | S23: 291416 | T23: =R23-S23 -> 128482 | U23: =S23/R23*100 -> 69.40161658 | V23: =T23/R23*100 -> 30.59838342
A24: 영국(2017) United Kingdom | B24: 444,616 (100.0) | D24: 295,842 (66.5) | F24: 148,777 (33.5) | J24: 영 국 (2015) United Kingdom | K24: 416,538 (100.0) | M24: 289,330 (69.5) | O24: 127,208 (30.5) | R24: 3878056.8 | S24: 1692175.8 | T24: =R24-S24 -> 2185881 | U24: =S24/R24*100 -> 43.63463165 | V24: =T24/R24*100 -> 56.36536835
A25: 중국(2021) China | B25: 5,716,330 (100.0) | D25: 2,405,509 (42.1) | F25: 3,310,821 (57.9) | J25: 중 국 (2015) China | K25: 3,758,848 (100.0) | M25: 1,619,028 (43.1) | O25: 2,139,870 (56.9)
A27: 주 : 괄호 안의 수치는 구성비임
A28: 자료 : OECD, Main Science and Technology Indicators 2023-september, 2023

Sheet 1-9
A1: 1-9) 주요국의 정부연구개발예산
A2: Government Budget Allocations for R&D in major countries
G4: (단위 : 백만달러 Unit : US dollar, Millions)
A5: 연도 Year | B5: 한국 Korea | C5: 미국 United States | D5: 일본 Japan | E5: 독일 Germany | F5: 프랑스 France | G5: 영국 United Kingdom
A6: 1981 | B6: 309.531909 | C6: 33735 | E6: 7850.307367 | F6: 7507.806027 | G6: 6821.986131
A7: 1982 | B7: 314.9757067 | C7: 36115 | E7: 7956.012675 | F7: 7271.041049 | G7: 6146.769919
A8: 1983 | B8: 324.3319893 | C8: 38768 | E8: 7478.837336 | F8: 7276.984361 | G8: 5752.699989
A9: 1984 | B9: 340.0867485 | C9: 44214 | E9: 6821.502518 | F9: 7068.806808 | G9: 5392.607411
A10: 1985 | B10: 398.1517666 | C10: 49887 | E10: 7143.696226 | F10: 7649.222585 | G10: 5311.031433
A11: 1986 | B11: 478.1861827 | C11: 53249 | E11: 9846.677518 | F11: 9957.129436 | G11: 6236.946219
A12: 1987 | B12: 686.0255074 | C12: 57069 | E12: 12322.63175 | F12: 12337.97445 | G12: 7159.350707
A13: 1988 | B13: 848.9830891 | C13: 59106 | D13: 13388.40173 | E13: 12673.65496 | F13: 13130.8977 | G13: 7998.407955
A14: 1989 | B14: 1122.188479 | C14: 62115 | D14: 13157.00845 | E14: 12572.1687 | F14: 13123.53746 | G14: 7807.643662
A15: 1990 | B15: 1301.701717 | C15: 63781 | D15: 13266.37084 | E15: 15546.19793 | F15: 16966.08164 | G15: 8798.404409
A16: 1991 | B16: 1123.779112 | C16: 65897 | D16: 15015.07717 | E16: 17745.56606 | F16: 16506.59154 | G16: 8866.432105
A17: 1992 | B17: 1243.930167 | C17: 68398 | D17: 16854.74562 | E17: 19916.68984 | F17: 17006.2018 | G17: 8913.291937
A18: 1993 | B18: 1451.021032 | C18: 69884 | D18: 20380.48671 | E18: 18981.15509 | F18: 15792.0099 | G18: 8102.352131
A19: 1994 | B19: 1926.293329 | C19: 68331 | D19: 23075.28253 | E19: 19060.79564 | F19: 16115.09079 | G19: 7958.654907
A20: 1995 | B20: 2470.651157 | C20: 68791 | D20: 26574.10363 | E20: 22076.95417 | F20: 17336.97047 | G20: 8903.716142
A21: 1996 | B21: 2954.661993 | C21: 69049 | D21: 25836.33355 | E21: 21394.70822 | F21: 16804.41082 | G21: 9081.094237
A22: 1997 | B22: 3151.733359 | C22: 71653.28158 | D22: 24816.83266 | E22: 18056.90262 | F22: 14112.20384 | G22: 9862.876451
A23: 1998 | B23: 2367.901558 | C23: 73568.71422 | D23: 23163.14906 | E23: 17802.52319 | F23: 14124.55642 | G23: 9660.596465
A24: 1999 | B24: 3116.342645 | C24: 77637.10471 | D24: 27713.25207 | E24: 17395.94497 | F24: 13739.82913 | G24: 10236.11091
A25: 2000 | B25: 3713.322054 | C25: 72681 | D25: 30476.54454 | E25: 15011.5156 | F25: 12784.71975 | G25: 10118.15152
A26: 2001 | B26: 4442.163326 | C26: 78538 | D26: 28540.62392 | E26: 14742.16078 | F26: 13289.92515 | G26: 9719.78896
A27: 2002 | B27: 4907.069137 | C27: 88665 | D27: 28267.66886 | E27: 15825.95297 | F27: 14654.45168 | G27: 11883.8829
A28: 2003 | B28: 5467.56412 | C28: 98767 | D28: 31029.574 | E28: 19343.46778 | F28: 17876.85183 | G28: 13385.10169
A29: 2004 | B29: 6179.023029 | C29: 106246 | D29: 33351.28312 | E29: 21075.64664 | F29: 19785.27424 | G29: 15479.14607
A30: 2005 | B30: 7614.355426 | C30: 111332 | D30: 32462.37564 | E30: 21423.86166 | F30: 20773.86797 | G30: 15588.42032
A31: 2006 | B31: 9326.095664 | C31: 114442 | D31: 30733.92214 | E31: 22108.03671 | F31: 18333.75124 | G31: 16517.96639
A32: 2007 | B32: 10504.7922 | C32: 117691 | D32: 29818.70717 | E32: 25629.58562 | F32: 19335.24734 | G32: 18696.9258
A33: 2008 | B33: 9855.508956 | C33: 116710 | D33: 34547.34405 | E33: 28961.71125 | F33: 24931.47651 | G33: 16976.61251
A34: 2009 | B34: 9664.310253 | C34: 136599 | D34: 38088.33611 | E34: 30281.41118 | F34: 24426.98024 | G34: 14687.83445
A35: 2010 | B35: 11847.70766 | C35: 119382 | D35: 40886.46743 | E35: 30512.16411 | F35: 21689.1563 | G35: 14449.94352
A36: 2011 | B36: 13435.97919 | C36: 113386 | D36: 45920.20852 | E36: 33049.91913 | F36: 23403.74979 | G36: 14595.41995
A37: 2012 | B37: 14221.07312 | C37: 116796 | D37: 46279.60826 | E37: 30925.15626 | F37: 19445.1056 | G37: 14380.29088
A38: 2013 | B38: 15659.70232 | C38: 109608 | D38: 36986.96309 | E38: 33695.6803 | F38: 19896.0009 | G38: 15610.92516
A39: 2014 | B39: 16852.32324 | C39: 112502 | D39: 34464.37819 | E39: 33900.90444 | F39: 19686.00211 | G39: 16746.58154
A40: 2015 | B40: 16743.49718 | C40: 115220 | D40: 28730.43069 | E40: 29438.50855 | F40: 15725.67281 | G40: 15514.89966
A41: 2016 | B41: 16497.01598 | C41: 126093 | D41: 32785.82178 | E41: 31379.72109 | F41: 15549.97437 | G41: 13952.64058
A42: 2017 | B42: 17242.95812 | C42: 127306 | D42: 39729.33964 | E42: 34072.04375 | F42: 16660.38041 | G42: 14097.7146
A43: 2018 | B43: 17950.33465 | C43: 144459 | D43: 43214.98582 | E43: 37507.01782 | F43: 18376.0509 | G43: 15767.17205
A44: 2019 | B44: 17894.25133 | C44: 149971 | D44: 52589.76514 | E44: 38056.50213 | F44: 18115.18734 | G44: 15539.55925
A45: 2020 | B45: 20550.95487 | C45: 169901 | D45: 86167.10324 | E45: 42456.71646 | F45: 19427.40017 | G45: 17955.08974
A46: 2021 | B46: 24045.77116 | C46: 161885 | D46: 74528.53822 | E46: 47843.66773 | F46: 20887.08497 | G46: 19293.03432
A47: 2022 | B47: 22853.28597 | C47: 169938 | D47: 71453.60453 | E47: 45370.90364 | F47: 18849.25503
A49: 자료 : 1. 한국 : 한국과학기술기획평가원, 정부연구개발예산 현황분석, 각 연도
A50: 2. 그 외 국가 : OECD, Main Science and Technology Indicators 2023-september, 2023

Sheet 1-10
A1: 1-10) 국가별 과학기술논문발표건수(SCI 기준)
A2: Number of scientific and technical papers by country (based on SCI)
S3: (단위 : 건 Unit : case) | U3: (단위 : 건 Unit : case)
A4: 국가 Country | B4: 2013 | D4: 2014 | F4: 2015 | H4: 2016 | J4: 2017 | L4: 2018 | N4: 2019 | P4: 2020 | R4: 2021 | T4: 2022
B5: 논문수 Papers | C5: 순위 Ranking | D5: 논문수 Papers | E5: 순위 Ranking | F5: 논문수 Papers | G5: 순위 Ranking | H5: 논문수 Papers | I5: 순위 Ranking | J5: 논문수 Papers | K5: 순위 Ranking | L5: 논문수 Papers | M5: 순위 Ranking | N5: 논문수 Papers | O5: 순위 Ranking | P5: 논문수 Papers | Q5: 순위 Ranking | R5: 논문수 Papers | S5: 순위 Ranking | T5: 논문수 Papers | U5: 순위 Ranking
A6: 중국 China | B6: 217257 | C6: 2 | D6: 252197 | E6: 2 | F6: 282804 | G6: 2 | H6: 313175 | I6: 2 | J6: 350255 | K6: 2 | L6: 402910 | M6: 2 | N6: 495055 | O6: 2 | P6: 555418 | Q6: 1 | R6: 645958 | S6: 1 | T6: 714702 | U6: 1
A7: 미국 United States | B7: 423457 | C7: 1 | D7: 435012 | E7: 1 | F7: 440416 | G7: 1 | H7: 457604 | I7: 1 | J7: 472711 | K7: 1 | L7: 478446 | M7: 1 | N7: 512813 | O7: 1 | P7: 526361 | Q7: 2 | R7: 530857 | S7: 2 | T7: 451249 | U7: 2
A8: 영국 United Kingdom | B8: 126592 | C8: 3 | D8: 126700 | E8: 3 | F8: 134390 | G8: 3 | H8: 142280 | I8: 3 | J8: 149639 | K8: 3 | L8: 152321 | M8: 3 | N8: 167177 | O8: 3 | P8: 173661 | Q8: 3 | R8: 178675 | S8: 3 | T8: 150975 | U8: 3
A9: 독일 Germany | B9: 109394 | C9: 4 | D9: 112102 | E9: 4 | F9: 114736 | G9: 4 | H9: 120859 | I9: 4 | J9: 124602 | K9: 4 | L9: 126848 | M9: 4 | N9: 136494 | O9: 4 | P9: 142294 | Q9: 4 | R9: 151654 | S9: 4 | T9: 131087 | U9: 4
A10: 인도 India | B10: 56252 | C10: 11 | D10: 61599 | E10: 10 | F10: 64493 | G10: 10 | H10: 69988 | I10: 10 | J10: 75688 | K10: 10 | L10: 80975 | M10: 8 | N10: 92578 | O10: 6 | P10: 104711 | Q10: 5 | R10: 119346 | S10: 5 | T10: 120536 | U10: 5
A11: 이탈리아 Italy | B11: 66757 | C11: 8 | D11: 68778 | E11: 8 | F11: 71096 | G11: 8 | H11: 75678 | I11: 8 | J11: 78189 | K11: 8 | L11: 80942 | M11: 9 | N11: 89004 | O11: 9 | P11: 102782 | Q11: 6 | R11: 108256 | S11: 6 | T11: 95891 | U11: 6
A12: 일본 Japan | B12: 82060 | C12: 5 | D12: 81020 | E12: 5 | F12: 80513 | G12: 5 | H12: 83822 | I12: 5 | J12: 86086 | K12: 5 | L12: 87602 | M12: 5 | N12: 92582 | O12: 5 | P12: 98819 | Q12: 7 | R12: 103365 | S12: 7 | T12: 91308 | U12: 7
A13: 캐나다 Canada | B13: 69433 | C13: 7 | D13: 71367 | E13: 7 | F13: 73446 | G13: 7 | H13: 76204 | I13: 7 | J13: 80097 | K13: 7 | L13: 82145 | M13: 7 | N13: 90696 | O13: 7 | P13: 94591 | Q13: 8 | R13: 99608 | S13: 8 | T13: 86234 | U13: 8
A14: 호주 Australia | B14: 59499 | C14: 9 | D14: 63786 | E14: 9 | F14: 68625 | G14: 9 | H14: 72853 | I14: 9 | J14: 76561 | K14: 9 | L14: 79913 | M14: 10 | N14: 89679 | O14: 8 | P14: 93467 | Q14: 9 | R14: 98054 | S14: 9 | T14: 84225 | U14: 9
A15: 프랑스 France | B15: 75884 | C15: 6 | D15: 76677 | E15: 6 | F15: 79077 | G15: 6 | H15: 82779 | I15: 6 | J15: 84110 | K15: 6 | L15: 84115 | M15: 6 | N15: 88228 | O15: 10 | P15: 92917 | Q15: 10 | R15: 95718 | S15: 10 | T15: 81627 | U15: 10
A16: 스페인 Spain | B16: 58667 | C16: 10 | D16: 60240 | E16: 11 | F16: 61317 | G16: 11 | H16: 64000 | I16: 11 | J16: 66258 | K16: 11 | L16: 68533 | M16: 11 | N16: 75766 | O16: 11 | P16: 84637 | Q16: 11 | R16: 90979 | S16: 11 | T16: 77221 | U16: 11
A17: 한국 Korea | B17: 52818 | C17: 12 | D17: 55849 | E17: 12 | F17: 58986 | G17: 12 | H17: 60688 | I17: 12 | J17: 61672 | K17: 12 | L17: 64482 | M17: 12 | N17: 70723 | O17: 12 | P17: 76883 | Q17: 12 | R17: 84111 | S17: 12 | T17: 76100 | U17: 12
A18: 브라질 Brazil | B18: 40911 | C18: 13 | D18: 42692 | E18: 13 | F18: 44818 | G18: 13 | H18: 48655 | I18: 13 | J18: 51532 | K18: 13 | L18: 54929 | M18: 13 | N18: 60143 | O18: 13 | P18: 66621 | Q18: 13 | R18: 69394 | S18: 13 | T18: 56821 | U18: 13
A19: 네덜란드 Netherlands | B19: 40776 | C19: 14 | D19: 41834 | E19: 14 | F19: 42900 | G19: 14 | H19: 45034 | I19: 14 | J19: 46433 | K19: 14 | L19: 48181 | M19: 14 | N19: 52969 | O19: 14 | P19: 54658 | Q19: 14 | R19: 57657 | S19: 14 | T19: 49886 | U19: 14
A20: 이란 Iran | B20: 26653 | C20: 19 | D20: 28130 | E20: 17 | F20: 30058 | G20: 17 | H20: 34143 | I20: 17 | J20: 37922 | K20: 16 | L20: 40604 | M20: 16 | N20: 47609 | O20: 15 | P20: 52609 | Q20: 15 | R20: 54150 | S20: 15 | T20: 47585 | U20: 15
A21: 튀르키예 Turkey | B21: 27322 | C21: 18 | D21: 28074 | E21: 19 | F21: 29801 | G21: 18 | H21: 32434 | I21: 18 | J21: 30876 | K21: 19 | L21: 31436 | M21: 20 | N21: 37803 | O21: 18 | P21: 44165 | Q21: 17 | R21: 49524 | S21: 17 | T21: 46964 | U21: 16
A22: 러시아 Russia | B22: 30454 | C22: 15 | D22: 31724 | E22: 15 | F22: 36204 | G22: 15 | H22: 38237 | I22: 15 | J22: 40183 | K22: 15 | L22: 42498 | M22: 15 | N22: 46035 | O22: 16 | P22: 48869 | Q22: 16 | R22: 50864 | S22: 16 | T22: 45505 | U22: 17
A23: 사우디 아라비아 Saudi Arabia | B23: 9733 | C23: 36 | D23: 12173 | E23: 34 | F23: 14003 | G23: 32 | H23: 15330 | I23: 30 | J23: 15703 | K23: 31 | L23: 16628 | M23: 31 | N23: 20572 | O23: 25 | P23: 28590 | Q23: 23 | R23: 38637 | S23: 21 | T23: 44763 | U23: 18
A24: 폴란드 Poland | B24: 25155 | C24: 21 | D24: 26541 | E24: 21 | F24: 28897 | G24: 20 | H24: 30555 | I24: 20 | J24: 30807 | K24: 20 | L24: 32495 | M24: 19 | N24: 35861 | O24: 20 | P24: 41234 | Q24: 19 | R24: 45577 | S24: 18 | T24: 39926 | U24: 19
A25: 스위스 Switzerland | B25: 29454 | C25: 16 | D25: 31015 | E25: 16 | F25: 32073 | G25: 16 | H25: 34476 | I25: 16 | J25: 36648 | K25: 17 | L25: 37178 | M25: 17 | N25: 39803 | O25: 17 | P25: 41887 | Q25: 18 | R25: 44441 | S25: 19 | T25: 39000 | U25: 20
A26: 대만 Chinese taipei | B26: 28701 | C26: 17 | D26: 28110 | E26: 18 | F26: 27103 | G26: 21 | H26: 27073 | I26: 21 | J26: 26070 | K26: 21 | L26: 26093 | M26: 22 | N26: 29179 | O26: 21 | P26: 32824 | Q26: 21 | R26: 37715 | S26: 22 | T26: 35484 | U26: 21
A27: 스웨덴 Sweden | B27: 26173 | C27: 20 | D27: 27542 | E27: 20 | F27: 28951 | G27: 19 | H27: 31043 | I27: 19 | J27: 32336 | K27: 18 | L27: 33343 | M27: 18 | N27: 36738 | O27: 19 | P27: 37734 | Q27: 20 | R27: 40114 | S27: 20 | T27: 34403 | U27: 22
A28: 파키스탄 PAKISTAN | B28: 6937 | C28: 44 | D28: 7635 | E28: 43 | F28: 8458 | G28: 42 | H28: 9881 | I28: 40 | J28: 12040 | K28: 38 | L28: 13885 | M28: 36 | N28: 17973 | O28: 32 | P28: 22419 | Q28: 28 | R28: 27022 | S28: 25 | T28: 28845 | U28: 23
A29: 이집트 EGYPT | B29: 8382 | C29: 41 | D29: 9391 | E29: 38 | F29: 10559 | G29: 38 | H29: 12132 | I29: 36 | J29: 12775 | K29: 36 | L29: 14617 | M29: 35 | N29: 17684 | O29: 34 | P29: 22533 | Q29: 27 | R29: 26964 | S29: 26 | T29: 28427 | U29: 24
A30: 벨기에 Belgium | B30: 22377 | C30: 22 | D30: 23216 | E30: 22 | F30: 24278 | G30: 22 | H30: 25140 | I30: 22 | J30: 26058 | K30: 22 | L30: 27137 | M30: 21 | N30: 28648 | O30: 22 | P30: 30220 | Q30: 22 | R30: 32449 | S30: 23 | T30: 27685 | U30: 25
A31: 홍콩 Hong Kong | B31: 12919 | C31: 27 | D31: 13660 | E31: 28 | F31: 14087 | G31: 31 | H31: 15243 | I31: 31 | J31: 16355 | K31: 30 | L31: 18007 | M31: 26 | N31: 20333 | O31: 26 | P31: 22716 | Q31: 26 | R31: 25691 | S31: 27 | T31: 25319 | U31: 26
A32: 덴마크 Denmark | B32: 16786 | C32: 23 | D32: 18463 | E32: 23 | F32: 19645 | G32: 23 | H32: 21476 | I32: 23 | J32: 22280 | K32: 23 | L32: 22830 | M32: 23 | N32: 25166 | O32: 23 | P32: 26446 | Q32: 24 | R32: 27912 | S32: 24 | T32: 24175 | U32: 27
A33: 포르투갈 Portugal | B33: 13977 | C33: 26 | D33: 14722 | E33: 26 | F33: 15235 | G33: 26 | H33: 16539 | I33: 25 | J33: 17016 | K33: 25 | L33: 17367 | M33: 29 | N33: 19681 | O33: 29 | P33: 21712 | Q33: 30 | R33: 23948 | S33: 29 | T33: 21682 | U33: 28
A34: 오스트리아 Austria | B34: 15173 | C34: 24 | D34: 15854 | E34: 24 | F34: 16680 | G34: 24 | H34: 18080 | I34: 24 | J34: 18716 | K34: 24 | L34: 19373 | M34: 24 | N34: 21040 | O34: 24 | P34: 22794 | Q34: 25 | R34: 24666 | S34: 28 | T34: 21482 | U34: 29
A35: 멕시코 Mexico | B35: 12817 | C35: 28 | D35: 13352 | E35: 30 | F35: 14533 | G35: 27 | H35: 15631 | I35: 28 | J35: 17004 | K35: 26 | L35: 18407 | M35: 25 | N35: 20263 | O35: 27 | P35: 22176 | Q35: 29 | R35: 23287 | S35: 30 | T35: 20361 | U35: 30
A36: 말레이시아 Malaysia | B36: 10278 | C36: 35 | D36: 11737 | E36: 35 | F36: 12291 | G36: 35 | H36: 12788 | I36: 35 | J36: 13146 | K36: 35 | L36: 13269 | M36: 37 | N36: 14845 | O36: 37 | P36: 17514 | Q36: 37 | R36: 20750 | S36: 34 | T36: 20116 | U36: 31
A37: 남아프리카 South Africa | B37: 11678 | C37: 32 | D37: 13041 | E37: 32 | F37: 13963 | G37: 33 | H37: 15704 | I37: 27 | J37: 16919 | K37: 27 | L37: 17727 | M37: 27 | N37: 19893 | O37: 28 | P37: 21484 | Q37: 31 | R37: 22369 | S37: 32 | T37: 20074 | U37: 32
A38: 노르웨이 Norway | B38: 12775 | C38: 29 | D38: 13613 | E38: 29 | F38: 14124 | G38: 30 | H38: 15553 | I38: 29 | J38: 16727 | K38: 28 | L38: 17413 | M38: 28 | N38: 19641 | O38: 30 | P38: 20919 | Q38: 32 | R38: 22665 | S38: 31 | T38: 19965 | U38: 33
A39: 이스라엘 Israel | B39: 14196 | C39: 25 | D39: 14887 | E39: 25 | F39: 15410 | G39: 25 | H39: 16355 | I39: 26 | J39: 16622 | K39: 29 | L39: 17276 | M39: 30 | N39: 18881 | O39: 31 | P39: 20095 | Q39: 33 | R39: 21203 | S39: 33 | T39: 18515 | U39: 34
A40: 싱가포르 Singapore | B40: 12661 | C40: 31 | D40: 13274 | E40: 31 | F40: 14219 | G40: 29 | H40: 15031 | I40: 32 | J40: 15690 | K40: 32 | L40: 16291 | M40: 32 | N40: 17802 | O40: 33 | P40: 19303 | Q40: 34 | R40: 20160 | S40: 35 | T40: 18292 | U40: 35
A41: 핀란드 Finland | B41: 12744 | C41: 30 | D41: 13881 | E41: 27 | F41: 14242 | G41: 28 | H41: 14848 | I41: 33 | J41: 15358 | K41: 33 | L41: 15807 | M41: 33 | N41: 17492 | O41: 35 | P41: 18254 | Q41: 35 | R41: 19154 | S41: 37 | T41: 17218 | U41: 36
A42: 체코 Czech republic | B42: 11429 | C42: 34 | D42: 12752 | E42: 33 | F42: 13495 | G42: 34 | H42: 14063 | I42: 34 | J42: 14796 | K42: 34 | L42: 15241 | M42: 34 | N42: 16699 | O42: 36 | P42: 18130 | Q42: 36 | R42: 19823 | S42: 36 | T42: 17038 | U42: 37
A43: 태국 Thailand | B43: 7075 | C43: 42 | D43: 7275 | E43: 45 | F43: 7734 | G43: 44 | H43: 8728 | I43: 43 | J43: 9426 | K43: 43 | L43: 10019 | M43: 43 | N43: 11010 | O43: 43 | P43: 12839 | Q43: 42 | R43: 15333 | S43: 39 | T43: 15599 | U43: 38
A44: 그리스 Greece | B44: 11564 | C44: 33 | D44: 11427 | E44: 36 | F44: 11530 | G44: 36 | H44: 12116 | I44: 37 | J44: 12546 | K44: 37 | L44: 12796 | M44: 38 | N44: 14096 | O44: 38 | P44: 15289 | Q44: 38 | R44: 17351 | S44: 38 | T44: 15199 | U44: 39
A45: 아일랜드 Ireland | B45: 8661 | C45: 40 | D45: 8751 | E45: 40 | F45: 9078 | G45: 40 | H45: 9866 | I45: 41 | J45: 10518 | K45: 40 | L45: 11192 | M45: 40 | N45: 12523 | O45: 40 | P45: 13633 | Q45: 40 | R45: 14726 | S45: 40 | T45: 12543 | U45: 40
A46: 뉴질랜드 New Zealand | B46: 9707 | C46: 37 | D46: 10026 | E46: 37 | F46: 10680 | G46: 37 | H46: 11144 | I46: 38 | J46: 11948 | K46: 39 | L46: 12313 | M46: 39 | N46: 13663 | O46: 39 | P46: 14326 | Q46: 39 | R46: 14465 | S46: 42 | T46: 12514 | U46: 41
A47: 루마니아 Romania | B47: 8711 | C47: 39 | D47: 7806 | E47: 42 | F47: 8414 | G47: 43 | H47: 8595 | I47: 44 | J47: 8688 | K47: 44 | L47: 8800 | M47: 44 | N47: 10189 | O47: 44 | P47: 10478 | Q47: 45 | R47: 12023 | S47: 44 | T47: 12460 | U47: 42
A48: 칠레 Chile | B48: 6848 | C48: 45 | D48: 7850 | E48: 41 | F48: 8566 | G48: 41 | H48: 9580 | I48: 42 | J48: 9964 | K48: 42 | L48: 10989 | M48: 41 | N48: 12043 | O48: 41 | P48: 13541 | Q48: 41 | R48: 14698 | S48: 41 | T48: 12288 | U48: 43
A49: 아르헨티나 Argentina | B49: 9097 | C49: 38 | D49: 9233 | E49: 39 | F49: 9655 | G49: 39 | H49: 10020 | I49: 39 | J49: 10358 | K49: 41 | L49: 10895 | M49: 42 | N49: 11452 | O49: 42 | P49: 12454 | Q49: 43 | R49: 12383 | S49: 43 | T49: 10063 | U49: 44
A50: 헝가리 Hungary | B50: 7013 | C50: 43 | D50: 7356 | E50: 44 | F50: 7514 | G50: 45 | H50: 7902 | I50: 45 | J50: 8258 | K50: 45 | L50: 8538 | M50: 45 | N50: 9271 | O50: 45 | P50: 9727 | Q50: 46 | R50: 10667 | S50: 46 | T50: 9696 | U50: 45
A51: 베트남 Vietnam | B51: 2382 | C51: 54 | D51: 2682 | E51: 53 | F51: 3019 | G51: 53 | H51: 3682 | I51: 53 | J51: 4494 | K51: 50 | L51: 5775 | M51: 47 | N51: 8310 | O51: 46 | P51: 12334 | Q51: 44 | R51: 11610 | S51: 45 | T51: 9652 | U51: 46
A52: 아랍에미레이트 UNITED ARAB EMIRATES | B52: 1644 | C52: 61 | D52: 1971 | E52: 59 | F52: 2563 | G52: 56 | H52: 2933 | I52: 56 | J52: 3346 | K52: 56 | L52: 3920 | M52: 56 | N52: 4980 | O52: 54 | P52: 6607 | Q52: 49 | R52: 8361 | S52: 48 | T52: 9276 | U52: 47
A53: 인도네시아 INDONESIA | B53: 1738 | C53: 59 | D53: 1903 | E53: 60 | F53: 2142 | G53: 59 | H53: 2653 | I53: 58 | J53: 2996 | K53: 57 | L53: 3716 | M53: 57 | N53: 4984 | O53: 53 | P53: 6222 | Q53: 51 | R53: 8032 | S53: 49 | T53: 8619 | U53: 48
A54: 콜롬비아 Colombia | B54: 3749 | C54: 50 | D54: 3907 | E54: 49 | F54: 4823 | G54: 47 | H54: 5563 | I54: 47 | J54: 6409 | K54: 46 | L54: 7017 | M54: 46 | N54: 7957 | O54: 47 | P54: 8787 | Q54: 47 | R54: 9343 | S54: 47 | T54: 8028 | U54: 49
A55: 나이지리아 NIGERIA | B55: 2162 | C55: 56 | D55: 2528 | E55: 54 | F55: 2658 | G55: 55 | H55: 3208 | I55: 55 | J55: 3793 | K55: 55 | L55: 4219 | M55: 54 | N55: 5206 | O55: 50 | P55: 6991 | Q55: 48 | R55: 8016 | S55: 50 | T55: 7585 | U55: 50
A56: 세계 논문 수 합 Total | B56: 1575353 | D56: 1627860 | F56: 1683255 | H56: 1756183 | J56: 1831385 | L56: 1897646 | N56: 2116779 | P56: 2267991 | R56: 2427840 | T56: 2275322
A58: 주 : 논문 1편을 여러 국가의 과학자가 공저하는 경우가 있어 국가별 논문 수 합이 세계 논문 수 합보다 많음
A59: 자료 : KISTEP, 과학기술 논문성과 분석연구(2008-2022), 2023

Sheet 1-11
A1: 1-11) 국가별 PCT 출원건수(WIPO)
A2: Number of PCT Filings by country of origin (WIPO)
W4: (단위 : 건 Unit : case)
A5: 국가 Country | B5: 2000 | C5: 2001 | D5: 2002 | E5: 2003 | F5: 2004 | G5: 2005 | H5: 2006 | I5: 2007 | J5: 2008 | K5: 2009 | L5: 2010 | M5: 2012 | N5: 2013 | O5: 2014 | P5: 2015 | Q5: 2016 | R5: 2017 | S5: 2018 | T5: 2019 | U5: 2020 | V5: 2021 | W5: 2022
A6: 그리스 Greece | B6: 49 | C6: 55 | D6: 75 | E6: 67 | F6: 79 | G6: 55 | H6: 84 | I6: 87 | J6: 107 | K6: 100 | L6: 90 | M6: 95 | N6: 111 | O6: 133 | P6: 122 | Q6: 111 | R6: 110 | S6: 115 | T6: 123 | U6: 99 | V6: 91 | W6: 135
A7: 남아프리카 South Africa | B7: 390 | C7: 419 | D7: 385 | E7: 357 | F7: 412 | G7: 360 | H7: 424 | I7: 406 | J7: 394 | K7: 375 | L7: 291 | M7: 313 | N7: 351 | O7: 313 | P7: 313 | Q7: 287 | R7: 295 | S7: 275 | T7: 275 | U7: 237 | V7: 226 | W7: 214
A8: 네덜란드 Netherlands | B8: 2930 | C8: 3411 | D8: 3977 | E8: 4479 | F8: 4284 | G8: 4499 | H8: 4552 | I8: 4421 | J8: 4361 | K8: 4421 | L8: 4010 | M8: 4080 | N8: 4190 | O8: 4206 | P8: 4335 | Q8: 4675 | R8: 4429 | S8: 4132 | T8: 4035 | U8: 4003 | V8: 4093 | W8: 4029
A9: 노르웨이 Norway | B9: 529 | C9: 592 | D9: 550 | E9: 535 | F9: 476 | G9: 584 | H9: 609 | I9: 601 | J9: 644 | K9: 633 | L9: 707 | M9: 664 | N9: 708 | O9: 687 | P9: 679 | Q9: 653 | R9: 820 | S9: 767 | T9: 785 | U9: 697 | V9: 721 | W9: 794
A10: 뉴질랜드 New Zealand | B10: 258 | C10: 288 | D10: 299 | E10: 300 | F10: 340 | G10: 350 | H10: 354 | I10: 399 | J10: 358 | K10: 302 | L10: 309 | M10: 303 | N10: 322 | O10: 348 | P10: 358 | Q10: 307 | R10: 273 | S10: 275 | T10: 249 | U10: 298 | V10: 370 | W10: 319
A11: 덴마크 Denmark | B11: 795 | C11: 919 | D11: 979 | E11: 1036 | F11: 1049 | G11: 1122 | H11: 1158 | I11: 1153 | J11: 1357 | K11: 1339 | L11: 1156 | M11: 1409 | N11: 1264 | O11: 1299 | P11: 1327 | Q11: 1356 | R11: 1430 | S11: 1445 | T11: 1443 | U11: 1577 | V11: 1557 | W11: 1499
A12: 독일 Germany | B12: 12581 | C12: 14029 | D12: 14323 | E12: 14653 | F12: 15216 | G12: 15986 | H12: 16734 | I12: 17825 | J12: 18856 | K12: 16793 | L12: 17560 | M12: 18749 | N12: 17922 | O12: 17983 | P12: 18005 | Q12: 18308 | R12: 18955 | S12: 19758 | T12: 19346 | U12: 18491 | V12: 17267 | W12: 17477
A13: 라트비아 Latvia | B13: 3 | C13: 8 | D13: 10 | E13: 12 | F13: 12 | G13: 16 | H13: 17 | I13: 21 | J13: 19 | K13: 24 | L13: 26 | M13: 36 | N13: 25 | O13: 29 | P13: 28 | Q13: 24 | R13: 26 | S13: 31 | T13: 36 | U13: 28 | V13: 39 | W13: 44
A14: 러시아 Russian Federation | B14: 533 | C14: 557 | D14: 540 | E14: 587 | F14: 522 | G14: 658 | H14: 695 | I14: 735 | J14: 802 | K14: 736 | L14: 814 | M14: 1111 | N14: 1187 | O14: 952 | P14: 877 | Q14: 893 | R14: 1059 | S14: 1031 | T14: 1177 | U14: 1060 | V14: 973 | W14: 758
A15: 루마니아 Romania | B15: 24 | C15: 21 | D15: 25 | E15: 16 | F15: 18 | G15: 15 | H15: 26 | I15: 31 | J15: 14 | K15: 26 | L15: 19 | M15: 29 | N15: 29 | O15: 28 | P15: 35 | Q15: 44 | R15: 32 | S15: 32 | T15: 39 | U15: 39 | V15: 29 | W15: 37
A16: 룩셈부르크 Luxembourg | B16: 138 | C16: 128 | D16: 143 | E16: 117 | F16: 125 | G16: 119 | H16: 128 | I16: 165 | J16: 227 | K16: 245 | L16: 259 | M16: 335 | N16: 372 | O16: 392 | P16: 403 | Q16: 431 | R16: 499 | S16: 387 | T16: 350 | U16: 322 | V16: 345 | W16: 301
A17: 리투아니아 Lithuania | B17: 1 | C17: 3 | D17: 10 | E17: 4 | F17: 9 | G17: 8 | H17: 10 | I17: 13 | J17: 18 | K17: 25 | L17: 11 | M17: 30 | N17: 40 | O17: 54 | P17: 39 | Q17: 28 | R17: 30 | S17: 37 | T17: 33 | U17: 39 | V17: 47 | W17: 38
A18: 멕시코 Mexico | B18: 73 | C18: 104 | D18: 132 | E18: 131 | F18: 118 | G18: 141 | H18: 168 | I18: 186 | J18: 202 | K18: 194 | L18: 191 | M18: 188 | N18: 233 | O18: 284 | P18: 317 | Q18: 289 | R18: 270 | S18: 273 | T18: 216 | U18: 178 | V18: 166 | W18: 190
A19: 미국 United States | B19: 38015 | C19: 43059 | D19: 41316 | E19: 41046 | F19: 43395 | G19: 46879 | H19: 51301 | I19: 54062 | J19: 51667 | K19: 45655 | L19: 45089 | M19: 51857 | N19: 57451 | O19: 61489 | P19: 57132 | Q19: 56593 | R19: 56688 | S19: 56160 | T19: 57443 | U19: 58431 | V19: 59336 | W19: 58839
A20: 벨기에 Belgium | B20: 581 | C20: 689 | D20: 694 | E20: 775 | F20: 831 | G20: 1075 | H20: 1030 | I20: 1123 | J20: 1135 | K20: 1005 | L20: 1066 | M20: 1212 | N20: 1103 | O20: 1196 | P20: 1180 | Q20: 1219 | R20: 1354 | S20: 1301 | T20: 1355 | U20: 1314 | V20: 1388 | W20: 1301
A21: 불가리아 Bulgaria | B21: 35 | C21: 20 | D21: 31 | E21: 45 | F21: 24 | G21: 21 | H21: 25 | I21: 30 | J21: 27 | K21: 25 | L21: 33 | M21: 33 | N21: 58 | O21: 52 | P21: 57 | Q21: 58 | R21: 50 | S21: 59 | T21: 49 | U21: 51 | V21: 47 | W21: 36
A22: 브라질 Brazil | B22: 178 | C22: 173 | D22: 201 | E22: 219 | F22: 279 | G22: 270 | H22: 333 | I22: 398 | J22: 471 | K22: 492 | L22: 487 | M22: 588 | N22: 657 | O22: 580 | P22: 548 | Q22: 567 | R22: 589 | S22: 615 | T22: 642 | U22: 690 | V22: 616 | W22: 547
A23: 스웨덴 Sweden | B23: 3090 | C23: 3421 | D23: 2990 | E23: 2608 | F23: 2851 | G23: 2884 | H23: 3333 | I23: 3654 | J23: 4135 | K23: 3567 | L23: 3303 | M23: 3600 | N23: 3947 | O23: 3913 | P23: 3843 | Q23: 3719 | R23: 3975 | S23: 4175 | T23: 4201 | U23: 4354 | V23: 4440 | W23: 4477
A24: 스위스 Switzerland | B24: 1997 | C24: 2354 | D24: 2755 | E24: 2862 | F24: 2897 | G24: 3290 | H24: 3614 | I24: 3816 | J24: 3778 | K24: 3677 | L24: 3762 | M24: 4225 | N24: 4377 | O24: 4100 | P24: 4257 | Q24: 4368 | R24: 4485 | S24: 4595 | T24: 4648 | U24: 5135 | V24: 5472 | W24: 5430
A25: 스페인 Spain | B25: 555 | C25: 616 | D25: 719 | E25: 785 | F25: 822 | G25: 1124 | H25: 1202 | I25: 1295 | J25: 1391 | K25: 1563 | L25: 1770 | M25: 1705 | N25: 1705 | O25: 1703 | P25: 1530 | Q25: 1507 | R25: 1418 | S25: 1399 | T25: 1495 | U25: 1460 | V25: 1563 | W25: 1474
A26: 슬로바키아 Slovakia | B26: 31 | C26: 28 | D26: 26 | E26: 26 | F26: 26 | G26: 31 | H26: 31 | I26: 38 | J26: 41 | K26: 33 | L26: 44 | M26: 42 | N26: 41 | O26: 65 | P26: 38 | Q26: 55 | R26: 52 | S26: 50 | T26: 42 | U26: 48 | V26: 39 | W26: 44
A27: 슬로베니아 Slovenia | B27: 39 | C27: 42 | D27: 44 | E27: 65 | F27: 62 | G27: 85 | H27: 79 | I27: 87 | J27: 108 | K27: 137 | L27: 125 | M27: 114 | N27: 124 | O27: 156 | P27: 84 | Q27: 69 | R27: 99 | S27: 115 | T27: 89 | U27: 81 | V27: 96 | W27: 116
A28: 싱가포르 Singapore | B28: 222 | C28: 289 | D28: 330 | E28: 282 | F28: 432 | G28: 448 | H28: 473 | I28: 523 | J28: 580 | K28: 583 | L28: 643 | M28: 714 | N28: 838 | O28: 940 | P28: 907 | Q28: 864 | R28: 872 | S28: 900 | T28: 1161 | U28: 1316 | V28: 1687 | W28: 1816
A29: 아르헨티나 Argentina | B29: 9 | C29: 9 | D29: 9 | E29: 14 | F29: 10 | G29: 20 | H29: 20 | I29: 32 | J29: 23 | K29: 9 | L29: 16 | M29: 25 | N29: 26 | O29: 33 | P29: 29 | Q29: 46 | R29: 36 | S29: 42 | T29: 34 | U29: 38 | V29: 30 | W29: 30
A30: 아이슬란드 Iceland | B30: 24 | C30: 37 | D30: 39 | E30: 58 | F30: 46 | G30: 44 | H30: 55 | I30: 51 | J30: 66 | K30: 58 | L30: 54 | M30: 44 | N30: 43 | O30: 43 | P30: 46 | Q30: 56 | R30: 39 | S30: 49 | T30: 41 | U30: 49 | V30: 30 | W30: 39
A31: 아일랜드 Ireland | B31: 243 | C31: 242 | D31: 309 | E31: 311 | F31: 323 | G31: 340 | H31: 422 | I31: 418 | J31: 481 | K31: 477 | L31: 448 | M31: 391 | N31: 433 | O31: 439 | P31: 455 | Q31: 441 | R31: 489 | S31: 623 | T31: 639 | U31: 759 | V31: 909 | W31: 782
A32: 에스토니아 Estonia | B32: 6 | C32: 11 | D32: 11 | E32: 8 | F32: 12 | G32: 13 | H32: 17 | I32: 29 | J32: 35 | K32: 30 | L32: 49 | M32: 34 | N32: 21 | O32: 33 | P32: 36 | Q32: 24 | R32: 47 | S32: 49 | T32: 38 | U32: 56 | V32: 50 | W32: 32
A33: 영국 United Kingdom | B33: 4808 | C33: 5500 | D33: 5389 | E33: 5210 | F33: 5035 | G33: 5093 | H33: 5095 | I33: 5542 | J33: 5480 | K33: 5039 | L33: 4892 | M33: 4917 | N33: 4849 | O33: 5267 | P33: 5291 | Q33: 5504 | R33: 5569 | S33: 5636 | T33: 5777 | U33: 5894 | V33: 5852 | W33: 5712
A34: 오스트리아 Austria | B34: 484 | C34: 620 | D34: 552 | E34: 644 | F34: 709 | G34: 851 | H34: 913 | I34: 1008 | J34: 951 | K34: 1029 | L34: 1144 | M34: 1319 | N34: 1262 | O34: 1387 | P34: 1399 | Q34: 1422 | R34: 1397 | S34: 1484 | T34: 1434 | U34: 1523 | V34: 1575 | W34: 1423
A35: 우루과이 Uruguay | B35: 4 | C35: 4 | D35: 9 | E35: 11 | F35: 6 | G35: 5 | H35: 4 | I35: 4 | J35: 8 | K35: 10 | L35: 5 | M35: 5 | N35: 4 | O35: 6 | P35: 6 | Q35: 14 | R35: 14 | S35: 8 | T35: 11 | U35: 8 | V35: 5 | W35: 6
A36: 우크라이나 Ukraine | B36: 40 | C36: 58 | D36: 75 | E36: 58 | F36: 89 | G36: 60 | H36: 77 | I36: 94 | J36: 98 | K36: 79 | L36: 106 | M36: 120 | N36: 152 | O36: 147 | P36: 139 | Q36: 162 | R36: 141 | S36: 155 | T36: 183 | U36: 126 | V36: 131 | W36: 90
A37: 이스라엘 Israel | B37: 964 | C37: 1314 | D37: 1175 | E37: 1128 | F37: 1227 | G37: 1454 | H37: 1593 | I37: 1742 | J37: 1902 | K37: 1555 | L37: 1476 | M37: 1374 | N37: 1607 | O37: 1581 | P37: 1685 | Q37: 1838 | R37: 1816 | S37: 1896 | T37: 2001 | U37: 1930 | V37: 2122 | W37: 1968
A38: 이탈리아 Italy | B38: 1394 | C38: 1623 | D38: 1980 | E38: 2163 | F38: 2190 | G38: 2349 | H38: 2701 | I38: 2949 | J38: 2884 | K38: 2653 | L38: 2658 | M38: 2845 | N38: 2869 | O38: 3059 | P38: 3072 | Q38: 3362 | R38: 3223 | S38: 3328 | T38: 3385 | U38: 3398 | V38: 3564 | W38: 3318
A39: 인도 India | B39: 190 | C39: 295 | D39: 525 | E39: 763 | F39: 724 | G39: 679 | H39: 832 | I39: 904 | J39: 1073 | K39: 960 | L39: 1276 | M39: 1310 | N39: 1321 | O39: 1429 | P39: 1412 | Q39: 1528 | R39: 1583 | S39: 2009 | T39: 2041 | U39: 1907 | V39: 2082 | W39: 2621
A40: 인도네시아 Indonesia | B40: 9 | C40: 6 | D40: 16 | E40: 2 | F40: 6 | G40: 8 | H40: 8 | I40: 9 | J40: 10 | K40: 7 | L40: 16 | M40: 15 | N40: 15 | O40: 17 | P40: 6 | Q40: 9 | R40: 8 | S40: 7 | T40: 7 | U40: 16 | V40: 9 | W40: 9
A41: 일본 Japan | B41: 9569 | C41: 11905 | D41: 14061 | E41: 17415 | F41: 20268 | G41: 24870 | H41: 27024 | I41: 27743 | J41: 28763 | K41: 29810 | L41: 32216 | M41: 43523 | N41: 43772 | O41: 42381 | P41: 44053 | Q41: 45210 | R41: 48204 | S41: 49704 | T41: 52702 | U41: 50583 | V41: 50277 | W41: 50355
A42: 중국 China | B42: 782 | C42: 1730 | D42: 1015 | E42: 1297 | F42: 1707 | G42: 2503 | H42: 3930 | I42: 5455 | J42: 6119 | K42: 7900 | L42: 12300 | M42: 18616 | N42: 21506 | O42: 25542 | P42: 29837 | Q42: 43092 | R42: 48903 | S42: 53463 | T42: 59187 | U42: 68928 | V42: 69640 | W42: 70012
A43: 체코 Czech Republic | B43: 94 | C43: 82 | D43: 73 | E43: 83 | F43: 95 | G43: 117 | H43: 107 | I43: 132 | J43: 155 | K43: 183 | L43: 136 | M43: 163 | N43: 197 | O43: 189 | P43: 191 | Q43: 199 | R43: 184 | S43: 180 | T43: 183 | U43: 210 | V43: 281 | W43: 249
A44: 칠레 Chile | B44: 1 | C44: 3 | D44: 6 | E44: 9 | F44: 6 | G44: 9 | H44: 12 | I44: 17 | J44: 27 | K44: 53 | L44: 89 | M44: 120 | N44: 142 | O44: 142 | P44: 166 | Q44: 197 | R44: 167 | S44: 240 | T44: 224 | U44: 244 | V44: 166 | W44: 186
A45: 캐나다 Canada | B45: 1801 | C45: 2113 | D45: 2259 | E45: 2270 | F45: 2107 | G45: 2318 | H45: 2573 | I45: 2844 | J45: 2907 | K45: 2509 | L45: 2689 | M45: 2738 | N45: 2847 | O45: 3071 | P45: 2822 | Q45: 2336 | R45: 2402 | S45: 2417 | T45: 2727 | U45: 2606 | V45: 2597 | W45: 2580
A46: 콜롬비아 Colombia | B46: 3 | C46: 17 | D46: 36 | E46: 24 | F46: 22 | G46: 23 | H46: 29 | I46: 44 | J46: 37 | K46: 63 | L46: 46 | M46: 71 | N46: 82 | O46: 101 | P46: 87 | Q46: 100 | R46: 143 | S46: 159 | T46: 128 | U46: 122 | V46: 98 | W46: 116
A47: 크로아티아 Croatia | B47: 43 | C47: 56 | D47: 69 | E47: 72 | F47: 76 | G47: 71 | H47: 75 | I47: 79 | J47: 56 | K47: 36 | L47: 47 | M47: 29 | N47: 44 | O47: 54 | P47: 28 | Q47: 39 | R47: 35 | S47: 39 | T47: 41 | U47: 20 | V47: 38 | W47: 19
A48: 터키 Turkey | B48: 71 | C48: 76 | D48: 85 | E48: 111 | F48: 115 | G48: 174 | H48: 269 | I48: 359 | J48: 392 | K48: 388 | L48: 479 | M48: 536 | N48: 805 | O48: 853 | P48: 1010 | Q48: 1065 | R48: 1251 | S48: 1397 | T48: 1687 | U48: 1616 | V48: 1740 | W48: 1771
A49: 포르투갈 Portugal | B49: 21 | C49: 42 | D49: 34 | E49: 36 | F49: 49 | G49: 56 | H49: 68 | I49: 92 | J49: 98 | K49: 163 | L49: 117 | M49: 126 | N49: 144 | O49: 159 | P49: 161 | Q49: 184 | R49: 201 | S49: 250 | T49: 195 | U49: 256 | V49: 251 | W49: 217
A50: 폴란드 Poland | B50: 109 | C50: 99 | D50: 116 | E50: 154 | F50: 107 | G50: 97 | H50: 101 | I50: 107 | J50: 128 | K50: 179 | L50: 206 | M50: 251 | N50: 332 | O50: 348 | P50: 439 | Q50: 344 | R50: 330 | S50: 333 | T50: 368 | U50: 349 | V50: 381 | W50: 370
A51: 프랑스 France | B51: 4137 | C51: 4706 | D51: 5091 | E51: 5169 | F51: 5183 | G51: 5747 | H51: 6262 | I51: 6566 | J51: 7076 | K51: 7217 | L51: 7230 | M51: 7801 | N51: 7905 | O51: 8260 | P51: 8420 | Q51: 8210 | R51: 8015 | S51: 7922 | T51: 7924 | U51: 7794 | V51: 7325 | W51: 7763
A52: 핀란드 Finland | B52: 1579 | C52: 1696 | D52: 1761 | E52: 1557 | F52: 1672 | G52: 1893 | H52: 1845 | I52: 1994 | J52: 2212 | K52: 2123 | L52: 2136 | M52: 2312 | N52: 2095 | O52: 1811 | P52: 1584 | Q52: 1525 | R52: 1603 | S52: 1833 | T52: 1660 | U52: 1679 | V52: 1897 | W52: 1769
A53: 한국 Korea | B53: 1582 | C53: 2324 | D53: 2520 | E53: 2945 | F53: 3555 | G53: 4689 | H53: 5946 | I53: 7064 | J53: 7902 | K53: 8040 | L53: 9604 | M53: 11787 | N53: 12381 | O53: 13118 | P53: 14564 | Q53: 15555 | R53: 15751 | S53: 16920 | T53: 19074 | U53: 20050 | V53: 20731 | W53: 22022
A54: 헝가리 Hungary | B54: 135 | C54: 127 | D54: 185 | E54: 114 | F54: 136 | G54: 158 | H54: 145 | I54: 167 | J54: 173 | K54: 143 | L54: 173 | M54: 162 | N54: 163 | O54: 158 | P54: 148 | Q54: 177 | R54: 147 | S54: 153 | T54: 153 | U54: 139 | V54: 114 | W54: 137
A55: 호주 Australia | B55: 1576 | C55: 1664 | D55: 1762 | E55: 1680 | F55: 1835 | G55: 2004 | H55: 2000 | I55: 2051 | J55: 1937 | K55: 1736 | L55: 1770 | M55: 1710 | N55: 1603 | O55: 1722 | P55: 1741 | Q55: 1835 | R55: 1852 | S55: 1827 | T55: 1768 | U55: 1723 | V55: 1769 | W55: 1752
A57: 자료 : WIPO statistics database, 2023.12. (ipstats.wipo.int)

Sheet 2-1
A1: 2. 국내 연구개발활동
A2: R&D Activities in Korea
A3: 2-1) 연구개발비 및 GDP 대비 연구개발비 비율
A4: R&D expenditure and as a percentage of GDP
A6: 연도 Year | B6: 연구개발비(백만원) R&D expenditure(Won, Millions) | E6: 정부 : 민간 Gov't : Business enterprises | F6: 국내총생산(B)(십억원) GDP(Won, Billions) | G6: 국내총생산대비(A/B) As a percent of GDP
B7: 총계(A) Total | C7: 정부·공공재원 Gov't & Other national sources | D7: 민간·외국재원 Business enterprises sector & Rest of the world
A8: 1991 | B8: 4158441 | C8: 808464 | D8: 3349977 | E8: 19 : 81 | F8: 242481.1 | G8: =B8/(F8*1000) -> 0.01714954691
A9: 1992 | B9: 4989031 | C9: 856882 | D9: 4132149 | E9: 17 : 83 | F9: 277540.8 | G9: 0.01797584715
A10: 1993 | B10: 6152983 | C10: 1026617 | D10: 5126366 | E10: 17 : 83 | F10: 315181.3 | G10: 0.01952204334
A11: 1994 | B11: 7894746 | C11: 1880222 | D11: 6014524 | E11: 24 : 76 | F11: 372493.4 | G11: 0.02119432452
A12: 1995 | B12: 9440606 | C12: 2289131 | D12: 7151475 | E12: 24 : 76 | F12: 436988.8 | G12: 0.02160377108
A13: 1996 | B13: 10878051 | C13: 2850638 | D13: 8027414 | E13: 26 : 74 | F13: 490850.9 | G13: 0.02216161975
A14: 1997 | B14: 12185807 | C14: 3344814 | D14: 8840992 | E14: 27 : 73 | F14: 542001.8 | G14: 0.02248296408
A15: 1998 | B15: 11336617 | C15: 3491103 | D15: 7845514 | E15: 31 : 69 | F15: 537215.3 | G15: 0.02110255795
A16: 1999 | B16: 11921752 | C16: 3574370 | D16: 8347382 | E16: 30 : 70 | F16: 591453 | G16: 0.02015671913
A17: 2000 | B17: 13848501 | C17: 3816850 | D17: 10031650 | E17: 28 : 72 | F17: 651634.426 | G17: 0.0212519481
A18: 2001 | B18: 16110521.98 | C18: 4361534 | D18: 11748988 | E18: 27 : 73 | F18: 707021.316 | G18: 0.02278647279
A19: 2002 | B19: 17325081.78 | C19: 4739957 | D19: 12585125 | E19: 27 : 73 | F19: 784741.2502 | G19: 0.02207744499
A20: 2003 | B20: 19068682 | C20: 4876225 | D20: 14192457 | E20: 26 : 74 | F20: 837364.9986 | G20: 0.02277224631
A21: 2004 | B21: 22185343 | C21: 5446050 | D21: 16739293 | E21: 25 : 75 | F21: 908439.1448 | G21: 0.02442138599
A22: 2005 | B22: 24155413.6 | C22: 5973784.01 | D22: 18181629.59 | E22: 24 : 76 | F22: 957447.785 | G22: 0.02522896181
A23: 2006 | B23: 27345704.1 | C23: 6786698.363 | D23: 20559005.74 | E23: 24 : 76 | F23: 1005601.505 | G23: 0.02719338024
A24: 2007 | B24: 31301377.26 | C24: 8175935.845 | D24: 23125441.41 | E24: 26 : 74 | F24: 1089660.171 | G24: 0.0287258157
A25: 2008 | B25: 34498053.84 | C25: 9248057.258 | D25: 25249996.58 | E25: 27 : 73 | F25: 1154216.49 | G25: 0.02988872031
A26: 2009 | B26: 37928502.24 | C26: 10887135.84 | D26: 27041366.4 | E26: 29 : 71 | F26: 1205347.749 | G26: 0.0314668545
A27: 2010 | B27: 43854834.28 | C27: 12270227.61 | D27: 31584606.68 | E27: 28 : 72 | F27: 1322611.152 | G27: 0.03315776841
A28: 2011 | B28: 49890418.95 | C28: 13002403.59 | D28: 36888015.36 | E28: 26 : 74 | F28: 1388937.2 | G28: 0.03591985221
A29: 2012 | B29: 55450115.65 | C29: 13822077.68 | D29: 41628037.97 | E29: 25 : 75 | F29: 1440111.43 | G29: 0.03850404525
A30: 2013 | B30: 59300949.33 | C30: 14241744.4 | D30: 45059204.93 | E30: 24 : 76 | F30: 1500819.149 | G30: 0.03951238853
A31: 2014 | B31: 63734126.79 | C31: 15275007.37 | D31: 48459119.43 | E31: 24 : 76 | F31: 1562928.872 | G31: 0.04077864829
A32: 2015 | B32: 65959371.73 | C32: 16293517.79 | D32: 49665853.93 | E32: 25 : 75 | F32: 1658020.359 | G32: 0.0397820035
A33: 2016 | B33: 69405529.89 | C33: 16410047.25 | D33: 52995482.63 | E33: 24 : 76 | F33: 1740779.572 | G33: 0.03987037244
A34: 2017 | B34: 78789187.37 | C34: 17737133.57 | D34: 61052053.81 | E34: 23 : 77 | F34: 1835698.159 | G34: 0.04292055695
A35: 2018 | B35: 85728714.74 | C35: 18363010.93 | D35: 67365703.81 | E35: 21 : 79 | F35: 1898192.55 | G35: 0.04516333958
A36: 2019 | B36: 89047077.12 | C36: 19095480.17 | D36: 69951596.95 | E36: 21 : 79 | F36: 1924498.062 | G36: 0.04627028671
A37: 2020 | B37: 93071686.49 | C37: 21581227.83 | D37: 71490458.66 | E37: 23 : 77 | F37: 1940726.2 | G37: 0.04795714434
A38: 2021 | B38: 102135243.5 | C38: 24094954.28 | D38: 78040289.26 | E38: 24 : 76 | F38: 2080198.547 | G38: 0.04909879574
A39: 2022 | B39: 112646008.3 | C39: 26328329.45 | D39: 86317678.83 | E39: 23 : 77 | F39: 2161773.885 | G39: 0.05210813632
A40: 전년대비 증가율(%) Percent change from previous year
A41: 1992 | B41: =(B9/B8-1)*100 -> 19.97359106 | C41: 5.98888757 | D41: 23.34857821 | E41: 0 | F41: =(F9/F8-1)*100 -> 14.45873513 | G41: 0
A42: 1993 | B42: 23.33022184 | C42: 19.80844504 | D42: 24.06053122 | E42: 0 | F42: 13.56215014 | G42: 0
A43: 1994 | B43: 28.30761925 | C43: 83.14736654 | D43: 17.32529437 | E43: 0 | F43: 18.18385164 | G43: 0
A44: 1995 | B44: 19.58087062 | C44: 21.74791062 | D44: 18.90342444 | E44: 0 | F44: 17.31450812 | G44: 0
A45: 1996 | B45: 15.22619417 | C45: 24.5292646 | D45: 12.24836834 | E45: 0 | F45: 12.32573924 | G45: 0
A46: 1997 | B46: 12.02196974 | C46: 17.33562802 | D46: 10.13499491 | E46: 0 | F46: 10.42086304 | G46: 0
A47: 1998 | B47: -6.96868086 | C47: 4.373606425 | D47: -11.25979981 | E47: 0 | F47: -0.8831151483 | G47: 0
A48: 1999 | B48: 5.161460425 | C48: 2.385120118 | D48: 6.396878522 | E48: 0 | F48: 10.09608252 | G48: 0
A49: 2000 | B49: 16.16162624 | C49: 6.783852819 | D49: 20.17720047 | E49: 0 | F49: 10.17518315 | G49: 0
A50: 2001 | B50: 16.3340493 | C50: 14.27051102 | D50: 17.11919774 | E50: 0 | F50: 8.499687534 | G50: 0
A51: 2002 | B51: 7.538922702 | C51: 8.676373955 | D51: 7.116672517 | E51: 0 | F51: 10.99258712 | G51: 0
A52: 2003 | B52: 10.06402303 | C52: 2.874878401 | D52: 12.77168085 | E52: 0 | F52: 6.70587259 | G52: 0
A53: 2004 | B53: 16.34439653 | C53: 11.68578152 | D53: 17.94499712 | E53: 0 | F53: 8.487833423 | G53: 0
A54: 2005 | B54: 8.880054728 | C54: 9.690216033 | D54: 8.61647257 | E54: 0 | F54: 5.39481819 | G54: 0
A55: 2006 | B55: 13.20735199 | C55: 13.60803055 | D55: 13.07570444 | E55: 0 | F55: 5.029383429 | G55: 0
A56: 2007 | B56: 14.46542808 | C56: 20.47000482 | D56: 12.48326748 | E56: 0 | F56: 8.35904338 | G56: 0
A57: 2008 | B57: 10.21257484 | C57: 13.11313388 | D57: 9.187090222 | E57: 0 | F57: 5.924445095 | G57: 0
A58: 2009 | B58: 9.943889635 | C58: 17.7234908 | D58: 7.094534911 | E58: 0 | F58: 4.429953975 | G58: 0
A59: 2010 | B59: 15.62500941 | C59: 12.70390848 | D59: 16.80107507 | E59: 0 | F59: 9.728595196 | G59: 0
A60: 2011 | B60: 13.76264388 | C60: 5.967093689 | D60: 16.79111836 | E60: 0 | F60: 5.014780593 | G60: 0
A61: 2012 | B61: 11.14381642 | C61: 6.304019763 | D61: 12.84976316 | E61: 0 | F61: 3.684416389 | G61: 0
A62: 2013 | B62: 6.944681062 | C62: 3.036205824 | D62: 8.242442161 | E62: 0 | F62: 4.215487639 | G62: 0
A63: 2014 | B63: 7.475727646 | C63: 7.255171375 | D63: 7.545438287 | E63: 0 | F63: 4.138388257 | G63: 0
A64: 2015 | B64: 3.49144963 | C64: 6.667822822 | D64: 2.49021138 | E64: 0 | F64: 6.084185173 | G64: 0
A65: 2016 | B65: 5.224667956 | C65: 0.7151890667 | D65: 6.704060109 | E65: 0 | F65: 4.991447345 | G65: 0
A66: 2017 | B66: 13.52004301 | C66: 8.087035292 | D66: 15.20237344 | E66: 0 | F66: 5.45264825 | G66: 0
A67: 2018 | B67: 8.807715366 | C67: 3.528627448 | D67: 10.34142114 | E67: 0 | F67: 3.404393635 | G67: 0
A68: 2019 | B68: 3.870771176 | C68: 3.988829754 | D68: 3.83858995 | E68: 0 | F68: 1.385818934 | G68: 0
A69: 2020 | B69: =(B37/B36-1)*100 -> 4.519642309 | C69: 13.01746611 | D69: 2.199895042 | E69: 0 | F69: =(F37/F36-1)*100 -> 0.8432400184 | G69: 0
A70: 2021 | B70: =(B38/B37-1)*100 -> 9.738253808 | C70: 11.6477453 | D70: 9.161824845 | E70: 0 | F70: 7.186606051 | G70: 0
A71: 2022 | B71: 10.29102626 | C71: =(C39/C38-1)*100 -> 9.269057511 | D71: 10.60655931 | E71: 0 | F71: 3.921516933 | G71: 0
A72: 주 : '정부 : 민간'에서 정부는 정부재원과 공공재원의 합이며, 민간은 민간재원과 외국재원의 합

Sheet 2-2
A1: 2-2) 재원별 연구개발비
A2: R&D expenditure by source of funds
I4: (단위 : 백만원 Unit : Won, Millions)
A5: 연도 Year | B5: 총계 Total | D5: 정부〮공공부문 Gov't & Other national sources | F5: 민간부문 Business enterprise | H5: 외국부문 Rest of the world
C6: 구성비(%) | E6: 구성비(%) | G6: 구성비(%) | I6: 구성비(%)
A7: 1991 | B7: 4158441 | C7: =B7/$B7*100 -> 100 | D7: 808464 | E7: =D7/$B7*100 -> 19.44151666 | F7: 3342601 | G7: =F7/$B7*100 -> 80.38110917 | H7: 7376 | I7: =H7/$B7*100 -> 0.177374165
A8: 1992 | B8: 4989031 | C8: =B8/$B8*100 -> 100 | D8: 856882 | E8: =D8/$B8*100 -> 17.17531922 | F8: 4110546 | G8: =F8/$B8*100 -> 82.39167085 | H8: 21603 | I8: 0.4330099372
A9: 1993 | B9: 6152983 | C9: 100 | D9: 1026617 | E9: 16.68486651 | F9: 5113985 | G9: 83.11391402 | H9: 12381 | I9: 0.2012194735
A10: 1994 | B10: 7894746 | C10: 100 | D10: 1880222 | E10: 23.81611771 | F10: 6011453 | G10: 76.14498301 | H10: 3071 | I10: 0.03889928821
A11: 1995 | B11: 9440606 | C11: 100 | D11: 2289131 | E11: 24.24771249 | F11: 7150144 | G11: 75.73818884 | H11: 1331 | I11: 0.01409867121
A12: 1996 | B12: 10878051 | C12: 100 | D12: 2850638 | E12: 26.20541125 | F12: 8013779 | G12: 73.6692538 | H12: 13635 | I12: 0.1253441448
A13: 1997 | B13: 12185807 | C13: 100 | D13: 3344814 | E13: 27.44844063 | F13: 8829196 | G13: 72.45475002 | H13: 11796 | I13: 0.09680113923
A14: 1998 | B14: 11336617 | C14: 100 | D14: 3491103 | E14: 30.79492762 | F14: 7837081 | G14: 69.13068511 | H14: 8433 | I14: 0.07438727091
A15: 1999 | B15: 11921752 | C15: 100 | D15: 3574370 | E15: 29.98191876 | F15: 8340040 | G15: 69.95649633 | H15: 7342 | I15: 0.06158490799
A16: 2000 | B16: 13848501 | C16: 100 | D16: 3816850 | E16: 27.56146676 | F16: 10023405 | G16: 72.37898889 | H16: 8245 | I16: 0.05953712969
A17: 2001 | B17: 16110521.98 | C17: 100 | D17: 4361534 | E17: 27.0725803 | F17: 11673266 | G17: 72.45740402 | H17: 75722 | I17: 0.4700158076
A18: 2002 | B18: 17325081.78 | C18: 100 | D18: 4739957 | E18: 27.35893002 | F18: 12508848 | G18: 72.20080205 | H18: 76277 | I18: 0.4402692061
A19: 2003 | B19: 19068682 | C19: 100 | D19: 4876225 | E19: 25.57190371 | F19: 14113599 | G19: 74.01454909 | H19: 78858 | I19: 0.4135471974
A20: 2004 | B20: 22185343 | C20: 100 | D20: 5446050 | E20: 24.54796394 | F20: 16630869 | G20: 74.963317 | H20: 108424 | I20: 0.488719061
A21: 2005 | B21: 24155413.6 | C21: 100 | D21: 5973784.01 | E21: 24.73062192 | F21: 18004157.27 | G21: 74.53466777 | H21: 177472.3151 | I21: 0.734710314
A22: 2006 | B22: 27345704.1 | C22: 100 | D22: 6786698.363 | E22: 24.81815183 | F22: 20469436.27 | G22: 74.85430324 | H22: 89569.46656 | I22: 0.3275449271
A23: 2007 | B23: 31301377.26 | C23: =B23/$B23*100 -> 100 | D23: 8175935.845 | E23: =D23/$B23*100 -> 26.12005145 | F23: 23055735.07 | G23: =F23/$B23*100 -> 73.65725437 | H23: 69706.3465 | I23: =H23/$B23*100 -> 0.2226941834
A24: 2008 | B24: 34498053.84 | C24: 100 | D24: 9248057.258 | E24: 26.80747529 | F24: 25143874.54 | G24: =F24/$B24*100 -> 72.88490723 | H24: 106122.0443 | I24: 0.3076174813
A25: 2009 | B25: 37928502.24 | C25: 100 | D25: 10887135.84 | E25: 28.7043653 | F25: 26963044.97 | G25: 71.08913713 | H25: 78321.43648 | I25: 0.2064975727
A26: 2010 | B26: 43854834.28 | C26: 100 | D26: 12270227.61 | E26: 27.97919046 | F26: 31489621.01 | G26: 71.80421844 | H26: 94985.6683 | I26: 0.2165911007
A27: 2011 | B27: 49890418.95 | C27: 100 | D27: 13002403.59 | E27: 26.06192503 | F27: 36776186.95 | G27: 73.71392688 | H27: 111828.4193 | I27: 0.2241480863
A28: 2012 | B28: 55450115.65 | C28: 100 | D28: 13822077.68 | E28: 24.92704932 | F28: 41437794.51 | G28: 74.72986129 | H28: 190243.4608 | I28: 0.3430893851
A29: 2013 | B29: 59300949.33 | C29: 100 | D29: 14241744.4 | E29: 24.01604791 | F29: 44879192.8 | G29: 75.68039519 | H29: 180012.1241 | I29: 0.3035569011
A30: 2014 | B30: 63734126.79 | C30: 100 | D30: 15275007.37 | E30: 23.96676339 | F30: 48008280.39 | G30: 75.32586199 | H30: 450839.0397 | I30: 0.7073746239
A31: 2015 | B31: 65959371.73 | C31: 100 | D31: 16293517.79 | E31: =D31/$B31*100 -> 24.70235445 | F31: 49169995.25 | G31: =F31/$B31*100 -> 74.54588175 | H31: 495858.6842 | I31: =H31/$B31*100 -> 0.7517638073
A32: 2016 | B32: 69405529.89 | C32: 100 | D32: 16410047.25 | E32: =D32/$B32*100 -> 23.64371727 | F32: 52345866.61 | G32: =F32/$B32*100 -> 75.42031117 | H32: 649616.0269 | I32: =H32/$B32*100 -> 0.9359715688
A33: 2017 | B33: 78789187.37 | C33: 100 | D33: 17737133.57 | E33: =D33/$B33*100 -> 22.51214178 | F33: 60064289.4 | G33: =F33/$B33*100 -> 76.23417806 | H33: 987764.4108 | I33: =H33/$B33*100 -> 1.253680161
A34: 2018 | B34: 85728714.74 | C34: 100 | D34: 18363010.93 | E34: =D34/$B34*100 -> 21.41990695 | F34: 65702767.63 | G34: 76.64032738 | H34: 1662936.178 | I34: 1.93976567
A35: 2019 | B35: 89047077.12 | C35: 100 | D35: 19095480.17 | E35: 21.44425263 | F35: 68521556.96 | G35: 76.94981034 | H35: 1430039.989 | I35: 1.605937034
A36: 2020 | B36: 93071686.49 | C36: 100 | D36: 21581227.83 | E36: 23.18774769 | F36: 71269260.33 | G36: 76.57458784 | H36: 221198.3323 | I36: 0.2376644721
A37: 2021 | B37: 102135243.5 | C37: 100 | D37: 24094954.28 | E37: 23.59122419 | F37: 77742094.16 | G37: 76.11681479 | H37: 298195.1023 | I37: 0.2919610234
A38: 2022 | B38: 112646008.3 | C38: =B38/$B38*100 -> 100 | D38: 26328329.45 | E38: 23.37262532 | F38: 85963730.27 | G38: 76.31316154 | H38: 353948.5571 | I38: 0.3142131377

Sheet 2-3
A1: 2-3) 연구수행주체별 연구개발비
A2: R&D expenditure by sector of performance
K4: (단위 : 백만원 Unit : Won, Millions)
A5: 연도 Year | B5: 총계 Total | C5: 공공연구기관 Public research institutes | F5: 대학 Higher educations | I5: 기업체 Business enterprises
C6: 계 Sub total | D6: 국립·공립·출연(연) Government | E6: 비영리법인 Non-profit | F6: 계 Sub total | G6: 국·공립 National & Pub. | H6: 사립 Private | I6: 계 Sub total | J6: 민간기업체 Private | K6: 정부투자기관 Gov't invest
A7: 2005 | B7: 24155413.6 | C7: 3192887 | D7: 2842252 | E7: 350635 | F7: 2398283.6 | G7: 932462 | H7: 1465821.6 | I7: 18564243 | J7: 18120101 | K7: 315878
A8: 2006 | B8: 27345704.1 | C8: 3497050.1 | D8: 3140796.6 | E8: 356253.5 | F8: 2721874 | G8: 1039265 | H8: 1682609 | I8: 21126780 | J8: 20745227 | K8: 381553
A9: 2007 | B9: 31301377.26 | C9: 4102365.7 | D9: 3630947.5 | E9: 471418.2 | F9: 3334118.57 | G9: 1311716 | H9: 2022402.57 | I9: 23864892.99 | J9: 23467579.23 | K9: 221423.76
A10: 2008 | B10: 34498053.84 | C10: 4653235.6 | D10: 4159538.7 | E10: 493696.9 | F10: 3844749.4 | G10: 1519323.6 | H10: 2325425.8 | I10: 26000068.84 | J10: 25553070.84 | K10: 446998
A11: 2009 | B11: 37928502.24 | C11: 5558383.7 | D11: 4925499 | E11: 632884.7 | F11: 4204259.4 | G11: 1771080 | H11: 2433179.4 | I11: 28165859.14 | J11: 27648365.14 | K11: 329064
A12: 2010 | B12: 43854834.28 | C12: 6306136.03 | D12: 5643330.87 | E12: 662805.16 | F12: 4745458.693 | G12: 1993071.65 | H12: 2752387.043 | I12: 32803239.56 | J12: 32238691.56 | K12: 564548
A13: 2011 | B13: 49890418.95 | C13: 6673311.11 | D13: 5870369.61 | E13: 802941.5 | F13: 5033816.5 | G13: 2068282.1 | H13: 2965534.4 | I13: 38183291.34 | J13: 37560684.34 | K13: 622607
A14: 2012 | B14: 55450115.65 | C14: 6950261.67 | D14: 6240186.3 | E14: 710075.37 | F14: 5276928.439 | G14: 2261530.768 | H14: 3015397.671 | I14: 43222925.54 | J14: 42580790.54 | K14: 642135
A15: 2013 | B15: 59300949.33 | C15: 7260710.547 | D15: 6471895.61 | E15: 788814.937 | F15: 5480322.53 | G15: 2432044.25 | H15: 3048278.28 | I15: 46559916.25 | J15: 45947538.25 | K15: 612378
A16: 2014 | B16: 63734126.79 | C16: 8112700.933 | D16: 7146441.396 | E16: 966259.537 | F16: 5766960.87 | G16: 2635650.05 | H16: 3131310.82 | I16: 49854464.99 | J16: 49218203.99 | K16: 636261
A17: 2015 | B17: 65959371.73 | C17: 8824078.748 | D17: 7745312.548 | E17: 1078766.2 | F17: 5998872.479 | G17: 2715086.65 | H17: 3283785.829 | I17: 51136420.5 | J17: 50503751.5 | K17: 632669
A18: 2016 | B18: 69405529.89 | C18: 9113170.697 | D18: 8012527.25 | E18: 1100643.447 | F18: 6339887.929 | G18: 2874488.3 | H18: 3465399.629 | I18: 53952471.26 | J18: 53147044.26 | K18: 805427
A19: 2017 | B19: 78789187.37 | C19: 9543217.4 | D19: 8429716 | E19: 1113501.4 | F19: 6682523.015 | G19: 2957915.515 | H19: 3724607.5 | I19: 62563446.96 | J19: 61673311.96 | K19: 890135
A20: 2018 | B20: 85728714.74 | C20: 9843867.4 | D20: 8636201.5 | E20: 1207665.9 | F20: 7050415.008 | G20: 3088493.055 | H20: 3961921.953 | I20: 68834432.33 | J20: 67925985.33 | K20: 908447
A21: 2019 | B21: 89047077.12 | C21: 10168766 | D21: 8898118 | E21: 1270648 | F21: 7371649 | G21: 3274570 | H21: 4097079 | I21: 71506662.12 | J21: 70637773.12 | K21: 868889
A22: 2020 | B22: 93071686.49 | C22: 11118558 | D22: 9407681 | E22: 1710877 | F22: 8353350.45 | G22: 3774963.45 | H22: 4578387 | I22: 73599778.04 | J22: 72723759.04 | K22: 876019
A23: 2021 | B23: 102135243.5 | C23: 11997001 | D23: 9979636 | E23: 2017365 | F23: 9330614.888 | G23: 4216323.118 | H23: 5114291.77 | I23: 80807627.66 | J23: 79948109.66 | K23: 859518
A24: 2022 | B24: 112646008.3 | C24: 12918586.1 | D24: 10571717 | E24: 2346869.1 | F24: 10306122 | G24: 4531064 | H24: 5775058 | I24: 89421300.18 | J24: 88532529.18 | K24: 888771
A25: 구성비(%) Percent distribution
A26: 2005 | B26: =B7/$B7*100 -> 100 | C26: 13.21810114 | D26: 11.76652177 | E26: 1.451579368 | F26: 9.928555312 | G26: 3.860260956 | H26: 6.068294355 | I26: 76.85334355 | J26: 75.01465841 | K26: 1.307690298
A27: 2006 | B27: =B8/$B8*100 -> 100 | C27: 12.78829789 | D27: 11.48552105 | E27: 1.302776841 | F27: 9.953570733 | G27: 3.800468974 | H27: 6.153101759 | I27: 77.25813138 | J27: 75.86283726 | K27: 1.395294115
A28: 2007 | B28: =B9/$B9*100 -> 100 | C28: 13.10602299 | D28: 11.59996083 | E28: 1.506062165 | F28: 10.65166731 | G28: 4.190601548 | H28: 6.461065765 | I28: 76.2423097 | J28: 74.97299251 | K28: 0.7073930267
A29: 2008 | B29: =B10/$B10*100 -> 100 | C29: 13.48840031 | D29: 12.05731407 | E29: 1.431086235 | F29: 11.14482984 | G29: 4.404084958 | H29: 6.740744886 | I29: 75.36676985 | J29: 74.07105038 | K29: 1.295719469
A30: 2009 | B30: =B11/$B11*100 -> 100 | C30: 14.65489901 | D30: 12.98627341 | E30: 1.668625605 | F30: 11.0846966 | G30: 4.669522642 | H30: 6.415173962 | I30: 74.26040438 | J30: 72.89601093 | K30: 0.8675902832
A31: 2010 | B31: =B12/$B12*100 -> 100 | C31: 14.37956871 | D31: 12.86820703 | E31: 1.51136168 | F31: 10.82083371 | G31: 4.544702272 | H31: 6.276131441 | I31: 74.79959757 | J31: 73.51228681 | K31: 1.287310759
A32: 2011 | B32: =B13/$B13*100 -> 100 | C32: 13.3759372 | D32: 11.76652699 | E32: 1.609410217 | F32: 10.0897459 | G32: 4.145649893 | H32: 5.944096006 | I32: 76.5343169 | J32: 75.28636786 | K32: 1.247949031
A33: 2012 | B33: =B14/$B14*100 -> 100 | C33: 12.53426001 | D33: 11.25369393 | E33: 1.280566076 | F33: 9.516532792 | G33: 4.078496035 | H33: 5.438036758 | I33: 77.9492072 | J33: 76.79116633 | K33: 1.158040867
A34: 2013 | B34: =B15/$B15*100 -> 100 | C34: 12.24383527 | D34: 10.91364587 | E34: 1.330189391 | F34: 9.24154266 | G34: 4.101189403 | H34: 5.140353257 | I34: 78.51462207 | J34: 77.4819607 | K34: 1.032661377
A35: 2014 | B35: =B16/$B16*100 -> 100 | C35: 12.72897479 | D35: 11.21289607 | E35: 1.516078725 | F35: 9.04846612 | G35: 4.135382695 | H35: 4.913083426 | I35: 78.22255909 | J35: 77.22425405 | K35: 0.99830504
A36: 2015 | B36: =B17/$B17*100 -> 100 | C36: 13.37805154 | D36: 11.74255052 | E36: 1.635501024 | F36: 9.094799301 | G36: 4.116301564 | H36: 4.978497737 | I36: 77.52714915 | J36: 76.56796931 | K36: 0.9591798458
A37: 2016 | B37: =B18/$B18*100 -> 100 | C37: 13.13032364 | D37: 11.54450843 | E37: 1.585815206 | F37: 9.134557346 | G37: 4.14158397 | H37: 4.992973376 | I37: 77.73511902 | J37: 76.57465385 | K37: 1.160465169
A38: 2017 | B38: =B19/$B19*100 -> 100 | C38: 12.11234399 | D38: 10.69907722 | E38: 1.413266766 | F38: 8.481522957 | G38: 3.754215031 | H38: 4.727307926 | I38: 79.40613306 | J38: 78.27636509 | K38: 1.129767966
A39: 2018 | B39: =B20/$B20*100 -> 100 | C39: 11.48257901 | D39: 10.07387259 | E39: 1.40870641 | F39: 8.224099743 | G39: 3.602635435 | H39: 4.621464307 | I39: 80.29332125 | J39: 79.2336448 | K39: 1.059676449
A40: 2019 | B40: =B21/$B21*100 -> 100 | C40: 11.41953934 | D40: 9.992599744 | E40: 1.426939593 | F40: 8.278372787 | G40: 3.677346979 | H40: 4.601025809 | I40: 80.30208788 | J40: 79.32632424 | K40: 0.9757636389
A41: 2020 | B41: =B22/$B22*100 -> 100 | C41: 11.94623029 | D41: 10.10799455 | E41: 1.838235735 | F41: 8.975178989 | G41: 4.055974048 | H41: 4.91920494 | I41: 79.07859072 | J41: 78.13736033 | K41: 0.9412303924
A42: 2021 | B42: =B23/$B23*100 -> 100 | C42: 11.74619121 | D42: 9.771001325 | E42: 1.975189885 | F42: 9.135548675 | G42: 4.128176496 | H42: 5.007372179 | I42: 79.11826011 | J42: 78.27671123 | K42: 0.8415488818
A43: 2022 | B43: 100 | C43: 11.46830349 | D43: 9.38490157 | E43: 2.083401921 | F43: 9.149123131 | G43: 4.022391978 | H43: 5.126731154 | I43: 79.38257338 | J43: 78.59357871 | K43: 0.7889946689
A44: 전년대비증가율(%) Percent change from previous year
A45: 2006 | B45: =(B8/B7-1)*100 -> 13.20735199 | C45: 9.526271991 | D45: 10.50380473 | E45: 1.602378542 | F45: 13.49258278 | G45: 11.45387158 | H45: 14.78948052 | I45: 13.80361699 | J45: 14.48736958 | K45: 20.79125485
A46: 2007 | B46: =(B9/B8-1)*100 -> 14.46542808 | C46: 17.30932022 | D46: 15.60594214 | E46: 32.32661574 | F46: 22.49349419 | G46: 26.21573901 | H46: 20.19444624 | I46: 12.96038956 | J46: 13.12278834 | K46: -41.96775808
A47: 2008 | B47: =(B10/B9-1)*100 -> 10.21257484 | C47: 13.4281032 | D47: 14.55794114 | E47: 4.725888818 | F47: 15.31531706 | G47: 15.827176 | H47: 14.98332896 | I47: 8.946932429 | J47: 8.886692528 | K47: 101.8744511
A48: 2009 | B48: =(B11/B10-1)*100 -> 9.943889635 | C48: 19.45201528 | D48: 18.41454919 | E48: 28.19296617 | F48: 9.350674455 | G48: 16.57029483 | H48: 4.633714823 | I48: 8.329940637 | J48: 8.199774943 | K48: -26.38356324
A49: 2010 | B49: =(B12/B11-1)*100 -> 15.62500941 | C49: 13.45269363 | D49: 14.57378978 | E49: 4.727632063 | F49: 12.87264275 | G49: 12.53425311 | H49: 13.11895222 | I49: 16.46454453 | J49: 16.60252386 | K49: 71.56176306
A50: 2011 | B50: =(B13/B12-1)*100 -> 13.76264388 | C50: 5.82250491 | D50: 4.023133593 | E50: 21.14291627 | F50: 6.076500201 | G50: 3.773594893 | H50: 7.74409099 | I50: 16.40097701 | J50: 16.50809174 | K50: 10.28415653
A51: 2012 | B51: =(B14/B13-1)*100 -> 11.14381642 | C51: 4.150122112 | D51: 6.299717302 | E51: -11.56574047 | F51: 4.82957492 | G51: 9.343438596 | H51: 1.68142616 | I51: 13.19853272 | J51: 13.36532145 | K51: 3.136488989
A52: 2013 | B52: =(B15/B14-1)*100 -> 6.944681062 | C52: 4.466722143 | D52: 3.713179365 | E52: 11.08890272 | F52: 3.854403052 | G52: 7.539737439 | H52: 1.090423632 | I52: 7.720418437 | J52: 7.906728996 | K52: -4.634072275
A53: 2014 | B53: =(B16/B15-1)*100 -> 7.475727646 | C53: 11.73425632 | D53: 10.42269262 | E53: 22.4950862 | F53: 5.230318808 | G53: 8.371796689 | H53: 2.723916007 | I53: 7.075933555 | J53: 7.118261091 | K53: 3.900042131
A54: 2015 | B54: =(B17/B16-1)*100 -> 3.49144963 | C54: 8.768692706 | D54: 8.379991087 | E54: 11.6435242 | F54: 4.021383433 | G54: 3.013928196 | H54: 4.869366785 | I54: 2.571395582 | J54: 2.611935028 | K54: -0.5645481964
A55: 2016 | B55: =(B18/B17-1)*100 -> 5.224667956 | C55: 3.276171454 | D55: 3.450018322 | E55: 2.027987807 | F55: 5.684659093 | G55: 5.870959956 | H55: 5.53062256 | I55: 5.506937585 | J55: 5.233854281 | K55: 27.30622174
A56: 2017 | B56: =(B19/B18-1)*100 -> 13.52004301 | C56: 4.718958059 | D56: 5.206706161 | E56: 1.168221465 | F56: 5.40443443 | G56: 2.902332736 | H56: 7.479883964 | I56: 15.96029894 | J56: 16.04278811 | K56: 10.51715425
A57: 2018 | B57: =(B20/B19-1)*100 -> 8.807715366 | C57: 3.15040502 | D57: 2.449495333 | E57: 8.456612628 | F57: 5.505285842 | G57: 4.414512176 | H57: 6.371529158 | I57: 10.02340132 | J57: 10.1383778 | K57: 2.05721604
A58: 2019 | B58: =(B21/B20-1)*100 -> 3.870771176 | C58: 3.300517843 | D58: 3.032774305 | E58: 5.215192381 | F58: 4.55624231 | G58: 6.024845812 | H58: 3.411401051 | I58: 3.882112044 | J58: 3.992268607 | K58: -4.354464267
A59: 2020 | B59: =(B22/B21-1)*100 -> 4.519642309 | C59: 9.340287701 | D59: 5.726637925 | E59: 34.64602313 | F59: 13.31725711 | G59: 15.28119571 | H59: 11.74758895 | I59: 2.927162113 | J59: 2.953074297 | K59: 0.8205881304
A60: 2021 | B60: =(B23/B22-1)*100 -> 9.738253808 | C60: 7.900691798 | D60: 6.079659801 | E60: 17.91408734 | F60: 11.69907145 | G60: 11.69176003 | H60: 11.70509986 | I60: 9.793303469 | J60: 9.933962038 | K60: -1.883634944
A61: 2022 | B61: 10.29102626 | C61: 7.681795642 | D61: 5.932891741 | E61: 16.33339034 | F61: 10.45490703 | G61: 7.464818827 | H61: =(H24/H23-1)*100 -> 12.91999478 | I61: 10.65947952 | J61: 10.73748905 | K61: 3.403419126
A63: 주 : 1. 공공연구기관: '국·공립, 출연(연)'은 '국·공립 연구기관', '국·공립 병원','정부 출연(연)', '지자체 출연(연)'을 포함하며, 나머지는 모두 '비영리법인'으로 분류
A64: 2. 대학: '국·공립'은 '국·공립대학'과 '국·공립대학 부속병원', '사립'은 '사립대학'과 '사립대학 부속병원'

Sheet 2-4
A1: 2-4) 비목별 연구개발비
A2: R&D expenditure by type of costs
K4: (단위 : 백만원 Unit : Won, Millions)
A5: 연도 Year | B5: 총계 Total | C5: 경상비 Current costs | F5: 자본적지출 Capital costs
C6: 계 Sub total | D6: 인건비 Labour costs | E6: 기타 Other current costs | F6: 계 Sub total | G6: 기계·장치 Machinery | H6: 토지 Land | I6: 건물 Buildings | J6: 컴퓨터 소프트웨어 Computer software | K6: 기타 지식재산물 Other intellectual properties
A7: 1991 | B7: 4158440 | C7: =SUM(D7,E7) -> 2884882 | D7: 1376617 | E7: 1508265 | F7: =SUM(G7:K7) -> 1273559 | G7: 854651 | H7: 418908
A8: 1992 | B8: 4989031 | C8: 3593363 | D8: 1746546 | E8: 1846817 | F8: =SUM(G8:K8) -> 1395668 | G8: 858744 | H8: 536924
A9: 1993 | B9: 6152983 | C9: 4302251 | D9: 1980083 | E9: 2322168 | F9: =SUM(G9:K9) -> 1850732 | G9: 1137882 | H9: 712850
A10: 1994 | B10: 7894746 | C10: 5561911 | D10: 2471758 | E10: 3090153 | F10: =SUM(G10:K10) -> 2332835 | G10: 1618243 | H10: 714592
A11: 1995 | B11: 9440606 | C11: 7161647 | D11: 3160442 | E11: 4001205 | F11: =SUM(G11:K11) -> 2278959 | G11: 1675833 | H11: 603126
A12: 1996 | B12: 10878051 | C12: 8233354 | D12: 3621555 | E12: 4611799 | F12: 2644697 | G12: 1950540 | H12: 694157
A13: 1997 | B13: 12185807 | C13: 9427321 | D13: 4091203 | E13: 5336118 | F13: 2758486 | G13: 2156982 | H13: 601504
A14: 1998 | B14: 11336617 | C14: 8775383 | D14: 3880492 | E14: 4894891 | F14: 2561234 | G14: 2062431 | H14: 498803
A15: 1999 | B15: 11921752 | C15: 9172514 | D15: 3860804 | E15: 5311710 | F15: 2749238 | G15: 2440146 | H15: 309092
A16: 2000 | B16: 13848501 | C16: 10941530.44 | D16: 4739129.597 | E16: 6202400.838 | F16: 2906970.565 | G16: 2491452.897 | H16: 415517.668
A17: 2001 | B17: 16110521.98 | C17: 13249438.11 | D17: 5549175.864 | E17: 7700262.242 | F17: 2861083.876 | G17: 2423719.987 | H17: 437363.889
A18: 2002 | B18: 17325081.78 | C18: 14591141.16 | D18: 6526892.098 | E18: 8064249.063 | F18: 2733940.618 | G18: 2159287.609 | H18: 301084.412 | J18: 273568.5965
A19: 2003 | B19: 19068681.99 | C19: 16461997.93 | D19: 7562177.651 | E19: 8899820.282 | F19: 2606684.061 | G19: 1964562.201 | H19: 337804.48 | J19: 304317.38
A20: 2004 | B20: 22185343 | C20: 19399393 | D20: 8859601 | E20: 10539792 | F20: 2785950 | G20: 2208399 | H20: 261887 | J20: 315664
A21: 2005 | B21: 24155413.6 | C21: 21084497.5 | D21: 9953563.1 | E21: 11130934.4 | F21: 3070916.1 | G21: 2393576.6 | H21: 299853 | J21: 377486.5
A22: 2006 | B22: 27345704.1 | C22: 23467080.71 | D22: 11165778.89 | E22: 12301301.82 | F22: 3878623.392 | G22: 2979276.788 | H22: 472471.7193 | J22: 426874.8849
A23: 2007 | B23: 31301377.26 | C23: 27241543.8 | D23: 12804076.47 | E23: 14437467.33 | F23: 4059833.456 | G23: 3031128.785 | H23: 582928.093 | J23: 445776.578
A24: 2008 | B24: 34498053.84 | C24: =SUM(D24,E24) -> 30821176.47 | D24: 13987687.63 | E24: 16833488.84 | F24: 3676877.367 | G24: 2689458.015 | H24: 645218.7123 | J24: 342200.6405
A25: 2009 | B25: 37928502.24 | C25: =SUM(D25,E25) -> 34324319.88 | D25: 14523856.24 | E25: 19800463.64 | F25: 3604182.36 | G25: 2862195.73 | H25: 460855 | J25: 281131.63
A26: 2010 | B26: 43854834.28 | C26: 39578894.79 | D26: 17342032.62 | E26: 22236862.17 | F26: 4275939.49 | G26: 3418978.97 | H26: 518209.95 | J26: 338750.57
A27: 2011 | B27: 49890418.95 | C27: 44645764.71 | D27: 19649822.9 | E27: 24995941.81 | F27: 5244654.24 | G27: 3827194.43 | H27: 1033435.52 | J27: 384024.29
A28: 2012 | B28: 55450115.65 | C28: 49748360.33 | D28: 22559549.17 | E28: 27188811.16 | F28: 5701755.32 | G28: 3849541.73 | H28: 1361486.3 | J28: 490727.29
A29: 2013 | B29: 59300949.33 | C29: 53744731.42 | D29: 24728306.13 | E29: 29016425.29 | F29: 5556217.913 | G29: 4052268.166 | H29: 1086772.66 | J29: 417177.0878
A30: 2014 | B30: 63734126.79 | C30: 58044107.06 | D30: 26698757.29 | E30: 31345349.78 | F30: 5690019.728 | G30: 4277087.102 | H30: 230960.5412 | I30: 695913.0772 | J30: 486059.0082
A31: 2015 | B31: 65959371.73 | C31: 59506111.79 | D31: 28026786.17 | E31: 31479325.62 | F31: 6453259.939 | G31: 4542379.341 | H31: 319048.5907 | I31: 1182507.565 | J31: 409324.443
A32: 2016 | B32: 69405529.89 | C32: 63216052.97 | D32: 29233901.53 | E32: 33982151.45 | F32: 6189476.911 | G32: 4660267.601 | H32: 197272.6 | I32: 908450.55 | J32: 423486.16
A33: 2017 | B33: 78789187.37 | C33: 72046073.39 | D33: 33411593.43 | E33: 38634479.96 | F33: 6743113.983 | G33: 4568794.603 | H33: 282999.2 | I33: 1262408.8 | J33: 399572.03 | K33: 229339.35
A34: 2018 | B34: 85728714.74 | C34: 78131193.63 | D34: 36317218.69 | E34: 41813974.94 | F34: 7597521.105 | G34: 5458633.248 | H34: 375874.3041 | I34: 841806.3224 | J34: 505944.4103 | K34: 415262.82
A35: 2019 | B35: 89047077.12 | C35: 80748021.15 | D35: 37372667.75 | E35: 43375353.41 | F35: 8299055.964 | G35: 5696653.812 | H35: 372657.764 | I35: 1194809.278 | J35: 546748.756 | K35: 488186.354
A36: 2020 | B36: 93071686.49 | C36: 84516135.4 | D36: 40475587.14 | E36: 44040548.26 | F36: 8555551.092 | G36: 5851287.944 | H36: 600313.82 | I36: 1092484.36 | J36: 557070.363 | K36: 454394.6051
A37: 2021 | B37: 102135243.5 | C37: 92739180.02 | D37: 45771271.07 | E37: 46967908.95 | F37: 9396063.521 | G37: 6481440.161 | H37: 406188.219 | I37: 1250498.471 | J37: 710469.8836 | K37: 547466.7864
A38: 2022 | B38: 112646008.3 | C38: 102814602.8 | D38: 49132848.28 | E38: 53681754.49 | F38: 9831405.509 | G38: 7251024.539 | H38: 222275.447 | I38: 1093974.247 | J38: 815245.517 | K38: 448885.759
A39: 구성비(%) Percent distribution
A40: 1991 | B40: =B7/$B7*100 -> 100 | C40: 69.3741403 | D40: 33.10416887 | E40: 36.26997143 | F40: 30.62588374 | G40: 20.55220227 | H40: 10.07368148
A41: 1992 | B41: =B8/$B8*100 -> 100 | C41: 72.02526904 | D41: 35.00771994 | E41: 37.0175491 | F41: 27.97473096 | G41: 17.21264109 | H41: 10.76208987
A42: 1993 | B42: =B9/$B9*100 -> 100 | C42: 69.9213861 | D42: 32.18086252 | E42: 37.74052358 | F42: 30.0786139 | G42: 18.4931764 | H42: 11.5854375
A43: 1994 | B43: =B10/$B10*100 -> 100 | C43: 70.45079094 | D43: 31.30889835 | E43: 39.1418926 | F43: 29.54920906 | G43: 20.49772089 | H43: 9.051488167
A44: 1995 | B44: =B11/$B11*100 -> 100 | C44: 75.86003483 | D44: 33.47710941 | E44: 42.38292542 | F44: 24.13996517 | G44: 17.75132868 | H44: 6.388636492
A45: 1996 | B45: =B12/$B12*100 -> 100 | C45: 75.68776797 | D45: 33.29231496 | E45: 42.39545301 | F45: 24.31223203 | G45: 17.93096944 | H45: 6.381262599
A46: 1997 | B46: 100 | C46: 77.36312417 | D46: 33.57350892 | E46: 43.78961525 | F46: 22.63687583 | G46: 17.70077271 | H46: 4.936103124
A47: 1998 | B47: 100 | C47: 77.40742234 | D47: 34.22971774 | E47: 43.1777046 | F47: 22.59257766 | G47: 18.19264954 | H47: 4.399928127
A48: 1999 | B48: 100 | C48: 76.93931228 | D48: 32.38453543 | E48: 44.55477685 | F48: 23.06068772 | G48: 20.4680151 | H48: 2.592672621
A49: 2000 | B49: 100 | C49: 79.00877095 | D49: 34.22124602 | E49: 44.78752493 | F49: 20.99122905 | G49: 17.99077674 | H49: 3.000452309
A50: 2001 | B50: 100 | C50: 82.24089897 | D50: 34.44442005 | E50: 47.79647891 | F50: 17.75910103 | G50: 15.04432935 | H50: 2.714771684
A51: 2002 | B51: 100 | C51: 84.21975346 | D51: 37.67308104 | E51: 46.54667243 | F51: 15.78024654 | G51: 12.46336171 | H51: 1.737852761 | J51: =J18/$B18*100 -> 1.579032065
A52: 2003 | B52: 100 | C52: 86.330025 | D52: 39.65757913 | E52: 46.67244587 | F52: 13.669975 | G52: 10.30255894 | H52: 1.771514571 | J52: 1.59590149
A53: 2004 | B53: 100 | C53: 87.44238482 | D53: 39.93447836 | E53: 47.50790646 | F53: 12.55761518 | G53: 9.954315333 | H53: 1.180450534 | J53: 1.422849311
A54: 2005 | B54: 100 | C54: 87.28684116 | D54: 41.20634515 | E54: 46.08049601 | F54: 12.71315884 | G54: 9.909068996 | H54: 1.241349061 | J54: 1.562740785
A55: 2006 | B55: =B22/$B22*100 -> 100 | C55: 85.81633379 | D55: 40.83193049 | E55: 44.9844033 | F55: 14.18366621 | G55: 10.89486223 | H55: 1.7277731 | J55: 1.561030879
A56: 2007 | B56: 100 | C56: 87.02985679 | D56: 40.90579264 | E56: 46.12406416 | F56: 12.97014321 | G56: 9.683691423 | H56: 1.862308128 | J56: 1.424143654
A57: 2008 | B57: 100 | C57: 89.34178321 | D57: 40.54630936 | E57: 48.79547385 | F57: 10.65821679 | G57: 7.795970251 | H57: 1.870304671 | J57: 0.9919418703
A58: 2009 | B58: 100 | C58: 90.4974303 | D58: 38.29272284 | E58: 52.20470746 | F58: 9.502569696 | G58: 7.546292527 | H58: 1.21506248 | J58: 0.7412146892
A59: 2010 | B59: 100 | C59: 90.2497876 | D59: 39.54417547 | E59: 50.70561213 | F59: 9.750212399 | G59: 7.796127898 | H59: 1.181648405 | J59: 0.7724360964
A60: 2011 | B60: 100 | C60: 89.48765244 | D60: 39.38596491 | E60: 50.10168753 | F60: 10.51234756 | G60: 7.671201226 | H60: 2.071410787 | J60: 0.7697355486
A61: 2012 | B61: =B28/$B28*100 -> 100 | C61: 89.71732475 | D61: 40.68440418 | E61: 49.03292057 | F61: 10.28267525 | G61: 6.942351129 | H61: 2.455335366 | J61: 0.8849887584
A62: 2013 | B62: =B29/$B29*100 -> 100 | C62: 90.63047392 | D62: 41.69968004 | E62: 48.93079388 | F62: 9.369526081 | G62: 6.8333951 | H62: 1.832639565 | J62: 0.7034914155
A63: 2014 | B63: 100 | C63: 91.07225593 | D63: 41.89083405 | E63: 49.18142188 | F63: 8.927744075 | G63: 6.710827177 | H63: 0.3623812749 | I63: =I30/$B30*100 -> 1.09190023 | J63: 0.7626353928
A64: 2015 | B64: 100 | C64: 90.21631078 | D64: 42.49098412 | E64: 47.72532666 | F64: 9.783689217 | G64: 6.886632213 | H64: 0.4837047145 | I64: =I31/$B31*100 -> 1.792781729 | J64: 0.6205705608
A65: 2016 | B65: 100 | C65: 91.08215596 | D65: 42.12042121 | E65: 48.96173475 | F65: 8.917844041 | G65: 6.714547975 | H65: 0.2842318189 | I65: =I32/$B32*100 -> 1.308902261 | J65: 0.6101619867
A66: 2017 | B66: 100 | C66: 91.4415744 | D66: 42.40631811 | E66: 49.03525629 | F66: 8.558425601 | G66: 5.798758377 | H66: 0.3591853266 | I66: =I33/$B33*100 -> 1.60226148 | J66: 0.5071406919 | K66: =K33/$B33*100 -> 0.2910797251
A67: 2018 | B67: 100 | C67: 91.13771724 | D67: 42.36295715 | E67: 48.77476009 | F67: 8.862282758 | G67: 6.367333588 | H67: 0.438446214 | I67: =I34/$B34*100 -> 0.9819420774 | J67: 0.5901691305 | K67: =K34/$B34*100 -> 0.4843917482
A68: 2019 | B68: =B35/$B35*100 -> 100 | C68: 90.68014781 | D68: 41.96956145 | E68: 48.71058637 | F68: 9.319852187 | G68: 6.397350701 | H68: 0.418495223 | I68: 1.341772596 | J68: 0.6139996659 | K68: 0.5482340014
A69: 2020 | B69: =B36/$B36*100 -> 100 | C69: 90.80756843 | D69: 43.4886147 | E69: 47.31895373 | F69: 9.192431571 | G69: 6.286861413 | H69: 0.6450015495 | I69: 1.173809567 | J69: 0.598539023 | K69: 0.4882200186
A70: 2021 | B70: =B37/$B37*100 -> 100 | C70: 90.80037096 | D70: 44.81437502 | E70: 45.98599594 | F70: 9.199629036 | G70: 6.34593891 | H70: 0.3976964316 | I70: 1.224355499 | J70: 0.6956167714 | K70: 0.5360214236
A71: 2022 | B71: =B38/$B38*100 -> 100 | C71: =C38/$B38*100 -> 91.27230014 | D71: 43.61703448 | E71: 47.65526565 | F71: 8.727699862 | G71: 6.437000875 | H71: 0.1973220804 | I71: 0.9711611301 | J71: 0.7237233964 | K71: 0.3984923797
A72: 전년대비증가율(%) Percent change from previous year
A73: 1991 | B73: =(B7/B6-1)*100 -> 
A74: 1992 | B74: =(B8/B7-1)*100 -> 19.97361992 | C74: 24.55840482 | D74: 26.87232542 | E74: 22.44645338 | F74: 9.588012805 | G74: 0.4789089348 | H74: 28.17229559
A75: 1993 | B75: =(B9/B8-1)*100 -> 23.33022184 | C75: 19.72770355 | D75: 13.37136268 | E75: 25.73893353 | F75: 32.60546204 | G75: 32.50537995 | H75: 32.76553106
A76: 1994 | B76: =(B10/B9-1)*100 -> 28.30761925 | C76: 29.27909134 | D76: 24.83102981 | E76: 33.07189661 | F76: 26.04931454 | G76: 42.21536152 | H76: 0.2443711861
A77: 1995 | B77: =(B11/B10-1)*100 -> 19.58087062 | C77: 28.76234445 | D77: 27.86211271 | E77: 29.48242369 | F77: -2.309464664 | G77: 3.55879803 | H77: -15.59855134
A78: 1996 | B78: =(B12/B11-1)*100 -> 15.22619417 | C78: 14.9645326 | D78: 14.59014277 | E78: 15.26025285 | F78: 16.04846774 | G78: 16.39226582 | H78: 15.09319777
A79: 1997 | B79: 12.02196974 | C79: 14.50158708 | D79: 12.96813109 | E79: 15.70577989 | F79: 4.302534468 | G79: 10.58383832 | H79: -13.34755682
A80: 1998 | B80: -6.96868086 | C80: -6.91541107 | D80: -5.15034331 | E80: -8.268688961 | F80: -7.150734135 | G80: -4.383485815 | H80: -17.07403442
A81: 1999 | B81: 5.161460425 | C81: 4.525511878 | D81: -0.5073583453 | E81: 8.5153888 | F81: 7.340367963 | G81: 18.31406723 | H81: -38.0332516
A82: 2000 | B82: 16.16162624 | C82: 19.28605871 | D82: 22.74981058 | E82: 16.76843876 | F82: 5.737319394 | G82: 2.102615866 | H82: 34.43171224
A83: 2001 | B83: 16.33404931 | C83: 21.09309739 | D83: 17.09272243 | E83: 24.14970336 | F83: -1.578505455 | G83: -2.718610895 | H83: 5.257591346
A84: 2002 | B84: 7.538922689 | C84: 10.12649023 | D84: 17.61912503 | E84: 4.726940594 | F84: -4.443884347 | G84: -10.9101868 | H84: -31.15928873
A85: 2003 | B85: 10.064023 | C85: 12.8218674 | D85: 15.86184569 | E85: 10.36142624 | F85: -4.65469351 | G85: -9.018039431 | H85: 12.19593793 | J85: =(J19/J18-1)*100 -> 11.23988056
A86: 2004 | B86: 16.34439657 | C86: 17.84349068 | D86: 17.15674253 | E86: 18.42702061 | F86: 6.877164045 | G86: 12.41176273 | H86: -22.47379312 | J86: 3.728548136
A87: 2005 | B87: 8.880054728 | C87: 8.686377455 | D87: 12.3477581 | E87: 5.608672353 | F87: 10.2286868 | G87: 8.385151415 | H87: 14.49709226 | J87: 19.58490674
A88: 2006 | B88: =(B22/B21-1)*100 -> 13.20735199 | C88: 11.30016595 | D88: 12.17871205 | E88: 10.51454781 | F88: 26.30183521 | G88: 24.46966552 | H88: 57.56778132 | J88: 13.08348377
A89: 2007 | B89: 14.46542808 | C89: 16.084076 | D89: 14.67248816 | E89: 17.36536134 | F89: 4.672020084 | G89: 1.740422284 | H89: 23.37840958 | J89: 4.427923432
A90: 2008 | B90: 10.21257484 | C90: 13.14034437 | D90: 9.244018195 | E90: 16.59585754 | F90: -9.432802917 | G90: -11.2720638 | H90: 10.68581529 | J90: -23.23494383
A91: 2009 | B91: 9.943889635 | C91: 11.36602754 | D91: 3.833146836 | E91: 17.62543006 | F91: -1.977085447 | G91: 6.42277048 | H91: -28.57383222 | J91: -17.84596616
A92: 2010 | B92: 15.62500941 | C92: 15.30860606 | D92: 19.40377497 | E92: 12.30475496 | F92: 18.63826696 | G92: 19.45301064 | H92: 12.4453353 | J92: 20.49536013
A93: 2011 | B93: 13.76264388 | C93: 12.80194898 | D93: 13.30749589 | E93: 12.40768422 | F93: 22.6550154 | G93: 11.93968912 | H93: 99.42409828 | J93: 13.3649133
A94: 2012 | B94: 11.14381642 | C94: 11.42906982 | D94: 14.80790073 | E94: 8.772901489 | F94: 8.715561772 | G94: 0.583908145 | H94: 31.74371053 | J94: 27.78548201
A95: 2013 | B95: 6.944681062 | C95: 8.033171466 | D95: 9.613476518 | E95: 6.721934674 | F95: -2.552501789 | G95: 5.266248553 | H95: -20.17748104 | J95: -14.98799917
A96: 2014 | B96: =(B30/B29-1)*100 -> 7.475727646 | C96: 7.999622541 | D96: 7.96840328 | E96: 8.026228142 | F96: 2.408145556 | G96: 5.547977745 | H96: =((H30+I30)/H29-1)*100 -> -14.71320061 | J96: 16.5114342
A97: 2015 | B97: =(B31/B30-1)*100 -> 3.49144963 | C97: 2.518782348 | D97: 4.974122455 | E97: 0.4274185566 | F97: 13.41366546 | G97: 6.202638215 | H97: =(H31/H30-1)*100 -> 38.1398697 | I97: 69.92173356 | J97: -15.78708837
A98: 2016 | B98: =(B32/B31-1)*100 -> 5.224667956 | C98: 6.234554864 | D98: 4.307005996 | E98: 7.950697091 | F98: -4.08759341 | G98: 2.595297566 | H98: -38.16847786 | I98: -23.17592064 | J98: =(J32/J31-1)*100 -> 3.459777987
A99: 2017 | B99: 13.52004301 | C99: 13.96800338 | D99: 14.29057255 | E99: 13.69050609 | F99: 8.944811969 | G99: -1.962827165 | H99: 43.45590822 | I99: 38.96285274 | J99: =(J33/J32-1)*100 -> -5.646968487
A100: 2018 | B100: =(B34/B33-1)*100 -> 8.807715366 | C100: 8.446151129 | D100: 8.696458203 | E100: 8.229682363 | F100: 12.67080943 | G100: 19.47644232 | H100: 32.81815076 | I100: -33.3174545 | J100: 26.62157817 | K100: =(K34/K33-1)*100 -> 81.06915364
A101: 2019 | B101: =(B35/B34-1)*100 -> 3.870771176 | C101: 3.349273701 | D101: 2.90619462 | E101: 3.73410676 | F101: 9.233733601 | G101: 4.360442497 | H101: -0.8557488668 | I101: 41.93398721 | J101: 8.064985962 | K101: 17.56081462
A102: 2020 | B102: =(B36/B35-1)*100 -> 4.519642309 | C102: 4.666509705 | D102: 8.302643548 | E102: 1.533577952 | F102: 3.090654278 | G102: 2.714473044 | H102: 61.0898465 | I102: -8.564121478 | J102: 1.887815361 | K102: -6.921895431
A103: 2021 | B103: =(B37/B36-1)*100 -> 9.738253808 | C103: 9.729555885 | D103: 13.08364946 | E103: 6.646966949 | F103: 9.824176368 | G103: 10.76946174 | H103: -32.33735332 | I103: 14.46374125 | J103: 27.53683031 | K103: 20.48267747
A104: 2022 | B104: 10.29102626 | C104: 10.86425688 | D104: 7.344295064 | E104: 14.2945379 | F104: 4.633238029 | G104: 11.87366325 | H104: -45.27772185 | I104: -12.51694645 | J104: 14.74737154 | K104: -18.00675948
A106: 주 : 1. 2014년(조사대상년도)부터 토지와 건물을 구분
A107: 2. 2014년(조사대상년도) 전년대비 증가율은 토지와 건물을 합하여 산출
A108: 3. 2017년(조사대상년도) 기타 지식재산물 항목 신설

Sheet 2-5
A1: 2-5) 연구개발단계별 연구개발비
A2: R&D expenditure by type of R&D
K3: (단위 : 백만원 Unit : Won, Millions)
A4: 연도·연구수행주체 Year · Sector of performance | C4: 연구개발수행기관 R&D performing inst. | D4: 총계 Total | F4: 기초연구 Basic research | H4: 응용연구 Applied research | J4: 개발연구 Experimental development
E5: 구성비(%) | G5: 구성비(%) | I5: 구성비(%) | K5: 구성비(%)
A6: 1995 | B6: 계 Total | C6: =SUM(C7:C9) -> 2587 | D6: =SUM(D7:D9) -> 9440606 | E6: =D6/$D6*100 -> 100 | F6: 1176819 | G6: =F6/$D6*100 -> 12.46550274 | H6: 2362110 | I6: =H6/$D6*100 -> 25.02074549 | J6: 5901677 | K6: =J6/$D6*100 -> 62.51375177
B7: 공공연구기관 Public research institutes | C7: 178 | D7: =F7+H7+J7 -> 1766713 | E7: 100 | F7: 249948 | G7: 14.14762896 | H7: 587561 | I7: 33.25729759 | J7: 929204 | K7: 52.59507345
B8: 대학 Higher educations | C8: 257 | D8: =F8+H8+J8 -> 770912 | E8: 100 | F8: 372851 | G8: 48.36492362 | H8: 205618 | I8: 26.67204558 | J8: 192443 | K8: 24.9630308
B9: 기업체 Business enterprises | C9: 2152 | D9: =F9+H9+J9 -> 6902981 | E9: 100 | F9: 554020 | G9: 8.025807981 | H9: 1568931 | I9: 22.72831115 | J9: 4780030 | K9: 69.24588087
A10: 1996 | B10: 계 Total | C10: =SUM(C11:C13) -> 2856 | D10: =SUM(D11:D13) -> 10878051 | E10: 100 | F10: 1439020 | G10: 13.22865649 | H10: 2927270 | I10: 26.90987568 | J10: 6511761 | K10: 59.86146783
B11: 공공연구기관 Public research institutes | C11: 163 | D11: =F11+H11+J11 -> 1895618 | E11: 100 | F11: 340156 | G11: 17.94433267 | H11: 561389 | I11: 29.61509123 | J11: 994073 | K11: 52.44057611
B12: 대학 Higher educations | C12: 258 | D12: =F12+H12+J12 -> 1018822 | E12: 100 | F12: 452063 | G12: 44.37114628 | H12: 270913 | I12: 26.59080782 | J12: 295846 | K12: 29.0380459
B13: 기업체 Business enterprises | C13: 2435 | D13: =F13+H13+J13 -> 7963611 | E13: 100 | F13: 646801 | G13: 8.121956233 | H13: 2094968 | I13: 26.30675958 | J13: 5221842 | K13: 65.57128418
A14: 1997 | B14: 계 Total | C14: =SUM(C15:C17) -> 2962 | D14: =SUM(D15:D17) -> 12185807 | E14: 100 | F14: 1616490 | G14: =F14/$D14*100 -> 13.26535042 | H14: 3470560 | I14: 28.48034603 | J14: 7098757 | K14: 58.25430355
B15: 공공연구기관 Public research institutes | C15: 184 | D15: =F15+H15+J15 -> 2068900 | E15: 100 | F15: 419311 | G15: 20.26734013 | H15: 716210 | I15: 34.6179129 | J15: 933379 | K15: 45.11474697
B16: 대학 Higher educations | C16: 271 | D16: =F16+H16+J16 -> 1271600 | E16: 100 | F16: 480168 | G16: 37.76093111 | H16: 400962 | I16: 31.53208556 | J16: 390470 | K16: 30.70698333
B17: 기업체 Business enterprises | C17: 2507 | D17: =F17+H17+J17 -> 8845307 | E17: 100 | F17: 717011 | G17: 8.106117741 | H17: 2353388 | I17: 26.60606353 | J17: 5774908 | K17: 65.28781873
A18: 1998 | B18: 계 Total | C18: =SUM(C19:C21) -> 2869 | D18: =SUM(D19:D21) -> 11336617 | E18: 100 | F18: 1585367 | G18: 13.98448056 | H18: 2848458 | I18: 25.126173 | J18: 6902792 | K18: 60.88934644
B19: 공공연구기관 Public research institutes | C19: 183 | D19: =F19+H19+J19 -> 2099470 | E19: =D19/$D19*100 -> 100 | F19: 561521 | G19: 26.74584538 | H19: 741199 | I19: =H19/$D19*100 -> 35.30410056 | J19: 796750 | K19: =J19/$D19*100 -> 37.95005406
B20: 대학 Higher educations | C20: 267 | D20: =F20+H20+J20 -> 1265074 | E20: 100 | F20: 507261 | G20: =F20/$D20*100 -> 40.09733818 | H20: 427539 | I20: 33.79557243 | J20: 330274 | K20: 26.10708939
B21: 기업체 Business enterprises | C21: 2419 | D21: =F21+H21+J21 -> 7972073 | E21: 100 | F21: 516585 | G21: 6.479933137 | H21: 1679720 | I21: 21.07005292 | J21: 5775768 | K21: 72.45001394
A22: 1999 | B22: 계 Total | C22: =SUM(C23:C25) -> 3059 | D22: =SUM(D23:D25) -> 11921752 | E22: 100 | F22: 1625477 | G22: 13.63454801 | H22: 3065197 | I22: 25.71096094 | J22: 7231078 | K22: 60.65449105
B23: 공공연구기관 Public research institutes | C23: 169 | D23: =F23+H23+J23 -> 1979174 | E23: 100 | F23: 494138 | G23: 24.96688012 | H23: 756409 | I23: 38.21841839 | J23: 728627 | K23: 36.81470149
B24: 대학 Higher educations | C24: 285 | D24: =F24+H24+J24 -> 1431421 | E24: 100 | F24: 491402 | G24: 34.32966262 | H24: 479440 | I24: 33.49398954 | J24: 460579 | K24: 32.17634784
B25: 기업체 Business enterprises | C25: 2605 | D25: =F25+H25+J25 -> 8511157 | E25: 100 | F25: 639937 | G25: 7.518801498 | H25: 1829348 | I25: 21.49352902 | J25: 6041872 | K25: 70.98766948
A26: 2000 | B26: 계 Total | C26: =SUM(C27:C29) -> 4635 | D26: =SUM(D27:D29) -> 13848501 | E26: 100 | F26: 1746138 | G26: 12.60885925 | H26: 3370088.5 | I26: 24.3354028 | J26: 8732274.5 | K26: 63.05573795
B27: 공공연구기관 Public research institutes | C27: 173 | D27: =F27+H27+J27 -> 2031981 | E27: 100 | F27: 454443 | G27: 22.36452998 | H27: 672213 | I27: 33.08165775 | J27: 905325 | K27: 44.55381226
B28: 대학 Higher educations | C28: 268 | D28: =F28+H28+J28 -> 1561865 | E28: 100 | F28: 661562 | G28: 42.35718196 | H28: 475685 | I28: 30.45621741 | J28: 424618 | K28: 27.18660063
B29: 기업체 Business enterprises | C29: 4194 | D29: =F29+H29+J29 -> 10254655 | E29: 100 | F29: 630133 | G29: 6.144848364 | H29: 2222190.5 | I29: 21.67006594 | J29: 7402331.5 | K29: 72.1850857
A30: 2001 | B30: 계 Total | C30: =SUM(C31:C33) -> 6801 | D30: =SUM(D31:D33) -> 16110521.98 | E30: 100 | F30: 2025019.904 | G30: 12.56954869 | H30: 4075940.789 | I30: 25.29986796 | J30: 10009561.29 | K30: 62.13058336
B31: 공공연구기관 Public research institutes | C31: 188 | D31: =F31+H31+J31 -> 2160166.079 | E31: 100 | F31: 438260.1848 | G31: 20.28826344 | H31: 894402.6681 | I31: 41.40434742 | J31: 827503.2261 | K31: 38.30738915
B32: 대학 Higher educations | C32: 276 | D32: =F32+H32+J32 -> 1676777.181 | E32: 100 | F32: 679826.0851 | G32: 40.54361503 | H32: 498455.4529 | I32: 29.72699406 | J32: 498495.643 | K32: 29.72939092
B33: 기업체 Business enterprises | C33: 6337 | D33: =F33+H33+J33 -> 12273578.72 | E33: 100 | F33: 906933.6342 | G33: 7.389316961 | H33: 2683082.668 | I33: 21.86063844 | J33: 8683562.42 | K33: 70.7500446
A34: 2002 | B34: 계 Total | C34: =SUM(C35:C37) -> 7210 | D34: =SUM(D35:D37) -> 17325081.78 | E34: 100 | F34: 2373234.759 | G34: 13.69826007 | H34: 3763601.721 | I34: 21.72342832 | J34: 11188245.3 | K34: 64.57831162
B35: 공공연구기관 Public research institutes | C35: 163 | D35: =F35+H35+J35 -> 2552631.59 | E35: 100 | F35: 526181.77 | G35: 20.61330636 | H35: 1015664.28 | I35: 39.78890977 | J35: 1010785.54 | K35: 39.59778387
B36: 대학 Higher educations | C36: 304 | D36: =F36+H36+J36 -> 1797096.31 | E36: 100 | F36: 666130.197 | G36: 37.06702826 | H36: 596213.366 | I36: 33.17648379 | J36: 534752.747 | K36: 29.75648795
B37: 기업체 Business enterprises | C37: 6743 | D37: =F37+H37+J37 -> 12975353.88 | E37: 100 | F37: 1180922.792 | G37: 9.101276181 | H37: 2151724.075 | I37: 16.58316293 | J37: 9642707.012 | K37: 74.31556089
A38: 2003 | B38: 계 Total | C38: =SUM(C39:C41) -> 7127 | D38: =SUM(D39:D41) -> 19068681.99 | E38: 100 | F38: 2758620.607 | G38: 14.46676078 | H38: 3973994.147 | I38: 20.84042383 | J38: 12336067.24 | K38: 64.69281539
B39: 공공연구기관 Public research institutes | C39: 169 | D39: =F39+H39+J39 -> 2626355.83 | E39: 100 | F39: 525515.4 | G39: 20.00929935 | H39: 972984.43 | I39: 37.04693853 | J39: 1127856 | K39: 42.94376212
B40: 대학 Higher educations | C40: 310 | D40: =F40+H40+J40 -> 1932662.944 | E40: 100 | F40: 695637.7575 | G40: 35.99374426 | H40: 634121.9068 | I40: 32.81078621 | J40: 602903.2797 | K40: 31.19546952
B41: 기업체 Business enterprises | C41: 6648 | D41: =F41+H41+J41 -> 14509663.22 | E41: 100 | F41: 1537467.45 | G41: 10.5961622 | H41: 2366887.81 | I41: 16.31249309 | J41: 10605307.96 | K41: 73.09134471
A42: 2004 | B42: 계 Total | C42: =SUM(C43:C45) -> 7254 | D42: =SUM(D43:D45) -> 22185343 | E42: 100 | F42: 3399400 | G42: 15.32272906 | H42: 4712161 | I42: 21.23997362 | J42: 14073782 | K42: 63.43729732
B43: 공공연구기관 Public research institutes | C43: 159 | D43: =F43+H43+J43 -> 2964646 | E43: 100 | F43: 616140 | G43: 20.78291978 | H43: 1151992 | I43: 38.85765788 | J43: 1196514 | K43: 40.35942234
B44: 대학 Higher educations | C44: 293 | D44: =F44+H44+J44 -> 2200886 | E44: 100 | F44: 736761 | G44: 33.4756548 | H44: 760983 | I44: 34.57621158 | J44: 703142 | K44: 31.94813362
B45: 기업체 Business enterprises | C45: 6802 | D45: =F45+H45+J45 -> 17019811 | E45: 100 | F45: 2046499 | G45: 12.02421696 | H45: 2799186 | I45: 16.44663387 | J45: 12174126 | K45: 71.52914918
A46: 2005 | B46: 계 Total | C46: =SUM(C47:C49) -> 7761 | D46: =SUM(D47:D49) -> 24155414 | E46: 100 | F46: 3706840 | G46: 15.3457937 | H46: 5034149 | I46: 20.84066537 | J46: 15414425 | K46: 63.81354093
B47: 공공연구기관 Public research institutes | C47: 137 | D47: =F47+H47+J47 -> 3192887 | E47: 100 | F47: 684540 | G47: 21.43953106 | H47: 1158356 | I47: 36.27926701 | J47: 1349991 | K47: 42.28120193
B48: 대학 Higher educations | C48: 256 | D48: =F48+H48+J48 -> 2398284 | E48: 100 | F48: 833799 | G48: 34.76648304 | H48: 825172 | I48: 34.40676751 | J48: 739313 | K48: 30.82674946
B49: 기업체 Business enterprises | C49: 7368 | D49: =F49+H49+J49 -> 18564243 | E49: 100 | F49: 2188501 | G49: 11.78879742 | H49: 3050621 | I49: 16.43277886 | J49: 13325121 | K49: 71.77842371
A50: 2006 | B50: 계 Total | C50: =SUM(C51:C53) -> 9443 | D50: =SUM(D51:D53) -> 27345704.1 | E50: 100 | F50: 4143273.139 | G50: 15.15145898 | H50: 5430098.263 | I50: 19.85722599 | J50: 17772332.7 | K50: 64.99131503
B51: 공공연구기관 Public research institutes | C51: 139 | D51: =F51+H51+J51 -> 3497050.1 | E51: 100 | F51: 716725 | G51: 20.49513102 | H51: 1252429.6 | I51: 35.81388783 | J51: 1527895.5 | K51: 43.69098115
B52: 대학 Higher educations | C52: 268 | D52: =F52+H52+J52 -> 2721874 | E52: 100 | F52: 909221.0082 | G52: 33.40422842 | H52: 876798.079 | I52: 32.21302966 | J52: 935854.9128 | K52: 34.38274192
B53: 기업체 Business enterprises | C53: 9036 | D53: =F53+H53+J53 -> 21126780 | E53: 100 | F53: 2517327.131 | G53: 11.91533746 | H53: 3300870.584 | I53: 15.62410639 | J53: 15308582.29 | K53: 72.46055615
A54: 2007 | B54: 계 Total | C54: =SUM(C55:C57) -> 11200 | D54: =SUM(D55:D57) -> 31301377.26 | E54: 100 | F54: 4918688.629 | G54: 15.71396871 | H54: 6210834.345 | I54: 19.84204814 | J54: 20171854.29 | K54: 64.44398315
B55: 공공연구기관 Public research institutes | C55: 188 | D55: =F55+H55+J55 -> 4102365.7 | E55: 100 | F55: 995180.1 | G55: 24.2586881 | H55: 1503405.9 | I55: 36.6472911 | J55: 1603779.7 | K55: 39.0940208
B56: 대학 Higher educations | C56: 322 | D56: =F56+H56+J56 -> 3334118.57 | E56: 100 | F56: 1369545.13 | G56: 41.07667743 | H56: 873851.5 | I56: 26.20937083 | J56: 1090721.94 | K56: 32.71395174
B57: 기업체 Business enterprises | C57: 10690 | D57: =F57+H57+J57 -> 23864892.99 | E57: 100 | F57: 2553963.399 | G57: 10.70175927 | H57: 3833576.945 | I57: 16.06366702 | J57: 17477352.65 | K57: 73.2345737
A58: 2008 | B58: 계 Total | C58: =SUM(C59:C61) -> 12822 | D58: =SUM(D59:D61) -> 34498053.84 | E58: 100 | F58: 5537090.578 | G58: 16.05044332 | H58: 6773869.412 | I58: 19.63551174 | J58: 22187093.85 | K58: 64.31404494
B59: 공공연구기관 Public research institutes | C59: 228 | D59: =F59+H59+J59 -> 4653235.6 | E59: 100 | F59: 1053146.194 | G59: 22.63255688 | H59: 1510661.241 | I59: 32.46474864 | J59: 2089428.165 | K59: 44.90269448
B60: 대학 Higher educations | C60: 338 | D60: =F60+H60+J60 -> 3844749.4 | E60: 100 | F60: 1419209.395 | G60: 36.91292325 | H60: 1201965.411 | I60: 31.26251639 | J60: 1223574.593 | K60: 31.82456036
B61: 기업체 Business enterprises | C61: 12256 | D61: =F61+H61+J61 -> 26000068.84 | E61: 100 | F61: 3064734.989 | G61: 11.78741105 | H61: 4061242.76 | I61: 15.6201231 | J61: 18874091.09 | K61: 72.59246584
A62: 2009 | B62: 계 Total | C62: =SUM(C63:C65) -> 15237 | D62: =SUM(D63:D65) -> 37928502.24 | E62: 100 | F62: 6849096.196 | G62: 18.05791368 | H62: 7574286.807 | I62: 19.96990748 | J62: 23505119.24 | K62: 61.97217883
B63: 공공연구기관 Public research institutes | C63: 252 | D63: =F63+H63+J63 -> 5558383.7 | E63: 100 | F63: 1446414.5 | G63: 26.02221398 | H63: 1602959.7 | I63: 28.83859385 | J63: 2509009.5 | K63: 45.13919217
B64: 대학 Higher educations | C64: 359 | D64: =F64+H64+J64 -> 4204259.4 | E64: 100 | F64: 1523234.6 | G64: 36.23074732 | H64: 1245293.1 | I64: 29.61979701 | J64: 1435731.7 | K64: 34.14945567
B65: 기업체 Business enterprises | C65: 14626 | D65: =F65+H65+J65 -> 28165859.14 | E65: 100 | F65: 3879447.096 | G65: 13.77357984 | H65: 4726034.007 | I65: 16.77930001 | J65: 19560378.04 | K65: 69.44712015
A66: 2010 | B66: 계 Total | C66: =SUM(C67:C69) -> 16550 | D66: =SUM(D67:D69) -> 43854834.28 | E66: 100 | F66: 7991019.6 | G66: 18.22152502 | H66: 8742664.421 | I66: 19.93546336 | J66: 27121150.26 | K66: 61.84301162
B67: 공공연구기관 Public research institutes | C67: 261 | D67: =F67+H67+J67 -> 6306136.03 | E67: 100 | F67: 1763069.36 | G67: 27.9579976 | H67: 1794518.37 | I67: 28.45670251 | J67: 2748548.3 | K67: 43.58529989
B68: 대학 Higher educations | C68: 352 | D68: =F68+H68+J68 -> 4745458.693 | E68: 100 | F68: 1677091.85 | G68: 35.34098511 | H68: 1498120.1 | I68: 31.56955306 | J68: 1570246.743 | K68: 33.08946183
B69: 기업체 Business enterprises | C69: 15937 | D69: =F69+H69+J69 -> 32803239.56 | E69: 100 | F69: 4550858.39 | G69: 13.87319805 | H69: 5450025.951 | I69: 16.61429183 | J69: 22802355.22 | K69: 69.51251012
A70: 2011 | B70: 계 Total | C70: =SUM(C71:C73) -> 20372 | D70: =SUM(D71:D73) -> 49890418.95 | E70: =D70/$D70*100 -> 100 | F70: 9013211.34 | G70: =F70/$D70*100 -> 18.06601654 | H70: 10116538.75 | I70: =H70/$D70*100 -> 20.27751813 | J70: 30760668.86 | K70: =J70/$D70*100 -> 61.65646533
B71: 공공연구기관 Public research institutes | C71: 268 | D71: =F71+H71+J71 -> 6673311.11 | E71: 100 | F71: 2072824.81 | G71: 31.06141428 | H71: 1856153.05 | I71: 27.8145739 | J71: 2744333.25 | K71: 41.12401183
B72: 대학 Higher educations | C72: 350 | D72: =F72+H72+J72 -> 5033816.5 | E72: 100 | F72: 1860682.2 | G72: 36.96364776 | H72: 1662220.3 | I72: 33.02107457 | J72: 1510914 | K72: 30.01527767
B73: 기업체 Business enterprises | C73: 19754 | D73: =F73+H73+J73 -> 38183291.34 | E73: 100 | F73: 5079704.33 | G73: 13.30347425 | H73: 6598165.396 | I73: 17.28024265 | J73: 26505421.61 | K73: 69.4162831
A74: 2012 | B74: 계 Total | C74: =SUM(C75:C77) -> 23533 | D74: =SUM(D75:D77) -> 55450115.65 | E74: 100 | F74: 10153311.53 | G74: 18.31071298 | H74: 10572652.52 | I74: 19.06696207 | J74: 34724151.6 | K74: 62.62232494
B75: 공공연구기관 Public research institutes | C75: 272 | D75: =F75+H75+J75 -> 6950261.67 | E75: 100 | F75: 2372764.13 | G75: 34.13920573 | H75: 1690754.94 | I75: 24.32649331 | J75: 2886742.6 | K75: 41.53430097
B76: 대학 Higher educations | C76: 344 | D76: =F76+H76+J76 -> 5276928.439 | E76: 100 | F76: 2112598.468 | G76: 40.03462417 | H76: 1545750.967 | I76: 29.29262704 | J76: 1618579.004 | K76: 30.67274879
B77: 기업체 Business enterprises | C77: 22917 | D77: =F77+H77+J77 -> 43222925.54 | E77: 100 | F77: 5667948.928 | G77: 13.11329313 | H77: 7336146.614 | I77: 16.97281367 | J77: 30218830 | K77: 69.9138932
A78: 2013 | B78: 계 Total | C78: =SUM(C79:C81) -> 25882 | D78: =SUM(D79:D81) -> 59300949.33 | E78: =D78/$D78*100 -> 100 | F78: 10665765.32 | G78: =F78/$D78*100 -> 17.98582559 | H78: 11315883.15 | I78: =H78/$D78*100 -> 19.08212816 | J78: 37319300.86 | K78: =J78/$D78*100 -> 62.93204625
B79: 공공연구기관 Public research institutes | C79: 326 | D79: =F79+H79+J79 -> 7260710.547 | E79: 100 | F79: 2393866.71 | G79: 32.97014382 | H79: 1674619.287 | I79: 23.06412404 | J79: 3192224.55 | K79: 43.96573213
B80: 대학 Higher educations | C80: 371 | D80: =F80+H80+J80 -> 5480322.53 | E80: 100 | F80: 2187559.25 | G80: 39.91661509 | H80: 1689983.49 | I80: 30.83729983 | J80: 1602779.79 | K80: 29.24608508
B81: 기업체 Business enterprises | C81: 25185 | D81: =F81+H81+J81 -> 46559916.25 | E81: 100 | F81: 6084339.361 | G81: 13.06776268 | H81: 7951280.376 | I81: 17.07752293 | J81: 32524296.52 | K81: 69.85471439
A82: 2014 | B82: 계 Total | C82: =SUM(C83:C85) -> 30111 | D82: =SUM(D83:D85) -> 63734126.79 | E82: 100 | F82: 11242600.29 | G82: 17.63984361 | H82: 12058498.37 | I82: 18.92000248 | J82: 40433028.13 | K82: 63.44015391
B83: 공공연구기관 Public research institutes | C83: 348 | D83: =F83+H83+J83 -> 8112700.933 | E83: 100 | F83: 2530137.297 | G83: 31.18736063 | H83: 1732691.855 | I83: 21.35776814 | J83: 3849871.781 | K83: 47.45487123
B84: 대학 Higher educations | C84: 371 | D84: =F84+H84+J84 -> 5766960.87 | E84: 100 | F84: 2171150.589 | G84: 37.64808949 | H84: 1846515.494 | I84: 32.01886637 | J84: 1749294.786 | K84: 30.33304414
B85: 기업체 Business enterprises | C85: 29392 | D85: =F85+H85+J85 -> 49854464.99 | E85: 100 | F85: 6541312.408 | G85: 13.12081558 | H85: 8479291.02 | I85: 17.00808748 | J85: 34833861.56 | K85: 69.87109694
A86: 2015 | B86: 계 Total | C86: =SUM(C87:C89) -> 35379 | D86: =SUM(D87:D89) -> 65959371.73 | E86: =D86/$D86*100 -> 100 | F86: 11361657.87 | G86: =F86/$D86*100 -> 17.22523665 | H86: 13744954.17 | I86: =H86/$D86*100 -> 20.83851591 | J86: 40852759.68 | K86: =J86/$D86*100 -> 61.93624744
B87: 공공연구기관 Public research institutes | C87: 372 | D87: =F87+H87+J87 -> 8824078.748 | E87: 100 | F87: 2879746.604 | G87: 32.63509638 | H87: 1872355.147 | I87: 21.21870396 | J87: 4071976.998 | K87: 46.14619967
B88: 대학 Higher educations | C88: 365 | D88: =F88+H88+J88 -> 5998872.479 | E88: 100 | F88: 2119484.663 | G88: 35.33138386 | H88: 1983975.404 | I88: 33.07247172 | J88: 1895412.412 | K88: 31.59614442
B89: 기업체 Business enterprises | C89: 34642 | D89: =F89+H89+J89 -> 51136420.5 | E89: 100 | F89: 6362426.604 | G89: 12.44206486 | H89: 9888623.621 | I89: 19.33773136 | J89: 34885370.27 | K89: 68.22020379
A90: 2016 | B90: 계 Total | C90: =SUM(C91:C93) -> 37218 | D90: =SUM(D91:D93) -> 69405529.89 | E90: 100 | F90: 11086652.8 | G90: 15.97373122 | H90: 15621429.66 | I90: 22.50747121 | J90: 42697447.43 | K90: 61.51879757
B91: 공공연구기관 Public research institutes | C91: 372 | D91: =F91+H91+J91 -> 9113170.697 | E91: 100 | F91: 2478945.597 | G91: 27.20179046 | H91: 2323017 | I91: 25.49076581 | J91: 4311208.1 | K91: 47.30744374
B92: 대학 Higher educations | C92: 368 | D92: =F92+H92+J92 -> 6339887.929 | E92: 100 | F92: 2209088.156 | G92: 34.8442777 | H92: 2116431.534 | I92: 33.38279095 | J92: 2014368.239 | K92: 31.77293135
B93: 기업체 Business enterprises | C93: 36478 | D93: =F93+H93+J93 -> 53952471.26 | E93: 100 | F93: 6398619.043 | G93: =F93/$D93*100 -> 11.85973301 | H93: 11181981.12 | I93: =H93/$D93*100 -> 20.72561435 | J93: 36371871.09 | K93: =J93/$D93*100 -> 67.41465265
A94: 2017 | B94: 계 Total | C94: =SUM(C95:C97) -> 42368 | D94: =SUM(D95:D97) -> 78789187.37 | E94: =D94/$D94*100 -> 100 | F94: 11391103.29 | G94: 14.45769866 | H94: 17315901.47 | I94: 21.97750992 | J94: 50082182.61 | K94: 63.56479142
B95: 공공연구기관 Public research institutes | C95: 375 | D95: =F95+H95+J95 -> 9543217.4 | E95: 100 | F95: 2322231.4 | G95: 24.33384154 | H95: 2571596.6 | I95: 26.94685128 | J95: 4649389.4 | K95: 48.71930718
B96: 대학 Higher educations | C96: 364 | D96: =F96+H96+J96 -> 6682523.015 | E96: 100 | F96: 2464891.226 | G96: 36.88563767 | H96: 2060511.228 | I96: 30.83433044 | J96: 2157120.561 | K96: 32.2800319
B97: 기업체 Business enterprises | C97: 41629 | D97: =F97+H97+J97 -> 62563446.96 | E97: 100 | F97: 6603980.664 | G97: 10.55565348 | H97: 12683793.64 | I97: 20.27348917 | J97: 43275672.65 | K97: 69.17085735
A98: 2018 | B98: 계 Total | C98: 49302 | D98: 85728714.74 | E98: 100 | F98: 12180466.84 | G98: 14.20815287 | H98: 18824713.4 | I98: 21.95846917 | J98: 54723534.5 | K98: 63.83337796
B99: 공공연구기관 Public research institutes | C99: 401 | D99: 9843867.4 | E99: 100 | F99: 2353558 | G99: 23.90887549 | H99: 2568973 | I99: 26.09719225 | J99: 4921336.4 | K99: 49.99393226
B100: 대학 Higher educations | C100: 365 | D100: 7050415.008 | E100: 100 | F100: 2533533.651 | G100: 35.9345322 | H100: 2302551.572 | I100: 32.6583835 | J100: 2214329.785 | K100: 31.4070843
B101: 기업체 Business enterprises | C101: 48536 | D101: 68834432.33 | E101: 100 | F101: 7293375.19 | G101: 10.59553329 | H101: 13953188.83 | I101: 20.27065286 | J101: 47587868.31 | K101: 69.13381385
A102: 2019 | B102: 계 Total | C102: 53005 | D102: 89047077.12 | E102: 100 | F102: 13062301.51 | G102: 14.66898402 | H102: 20040143.19 | I102: 22.5051106 | J102: 55944632.42 | K102: 62.82590538
B103: 공공연구기관 Public research institutes | C103: 419 | D103: 10168766 | E103: 100 | F103: 2516381.5 | G103: 24.74618356 | H103: 2733997.5 | I103: 26.8862269 | J103: 4918387 | K103: 48.36758954
B104: 대학 Higher educations | C104: 368 | D104: 7371649 | E104: 100 | F104: 2937469.2 | G104: 39.84819679 | H104: 2166220.4 | I104: 29.38583213 | J104: 2267959.4 | K104: 30.76597109
B105: 기업체 Business enterprises | C105: 52218 | D105: 71506662.12 | E105: 100 | F105: 7608450.814 | G105: 10.64019853 | H105: 15139925.29 | I105: 21.17274788 | J105: 48758286.02 | K105: 68.18705359
A106: 2020 | B106: 계 Total | C106: 56223 | D106: 93071686.49 | E106: 100 | F106: 13448098.63 | G106: 14.44918335 | H106: 20078628.7 | I106: 21.57329415 | J106: 59544959.16 | K106: 63.9775225
B107: 공공연구기관 Public research institutes | C107: 415 | D107: 11118558 | E107: 100 | F107: 2577697 | G107: 23.1837348 | H107: 2780583 | I107: 25.00848581 | J107: 5760278 | K107: 51.80777939
B108: 대학 Higher educations | C108: 363 | D108: 8353350.45 | E108: 100 | F108: 3132144.798 | G108: 37.49567095 | H108: 2568755.766 | I108: 30.75120315 | J108: 2652449.886 | K108: 31.75312591
B109: 기업체 Business enterprises | C109: 55445 | D109: 73599778.04 | E109: 100 | F109: 7738256.831 | G109: 10.51396762 | H109: 14729289.93 | I109: 20.01268254 | J109: 51132231.28 | K109: 69.47334984
A110: 2021 | B110: 계 Total | C110: 59576 | D110: 102135243.5 | E110: 100 | F110: 15100171.23 | G110: 14.78448644 | H110: 21470363.2 | I110: 21.02150292 | J110: 65564709.11 | K110: 64.19401064
B111: 공공연구기관 Public research institutes | C111: 433 | D111: 11997001 | E111: 100 | F111: 2683404.4 | G111: 22.36729329 | H111: 2988450.9 | I111: 24.90998292 | J111: 6325145.7 | K111: 52.72272379
B112: 대학 Higher educations | C112: 366 | D112: 9330614.888 | E112: 100 | F112: 3639259.495 | G112: 39.00342623 | H112: 2906056.977 | I112: 31.14539622 | J112: 2785298.416 | K112: 29.85117755
B113: 기업체 Business enterprises | C113: 58777 | D113: 80807627.66 | E113: 100 | F113: 8777507.337 | G113: 10.86222624 | H113: 15575855.32 | I113: 19.27522905 | J113: 56454264.99 | K113: 69.8625447
A114: 2022 | B114: 계 Total | C114: 61646 | D114: 112646008.3 | E114: 100 | F114: 16918375.3 | G114: 15.01906331 | H114: 22455973.76 | I114: 19.93499291 | J114: 73271659.22 | K114: 65.04594379
B115: 공공연구기관 Public research institutes | C115: 458 | D115: 12918586.1 | E115: 100 | F115: 3051047.24 | G115: 23.6175013 | H115: 3047183.88 | I115: 23.58759586 | J115: 6820354.98 | K115: 52.79490284
B116: 대학 Higher educations | C116: 361 | D116: 10306122 | E116: 100 | F116: 4068689.025 | G116: 39.47837048 | H116: 3100503.85 | I116: 30.08409807 | J116: 3136929.125 | K116: 30.43753145
B117: 기업체 Business enterprises | C117: 60827 | D117: 89421300.18 | E117: 100 | F117: 9798639.031 | G117: 10.95783556 | H117: 16308286.03 | I117: 18.23758545 | J117: 63314375.12 | K117: 70.80457899

Sheet 2-6
A1: 2-6) 연구원 1인당 연구개발비
A2: R&D expenditure per researcher
G3: (단위 : 백만원, 명 Unit : Won, Millions, person)
A4: 연도·연구수행주체 Year · Sector of performance | C4: 연구개발비(A) R&D expenditure | D4: 연구원(B) Researchers | F4: 연구원 1인당 연구개발비(A/B) R&D expenditure per researcher
D5: FTE | E5: HC | F5: FTE | G5: HC
A6: 1995 | B6: 계 Total | C6: =SUM(C7:C9) -> 9440606 | D6: =SUM(D7:D9) -> 100456 | E6: =SUM(E7:E9) -> 128315 | F6: =C6/D6 -> 93.9775225 | G6: =C6/E6 -> 73.57367416
B7: 공공연구기관 Public research institutes | C7: 1766713 | D7: 14363 | E7: 15007 | F7: 123.0044559 | G7: 117.7259279
B8: 대학 Higher educations | C8: 770912 | D8: 19406 | E8: 44683 | F8: 39.72544574 | G8: 17.25291498
B9: 기업체 Business enterprises | C9: 6902981 | D9: 66687 | E9: 68625 | F9: 103.5131435 | G9: 100.5898871
A10: 1996 | B10: 계 Total | C10: =SUM(C11:C13) -> 10878051 | D10: =SUM(D11:D13) -> 99433 | E10: =SUM(E11:E13) -> 132023 | F10: 109.4008126 | G10: 82.39512055
B11: 공공연구기관 Public research institutes | C11: 1895618 | D11: 13732 | E11: 15503 | F11: 138.0438392 | G11: 122.2742695
B12: 대학 Higher educations | C12: 1018822 | D12: 19483 | E12: 45327 | F12: 52.29287071 | G12: 22.4771549
B13: 기업체 Business enterprises | C13: 7963611 | D13: 66218 | E13: 71193 | F13: 120.2635386 | G13: 111.8594665
A14: 1997 | B14: 계 Total | C14: =SUM(C15:C17) -> 12185806 | D14: =SUM(D15:D17) -> 102660 | E14: =SUM(E15:E17) -> 138438 | F14: =C14/D14 -> 118.7006234 | G14: =C14/E14 -> 88.02356289
B15: 공공연구기관 Public research institutes | C15: 2068899 | D15: 13216 | E15: 15185 | F15: 156.5450212 | G15: 136.2462298
B16: 대학 Higher educations | C16: 1271600 | D16: 19573 | E16: 48588 | F16: 64.96704644 | G16: 26.17107105
B17: 기업체 Business enterprises | C17: 8845307 | D17: 69871 | E17: 74665 | F17: 126.5948247 | G17: 118.4665774
A18: 1998 | B18: 계 Total | C18: =SUM(C19:C21) -> 11336617 | D18: =SUM(D19:D21) -> 92541 | E18: =SUM(E19:E21) -> 129767 | F18: 122.5037227 | G18: 87.36132453
B19: 공공연구기관 Public research institutes | C19: 2099470 | D19: 10952 | E19: 12587 | F19: 191.6974069 | G19: 166.796695
B20: 대학 Higher educations | C20: 1265074 | D20: 21525 | E20: 51162 | F20: 58.77231127 | G20: 24.72682851
B21: 기업체 Business enterprises | C21: 7972073 | D21: 60064 | E21: 66018 | F21: 132.7263086 | G21: 120.7560514
A22: 1999 | B22: 계 Total | C22: =SUM(C23:C25) -> 11921752 | D22: =SUM(D23:D25) -> 100210 | E22: =SUM(E23:E25) -> 134568 | F22: 118.9676879 | G22: 88.59277094
B23: 공공연구기관 Public research institutes | C23: 1979174 | D23: 13013 | E23: 13986 | F23: 152.0920618 | G23: 141.5110825
B24: 대학 Higher educations | C24: 1431421 | D24: 21723 | E24: 50151 | F24: 65.89425954 | G24: 28.54222249
B25: 기업체 Business enterprises | C25: 8511157 | D25: 65474 | E25: 70431 | F25: 129.9929285 | G25: 120.843904
A26: 2000 | B26: 계 Total | C26: =SUM(C27:C29) -> 13848501 | D26: =SUM(D27:D29) -> 108370 | E26: =SUM(E27:E29) -> 159973 | F26: 127.7890652 | G26: 86.56773956
B27: 공공연구기관 Public research institutes | C27: 2031981 | D27: 12801.7 | E27: 13913 | F27: 158.7274346 | G27: 146.0490908
B28: 대학 Higher educations | C28: 1561865 | D28: 23674 | E28: 51727 | F28: 65.97385317 | G28: 30.19438591
B29: 기업체 Business enterprises | C29: 10254655 | D29: 71894.3 | E29: 94333 | F29: 142.6351602 | G29: 108.7069742
A30: 2001 | B30: 계 Total | C30: =SUM(C31:C33) -> 16110521.98 | D30: =SUM(D31:D33) -> 136337.393 | E30: =SUM(E31:E33) -> 178937 | F30: 118.1665692 | G30: 90.03460425
B31: 공공연구기관 Public research institutes | C31: 2160166.079 | D31: 13085.61 | E31: 13921 | F31: 165.0795094 | G31: 155.1731973
B32: 대학 Higher educations | C32: 1676777.181 | D32: 23082.683 | E32: 53717 | F32: 72.64221326 | G32: 31.2150191
B33: 기업체 Business enterprises | C33: 12273578.72 | D33: 100169.1 | E33: 111299 | F33: 122.5285914 | G33: 110.2757322
A34: 2002 | B34: 계 Total | C34: =SUM(C35:C37) -> 17325081.78 | D34: =SUM(D35:D37) -> 141917.23 | E34: =SUM(E35:E37) -> 189888 | F34: 122.0787763 | G34: 91.23842359
B35: 공공연구기관 Public research institutes | C35: 2552631.59 | D35: 12773.97 | E35: 14094 | F35: 199.8307175 | G35: 181.1147715
B36: 대학 Higher educations | C36: 1797096.31 | D36: 24952.59 | E36: 57634 | F36: 72.02043195 | G36: 31.18118316
B37: 기업체 Business enterprises | C37: 12975353.88 | D37: 104190.67 | E37: 118160 | F37: 124.5347005 | G37: 109.8117288
A38: 2003 | B38: 계 Total | C38: =SUM(C39:C41) -> 19068681.99 | D38: =SUM(D39:D41) -> 151254.2614 | E38: =SUM(E39:E41) -> 198171 | F38: 126.0703786 | G38: 96.22337271
B39: 공공연구기관 Public research institutes | C39: 2626355.83 | D39: 13447.225 | E39: 14395 | F39: 195.3083874 | G39: 182.4491719
B40: 대학 Higher educations | C40: 1932662.944 | D40: 26419.2164 | E40: 59746 | F40: 73.15368158 | G40: 32.34798889
B41: 기업체 Business enterprises | C41: 14509663.22 | D41: 111387.82 | E41: 124030 | F41: 130.2625657 | G41: 116.9851102
A42: 2004 | B42: 계 Total | C42: =SUM(C43:C45) -> 22185343 | D42: =SUM(D43:D45) -> 156220 | E42: =SUM(E43:E45) -> 209979 | F42: 142.0134618 | G42: 105.655056
B43: 공공연구기관 Public research institutes | C43: 2964646 | D43: 14848 | E43: 15722 | F43: 199.6663524 | G43: 188.5667218
B44: 대학 Higher educations | C44: 2200886 | D44: 25522 | E44: 59957 | F44: 86.2348562 | G44: 36.70774055
B45: 기업체 Business enterprises | C45: 17019811 | D45: 115850 | E45: 134300 | F45: 146.9124817 | G45: 126.7297915
A46: 2005 | B46: 계 Total | C46: =SUM(C47:C49) -> 24155414 | D46: =SUM(D47:D49) -> 179812.4276 | E46: =SUM(E47:E49) -> 234702 | F46: 134.3367326 | G46: 102.9195064
B47: 공공연구기관 Public research institutes | C47: 3192887 | D47: 14690.31 | E47: 15501 | F47: 217.3464685 | G47: 205.9794207
B48: 대학 Higher educations | C48: 2398284 | D48: 27415.6776 | E48: 64895 | F48: 87.47856008 | G48: 36.95637568
B49: 기업체 Business enterprises | C49: 18564243 | D49: 137706.44 | E49: 154306 | F49: 134.8102747 | G49: 120.307979
A50: 2006 | B50: 계 Total | C50: =SUM(C51:C53) -> 27345704.1 | D50: =SUM(D51:D53) -> 199990.0211 | E50: =SUM(E51:E53) -> 256598 | F50: 136.7353429 | G50: 106.5702153
B51: 공공연구기관 Public research institutes | C51: 3497050.1 | D51: 16097.8 | E51: 16771 | F51: 217.2377654 | G51: 208.5176853
B52: 대학 Higher educations | C52: 2721874 | D52: 28385.9788 | E52: 65923 | F52: 95.8879741 | G52: 41.28868528
B53: 기업체 Business enterprises | C53: 21126780 | D53: 155506.2423 | E53: 173904 | F53: 135.8580832 | G53: 121.4853022
A54: 2007 | B54: 계 Total | C54: =SUM(C55:C57) -> 31301377.26 | D54: =SUM(D55:D57) -> 221928.2309 | E54: =SUM(E55:E57) -> 289098 | F54: 141.0427918 | G54: 108.2725486
B55: 공공연구기관 Public research institutes | C55: 4102365.7 | D55: 18224.41 | E55: 20342 | F55: 225.1027989 | G55: 201.6697326
B56: 대학 Higher educations | C56: 3334118.57 | D56: 37414.7009 | E56: 83123 | F56: 89.11252769 | G56: 40.11066215
B57: 기업체 Business enterprises | C57: 23864892.99 | D57: 166289.12 | E57: 185633 | F57: 143.5144584 | G57: 128.5595395
A58: 2008 | B58: 계 Total | C58: =SUM(C59:C61) -> 34498053.84 | D58: =SUM(D59:D61) -> 236136.871 | E58: =SUM(E59:E61) -> 300050 | F58: 146.0934656 | G58: 114.9743504
B59: 공공연구기관 Public research institutes | C59: 4653235.6 | D59: 18462.22299 | E59: 20950 | F59: 252.0409163 | G59: 222.1114845
B60: 대학 Higher educations | C60: 3844749.4 | D60: 34773.32797 | E60: 82077 | F60: 110.5660466 | G60: 46.8432009
B61: 기업체 Business enterprises | C61: 26000068.84 | D61: 182901.32 | E61: 197023 | F61: 142.1535331 | G61: 131.9646378
A62: 2009 | B62: 계 Total | C62: =SUM(C63:C65) -> 37928502.24 | D62: =SUM(D63:D65) -> 244076.773 | E62: =SUM(E63:E65) -> 323175 | F62: 155.395787 | G62: 117.3621172
B63: 공공연구기관 Public research institutes | C63: 5558383.7 | D63: 21084.236 | E63: 24318 | F63: 263.6274656 | G63: 228.5707583
B64: 대학 Higher educations | C64: 4204259.4 | D64: 38163.0226 | E64: 88554 | F64: 110.1657865 | G64: 47.47678705
B65: 기업체 Business enterprises | C65: 28165859.14 | D65: 184829.5144 | E65: 210303 | F65: 152.3883198 | G65: 133.9298971
A66: 2010 | B66: 계 Total | C66: =SUM(C67:C69) -> 43854834.28 | D66: =SUM(D67:D69) -> 264117.936 | E66: =SUM(E67:E69) -> 345912 | F66: 166.0426208 | G66: 126.7803207
B67: 공공연구기관 Public research institutes | C67: 6306136.03 | D67: 22774.5826 | E67: 26235 | F67: 276.8935941 | G67: 240.3711084
B68: 대학 Higher educations | C68: 4745458.693 | D68: 39264.7499 | E68: 93509 | F68: 120.8579885 | G68: 50.74868401
B69: 기업체 Business enterprises | C69: 32803239.56 | D69: 202078.6035 | E69: 226168 | F69: 162.3291085 | G69: 145.0392609
A70: 2011 | B70: 계 Total | C70: =SUM(C71:C73) -> 49890418.95 | D70: =SUM(D71:D73) -> 288900.9624 | E70: =SUM(E71:E73) -> 375176 | F70: 172.6903868 | G70: 132.9787059
B71: 공공연구기관 Public research institutes | C71: 6673311.11 | D71: 24543.8346 | E71: 28800 | F71: 271.8935822 | G71: 231.7121913
B72: 대학 Higher educations | C72: 5033816.5 | D72: 40843.7979 | E72: 95750 | F72: 123.245554 | G72: 52.57249608
B73: 기업체 Business enterprises | C73: 38183291.34 | D73: 223513.3299 | E73: 250626 | F73: 170.8322781 | G73: 152.3516768
A74: 2012 | B74: 계 Total | C74: =SUM(C75:C77) -> 55450115.65 | D74: =SUM(D75:D77) -> 315589.1929 | E74: =SUM(E75:E77) -> 401724 | F74: 175.703468 | G74: 138.0303782
B75: 공공연구기관 Public research institutes | C75: 6950261.67 | D75: 24722.5896 | E75: 28822 | F75: 281.1300023 | G75: 241.1443227
B76: 대학 Higher educations | C76: 5276928.439 | D76: 43825.7833 | E76: 96916 | F76: 120.4069395 | G76: 54.44847537
B77: 기업체 Business enterprises | C77: 43222925.54 | D77: 247040.82 | E77: 275986 | F77: 174.9626865 | G77: 156.6127468
A78: 2013 | B78: 계 Total | C78: =SUM(C79:C81) -> 59300949.33 | D78: =SUM(D79:D81) -> 321841.8477 | E78: =SUM(E79:E81) -> 410333 | F78: =C78/D78 -> 184.2549369 | G78: =C78/E78 -> 144.5190841
B79: 공공연구기관 Public research institutes | C79: 7260710.547 | D79: 26611.7427 | E79: 31140 | F79: 272.8385972 | G79: 233.1634729
B80: 대학 Higher educations | C80: 5480322.53 | D80: 41783.5011 | E80: 97319 | F80: 131.1599647 | G80: 56.31297619
B81: 기업체 Business enterprises | C81: 46559916.25 | D81: 253446.6039 | E81: 281874 | F81: 183.7070039 | G81: 165.1798898
A82: 2014 | B82: 계 Total | C82: =SUM(C83:C85) -> 63734126.79 | D82: =SUM(D83:D85) -> 345463.4268 | E82: =SUM(E83:E85) -> 437447 | F82: 184.4887819 | G82: 145.6956541
B83: 공공연구기관 Public research institutes | C83: 8112700.933 | D83: 28887.65399 | E83: 33322 | F83: 280.8362678 | G83: 243.4638057
B84: 대학 Higher educations | C84: 5766960.87 | D84: 41938.21564 | E84: 99317 | F84: 137.5108784 | G84: 58.06620085
B85: 기업체 Business enterprises | C85: 49854464.99 | D85: 274637.5572 | E85: 304808 | F85: 181.528213 | G85: 163.5602248
A86: 2015 | B86: 계 Total | C86: =SUM(C87:C89) -> 65959371.73 | D86: =SUM(D87:D89) -> 356447.29 | E86: =SUM(E87:E89) -> 453262 | F86: 185.0466354 | G86: 145.5215123
B87: 공공연구기관 Public research institutes | C87: 8824078.748 | D87: 31444.69684 | E87: 35550 | F87: 280.62216 | G87: 248.2159985
B88: 대학 Higher educations | C88: 5998872.479 | D88: 40866.21758 | E88: 99870 | F88: 146.7929462 | G88: 60.06681165
B89: 기업체 Business enterprises | C89: 51136420.5 | D89: 284136.3756 | E89: 317842 | F89: 179.9713972 | G89: 160.886291
A90: 2016 | B90: 계 Total | C90: =SUM(C91:C93) -> 69405529.89 | D90: =SUM(D91:D93) -> 361291.5335 | E90: =SUM(E91:E93) -> 460769 | F90: 192.1039478 | G90: 150.629773
B91: 공공연구기관 Public research institutes | C91: 9113170.697 | D91: 32663.69847 | E91: 36280 | F91: 278.999964 | G91: 251.189931
B92: 대학 Higher educations | C92: 6339887.929 | D92: 40758.71671 | E92: 103166 | F92: 155.5467993 | G92: 61.4532688
B93: 기업체 Business enterprises | C93: 53952471.26 | D93: 287869.1184 | E93: 321323 | F93: 187.4201428 | G93: 167.907281
A94: 2017 | B94: 계 Total | C94: =SUM(C95:C97) -> 78789187.37 | D94: =SUM(D95:D97) -> 383100.2805 | E94: =SUM(E95:E97) -> 482796 | F94: 205.6620456 | G94: 163.193538
B95: 공공연구기관 Public research institutes | C95: 9543217.4 | D95: 32721.87166 | E95: 36552 | F95: 291.6464407 | G95: 261.0860527
B96: 대학 Higher educations | C96: 6682523.015 | D96: 38812.73328 | E96: 102877 | F96: 172.1734712 | G96: 64.95643356
B97: 기업체 Business enterprises | C97: 62563446.96 | D97: 311565.6756 | E97: 343367 | F97: 200.8033999 | G97: 182.2057651
A98: 2018 | B98: 계 Total | C98: =SUM(C99:C101) -> 85728714.74 | D98: =SUM(D99:D101) -> 408370.4603 | E98: =SUM(E99:E101) -> 514170 | F98: =C98/D98 -> 209.9287855 | G98: 166.7322379
B99: 공공연구기관 Public research institutes | C99: 9843867.4 | D99: 32824.93431 | E99: 37404 | F99: 299.8899345 | G99: 263.1768634
B100: 대학 Higher educations | C100: 7050415.008 | D100: 40735.96095 | E100: 108529 | F100: 173.0759468 | G100: 64.96341999
B101: 기업체 Business enterprises | C101: 68834432.33 | D101: 334809.565 | E101: 368237 | F101: 205.5927892 | G101: =C101/E101 -> 186.9297011
A102: 2019 | B102: 계 Total | C102: =SUM(C103:C105) -> 89047077.12 | D102: =SUM(D103:D105) -> 430690.0064 | E102: =SUM(E103:E105) -> 538136 | F102: 206.754454 | G102: 165.4731836
B103: 공공연구기관 Public research institutes | C103: 10168766 | D103: 34860.99082 | E103: 40069 | F103: 291.6946926 | G103: 253.7813771
B104: 대학 Higher educations | C104: 7371649 | D104: 41447.76561 | E104: 110619 | F104: 177.853954 | G104: 66.63998951
B105: 기업체 Business enterprises | C105: 71506662.12 | D105: 354381.25 | E105: 387448 | F105: 201.7789093 | G105: 184.5580881
A106: 2020 | B106: 계 Total | C106: =SUM(C107:C109) -> 93071686.49 | D106: =SUM(D107:D109) -> 446738.854 | E106: =SUM(E107:E109) -> 558045 | F106: 208.3357775 | G106: =C106/E106 -> 166.7816869
B107: 공공연구기관 Public research institutes | C107: 11118558 | D107: 36285.37094 | E107: 41005 | F107: 306.4198522 | G107: 271.1512742
B108: 대학 Higher educations | C108: 8353350.45 | D108: 44894.65304 | E108: 115924 | F108: 186.0655977 | G108: 72.05885279
B109: 기업체 Business enterprises | C109: 73599778.04 | D109: 365558.83 | E109: 401116 | F109: 201.3349754 | G109: 183.4875149
A110: 2021 | B110: 계 Total | C110: 102135243.5 | D110: 470728.1152 | E110: 586666 | F110: 216.9728985 | G110: 174.094363
B111: 공공연구기관 Public research institutes | C111: 11997001 | D111: 36546.34257 | E111: 42566 | F111: 328.2681702 | G111: 281.8446882
B112: 대학 Higher educations | C112: 9330614.888 | D112: 43772.56266 | E112: 114635 | F112: 213.1612663 | G112: 81.39411949
B113: 기업체 Business enterprises | C113: 80807627.66 | D113: 390409.21 | E113: 429465 | F113: 206.9818682 | G113: 188.1588201
A114: 2022 | B114: 계 Total | C114: 112646008.3 | D114: 488773.7625 | E114: 601530 | F114: 230.4665613 | G114: =C114/E114 -> 187.2658193
B115: 공공연구기관 Public research institutes | C115: 12918586.1 | D115: 37428.51694 | E115: 43406 | F115: 345.1535662 | G115: 297.6221283
B116: 대학 Higher educations | C116: 10306122 | D116: 47423.18554 | E116: 114854 | F116: 217.3224317 | G116: 89.73237327
B117: 기업체 Business enterprises | C117: 89421300.18 | D117: 403922.06 | E117: 443270 | F117: 221.3825612 | G117: 201.7309996

Sheet 2-7
A1: 2-7) 인구 만명당 연구개발인력 및 연구원
A2: R&D personnel and researchers per 10,000 population
A4: 연도·연구수행주체 Year · Sector of performance | C4: 연구개발수행기관 R&D performing inst. | D4: 연구개발인력(명)(A) R&D personnel(Person) | E4: 연구원(명)(B) Researchers(Person) | G4: 인구(만명)(D) Population (Ten thousand) | H4: A/D(명) (person) | I4: B/D(명) (person) | J4: C/D(명) (person)
F5: 상근상당(C) FTE
A6: 1995 | B6: 계 Total | C6: =SUM(C7:C9) -> 2585 | D6: =SUM(D7:D9) -> 201661 | E6: =SUM(E7:E9) -> 128315 | F6: =SUM(F7:F9) -> 100456 | G6: 4509.3 | H6: =D6/$G6 -> 44.72113188 | I6: =E6/$G6 -> 28.45563613 | J6: =F6/$G6 -> 22.27751536
B7: 공공연구기관 Public research institutes | C7: 178 | D7: 25621 | E7: 15007 | F7: 14363
B8: 대학 Higher educations | C8: 257 | D8: 75702 | E8: 44683 | F8: 19406
B9: 기업체 Business enterprises | C9: 2150 | D9: 100338 | E9: 68625 | F9: 66687
A10: 1996 | B10: 계 Total | C10: =SUM(C11:C13) -> 2856 | D10: =SUM(D11:D13) -> 202347 | E10: =SUM(E11:E13) -> 132023 | F10: =SUM(F11:F13) -> 99433 | G10: 4552.5 | H10: =D10/$G10 -> 44.44744646 | I10: =E10/$G10 -> 29.00010983 | J10: =F10/$G10 -> 21.84140582
B11: 공공연구기관 Public research institutes | C11: 163 | D11: 24203 | E11: 15503 | F11: 13732
B12: 대학 Higher educations | C12: 258 | D12: 77220 | E12: 45327 | F12: 19483
B13: 기업체 Business enterprises | C13: 2435 | D13: 100924 | E13: 71193 | F13: 66218
A14: 1997 | B14: 계 Total | C14: =SUM(C15:C17) -> 2962 | D14: =SUM(D15:D17) -> 212117 | E14: =SUM(E15:E17) -> 138438 | F14: =SUM(F15:F17) -> 102660 | G14: 4595.4 | H14: =D14/$G14 -> 46.15854985 | I14: =E14/$G14 -> 30.12534273 | J14: =F14/$G14 -> 22.33973104
B15: 공공연구기관 Public research institutes | C15: 184 | D15: 23382 | E15: 15185 | F15: 13216
B16: 대학 Higher educations | C16: 271 | D16: 86665 | E16: 48588 | F16: 19573
B17: 기업체 Business enterprises | C17: 2507 | D17: 102070 | E17: 74665 | F17: 69871
A18: 1998 | B18: 계 Total | C18: =SUM(C19:C21) -> 2869 | D18: =SUM(D19:D21) -> 199191 | E18: =SUM(E19:E21) -> 129767 | F18: =SUM(F19:F21) -> 92541 | G18: 4628.7 | H18: =D18/$G18 -> 43.03389721 | I18: =E18/$G18 -> 28.03530149 | J18: =F18/$G18 -> 19.99287057
B19: 공공연구기관 Public research institutes | C19: 183 | D19: 19431 | E19: 12587 | F19: 10952
B20: 대학 Higher educations | C20: 267 | D20: 92591 | E20: 51162 | F20: 21525
B21: 기업체 Business enterprises | C21: 2419 | D21: 87169 | E21: 66018 | F21: 60064
A22: 1999 | B22: 계 Total | C22: =SUM(C23:C25) -> 3059 | D22: =SUM(D23:D25) -> 212510 | E22: =SUM(E23:E25) -> 134568 | F22: =SUM(F23:F25) -> 100210 | G22: 4661.7 | H22: =D22/$G22 -> 45.58637407 | I22: =E22/$G22 -> 28.86672244 | J22: =F22/$G22 -> 21.49644979
B23: 공공연구기관 Public research institutes | C23: 169 | D23: 21020 | E23: 13986 | F23: 13013
B24: 대학 Higher educations | C24: 285 | D24: 98052 | E24: 50151 | F24: 21723
B25: 기업체 Business enterprises | C25: 2605 | D25: 93438 | E25: 70431 | F25: 65474
A26: 2000 | B26: 계 Total | C26: =SUM(C27:C29) -> 4635 | D26: =SUM(D27:D29) -> 237232 | E26: =SUM(E27:E29) -> 159973 | F26: =SUM(F27:F29) -> 108370 | G26: 4700.8 | H26: =D26/$G26 -> 50.46630361 | I26: =E26/$G26 -> 34.031016 | J26: =F26/$G26 -> 23.0535228
B27: 공공연구기관 Public research institutes | C27: 173 | D27: 21563 | E27: 13913 | F27: 12801.7
B28: 대학 Higher educations | C28: 268 | D28: 100643 | E28: 51727 | F28: 23674
B29: 기업체 Business enterprises | C29: 4194 | D29: 115026 | E29: 94333 | F29: 71894.3
A30: 2001 | B30: 계 Total | C30: =SUM(C31:C33) -> 6801 | D30: =SUM(D31:D33) -> 261802 | E30: =SUM(E31:E33) -> 178937 | F30: =SUM(F31:F33) -> 136337.393 | G30: 4737 | H30: =D30/$G30 -> 55.26746886 | I30: =E30/$G30 -> 37.77432974 | J30: =F30/$G30 -> 28.78137914
B31: 공공연구기관 Public research institutes | C31: 188 | D31: 20984 | E31: 13921 | F31: 13085.61
B32: 대학 Higher educations | C32: 276 | D32: 102501 | E32: 53717 | F32: 23082.683
B33: 기업체 Business enterprises | C33: 6337 | D33: 138317 | E33: 111299 | F33: 100169.1
A34: 2002 | B34: 계 Total | C34: =SUM(C35:C37) -> 7210 | D34: =SUM(D35:D37) -> 279806 | E34: =SUM(E35:E37) -> 189888 | F34: =SUM(F35:F37) -> 141917.23 | G34: 4764.5 | H34: =D34/$G34 -> 58.72725365 | I34: =E34/$G34 -> 39.85475916 | J34: =F34/$G34 -> 29.78638472
B35: 공공연구기관 Public research institutes | C35: 163 | D35: 21702 | E35: 14094 | F35: 12773.97
B36: 대학 Higher educations | C36: 304 | D36: 111083 | E36: 57634 | F36: 24952.59
B37: 기업체 Business enterprises | C37: 6743 | D37: 147021 | E37: 118160 | F37: 104190.67
A38: 2003 | B38: 계 Total | C38: =SUM(C39:C41) -> 7127 | D38: =SUM(D39:D41) -> 297059.8 | E38: =SUM(E39:E41) -> 198171 | F38: =SUM(F39:F41) -> 151254.2614 | G38: 4789.2 | H38: =D38/$G38 -> 62.02701913 | I38: =E38/$G38 -> 41.37872714 | J38: =F38/$G38 -> 31.58236478
B39: 공공연구기관 Public research institutes | C39: 169 | D39: 22025 | E39: 14395 | F39: 13447.225
B40: 대학 Higher educations | C40: 310 | D40: 121039 | E40: 59746 | F40: 26419.2164
B41: 기업체 Business enterprises | C41: 6648 | D41: 153995.8 | E41: 124030 | F41: 111387.82
A42: 2004 | B42: 계 Total | C42: =SUM(C43:C45) -> 7254 | D42: =SUM(D43:D45) -> 312314 | E42: =SUM(E43:E45) -> 209979 | F42: =SUM(F43:F45) -> 156220 | G42: 4808.3 | H42: =D42/$G42 -> 64.95310193 | I42: =E42/$G42 -> 43.6701121 | J42: =F42/$G42 -> 32.48965331
B43: 공공연구기관 Public research institutes | C43: 159 | D43: 24057 | E43: 15722 | F43: 14848
B44: 대학 Higher educations | C44: 293 | D44: 121968 | E44: 59957 | F44: 25522
B45: 기업체 Business enterprises | C45: 6802 | D45: 166289 | E45: 134300 | F45: 115850
A46: 2005 | B46: 계 Total | C46: =SUM(C47:C49) -> 7761 | D46: =SUM(D47:D49) -> 335428 | E46: =SUM(E47:E49) -> 234702 | F46: =SUM(F47:F49) -> 179812.4276 | G46: 4818.5 | H46: =D46/$G46 -> 69.61253502 | I46: =E46/$G46 -> 48.70851925 | J46: =F46/$G46 -> 37.31709611
B47: 공공연구기관 Public research institutes | C47: 137 | D47: 22604 | E47: 15501 | F47: 14690.31
B48: 대학 Higher educations | C48: 256 | D48: 125039 | E48: 64895 | F48: 27415.6776
B49: 기업체 Business enterprises | C49: 7368 | D49: 187785 | E49: 154306 | F49: 137706.44
A50: 2006 | B50: 계 Total | C50: =SUM(C51:C53) -> 9443 | D50: =SUM(D51:D53) -> 365794 | E50: =SUM(E51:E53) -> 256598 | F50: =SUM(F51:F53) -> 199990.0211 | G50: 4843.8 | H50: =D50/$G50 -> 75.51798175 | I50: =E50/$G50 -> 52.97452413 | J50: =F50/$G50 -> 41.28783622
B51: 공공연구기관 Public research institutes | C51: 139 | D51: 23874 | E51: 16771 | F51: 16097.8
B52: 대학 Higher educations | C52: 268 | D52: 132042 | E52: 65923 | F52: 28385.9788
B53: 기업체 Business enterprises | C53: 9036 | D53: 209878 | E53: 173904 | F53: 155506.2423
A54: 2007 | B54: 계 Total | C54: =SUM(C55:C57) -> 11200 | D54: =SUM(D55:D57) -> 421549 | E54: =SUM(E55:E57) -> 289098 | F54: =SUM(F55:F57) -> 221928.2309 | G54: 4868.4 | H54: =D54/$G54 -> 86.58881768 | I54: =E54/$G54 -> 59.38254868 | J54: =F54/$G54 -> 45.58545537
B55: 공공연구기관 Public research institutes | C55: 188 | D55: 28877 | E55: 20342 | F55: 18224.41
B56: 대학 Higher educations | C56: 322 | D56: 168547 | E56: 83123 | F56: 37414.7009
B57: 기업체 Business enterprises | C57: 10690 | D57: 224125 | E57: 185633 | F57: 166289.12
A58: 2008 | B58: 계 Total | C58: =SUM(C59:C61) -> 12822 | D58: =SUM(D59:D61) -> 436228 | E58: =SUM(E59:E61) -> 300050 | F58: =SUM(F59:F61) -> 236136.871 | G58: 4905.5 | H58: =D58/$G58 -> 88.92630721 | I58: =E58/$G58 -> 61.16603812 | J58: =F58/$G58 -> 48.13716664
B59: 공공연구기관 Public research institutes | C59: 228 | D59: 30028 | E59: 20950 | F59: 18462.22299
B60: 대학 Higher educations | C60: 338 | D60: 167789 | E60: 82077 | F60: 34773.32797
B61: 기업체 Business enterprises | C61: 12256 | D61: 238411 | E61: 197023 | F61: 182901.32
A62: 2009 | B62: 계 Total | C62: =SUM(C63:C65) -> 15237 | D62: =SUM(D63:D65) -> 466824 | E62: =SUM(E63:E65) -> 323175 | F62: =SUM(F63:F65) -> 244076.773 | G62: 4930.8 | H62: =D62/$G62 -> 94.67510343 | I62: =E62/$G62 -> 65.5421027 | J62: =F62/$G62 -> 49.5004407
B63: 공공연구기관 Public research institutes | C63: 252 | D63: 36686 | E63: 24318 | F63: 21084.236
B64: 대학 Higher educations | C64: 359 | D64: 174575 | E64: 88554 | F64: 38163.0226
B65: 기업체 Business enterprises | C65: 14626 | D65: 255563 | E65: 210303 | F65: 184829.5144
A66: 2010 | B66: 계 Total | C66: =SUM(C67:C69) -> 16550 | D66: =SUM(D67:D69) -> 500124 | E66: =SUM(E67:E69) -> 345912 | F66: =SUM(F67:F69) -> 264117.936 | G66: 4955.4 | H66: =D66/$G66 -> 100.9250515 | I66: =E66/$G66 -> 69.80506115 | J66: =F66/$G66 -> 53.29901441
B67: 공공연구기관 Public research institutes | C67: 261 | D67: 39738 | E67: 26235 | F67: 22774.5826
B68: 대학 Higher educations | C68: 352 | D68: 188211 | E68: 93509 | F68: 39264.7499
B69: 기업체 Business enterprises | C69: 15937 | D69: 272175 | E69: 226168 | F69: 202078.6035
A70: 2011 | B70: 계 Total | C70: =SUM(C71:C73) -> 20372 | D70: =SUM(D71:D73) -> 531131 | E70: =SUM(E71:E73) -> 375176 | F70: =SUM(F71:F73) -> 288900.9624 | G70: 4993.7 | H70: =D70/$G70 -> 106.3602139 | I70: =E70/$G70 -> 75.12986363 | J70: =F70/$G70 -> 57.85308737
B71: 공공연구기관 Public research institutes | C71: 268 | D71: 43457 | E71: 28800 | F71: 24543.8346
B72: 대학 Higher educations | C72: 350 | D72: 186690 | E72: 95750 | F72: 40843.7979
B73: 기업체 Business enterprises | C73: 19754 | D73: 300984 | E73: 250626 | F73: 223513.3299
A74: 2012 | B74: 계 Total | C74: =SUM(C75:C77) -> 23533 | D74: =SUM(D75:D77) -> 562601 | E74: =SUM(E75:E77) -> 401724 | F74: =SUM(F75:F77) -> 315589.1929 | G74: 5020 | H74: =D74/$G74 -> 112.0719124 | I74: =E74/$G74 -> 80.0247012 | J74: =F74/$G74 -> 62.86637309
B75: 공공연구기관 Public research institutes | C75: 272 | D75: 46500 | E75: 28822 | F75: 24722.5896
B76: 대학 Higher educations | C76: 344 | D76: 184281 | E76: 96916 | F76: 43825.7833
B77: 기업체 Business enterprises | C77: 22917 | D77: 331820 | E77: 275986 | F77: 247040.82
A78: 2013 | B78: 계 Total | C78: =SUM(C79:C81) -> 25882 | D78: =SUM(D79:D81) -> 569333 | E78: =SUM(E79:E81) -> 410333 | F78: =SUM(F79:F81) -> 321841.8477 | G78: 5042.9 | H78: =D78/$G78 -> 112.8979357 | I78: =E78/$G78 -> 81.36845862 | J78: =F78/$G78 -> 63.82078719
B79: 공공연구기관 Public research institutes | C79: 326 | D79: 49782 | E79: 31140 | F79: 26611.7427
B80: 대학 Higher educations | C80: 371 | D80: 181284 | E80: 97319 | F80: 41783.5011
B81: 기업체 Business enterprises | C81: 25185 | D81: 338267 | E81: 281874 | F81: 253446.6039
A82: 2014 | B82: 계 Total | C82: =SUM(C83:C85) -> 30111 | D82: =SUM(D83:D85) -> 605604 | E82: =SUM(E83:E85) -> 437447 | F82: =SUM(F83:F85) -> 345463.4268 | G82: 5074.7 | H82: =D82/$G82 -> 119.3378919 | I82: =E82/$G82 -> 86.20154886 | J82: =F82/$G82 -> 68.07563537
B83: 공공연구기관 Public research institutes | C83: 348 | D83: 51849 | E83: 33322 | F83: 28887.65399
B84: 대학 Higher educations | C84: 371 | D84: 187087 | E84: 99317 | F84: 41938.21564
B85: 기업체 Business enterprises | C85: 29392 | D85: 366668 | E85: 304808 | F85: 274637.5572
A86: 2015 | B86: 계 Total | C86: =SUM(C87:C89) -> 35379 | D86: =SUM(D87:D89) -> 619907 | E86: =SUM(E87:E89) -> 453262 | F86: =SUM(F87:F89) -> 356447.29 | G86: 5101.5 | H86: =D86/$G86 -> 121.5146526 | I86: =E86/$G86 -> 88.84876997 | J86: =F86/$G86 -> 69.87107517
B87: 공공연구기관 Public research institutes | C87: 372 | D87: 54178 | E87: 35550 | F87: 31444.69684
B88: 대학 Higher educations | C88: 365 | D88: 185113 | E88: 99870 | F88: 40866.21758
B89: 기업체 Business enterprises | C89: 34642 | D89: 380616 | E89: 317842 | F89: 284136.3756
A90: 2016 | B90: 계 Total | C90: =SUM(C91:C93) -> 37218 | D90: =SUM(D91:D93) -> 624910 | E90: =SUM(E91:E93) -> 460769 | F90: =SUM(F91:F93) -> 361291.5335 | G90: 5121.8 | H90: =D90/$G90 -> 122.0098403 | I90: =E90/$G90 -> 89.96231794 | J90: =F90/$G90 -> 70.53995344
B91: 공공연구기관 Public research institutes | C91: 372 | D91: 55157 | E91: 36280 | F91: 32663.69847
B92: 대학 Higher educations | C92: 368 | D92: 185737 | E92: 103166 | F92: 40758.71671
B93: 기업체 Business enterprises | C93: 36478 | D93: 384016 | E93: 321323 | F93: 287869.1184
A94: 2017 | B94: 계 Total | C94: =SUM(C95:C97) -> 42368 | D94: =SUM(D95:D97) -> 650243 | E94: =SUM(E95:E97) -> 482796 | F94: =SUM(F95:F97) -> 383100.2805 | G94: 5136.2 | H94: =D94/$G94 -> 126.6000156 | I94: =E94/$G94 -> 93.99867606 | J94: =F94/$G94 -> 74.58827159
B95: 공공연구기관 Public research institutes | C95: 375 | D95: 55816 | E95: 36552 | F95: 32721.87166 | I95: `
B96: 대학 Higher educations | C96: 364 | D96: 185660 | E96: 102877 | F96: 38812.73328
B97: 기업체 Business enterprises | C97: 41629 | D97: 408767 | E97: 343367 | F97: 311565.6756
A98: 2018 | B98: 계 Total | C98: =SUM(C99:C101) -> 49302 | D98: =SUM(D99:D101) -> 691060 | E98: =SUM(E99:E101) -> 514170 | F98: =SUM(F99:F101) -> 408370.4603 | G98: 5158.5 | H98: =D98/$G98 -> 133.9653 | I98: =E98/$G98 -> 99.67432393 | J98: =F98/$G98 -> 79.16457502
B99: 공공연구기관 Public research institutes | C99: 401 | D99: 58386 | E99: 37404 | F99: 32824.93431
B100: 대학 Higher educations | C100: 365 | D100: 192448 | E100: 108529 | F100: 40735.96095
B101: 기업체 Business enterprises | C101: 48536 | D101: 440226 | E101: 368237 | F101: 334809.565
A102: 2019 | B102: 계 Total | C102: =SUM(C103:C105) -> 53005 | D102: =SUM(D103:D105) -> 718759 | E102: =SUM(E103:E105) -> 538136 | F102: =SUM(F103:F105) -> 430690.0064 | G102: 5176.5 | H102: =D102/$G102 -> 138.8503815 | I102: =E102/$G102 -> 103.9575002 | J102: =F102/$G102 -> 83.20100578
B103: 공공연구기관 Public research institutes | C103: 419 | D103: 62412 | E103: 40069 | F103: 34860.99082
B104: 대학 Higher educations | C104: 368 | D104: 194136 | E104: 110619 | F104: 41447.76561
B105: 기업체 Business enterprises | C105: 52218 | D105: 462211 | E105: 387448 | F105: 354381.25
A106: 2020 | B106: 계 Total | C106: =SUM(C107:C109) -> 56223 | D106: =SUM(D107:D109) -> 747288 | E106: =SUM(E107:E109) -> 558045 | F106: =SUM(F107:F109) -> 446738.854 | G106: 5183.6 | H106: =D106/$G106 -> 144.1639015 | I106: =E106/$G106 -> 107.6558762 | J106: =F106/$G106 -> 86.18312639
B107: 공공연구기관 Public research institutes | C107: 415 | D107: 64134 | E107: 41005 | F107: 36285.37094
B108: 대학 Higher educations | C108: 363 | D108: 207025 | E108: 115924 | F108: 44894.65304
B109: 기업체 Business enterprises | C109: 55445 | D109: 476129 | E109: 401116 | F109: 365558.83
A110: 2021 | B110: 계 Total | C110: 59576 | D110: 785594 | E110: 586666 | F110: 470728.1152 | G110: 5174.5 | H110: =D110/$G110 -> 151.8202725 | I110: =E110/$G110 -> 113.3763649 | J110: =F110/$G110 -> 90.97074408
B111: 공공연구기관 Public research institutes | C111: 433 | D111: 66560 | E111: 42566 | F111: 36546.34257
B112: 대학 Higher educations | C112: 366 | D112: 210163 | E112: 114635 | F112: 43772.56266
B113: 기업체 Business enterprises | C113: 58777 | D113: 508871 | E113: 429465 | F113: 390409.21
A114: 2022 | B114: 계 Total | C114: 61646 | D114: 813763 | E114: 601530 | F114: 488773.7625 | G114: 5180.9 | H114: =D114/$G114 -> 157.0698141 | I114: =E114/$G114 -> 116.1053099 | J114: =F114/$G114 -> 94.34147783
B115: 공공연구기관 Public research institutes | C115: 458 | D115: 68501 | E115: 43406 | F115: 37428.51694
B116: 대학 Higher educations | C116: 361 | D116: 222280 | E116: 114854 | F116: 47423.18554
B117: 기업체 Business enterprises | C117: 60827 | D117: 522982 | E117: 443270 | F117: 403922.06
A119: 자료 : 인구(OECD, Main Science and Technology Indicators 2023-september, 통계청)

Sheet 2-8
A1: 2-8) 전공별·학위별 연구원
A2: Researchers by major field of study and degree
A4: 전공·학위 Major field of study · Degree | C4: 이학 Natural sciences | H4: 공학 Engineering & technology | M4: 농업과학 Agricultural sciences | R4: 의·약·보건학 Medical & health sciences
C5: 계 Total | D5: 박사 Doctoral | E5: 석사 Master's | F5: 학사 Bachelor's | G5: 기타 Others | H5: 계 Total | I5: 박사 Doctoral | J5: 석사 Master's | K5: 학사 Bachelor's | L5: 기타 Others | M5: 계 Total | N5: 박사 Doctoral | O5: 석사 Master's | P5: 학사 Bachelor's | Q5: 기타 Others | R5: 계 Total | S5: 박사 Doctoral | T5: 석사 Master's | U5: 학사 Bachelor's | V5: 기타 Others
A6: 연구원(명) Researchers(Person) | B6: 1995 | C6: =SUM(D6:G6) -> 23383 | D6: 8707 | E6: 8479 | F6: 5954 | G6: 243 | H6: =SUM(I6:L6) -> 78936 | I6: 14748 | J6: 26875 | K6: 34631 | L6: 2682 | M6: =SUM(N6:Q6) -> 6705 | N6: 3186 | O6: 2054 | P6: 1361 | Q6: 104 | R6: =SUM(S6:V6) -> 10343 | S6: 5991 | T6: 3436 | U6: 804 | V6: 112
B7: 1996 | C7: 23483 | D7: 8688 | E7: 8958 | F7: 5455 | G7: 382 | H7: 84358 | I7: 15732 | J7: 29411 | K7: 35832 | L7: 3383 | M7: 6855 | N7: 3175 | O7: 2315 | P7: 1279 | Q7: 86 | R7: 11854 | S7: 6999 | T7: 4031 | U7: 781 | V7: 43
B8: 1997 | C8: 24539 | D8: 9170 | E8: 9587 | F8: 5511 | G8: 271 | H8: 88433 | I8: 16727 | J8: 31427 | K8: 36635 | L8: 3644 | M8: 6407 | N8: 3048 | O8: 2201 | P8: 1084 | Q8: 74 | R8: 12489 | S8: 7649 | T8: 3931 | U8: 871 | V8: 38
B9: 1998 | C9: 21548 | D9: 8449 | E9: 7947 | F9: 4858 | G9: 294 | H9: 81748 | I9: 17846 | J9: 28078 | K9: 32241 | L9: 3583 | M9: 5553 | N9: 2590 | O9: 2064 | P9: 861 | Q9: 38 | R9: 10548 | S9: 6910 | T9: 2947 | U9: 651 | V9: 40
B10: 1999 | C10: 22679 | D10: 10149 | E10: 7494 | F10: 4729 | G10: 307 | H10: 88239 | I10: 21333 | J10: 29339 | K10: 32774 | L10: 4793 | M10: 6790 | N10: 3099 | O10: 2753 | P10: 817 | Q10: 121 | R10: 11538 | S10: 6780 | T10: 3885 | U10: 732 | V10: 141
B11: 2000 | C11: 27040 | D11: 9663 | E11: 9557 | F11: 7174 | G11: 646 | H11: 109060 | I11: 22825 | J11: 34432 | K11: 44612 | L11: 7191 | M11: 7264 | N11: 3529 | O11: 2555 | P11: 1002 | Q11: 178 | R11: 12255 | S11: 7857 | T11: 3404 | U11: 867 | V11: 127
B12: 2001 | C12: 30088 | D12: 10139 | E12: 11116 | F12: 8264 | G12: 569 | H12: 118949 | I12: 22796 | J12: 37839 | K12: 51359 | L12: 6955 | M12: 6080 | N12: 3031 | O12: 2079 | P12: 834 | Q12: 136 | R12: 12487 | S12: 7067 | T12: 4546 | U12: 733 | V12: 141
B13: 2002 | C13: =SUM(D13:G13) -> 32778 | D13: 10845 | E13: 11705 | F13: 9638 | G13: 590 | H13: =SUM(I13:L13) -> 128930 | I13: 24640 | J13: 42987 | K13: 54323 | L13: 6980 | M13: =SUM(N13:Q13) -> 6040 | N13: 3010 | O13: 2240 | P13: 727 | Q13: 63 | R13: =SUM(S13:V13) -> 13096 | S13: 7642 | T13: 4677 | U13: 662 | V13: 115
B14: 2003 | C14: =SUM(D14:G14) -> 29242 | D14: 10549 | E14: 11120 | F14: 7242 | G14: 331 | H14: =SUM(I14:L14) -> 139457 | I14: 26763 | J14: 47148 | K14: 58807 | L14: 6739 | M14: =SUM(N14:Q14) -> 6247 | N14: 3437 | O14: 2070 | P14: 691 | Q14: 49 | R14: =SUM(S14:V14) -> 14080 | S14: 8367 | T14: 4989 | U14: 659 | V14: 65
B15: 2004 | C15: 30965 | D15: 11531 | E15: 11088 | F15: 7917 | G15: 429 | H15: 150628 | I15: 29813 | J15: 49179 | K15: 65919 | L15: 5717 | M15: 6219 | N15: 3555 | O15: 1941 | P15: 657 | Q15: 66 | R15: 14451 | S15: 9116 | T15: 4425 | U15: 639 | V15: 271
B16: 2005 | C16: 33248 | D16: 11619 | E16: 12635 | F16: 8442 | G16: 552 | H16: 169145 | I16: 30636 | J16: 55619 | K16: 74596 | L16: 8294 | M16: 6813 | N16: 3641 | O16: 2201 | P16: 841 | Q16: 130 | R16: 15143 | S16: 9038 | T16: 5197 | U16: 729 | V16: 179
B17: 2006 | C17: 35239 | D17: 11715 | E17: 13306 | F17: 9504 | G17: 714 | H17: 184897 | I17: 31784 | J17: 58663 | K17: 85307 | L17: 9143 | M17: 7132 | N17: 3803 | O17: 2349 | P17: 801 | Q17: 179 | R17: 17391 | S17: 9848 | T17: 5911 | U17: 1382 | V17: 250
B18: 2007 | C18: 35443 | D18: 11196 | E18: 13699 | F18: 9865 | G18: 683 | H18: 195841 | I18: 30904 | J18: 61999 | K18: 92434 | L18: 10504 | M18: 7326 | N18: 3739 | O18: 2434 | P18: 980 | Q18: 173 | R18: 16576 | S18: 9393 | T18: 5460 | U18: 1386 | V18: 337
B19: 2008 | C19: 35760 | D19: 10905 | E19: 13526 | F19: 10522 | G19: 807 | H19: 205478 | I19: 31400 | J19: 64006 | K19: 98701 | L19: 11371 | M19: 6853 | N19: 3503 | O19: 2245 | P19: 1009 | Q19: 96 | R19: 17247 | S19: 9104 | T19: 5655 | U19: 1895 | V19: 593
B20: 2009 | C20: 41687 | D20: 12210 | E20: 16113 | F20: 12121 | G20: 1243 | H20: 217911 | I20: 31990 | J20: 68321 | K20: 104986 | L20: 12614 | M20: 8713 | N20: 4193 | O20: 2982 | P20: 1363 | Q20: 175 | R20: 17227 | S20: 9031 | T20: 5902 | U20: 1582 | V20: 712
B21: 2010 | C21: 46023 | D21: 13337 | E21: 18019 | F21: 13536 | G21: 1131 | H21: 231913 | I21: 33780 | J21: 71273 | K21: 113385 | L21: 13475 | M21: 9202 | N21: 4248 | O21: 3210 | P21: 1559 | Q21: 185 | R21: 18926 | S21: 10021 | T21: 6108 | U21: 2515 | V21: 282
B22: 2011 | C22: =SUM(D22:G22) -> 48544 | D22: 13532 | E22: 19005 | F22: 14636 | G22: 1371 | H22: =SUM(I22:L22) -> 253445 | I22: 35728 | J22: 75360 | K22: 127008 | L22: 15349 | M22: =SUM(N22:Q22) -> 9841 | N22: 4435 | O22: 3334 | P22: 1814 | Q22: 258 | R22: =SUM(S22:V22) -> 20473 | S22: 10663 | T22: 7010 | U22: 2206 | V22: 594
B23: 2012 | C23: =SUM(D23:G23) -> 53654 | D23: 14573 | E23: 20668 | F23: 16716 | G23: 1697 | H23: =SUM(I23:L23) -> 273839 | I23: 37793 | J23: 80950 | K23: 137938 | L23: 17158 | M23: =SUM(N23:Q23) -> 9912 | N23: 4329 | O23: 3356 | P23: 1978 | Q23: 249 | R23: =SUM(S23:V23) -> 19945 | S23: 9836 | T23: 7004 | U23: 2603 | V23: 502
B24: 2013 | C24: 51494 | D24: 14245 | E24: 19142 | F24: 16332 | G24: 1775 | H24: 279388 | I24: 38287 | J24: 81780 | K24: 141846 | L24: 17475 | M24: 10102 | N24: 4383 | O24: 3468 | P24: 1984 | Q24: 267 | R24: 23292 | S24: 10619 | T24: 7735 | U24: 4434 | V24: 504
B25: 2014 | C25: 54772 | D25: 14621 | E25: 20595 | F25: 17817 | G25: 1739 | H25: 298436 | I25: 39333 | J25: 85908 | K25: 153951 | L25: 19244 | M25: 10662 | N25: 4729 | O25: 3775 | P25: 1959 | Q25: 199 | R25: 23522 | S25: 10961 | T25: 7301 | U25: 4137 | V25: 1123
B26: 2015 | C26: 57976 | D26: 16599 | E26: 21265 | F26: 18276 | G26: 1836 | H26: 308230 | I26: 42168 | J26: 86006 | K26: 159455 | L26: 20601 | M26: 11045 | N26: 5053 | O26: 3720 | P26: 2059 | Q26: 213 | R26: 24066 | S26: 12136 | T26: 7085 | U26: 4404 | V26: 441
B27: 2016 | C27: 56710 | D27: 16410 | E27: 20775 | F27: 17668 | G27: 1857 | H27: 312987 | I27: 43123 | J27: 88114 | K27: 160356 | L27: 21394 | M27: 11378 | N27: 5061 | O27: 3991 | P27: 2098 | Q27: 228 | R27: 26347 | S27: 13181 | T27: 8225 | U27: 4172 | V27: 769
B28: 2017 | C28: 67736 | D28: 17976 | E28: 22587 | F28: 24296 | G28: 2877 | H28: 322952 | I28: 45445 | J28: 91783 | K28: 166088 | L28: 19636 | M28: 10423 | N28: 4795 | O28: 3453 | P28: 1965 | Q28: 210 | R28: 27911 | S28: 14123 | T28: 8112 | U28: 4882 | V28: 794
B29: 2018 | C29: 72884 | D29: 18299 | E29: 23670 | F29: 27424 | G29: 3491 | H29: 344916 | I29: 46530 | J29: 96063 | K29: 180386 | L29: 21937 | M29: 10991 | N29: 4754 | O29: 3826 | P29: 2147 | Q29: 264 | R29: 29774 | S29: 14683 | T29: 8952 | U29: 5250 | V29: 889
B30: 2019 | C30: =SUM(D30:G30) -> 86248 | D30: 19586 | E30: 27263 | F30: 35824 | G30: 3575 | H30: =SUM(I30:L30) -> 350000 | I30: 48859 | J30: 96415 | K30: 183156 | L30: 21570 | M30: =SUM(N30:Q30) -> 11051 | N30: 4928 | O30: 3537 | P30: 2314 | Q30: 272 | R30: =SUM(S30:V30) -> 31848 | S30: 15846 | T30: 9913 | U30: 5152 | V30: 937
B31: 2020 | C31: 81152 | D31: 20200 | E31: 26386 | F31: 30315 | G31: 4251 | H31: 371068 | I31: 52138 | J31: 100893 | K31: 196013 | L31: 22024 | M31: 10853 | N31: 4816 | O31: 3409 | P31: 2335 | Q31: 293 | R31: 33262 | S31: 16837 | T31: 10335 | U31: 4925 | V31: 1165
B32: 2021 | C32: 88727 | D32: 21581 | E32: 28296 | F32: 34363 | G32: 4487 | H32: 386778 | I32: 54230 | J32: 104605 | K32: 205757 | L32: 22186 | M32: 11361 | N32: 4681 | O32: 3858 | P32: 2504 | Q32: 318 | R32: 35396 | S32: 17793 | T32: 10369 | U32: 6060 | V32: 1174
B33: 2022 | C33: 93889 | D33: 22853 | E33: 30175 | F33: 36350 | G33: 4511 | H33: 394529 | I33: 56673 | J33: 105503 | K33: 210598 | L33: 21755 | M33: 11388 | N33: 4620 | O33: 4065 | P33: 2418 | Q33: 285 | R33: 36765 | S33: 17985 | T33: 11016 | U33: 6651 | V33: 1113
A34: 전년대비 증가율(%) Percent change from previous year | B34: 1996 | C34: =(C7/C6-1)*100 -> 0.4276611213 | D34: -0.2182152291 | E34: 5.649251091 | F34: -8.38092039 | G34: 57.20164609 | H34: 6.868855782 | I34: 6.672091131 | J34: 9.43627907 | K34: 3.467991106 | L34: 26.13721104 | M34: 2.237136465 | N34: -0.3452605148 | O34: 12.70691334 | P34: -6.024981631 | Q34: -17.30769231 | R34: 14.60891424 | S34: 16.82523786 | T34: 17.31664726 | U34: -2.860696517 | V34: -61.60714286
B35: 1997 | C35: =(C8/C7-1)*100 -> 4.496870076 | D35: 5.547882136 | E35: 7.02165662 | F35: 1.026581118 | G35: -29.05759162 | H35: 4.830602907 | I35: 6.324688533 | J35: 6.854578219 | K35: 2.241013619 | L35: 7.715045817 | M35: -6.535375638 | N35: -4 | O35: -4.924406048 | P35: -15.24628616 | Q35: -13.95348837 | R35: 5.356841572 | S35: 9.287041006 | T35: -2.480774001 | U35: 11.52368758 | V35: -11.62790698
B36: 1998 | C36: =(C9/C8-1)*100 -> -12.18876075 | D36: -7.86259542 | E36: -17.10649838 | F36: -11.84902921 | G36: 8.487084871 | H36: -7.559395248 | I36: 6.689782986 | J36: -10.65644191 | K36: -11.99399481 | L36: -1.673984632 | M36: -13.32917122 | N36: -15.02624672 | O36: -6.224443435 | P36: -20.57195572 | Q36: -48.64864865 | R36: -15.54167668 | S36: -9.661393646 | T36: -25.03179852 | U36: -25.25832377 | V36: 5.263157895
B37: 1999 | C37: =(C10/C9-1)*100 -> 5.248746983 | D37: 20.12072435 | E37: -5.700264251 | F37: -2.655413751 | G37: 4.421768707 | H37: 7.940255419 | I37: 19.53939258 | J37: 4.491060617 | K37: 1.653174529 | L37: 33.77058331 | M37: 22.27624707 | N37: 19.65250965 | O37: 33.38178295 | P37: -5.110336818 | Q37: 218.4210526 | R37: 9.385665529 | S37: -1.881331404 | T37: 31.82897862 | U37: 12.44239631 | V37: 252.5
B38: 2000 | C38: =(C11/C10-1)*100 -> 19.22924291 | D38: -4.788649128 | E38: 27.52868962 | F38: 51.70226263 | G38: 110.4234528 | H38: 23.5961423 | I38: 6.993859279 | J38: 17.35914653 | K38: 36.1200952 | L38: 50.03129564 | M38: 6.980854197 | N38: 13.87544369 | O38: -7.192154014 | P38: 22.64381885 | Q38: 47.10743802 | R38: 6.21424857 | S38: 15.88495575 | T38: -12.38095238 | U38: 18.44262295 | V38: -9.929078014
B39: 2001 | C39: =(C12/C11-1)*100 -> 11.27218935 | D39: 4.926006416 | E39: 16.31265041 | F39: 15.19375523 | G39: -11.91950464 | H39: 9.067485788 | I39: -0.1270536692 | J39: 9.894865242 | K39: 15.12373352 | L39: -3.281880128 | M39: -16.29955947 | N39: -14.11164636 | O39: -18.63013699 | P39: -16.76646707 | Q39: -23.59550562 | R39: 1.893104855 | S39: -10.05472827 | T39: 33.54876616 | U39: -15.455594 | V39: 11.02362205
B40: 2002 | C40: =(C13/C12-1)*100 -> 8.940441372 | D40: 6.963211362 | E40: 5.298668586 | F40: 16.62633107 | G40: 3.690685413 | H40: 8.390991097 | I40: 8.089138445 | J40: 13.6050107 | K40: 5.771140404 | L40: 0.3594536305 | M40: -0.6578947368 | N40: -0.6928406467 | O40: 7.744107744 | P40: -12.82973621 | Q40: -53.67647059 | R40: 4.877072155 | S40: 8.13640866 | T40: 2.881654201 | U40: -9.68622101 | V40: -18.43971631
B41: 2003 | C41: =(C14/C13-1)*100 -> -10.78772347 | D41: -2.729368373 | E41: -4.997864161 | F41: -24.85992945 | G41: -43.89830508 | H41: 8.16489568 | I41: 8.616071429 | J41: 9.679670598 | K41: 8.254330578 | L41: -3.452722063 | M41: 3.427152318 | N41: 14.18604651 | O41: -7.589285714 | P41: -4.951856946 | Q41: -22.22222222 | R41: 7.513744655 | S41: 9.487045276 | T41: 6.670942912 | U41: -0.4531722054 | V41: -43.47826087
B42: 2004 | C42: =(C15/C14-1)*100 -> 5.892209835 | D42: 9.308939236 | E42: -0.2877697842 | F42: 9.32062966 | G42: 29.60725076 | H42: 8.010354446 | I42: 11.39633076 | J42: 4.307711886 | K42: 12.09379836 | L42: -15.16545482 | M42: -0.4482151433 | N42: 3.433226651 | O42: -6.231884058 | P42: -4.92040521 | Q42: 34.69387755 | R42: 2.634943182 | S42: 8.951834588 | T42: -11.30487072 | U42: -3.034901366 | V42: 316.9230769
B43: 2005 | C43: =(C16/C15-1)*100 -> 7.372840304 | D43: 0.7631601769 | E43: 13.9520202 | F43: 6.631299735 | G43: 28.67132867 | H43: 12.29319914 | I43: 2.760540704 | J43: 13.09502023 | K43: 13.16312444 | L43: 45.07608886 | M43: 9.551374819 | N43: 2.419127989 | O43: 13.39515714 | P43: 28.00608828 | Q43: 96.96969697 | R43: 4.788595945 | S43: -0.8556384379 | T43: 17.44632768 | U43: 14.08450704 | V43: -33.94833948
B44: 2006 | C44: =(C17/C16-1)*100 -> 5.988330125 | D44: 0.8262328944 | E44: 5.310645034 | F44: 12.57995736 | G44: 29.34782609 | H44: 9.312719856 | I44: 3.747225486 | J44: 5.472949891 | K44: 14.35867875 | L44: 10.23631541 | M44: 4.682225158 | N44: 4.449327108 | O44: 6.724216265 | P44: -4.756242568 | Q44: 37.69230769 | R44: 14.84514297 | S44: 8.96215977 | T44: 13.7386954 | U44: 89.57475995 | V44: 39.66480447
B45: 2007 | C45: =(C18/C17-1)*100 -> 0.5789040552 | D45: -4.43021767 | E45: 2.953554787 | F45: 3.798400673 | G45: -4.341736695 | H45: 5.918971103 | I45: -2.768688648 | J45: 5.686719056 | K45: 8.354531281 | L45: 14.88570491 | M45: 2.720134605 | N45: -1.682881935 | O45: 3.61856109 | P45: 22.34706617 | Q45: -3.351955307 | R45: -4.686332011 | S45: -4.620227457 | T45: -7.629842666 | U45: 0.2894356006 | V45: 34.8
B46: 2008 | C46: =(C19/C18-1)*100 -> 0.8943938154 | D46: -2.599142551 | E46: -1.262865903 | F46: 6.659908768 | G46: 18.15519766 | H46: 4.920828631 | I46: 1.60497023 | J46: 3.237148986 | K46: 6.779972737 | L46: 8.253998477 | M46: -6.456456456 | N46: -6.311848088 | O46: -7.764995892 | P46: 2.959183673 | Q46: -44.50867052 | R46: 4.048021236 | S46: -3.076759289 | T46: 3.571428571 | U46: 36.72438672 | V46: 75.96439169
B47: 2009 | C47: =(C20/C19-1)*100 -> 16.57438479 | D47: 11.96698762 | E47: 19.12612746 | F47: 15.19673066 | G47: 54.02726146 | H47: 6.050769425 | I47: 1.878980892 | J47: 6.741555479 | K47: 6.367716639 | L47: 10.93131651 | M47: 27.14139793 | N47: 19.69740223 | O47: 32.8285078 | P47: 35.08424182 | Q47: 82.29166667 | R47: -0.1159621963 | S47: -0.8018453427 | T47: 4.367816092 | U47: -16.5171504 | V47: 20.06745363
B48: 2010 | C48: =(C21/C20-1)*100 -> 10.40132415 | D48: 9.23013923 | E48: 11.82895798 | F48: 11.67395429 | G48: -9.010458568 | H48: 6.425559059 | I48: 5.595498593 | J48: 4.320779848 | K48: 8.000114301 | L48: 6.825749168 | M48: 5.612303455 | N48: 1.311709993 | O48: 7.645875252 | P48: 14.38004402 | Q48: 5.714285714 | R48: 9.862425263 | S48: 10.96224117 | T48: 3.490342257 | U48: 58.97597977 | V48: -60.39325843
B49: 2011 | C49: =(C22/C21-1)*100 -> 5.477695935 | D49: 1.462097923 | E49: 5.472001776 | F49: 8.126477541 | G49: 21.22015915 | H49: 9.284516176 | I49: 5.766725873 | J49: 5.734289282 | K49: 12.01481677 | L49: 13.90723562 | M49: 6.944142578 | N49: 4.402071563 | O49: 3.862928349 | P49: 16.35663887 | Q49: 39.45945946 | R49: 8.173940611 | S49: 6.406546253 | T49: 14.76751801 | U49: -12.28628231 | V49: 110.6382979
B50: 2012 | C50: =(C23/C22-1)*100 -> 10.52653263 | D50: 7.692876145 | E50: 8.750328861 | F50: 14.21153321 | G50: 23.77826404 | H50: 8.04671625 | I50: 5.779780564 | J50: 7.417728238 | K50: 8.605757118 | L50: 11.78578409 | M50: 0.7214713952 | N50: -2.390078918 | O50: 0.6598680264 | P50: 9.040793826 | Q50: -3.488372093 | R50: -2.579006496 | S50: -7.755791053 | T50: -0.08559201141 | U50: 17.99637353 | V50: -15.48821549
B51: 2013 | C51: =(C24/C23-1)*100 -> -4.025794908 | D51: -2.250737666 | E51: -7.38339462 | F51: -2.297200287 | G51: 4.596346494 | H51: 2.026373161 | I51: 1.307120366 | J51: 1.025324274 | K51: 2.833156926 | L51: 1.847534678 | M51: 1.916868442 | N51: 1.247401247 | O51: 3.337306317 | P51: 0.3033367037 | Q51: 7.228915663 | R51: 16.78114816 | S51: 7.96055307 | T51: 10.4368932 | U51: 70.34191318 | V51: 0.3984063745
B52: 2014 | C52: =(C25/C24-1)*100 -> 6.365790189 | D52: 2.63952264 | E52: 7.590638387 | F52: 9.092578986 | G52: -2.028169014 | H52: 6.817758816 | I52: 2.731997806 | J52: 5.047688921 | K52: 8.533902965 | L52: 10.1230329 | M52: 5.543456741 | N52: 7.894136436 | O52: 8.852364475 | P52: -1.260080645 | Q52: -25.46816479 | R52: 0.9874635068 | S52: 3.220642245 | T52: -5.610859729 | U52: -6.698240866 | V52: 122.8174603
B53: 2015 | C53: =(C26/C25-1)*100 -> 5.849704228 | D53: 13.52848642 | E53: 3.2532168 | F53: 2.576191278 | G53: 5.577918344 | H53: 3.281775657 | I53: 7.207688201 | J53: 0.1140755227 | K53: 3.575163526 | L53: 7.051548535 | M53: 3.592196586 | N53: 6.851342779 | O53: -1.456953642 | P53: 5.104645227 | Q53: 7.035175879 | R53: 2.312728509 | S53: 10.71982483 | T53: -2.958498836 | U53: 6.453952139 | V53: -60.730187
B54: 2016 | C54: =(C27/C26-1)*100 -> -2.183662205 | D54: -1.138622809 | E54: -2.304255819 | F54: -3.326767345 | G54: 1.14379085 | H54: 1.543328034 | I54: 2.264750522 | J54: 2.450991791 | K54: 0.5650497005 | L54: 3.849327703 | M54: 3.014938886 | N54: 0.158321789 | O54: 7.284946237 | P54: 1.894123361 | Q54: 7.042253521 | R54: 9.478101886 | S54: 8.610744891 | T54: 16.09033169 | U54: -5.267938238 | V54: 74.37641723
B55: 2017 | C55: =(C28/C27-1)*100 -> 19.44277905 | D55: 9.542961609 | E55: 8.722021661 | F55: 37.51414988 | G55: 54.9273021 | H55: 3.183838306 | I55: 5.384597547 | J55: 4.163924008 | K55: 3.574546634 | L55: -8.217257175 | M55: -8.393390754 | N55: -5.255878285 | O55: -13.48033074 | P55: -6.339370829 | Q55: -7.894736842 | R55: 5.936159715 | S55: 7.146650482 | T55: -1.373860182 | U55: 17.01821668 | V55: 3.250975293
B56: 2018 | C56: =(C29/C28-1)*100 -> 7.600094484 | D56: 1.796840231 | E56: 4.794793465 | F56: 12.87454725 | G56: 21.34167536 | H56: 6.801010677 | I56: 2.387501375 | J56: 4.663172919 | K56: 8.608689369 | L56: 11.71827256 | M56: 5.449486712 | N56: -0.8550573514 | O56: 10.80220098 | P56: 9.262086514 | Q56: 25.71428571 | R56: 6.674787718 | S56: 3.965163209 | T56: 10.35502959 | U56: 7.537894306 | V56: 11.96473552
B57: 2019 | C57: =(C30/C29-1)*100 -> 18.33598595 | D57: 7.033171212 | E57: 15.17955218 | F57: 30.63010502 | G57: 2.406187339 | H57: 1.473982071 | I57: 5.005372878 | J57: 0.3664261995 | K57: 1.535595889 | L57: -1.672972603 | M57: 0.5459011919 | N57: 3.660075726 | O57: -7.553580763 | P57: 7.778295296 | Q57: 3.03030303 | R57: 6.965809095 | S57: 7.920724648 | T57: 10.73503128 | U57: -1.866666667 | V57: 5.399325084
B58: 2020 | C58: =(C31/C30-1)*100 -> -5.908542807 | D58: 3.13489227 | E58: -3.216813997 | F58: -15.37795891 | G58: 18.90909091 | H58: 6.019428571 | I58: 6.711148407 | J58: 4.644505523 | K58: 7.019699054 | L58: 2.104775151 | M58: -1.791693059 | N58: -2.272727273 | O58: -3.618886062 | P58: 0.9075194468 | Q58: 7.720588235 | R58: 4.439839236 | S58: 6.253944213 | T58: 4.257036215 | U58: -4.406055901 | V58: 24.33297759
B59: 2021 | C59: =(C32/C31-1)*100 -> 9.334335568 | D59: 6.836633663 | E59: 7.238687183 | F59: 13.35312552 | G59: 5.551634909 | H59: 4.233725355 | I59: 4.012428555 | J59: 3.679145233 | K59: 4.971098856 | L59: 0.735561206 | M59: 4.680733438 | N59: -2.803156146 | O59: 13.17101789 | P59: 7.237687366 | Q59: 8.532423208 | R59: 6.415729661 | S59: 5.677971135 | T59: 0.3289791969 | U59: 23.04568528 | V59: 0.7725321888
B60: 2022 | C60: =(C33/C32-1)*100 -> 5.817845752 | D60: 5.894073491 | E60: 6.64051456 | F60: 5.782382213 | G60: 0.534878538 | H60: 2.003991954 | I60: 4.504886594 | J60: 0.8584675685 | K60: 2.352775361 | L60: -1.942666546 | M60: 0.237655136 | N60: -1.303140355 | O60: 5.365474339 | P60: -3.434504792 | Q60: -10.37735849 | R60: 3.867668663 | S60: 1.079076041 | T60: 6.23975311 | U60: 9.752475248 | V60: -5.195911414
A62: 전공·학위 Major field of study · Degree | C62: 인문학 Humanities | H62: 사회과학 Social sciences | M62: 총계 Total
C63: 계 Total | D63: 박사 Doctoral | E63: 석사 Master's | F63: 학사 Bachelor's | G63: 기타 Others | H63: 계 Total | I63: 박사 Doctoral | J63: 석사 Master's | K63: 학사 Bachelor's | L63: 기타 Others | M63: 계 Total | N63: 박사 Doctoral | O63: 석사 Master's | P63: 학사 Bachelor's | Q63: 기타 Others
A64: 연구원(명) Researchers(Person) | B64: 1995 | M64: =SUM(C6,H6,M6,R6,C64,H64) -> 119367 | N64: =SUM(D6,I6,N6,S6,D64,I64) -> 32632 | O64: =SUM(E6,J6,O6,T6,E64,J64) -> 40844 | P64: =SUM(F6,K6,P6,U6,F64,K64) -> 42750 | Q64: =SUM(G6,L6,Q6,V6,G64,L64) -> 3141
B65: 1996 | M65: =SUM(C7,H7,M7,R7,C65,H65) -> 126550 | N65: 34594 | O65: 44715 | P65: 43347 | Q65: 3894
B66: 1997 | M66: =SUM(C8,H8,M8,R8,C66,H66) -> 131868 | N66: 36594 | O66: 47146 | P66: 44101 | Q66: 4027
B67: 1998 | M67: =SUM(C9,H9,M9,R9,C67,H67) -> 119397 | N67: 35795 | O67: 41036 | P67: 38611 | Q67: 3955
B68: 1999 | M68: =SUM(C10,H10,M10,R10,C68,H68) -> 129246 | N68: 41361 | O68: 43471 | P68: 39052 | Q68: 5362
B69: 2000 | M69: =SUM(C11,H11,M11,R11,C69,H69) -> 155619 | N69: 43874 | O69: 49948 | P69: 53655 | Q69: 8142
B70: 2001 | M70: =SUM(C12,H12,M12,R12,C70,H70) -> 167604 | N70: 43033 | O70: 55580 | P70: 61190 | Q70: 7801
B71: 2002 | M71: =SUM(C13,H13,M13,R13,C71,H71) -> 180844 | N71: 46137 | O71: 61609 | P71: 65350 | Q71: 7748
B72: 2003 | M72: =SUM(C14,H14,M14,R14,C72,H72) -> 189026 | N72: 49116 | O72: 65327 | P72: 67399 | Q72: 7184
B73: 2004 | M73: =SUM(C15,H15,M15,R15,C73,H73) -> 202263 | N73: 54015 | O73: 66633 | P73: 75132 | Q73: 6483
B74: 2005 | M74: =SUM(C16,H16,M16,R16,C74,H74) -> 224349 | N74: 54934 | O74: 75652 | P74: 84608 | Q74: 9155
B75: 2006 | M75: =SUM(C17,H17,M17,R17,C75,H75) -> 244659 | N75: 57150 | O75: 80229 | P75: 96994 | Q75: 10286
B76: 2007 | C76: =SUM(D76:G76) -> 14430 | D76: 6989 | E76: 3724 | F76: 3124 | G76: 593 | H76: =SUM(I76:L76) -> 19482 | I76: 11285 | J76: 5734 | K76: 1864 | L76: 599 | M76: =SUM(C18,H18,M18,R18,C76,H76) -> 289098 | N76: =SUM(D18,I18,N18,S18,D76,I76) -> 73506 | O76: =SUM(E18,J18,O18,T18,E76,J76) -> 93050 | P76: =SUM(F18,K18,P18,U18,F76,K76) -> 109653 | Q76: =SUM(G18,L18,Q18,V18,G76,L76) -> 12889
B77: 2008 | C77: 15457 | D77: 7111 | E77: 3870 | F77: 3761 | G77: 715 | H77: 19255 | I77: 11421 | J77: 5116 | K77: 1952 | L77: 766 | M77: 300050 | N77: 73444 | O77: 94418 | P77: 117840 | Q77: 14348
B78: 2009 | C78: 16372 | D78: 7205 | E78: 4209 | F78: 4053 | G78: 905 | H78: 21265 | I78: 11851 | J78: 6137 | K78: 2181 | L78: 1096 | M78: 323175 | N78: 76480 | O78: 103664 | P78: 126286 | Q78: 16745
B79: 2010 | C79: 17568 | D79: 7462 | E79: 4217 | F79: 4742 | G79: 1147 | H79: 22280 | I79: 12594 | J79: 6397 | K79: 2548 | L79: 741 | M79: 345912 | N79: 81442 | O79: 109224 | P79: 138285 | Q79: 16961
B80: 2011 | C80: 19633 | D80: 7850 | E80: 4463 | F80: 6084 | G80: 1236 | H80: 23240 | I80: 12466 | J80: 6959 | K80: 2985 | L80: 830 | M80: 375176 | N80: 84674 | O80: 116131 | P80: 154733 | Q80: 19638
B81: 2012 | C81: 20413 | D81: 7971 | E81: 4098 | F81: 6874 | G81: 1470 | H81: 23961 | I81: 13140 | J81: 6872 | K81: 3053 | L81: 896 | M81: 401724 | N81: 87642 | O81: 122948 | P81: 169162 | Q81: 21972
B82: 2013 | C82: 20834 | D82: 7843 | E82: 3835 | F82: 7501 | G82: 1655 | H82: 25223 | I82: 13611 | J82: 7146 | K82: 3448 | L82: 1018 | M82: 410333 | N82: 88988 | O82: 123106 | P82: 175545 | Q82: 22694
B83: 2014 | C83: 22870 | D83: 8046 | E83: 4136 | F83: 8701 | G83: 1987 | H83: 27185 | I83: 14465 | J83: 7694 | K83: 3850 | L83: 1176 | M83: 437447 | N83: 92155 | O83: 129409 | P83: 190415 | Q83: 25468
B84: 2015 | C84: 23996 | D84: 8030 | E84: 3684 | F84: 10226 | G84: 2056 | H84: 27949 | I84: 14592 | J84: 7504 | K84: 4599 | L84: 1254 | M84: 453262 | N84: 98578 | O84: 129264 | P84: 199019 | Q84: 26401
B85: 2016 | C85: 24734 | D85: 7751 | E85: 3826 | F85: 10838 | G85: 2319 | H85: 28613 | I85: 14454 | J85: 7664 | K85: 5057 | L85: 1438 | M85: 460769 | N85: 99980 | O85: 132595 | P85: 200189 | Q85: 28005
B86: 2017 | C86: 26576 | D86: 8017 | E86: 4846 | F86: 11684 | G86: 2029 | H86: 27198 | I86: 13226 | J86: 7215 | K86: 5837 | L86: 920 | M86: 482796 | N86: 103582 | O86: 137996 | P86: 214752 | Q86: 26466
B87: 2018 | C87: 27931 | D87: 8386 | E87: 4480 | F87: 12919 | G87: 2146 | H87: 27674 | I87: 13278 | J87: 7408 | K87: 5796 | L87: 1192 | M87: 514170 | N87: 105930 | O87: 144399 | P87: 233922 | Q87: 29919
B88: 2019 | C88: =SUM(D88:G88) -> 28854 | D88: 8640 | E88: 4403 | F88: 13761 | G88: 2050 | H88: =SUM(I88:L88) -> 30135 | I88: 14096 | J88: 7998 | K88: 7060 | L88: 981 | M88: 538136 | N88: 111955 | O88: 149529 | P88: 247267 | Q88: 29385
B89: 2020 | C89: 30213 | D89: 8618 | E89: 4716 | F89: 14695 | G89: 2184 | H89: 31497 | I89: 14175 | J89: 8139 | K89: 7981 | L89: 1202 | M89: 558045 | N89: 116784 | O89: 153878 | P89: 256264 | Q89: 31119
B90: 2021 | C90: 32267 | D90: 8415 | E90: 4827 | F90: 16674 | G90: 2351 | H90: 32137 | I90: 14315 | J90: 8018 | K90: 8542 | L90: 1262 | M90: 586666 | N90: 121015 | O90: 159973 | P90: 273900 | Q90: 31778
B91: 2022 | C91: 32542 | D91: 8525 | E91: 4558 | F91: 17216 | G91: 2243 | H91: 32417 | I91: 13634 | J91: 8131 | K91: 9436 | L91: 1216 | M91: 601530 | N91: 124290 | O91: 163448 | P91: 282669 | Q91: 31123
A92: 전년대비 증가율(%) Percent change from previous year | B92: 1996 | M92: =(M65/M64-1)*100 -> 6.017576047 | N92: 6.012503064 | O92: 9.477524239 | P92: 1.396491228 | Q92: 23.97325692
B93: 1997 | M93: 4.202291584 | N93: 5.781349367 | O93: 5.436654367 | P93: 1.739451404 | Q93: 3.415511043
B94: 1998 | M94: -9.457184457 | N94: -2.183418047 | O94: -12.95974208 | P94: -12.44869731 | Q94: -1.787931463
B95: 1999 | M95: 8.248950979 | N95: 15.54965777 | O95: 5.933814212 | P95: 1.14216156 | Q95: 35.57522124
B96: 2000 | M96: 20.40527366 | N96: 6.075771862 | O96: 14.89958823 | P96: 37.39373144 | Q96: 51.846326
B97: 2001 | M97: 7.701501745 | N97: -1.916852806 | O97: 11.27572676 | P97: 14.04342559 | Q97: -4.188160157
B98: 2002 | M98: 7.899572803 | N98: 7.21306904 | O98: 10.84742713 | P98: 6.798496486 | Q98: -0.6794000769
B99: 2003 | M99: 4.524341421 | N99: 6.456856753 | O99: 6.034832573 | P99: 3.135424637 | Q99: -7.279297883
B100: 2004 | M100: 7.002740364 | N100: 9.974346445 | O100: 1.999173389 | P100: 11.473464 | Q100: -9.7577951
B101: 2005 | M101: =(M74/M73-1)*100 -> 10.91944646 | N101: 1.701379247 | O101: 13.53533534 | P101: 12.61246872 | Q101: 41.21548666
B102: 2006 | M102: 9.052859607 | N102: 4.033931627 | O102: 6.050071379 | P102: 14.63927761 | Q102: 12.35390497
B103: 2007 | M103: 18.16364818 | N103: 28.61942257 | O103: 15.9805058 | P103: 13.05132276 | Q103: 25.30624149
B104: 2008 | C104: =(C77/C76-1)*100 -> 7.117117117 | D104: 1.745600229 | E104: 3.920515575 | F104: 20.39052497 | G104: 20.57335582 | H104: -1.165178113 | I104: 1.205139566 | J104: -10.77781653 | K104: 4.721030043 | L104: 27.87979967 | M104: 3.788334752 | N104: -0.08434685604 | O104: 1.470177324 | P104: 7.466279992 | Q104: 11.31973
B105: 2009 | C105: =(C78/C77-1)*100 -> 5.919648056 | D105: 1.321895655 | E105: 8.759689922 | F105: 7.763892582 | G105: 26.57342657 | H105: 10.43884705 | I105: 3.764994309 | J105: 19.95699765 | K105: 11.73155738 | L105: 43.08093995 | M105: 7.707048825 | N105: 4.133761778 | O105: 9.792624288 | P105: 7.167345553 | Q105: 16.70616114
B106: 2010 | C106: =(C79/C78-1)*100 -> 7.305155143 | D106: 3.566967384 | E106: 0.1900689 | F106: 16.99975327 | G106: 26.74033149 | H106: 4.77310134 | I106: 6.269513121 | J106: 4.236597686 | K106: 16.82714351 | L106: -32.39051095 | M106: 7.035507078 | N106: 6.487970711 | O106: 5.363482019 | P106: 9.501449092 | Q106: 1.289937295
B107: 2011 | C107: =(C80/C79-1)*100 -> 11.75432605 | D107: 5.19967837 | E107: 5.833530946 | F107: 28.30029523 | G107: 7.759372276 | H107: 4.308797127 | I107: -1.016356995 | J107: 8.785368141 | K107: 17.15070644 | L107: 12.01079622 | M107: 8.459955133 | N107: 3.968468358 | O107: 6.323701751 | P107: 11.89427631 | Q107: 15.7832675
B108: 2012 | C108: =(C81/C80-1)*100 -> 3.972902766 | D108: 1.541401274 | E108: -8.178355366 | F108: 12.98487837 | G108: 18.93203883 | H108: 3.102409639 | I108: 5.406706241 | J108: -1.250179624 | K108: 2.278056951 | L108: 7.951807229 | M108: 7.076145596 | N108: 3.50520821 | O108: 5.870094979 | P108: 9.325095487 | Q108: 11.88512068
B109: 2013 | C109: =(C82/C81-1)*100 -> 2.062411209 | D109: -1.605821101 | E109: -6.417764763 | F109: 9.121326738 | G109: 12.58503401 | H109: 5.266892033 | I109: 3.584474886 | J109: 3.987194412 | K109: 12.93809368 | L109: 13.61607143 | M109: 2.143013611 | N109: 1.535793341 | O109: 0.1285096138 | P109: 3.773306062 | Q109: 3.286000364
B110: 2014 | C110: =(C83/C82-1)*100 -> 9.77248728 | D110: 2.588295295 | E110: 7.848761408 | F110: 15.99786695 | G110: 20.06042296 | H110: 7.778614756 | I110: 6.274336933 | J110: 7.668625805 | K110: 11.65893271 | L110: 15.52062868 | M110: 6.607803906 | N110: 3.558906819 | O110: 5.119977905 | P110: 8.470762483 | Q110: 12.2234952
B111: 2015 | C111: =(C84/C83-1)*100 -> 4.923480542 | D111: -0.1988565747 | E111: -10.92843327 | F111: 17.52672107 | G111: 3.472571716 | H111: 2.810373368 | I111: 0.8779813343 | J111: -2.46945672 | K111: 19.45454545 | L111: 6.632653061 | M111: =(M84/M83-1)*100 -> 3.61529511 | N111: 6.969779176 | O111: -0.1120478483 | P111: 4.518551585 | Q111: 3.663420763
B112: 2016 | C112: =(C85/C84-1)*100 -> 3.075512585 | D112: -3.474470735 | E112: 3.854505972 | F112: 5.984744768 | G112: 12.79182879 | H112: 2.375755841 | I112: -0.9457236842 | J112: 2.132196162 | K112: 9.958686671 | L112: 14.67304625 | M112: 1.656216493 | N112: 1.422224026 | O112: 2.576896893 | P112: 0.5878835689 | Q112: 6.075527442
B113: 2017 | C113: =(C86/C85-1)*100 -> 7.447238619 | D113: 3.43181525 | E113: 26.65969681 | F113: 7.805868241 | G113: -12.50539025 | H113: -4.945304582 | I113: -8.495918085 | J113: -5.858559499 | K113: 15.42416452 | L113: -36.02225313 | M113: 4.780486534 | N113: 3.602720544 | O113: 4.073305932 | P113: 7.274625479 | Q113: -5.495447242
B114: 2018 | C114: =(C87/C86-1)*100 -> 5.09858519 | D114: 4.602719222 | E114: -7.552620718 | F114: 10.57001027 | G114: 5.766387383 | H114: 1.750128686 | I114: 0.3931649781 | J114: 2.674982675 | K114: -0.7024156245 | L114: 29.56521739 | M114: 6.498396838 | N114: 2.266803113 | O114: 4.639989565 | P114: 8.926575771 | Q114: 13.04692813
B115: 2019 | C115: =(C88/C87-1)*100 -> 3.304571981 | D115: 3.02885762 | E115: -1.71875 | F115: 6.517532317 | G115: -4.473438956 | H115: 8.892823589 | I115: 6.16056635 | J115: 7.964362851 | K115: 21.80814355 | L115: -17.70134228 | M115: 4.661104304 | N115: 5.687718305 | O115: 3.552656182 | P115: 5.704893084 | Q115: -1.784819011
B116: 2020 | C116: =(C89/C88-1)*100 -> 4.709918902 | D116: -0.2546296296 | E116: 7.108789462 | F116: 6.787297435 | G116: 6.536585366 | H116: 4.519661523 | I116: 0.5604426788 | J116: 1.762940735 | K116: 13.04532578 | L116: 22.52803262 | M116: 3.6996224 | N116: 4.313340181 | O116: 2.908465916 | P116: 3.638576923 | Q116: 5.900969883
B117: 2021 | C117: =(C90/C89-1)*100 -> 6.798398041 | D117: -2.355534927 | E117: 2.353689567 | F117: 13.4671657 | G117: 7.646520147 | H117: 2.03193955 | I117: 0.987654321 | J117: -1.486669124 | K117: 7.029194337 | L117: 4.991680532 | M117: 5.128797857 | N117: 3.622927798 | O117: 3.960930087 | P117: 6.881965473 | Q117: 2.117677303
B118: 2022 | C118: 0.8522639229 | D118: 1.307189542 | E118: -5.572819557 | F118: 3.250569749 | G118: -4.593789877 | H118: 0.8712698758 | I118: -4.757247642 | J118: 1.40932901 | K118: 10.46593304 | L118: -3.645007924 | M118: 2.533639243 | N118: 2.706276081 | O118: 2.172241566 | P118: 3.201533406 | Q118: -2.061174397

Sheet 2-9
A1: 2-9) 연구개발수행기관 및 성별 연구원
A2: R&D performing institutes and researchers by gender
A4: 연도 Year | B4: 연구개발수행기관 R&D performing institutes | J4: 성별 연구원(명) Researchers by gender(Person)
B5: 총계 Total | C5: 공공연구기관 Public research institutes | F5: 대학 Higher educations | I5: 기업체 Business enterprises | J5: 총계 Total
C6: 계 Sub total | D6: 국립·공립·출연(연) Government | E6: 비영리법인 Non-profit | F6: 계 Sub total | G6: 국·공립 National & Pub. | H6: 사립 Private | K6: 여성 Female
A7: 1991 | B7: 2352 | C7: 188 | F7: 221 | G7: 53 | H7: 168 | I7: 1943 | J7: 76252 | K7: 4313
A8: 1992 | B8: 3106 | C8: 212 | F8: 237 | G8: 53 | H8: 184 | I8: 2657 | J8: 88764 | K8: 5764
A9: 1993 | B9: 3318 | C9: 210 | F9: 244 | G9: 51 | H9: 193 | I9: 2864 | J9: 98764 | K9: 6590
A10: 1994 | B10: 2640 | C10: 217 | F10: 244 | G10: 50 | H10: 194 | I10: 2179 | J10: 117446 | K10: 9052
A11: 1995 | B11: 2587 | C11: 178 | F11: 257 | G11: 53 | H11: 204 | I11: 2152 | J11: 128315 | K11: 10235
A12: 1996 | B12: 2856 | C12: 163 | F12: 258 | G12: 53 | H12: 205 | I12: 2435 | J12: 132023 | K12: 11166
A13: 1997 | B13: 2962 | C13: 184 | F13: 271 | G13: 48 | H13: 223 | I13: 2507 | J13: 138434 | K13: 12545
A14: 1998 | B14: 2869 | C14: 183 | F14: 267 | G14: 49 | H14: 218 | I14: 2419 | J14: 129767 | K14: 12317
A15: 1999 | B15: 3059 | C15: 169 | F15: 285 | G15: 56 | H15: 229 | I15: 2605 | J15: 134568 | K15: 13009
A16: 2000 | B16: 4635 | C16: 173 | F16: 268 | G16: 56 | H16: 212 | I16: 4194 | J16: 159973 | K16: 16385
A17: 2001 | B17: 6801 | C17: 188 | F17: 276 | G17: 62 | H17: 214 | I17: 6337 | J17: 178937 | K17: 19930
A18: 2002 | B18: 7210 | C18: 163 | F18: 304 | G18: 61 | H18: 243 | I18: 6743 | J18: 189888 | K18: 22057
A19: 2003 | B19: 7127 | C19: 169 | F19: 310 | G19: 62 | H19: 248 | I19: 6648 | J19: 198171 | K19: 22613
A20: 2004 | B20: 7254 | C20: 159 | F20: 293 | G20: 55 | H20: 238 | I20: 6802 | J20: 209979 | K20: 25198
A21: 2005 | B21: 7761 | C21: 137 | F21: 256 | G21: 51 | H21: 205 | I21: 7368 | J21: 234702 | K21: 30174
A22: 2006 | B22: 9443 | C22: 139 | F22: 268 | G22: 51 | H22: 217 | I22: 9036 | J22: 256598 | K22: 33682
A23: 2007 | B23: 11200 | C23: 188 | F23: 322 | G23: 61 | H23: 261 | I23: 10690 | J23: 289098 | K23: 42977
A24: 2008 | B24: 12822 | C24: 228 | F24: 338 | G24: 65 | H24: 273 | I24: 12256 | J24: 300050 | K24: 46677
A25: 2009 | B25: 15237 | C25: 252 | F25: 359 | G25: 67 | H25: 292 | I25: 14626 | J25: 323175 | K25: 51073
A26: 2010 | B26: 16550 | C26: 261 | D26: 151 | E26: 110 | F26: 352 | G26: 67 | H26: 285 | I26: 15937 | J26: 345912 | K26: 57662
A27: 2011 | B27: 20372 | C27: 268 | D27: 154 | E27: 114 | F27: 350 | G27: 68 | H27: 282 | I27: 19754 | J27: 375176 | K27: 65067
A28: 2012 | B28: 23533 | C28: 272 | D28: 157 | E28: 115 | F28: 344 | G28: 71 | H28: 273 | I28: 22917 | J28: 401724 | K28: 70997
A29: 2013 | B29: 25882 | C29: 326 | D29: 177 | E29: 149 | F29: 371 | G29: 74 | H29: 297 | I29: 25185 | J29: 410333 | K29: 74617
A30: 2014 | B30: 30111 | C30: 348 | D30: 187 | E30: 161 | F30: 371 | G30: 76 | H30: 295 | I30: 29392 | J30: 437447 | K30: 80904
A31: 2015 | B31: 35379 | C31: 372 | D31: 197 | E31: 175 | F31: 365 | G31: 77 | H31: 288 | I31: 34642 | J31: 453262 | K31: 85652
A32: 2016 | B32: 37218 | C32: 372 | D32: 200 | E32: 172 | F32: 368 | G32: 77 | H32: 291 | I32: 36478 | J32: 460769 | K32: 90615
A33: 2017 | B33: 42368 | C33: 375 | D33: 200 | E33: 175 | F33: 364 | G33: 78 | H33: 286 | I33: 41629 | J33: 482796 | K33: 97042
A34: 2018 | B34: 49302 | C34: 401 | D34: 216 | E34: 185 | F34: 365 | G34: 79 | H34: 286 | I34: 48536 | J34: 514170 | K34: 104728
A35: 2019 | B35: 53005 | C35: 419 | D35: 228 | E35: 191 | F35: 368 | G35: 77 | H35: 291 | I35: 52218 | J35: 538136 | K35: 113187
A36: 2020 | B36: 56223 | C36: 415 | D36: 221 | E36: 194 | F36: 363 | G36: 77 | H36: 286 | I36: 55445 | J36: 558045 | K36: 119551
A37: 2021 | B37: 59576 | C37: 433 | D37: 232 | E37: 201 | F37: 366 | G37: 78 | H37: 288 | I37: 58777 | J37: 586666 | K37: 130055
A38: 2022 | B38: 61646 | C38: 458 | D38: 239 | E38: 219 | F38: 361 | G38: 80 | H38: 281 | I38: 60827 | J38: 601530 | K38: 138286
A39: 구성비(%) Percent distribution
A40: 1991 | B40: =B7/$B7*100 -> 100 | C40: 7.993197279 | D40: 0 | E40: 0 | F40: 9.396258503 | G40: 2.253401361 | H40: 7.142857143 | I40: 82.61054422 | J40: =J7/$J7*100 -> 100 | K40: 5.656245082
A41: 1992 | B41: =B8/$B8*100 -> 100 | C41: 6.825499034 | D41: 0 | E41: 0 | F41: 7.630392788 | G41: 1.706374759 | H41: 5.92401803 | I41: 85.54410818 | J41: 100 | K41: 6.493623541
A42: 1993 | B42: =B9/$B9*100 -> 100 | C42: 6.329113924 | D42: 0 | E42: 0 | F42: 7.353827607 | G42: 1.537070524 | H42: 5.816757083 | I42: 86.31705847 | J42: 100 | K42: 6.672471751
A43: 1994 | B43: =B10/$B10*100 -> 100 | C43: 8.21969697 | D43: 0 | E43: 0 | F43: 9.242424242 | G43: 1.893939394 | H43: 7.348484848 | I43: 82.53787879 | J43: 100 | K43: 7.707371899
A44: 1995 | B44: =B11/$B11*100 -> 100 | C44: 6.880556629 | D44: 0 | E44: 0 | F44: 9.934286819 | G44: 2.048705064 | H44: 7.885581755 | I44: 83.18515655 | J44: 100 | K44: 7.97646417
A45: 1996 | B45: =B12/$B12*100 -> 100 | C45: 5.707282913 | D45: 0 | E45: 0 | F45: 9.033613445 | G45: 1.855742297 | H45: 7.177871148 | I45: 85.25910364 | J45: 100 | K45: 8.457617233
A46: 1997 | B46: =B13/$B13*100 -> 100 | C46: 6.212018906 | D46: 0 | E46: 0 | F46: 9.149223498 | G46: 1.620526671 | H46: 7.528696826 | I46: 84.6387576 | J46: 100 | K46: 9.062080125
A47: 1998 | B47: 100 | C47: 6.378529104 | D47: 0 | E47: 0 | F47: 9.306378529 | G47: 1.707912165 | H47: 7.598466365 | I47: 84.31509237 | J47: 100 | K47: 9.491627301
A48: 1999 | B48: 100 | C48: 5.524681268 | D48: 0 | E48: 0 | F48: 9.316770186 | G48: 1.830663616 | H48: 7.486106571 | I48: 85.15854855 | J48: 100 | K48: 9.667231437
A49: 2000 | B49: 100 | C49: 3.732470334 | D49: 0 | E49: 0 | F49: 5.782092772 | G49: 1.20819849 | H49: 4.573894283 | I49: 90.48543689 | J49: 100 | K49: 10.2423534
A50: 2001 | B50: 100 | C50: 2.764299368 | D50: 0 | E50: 0 | F50: 4.058226731 | G50: 0.9116306426 | H50: 3.146596089 | I50: 93.1774739 | J50: 100 | K50: 11.13799829
A51: 2002 | B51: 100 | C51: 2.26074896 | D51: 0 | E51: 0 | F51: 4.216366158 | G51: 0.8460471567 | H51: 3.370319001 | I51: 93.52288488 | J51: 100 | K51: 11.61579457
A52: 2003 | B52: 100 | C52: 2.371264207 | D52: 0 | E52: 0 | F52: 4.349656237 | G52: 0.8699312474 | H52: 3.479724989 | I52: 93.27907956 | J52: 100 | K52: 11.41085224
A53: 2004 | B53: 100 | C53: 2.191894127 | D53: 0 | E53: 0 | F53: 4.039150813 | G53: 0.7582023711 | H53: 3.280948442 | I53: 93.76895506 | J53: 100 | K53: 12.00024764
A54: 2005 | B54: 100 | C54: 1.765236439 | D54: 0 | E54: 0 | F54: 3.298544002 | G54: 0.6571318129 | H54: 2.641412189 | I54: 94.93621956 | J54: 100 | K54: 12.85630289
A55: 2006 | B55: 100 | C55: 1.471989834 | D55: 0 | E55: 0 | F55: 2.838081118 | G55: 0.5400826009 | H55: 2.297998517 | I55: 95.68992905 | J55: 100 | K55: 13.12636887
A56: 2007 | B56: 100 | C56: 1.678571429 | D56: 0 | E56: 0 | F56: 2.875 | G56: 0.5446428571 | H56: 2.330357143 | I56: 95.44642857 | J56: 100 | K56: 14.86589323
A57: 2008 | B57: 100 | C57: 1.77819373 | D57: 0 | E57: 0 | F57: 2.636094213 | G57: 0.5069411948 | H57: 2.129153018 | I57: 95.58571206 | J57: 100 | K57: 15.55640727
A58: 2009 | B58: =B25/$B25*100 -> 100 | C58: 1.653868872 | D58: 0 | E58: 0 | F58: 2.356106845 | G58: 0.4397191048 | H58: 1.91638774 | I58: 95.99002428 | J58: 100 | K58: 15.80351203
A59: 2010 | B59: =B26/$B26*100 -> 100 | C59: 1.577039275 | D59: 0.9123867069 | E59: 0.664652568 | F59: 2.126888218 | G59: 0.4048338369 | H59: 1.722054381 | I59: 96.29607251 | J59: 100 | K59: 16.66955758
A60: 2011 | B60: =B27/$B27*100 -> 100 | C60: 1.315531121 | D60: 0.7559395248 | E60: 0.5595915963 | F60: 1.718044375 | G60: 0.3337914785 | H60: 1.384252896 | I60: 96.9664245 | J60: 100 | K60: 17.34306032
A61: 2012 | B61: =B28/$B28*100 -> 100 | C61: 1.155823737 | D61: 0.6671482599 | E61: 0.488675477 | F61: 1.461777079 | G61: 0.3017039901 | H61: 1.160073089 | I61: 97.38239918 | J61: 100 | K61: 17.67307903
A62: 2013 | B62: =B29/$B29*100 -> 100 | C62: 1.25956263 | D62: 0.6838729619 | E62: 0.5756896685 | F62: 1.433428638 | G62: 0.2859129897 | H62: 1.147515648 | I62: 97.30700873 | J62: 100 | K62: 18.18449893
A63: 2014 | B63: =B30/$B30*100 -> 100 | C63: 1.155723822 | D63: 0.621035502 | E63: 0.5346883199 | F63: 1.232107868 | G63: 0.2523994553 | H63: 0.9797084122 | I63: 97.61216831 | J63: 100 | K63: 18.49458334
A64: 2015 | B64: =B31/$B31*100 -> 100 | C64: 1.051471212 | D64: 0.5568274965 | E64: 0.4946437152 | F64: 1.031685463 | G64: 0.2176432347 | H64: 0.8140422284 | I64: 97.91684333 | J64: 100 | K64: 18.896797
A65: 2016 | B65: =B32/$B32*100 -> 100 | C65: 0.9995163631 | D65: 0.5373743887 | E65: 0.4621419743 | F65: 0.9887688753 | G65: 0.2068891397 | H65: 0.7818797356 | I65: 98.01171476 | J65: 100 | K65: 19.66603656
A66: 2017 | B66: =B33/$B33*100 -> 100 | C66: 0.8851019637 | D66: 0.4720543807 | E66: 0.4130475831 | F66: 0.8591389728 | G66: 0.1841012085 | H66: 0.6750377644 | I66: 98.25575906 | J66: 100 | K66: 20.10000083
A67: 2018 | B67: =B34/$B34*100 -> 100 | C67: 0.8133544278 | D67: 0.4381161008 | E67: 0.375238327 | F67: 0.7403350777 | G67: 0.1602369072 | H67: 0.5800981705 | I67: 98.44631049 | J67: 100 | K67: 20.36836066
A68: 2019 | B68: =B35/$B35*100 -> 100 | C68: 0.7904914631 | D68: 0.4301480992 | E68: 0.3603433638 | F68: 0.6942741251 | G68: 0.1452693142 | H68: 0.5490048109 | I68: 98.51523441 | J68: 100 | K68: 21.0331589
A69: 2020 | B69: 100 | C69: =C36/$B36*100 -> 0.7381320812 | D69: 0.3930775661 | E69: 0.3450545151 | F69: 0.6456432421 | G69: 0.1369546271 | H69: 0.508688615 | I69: 98.61622468 | J69: =J36/$J36*100 -> 100 | K69: 21.42318272
A70: 2021 | B70: =B37/$B37*100 -> 100 | C70: 0.7268027394 | D70: 0.3894185578 | E70: 0.3373841815 | F70: 0.6143413455 | G70: 0.1309252048 | H70: 0.4834161407 | I70: 98.65885592 | J70: =J37/$J37*100 -> 100 | K70: 22.1684911
A71: 2022 | B71: 100 | C71: 0.7429516919 | D71: 0.3876974986 | E71: 0.3552541933 | F71: 0.5856016611 | G71: 0.1297732213 | H71: 0.4558284398 | I71: 98.67144665 | J71: 100 | K71: 22.9890446
A72: 전년대비 증가율(%) Percent change from previous year
A73: 1991 | B73: =(B7/B6-1)*100 -> 
A74: 1992 | B74: =(B8/B7-1)*100 -> 32.05782313 | C74: 12.76595745 | F74: 7.239819005 | G74: 0 | H74: 9.523809524 | I74: 36.74729799 | J74: 16.40874993 | K74: 33.64247623
A75: 1993 | B75: =(B9/B8-1)*100 -> 6.825499034 | C75: -0.9433962264 | F75: 2.953586498 | G75: -3.773584906 | H75: 4.891304348 | I75: 7.790741438 | J75: 11.26582849 | K75: 14.33032616
A76: 1994 | B76: =(B10/B9-1)*100 -> -20.43399638 | C76: 3.333333333 | F76: 0 | G76: -1.960784314 | H76: 0.518134715 | I76: -23.91759777 | J76: 18.91579928 | K76: 37.35963581
A77: 1995 | B77: =(B11/B10-1)*100 -> -2.007575758 | C77: -17.97235023 | F77: 5.327868852 | G77: 6 | H77: 5.154639175 | I77: -1.239100505 | J77: 9.254465882 | K77: 13.06893504
A78: 1996 | B78: =(B12/B11-1)*100 -> 10.39814457 | C78: -8.426966292 | F78: 0.3891050584 | G78: 0 | H78: 0.4901960784 | I78: 13.15055762 | J78: 2.889763473 | K78: 9.096238398
A79: 1997 | B79: =(B13/B12-1)*100 -> 3.711484594 | C79: 12.88343558 | F79: 5.03875969 | G79: -9.433962264 | H79: 8.780487805 | I79: 2.95687885 | J79: 4.855972065 | K79: 12.34999104
A80: 1998 | B80: =(B14/B13-1)*100 -> -3.139770425 | C80: -0.5434782609 | F80: -1.47601476 | G80: 2.083333333 | H80: -2.242152466 | I80: -3.51017152 | J80: -6.260745193 | K80: -1.817457154
A81: 1999 | B81: =(B15/B14-1)*100 -> 6.622516556 | C81: -7.650273224 | F81: 6.741573034 | G81: 14.28571429 | H81: 5.04587156 | I81: 7.689127739 | J81: 3.699707938 | K81: 5.618251198
A82: 2000 | B82: =(B16/B15-1)*100 -> 51.52010461 | C82: 2.366863905 | F82: -5.964912281 | G82: 0 | H82: -7.423580786 | I82: 60.99808061 | J82: 18.8789311 | K82: 25.95126451
A83: 2001 | B83: =(B17/B16-1)*100 -> 46.73139159 | C83: 8.670520231 | F83: 2.985074627 | G83: 10.71428571 | H83: 0.9433962264 | I83: 51.09680496 | J83: 11.85450045 | K83: 21.63564236
A84: 2002 | B84: =(B18/B17-1)*100 -> 6.013821497 | C84: -13.29787234 | F84: 10.14492754 | G84: -1.612903226 | H84: 13.55140187 | I84: 6.406817106 | J84: 6.120031072 | K84: 10.67235324
A85: 2003 | B85: =(B19/B18-1)*100 -> -1.151178918 | C85: 3.680981595 | F85: 1.973684211 | G85: 1.639344262 | H85: 2.057613169 | I85: -1.408868456 | J85: 4.362044995 | K85: 2.520741715
A86: 2004 | B86: =(B20/B19-1)*100 -> 1.781955942 | C86: -5.917159763 | F86: -5.483870968 | G86: -11.29032258 | H86: -4.032258065 | I86: 2.316486161 | J86: 5.958490395 | K86: 11.43147747
A87: 2005 | B87: =(B21/B20-1)*100 -> 6.989247312 | C87: -13.83647799 | F87: -12.62798635 | G87: -7.272727273 | H87: -13.86554622 | I87: 8.321082035 | J87: 11.77403455 | K87: 19.74759902
A88: 2006 | B88: =(B22/B21-1)*100 -> 21.67246489 | C88: 1.459854015 | F88: 4.6875 | G88: 0 | H88: 5.853658537 | I88: 22.63843648 | J88: 9.329277126 | K88: 11.6259031
A89: 2007 | B89: =(B23/B22-1)*100 -> 18.60637509 | C89: 35.25179856 | F89: 20.14925373 | G89: 19.60784314 | H89: 20.2764977 | I89: 18.30455954 | J89: 12.66572616 | K89: 27.59634226
A90: 2008 | B90: =(B24/B23-1)*100 -> 14.48214286 | C90: 21.27659574 | F90: 4.968944099 | G90: 6.557377049 | H90: 4.597701149 | I90: 14.64920486 | J90: 3.788334752 | K90: 8.609256114
A91: 2009 | B91: =(B25/B24-1)*100 -> 18.83481516 | C91: 10.52631579 | F91: 6.213017751 | G91: 3.076923077 | H91: 6.95970696 | I91: 19.33746736 | J91: 7.707048825 | K91: 9.417914605
A92: 2010 | B92: =(B26/B25-1)*100 -> 8.61718186 | C92: 3.571428571 | F92: -1.949860724 | G92: 0 | H92: -2.397260274 | I92: 8.963489676 | J92: 7.035507078 | K92: 12.9011415
A93: 2011 | B93: =(B27/B26-1)*100 -> 23.09365559 | C93: 2.681992337 | D93: 1.986754967 | E93: 3.636363636 | F93: -0.5681818182 | G93: 1.492537313 | H93: -1.052631579 | I93: 23.95055531 | J93: 8.459955133 | K93: 12.84207971
A94: 2012 | B94: =(B28/B27-1)*100 -> 15.51639505 | C94: 1.492537313 | D94: 1.948051948 | E94: 0.8771929825 | F94: -1.714285714 | G94: 4.411764706 | H94: -3.191489362 | I94: 16.01194695 | J94: 7.076145596 | K94: 9.113682819
A95: 2013 | B95: =(B29/B28-1)*100 -> 9.981727787 | C95: 19.85294118 | D95: 12.7388535 | E95: 29.56521739 | F95: 7.848837209 | G95: 4.225352113 | H95: 8.791208791 | I95: 9.896583322 | J95: 2.143013611 | K95: 5.098806992
A96: 2014 | B96: =(B30/B29-1)*100 -> 16.33954099 | C96: 6.748466258 | D96: 5.649717514 | E96: 8.053691275 | F96: 0 | G96: 2.702702703 | H96: -0.6734006734 | I96: 16.70438753 | J96: 6.607803906 | K96: 8.425693877
A97: 2015 | B97: =(B31/B30-1)*100 -> 17.49526751 | C97: 6.896551724 | D97: 5.347593583 | E97: 8.695652174 | F97: -1.617250674 | G97: 1.315789474 | H97: -2.372881356 | I97: 17.86200327 | J97: 3.61529511 | K97: 5.868683872
A98: 2016 | B98: =(B32/B31-1)*100 -> 5.197998813 | C98: 0 | D98: 1.52284264 | E98: -1.714285714 | F98: 0.8219178082 | G98: 0 | H98: 1.041666667 | I98: 5.299924947 | J98: 1.656216493 | K98: 5.794377247
A99: 2017 | B99: =(B33/B32-1)*100 -> 13.83739051 | C99: 0.8064516129 | D99: 0 | E99: 1.744186047 | F99: -1.086956522 | G99: 1.298701299 | H99: -1.718213058 | I99: 14.12083996 | J99: 4.780486534 | K99: 7.092644706
A100: 2018 | B100: =(B34/B33-1)*100 -> 16.36612538 | C100: 6.933333333 | D100: 8 | E100: 5.714285714 | F100: 0.2747252747 | G100: 1.282051282 | H100: 0 | I100: 16.59179899 | J100: 6.498396838 | K100: 7.92028194
A101: 2019 | B101: =(B35/B34-1)*100 -> 7.510851487 | C101: 4.488778055 | D101: 5.555555556 | E101: 3.243243243 | F101: 0.8219178082 | G101: -2.53164557 | H101: 1.748251748 | I101: 7.586121642 | J101: 4.661104304 | K101: 8.077114048
A102: 2020 | B102: 6.071125366 | C102: =(C36/C35-1)*100 -> -0.9546539379 | D102: -3.070175439 | E102: 1.570680628 | F102: -1.358695652 | G102: 0 | H102: -1.718213058 | I102: 6.17986135 | J102: 3.6996224 | K102: 5.622553827
A103: 2021 | B103: =(B37/B36-1)*100 -> 5.96375149 | C103: =(C37/C36-1)*100 -> 4.337349398 | D103: 4.977375566 | E103: 3.608247423 | F103: 0.826446281 | G103: 1.298701299 | H103: 0.6993006993 | I103: 6.009559022 | J103: 5.128797857 | K103: 8.786208396
A104: 2022 | B104: =(B38/B37-1)*100 -> 3.474553511 | C104: 5.773672055 | D104: 3.017241379 | E104: 8.955223881 | F104: -1.366120219 | G104: 2.564102564 | H104: -2.430555556 | I104: 3.487758817 | J104: 2.533639243 | K104: 6.328860867
A106: 주 : 1. 공공연구기관 중 '국립·공립·출연(연)'은 '국·공립 연구기관', '국·공립 병원','정부 출연(연)', '지자체 출연(연)'을 포함하며, 나머지는 모두 '비영리법인'으로 분류
A107: 2. 대학의 '국·공립'은 국·공립대학과 국·공립대학 부속 병원을 포함하며, '사립'은 사립대학과 사립대학 부속병원을 포함

Sheet 2-10
A1: 2-10) 2022년도 연구수행주체별 연구개발비(재원, 비목, 연구개발단계)
A2: R&D expenditure(source of funds, type of costs, type of R&D) by sector of performance, 2022
S4: (단위 : 백만원 Unit : Won, Millions)
A5: 연구수행주체 Sector of performance | B5: 연구개발 수행기관 R&D performing inst. | C5: 총계 Total | D5: 재원 Source of funds | H5: 비목 Type of costs | Q5: 연구개발단계 Type of R&D
D6: 정부 Government | E6: 공공 Other national sources | F6: 민간 Business enterprise | G6: 외국 Rest of the world | H6: 경상비 Current costs | K6: 자본적 지출 Capital costs | Q6: 기초연구 Basic research | R6: 응용연구 Applied research | S6: 개발연구 Experimental development
H7: 소계 Sub total | I7: 인건비 Labour costs | J7: 기타 Other current costs | K7: 소계 Sub total | L7: 기계〮장치 Machinery | M7: 토지 Land | N7: 건물 Buildings | O7: 컴퓨터 소프트웨어 Computer software | P7: 기타지식재산물 Other intellectual properties
A8: 총계 Total | B8: 61646 | C8: 112646008.3 | D8: 25735542.84 | E8: 592786.6098 | F8: 85963730.27 | G8: 353948.5571 | H8: 102814602.8 | I8: 49132848.28 | J8: 53681754.49 | K8: 9831405.509 | L8: 7251024.539 | M8: 222275.447 | N8: 1093974.247 | O8: 815245.517 | P8: 448885.759 | Q8: 16918375.3 | R8: 22455973.76 | S8: 73271659.22
A9: 공공연구기관 Public research institutes | B9: 458 | C9: 12918586.1 | D9: 12187778.45 | E9: 178701.5437 | F9: 450505.9295 | G9: 101600.1734 | H9: 9598848.1 | I9: 3517405.5 | J9: 6081442.6 | K9: 3319738 | L9: 2871621 | M9: 22168 | N9: 352480 | O9: 60932 | P9: 12537 | Q9: 3051047.24 | R9: 3047183.88 | S9: 6820354.98
A10: 국·공립 National & Pub. | B10: 83 | C10: 1019910 | D10: 1019853.844 | E10: 20 | F10: 36.15643783 | G10: 0 | H10: 834700 | I10: 272684 | J10: 562016 | K10: 185210 | L10: 85373 | M10: 0 | N10: 98057 | O10: 1539 | P10: 241 | Q10: 450780.24 | R10: 402120.88 | S10: 167008.88
A11: 정부출연 Gov't funded | B11: 74 | C11: 9273677 | D11: 9014354.535 | E11: 58439.86813 | F11: 177849.465 | G11: 23033.13198 | H11: 6576052 | I11: 2476023 | J11: 4100029 | K11: 2697625 | L11: 2453451 | M11: 13324 | N11: 169809 | O11: 51047 | P11: 9994 | Q11: 2306496 | R11: 2122191 | S11: 4844990
A12: 지방자치단체출연 Local gov't funded | B12: 59 | C12: 252331 | D12: 245949.7511 | E12: 608.9959401 | F12: 5642.55953 | G12: 129.6934226 | H12: 200924 | I12: 78226 | J12: 122698 | K12: 51407 | L12: 35694 | M12: 0 | N12: 15354 | O12: 304 | P12: 55 | Q12: 51625 | R12: 36539 | S12: 164167
A13: 기타비영리 Other non-profit corporation | B13: 201 | C13: 2172625.1 | D13: 1822858.466 | E13: 97242.01465 | F13: 221588.0615 | G13: 30936.55776 | H13: 1790575.1 | I13: 669632.5 | J13: 1120942.6 | K13: 382050 | L13: 293801 | M13: 8844 | N13: 69260 | O13: 7933 | P13: 2212 | Q13: 198738 | R13: 447836 | S13: 1526051.1
A14: 국·공립병원 National & Pub. Hospital | B14: 23 | C14: 25799 | D14: 14979 | E14: 235 | F14: 10585 | G14: 0 | H14: 25546 | I14: 9860 | J14: 15686 | K14: 253 | L14: 253 | M14: 0 | N14: 0 | O14: 0 | P14: 0 | Q14: 14671 | R14: 6485 | S14: 4643
A15: 사립병원 Private hospital | B15: 18 | C15: 174244 | D15: 69782.85766 | E15: 22155.66495 | F15: 34804.68711 | G15: 47500.79028 | H15: 171051 | I15: 10980 | J15: 160071 | K15: 3193 | L15: 3049 | M15: 0 | N15: 0 | O15: 109 | P15: 35 | Q15: 28737 | R15: 32012 | S15: 113495
A16: 대학 Higher educations | B16: 361 | C16: 10306122 | D16: 8431440.619 | E16: 377574.6261 | F16: 1431171.584 | G16: 65935.17067 | H16: 9625294 | I16: 3900459 | J16: 5724835 | K16: 680828 | L16: 635697 | M16: 68 | N16: 7125 | O16: 21814 | P16: 16124 | Q16: 4068689.025 | R16: 3100503.85 | S16: 3136929.125
A17: 국·공립 National & Pub. | B17: 80 | C17: 4531064 | D17: 3785257.798 | E17: 51531.4876 | F17: 659822.1539 | G17: 34452.56022 | H17: 4200693 | I17: 1705449 | J17: 2495244 | K17: 330371 | L17: 307359 | M17: 66 | N17: 5724 | O17: 10207 | P17: 7015 | Q17: 1884039 | R17: 1176467 | S17: 1470558
A18: 사립 Private | B18: 281 | C18: 5775058 | D18: 4646182.821 | E18: 326043.1385 | F18: 771349.4298 | G18: 31482.61045 | H18: 5424601 | I18: 2195010 | J18: 3229591 | K18: 350457 | L18: 328338 | M18: 2 | N18: 1401 | O18: 11607 | P18: 9109 | Q18: 2184650.025 | R18: 1924036.85 | S18: 1666371.125
A19: 기업체 Business enterprises | B19: 60827 | C19: 89421300.18 | D19: 5116323.77 | E19: 36510.44 | F19: 84082052.76 | G19: 186413.213 | H19: 83590460.67 | I19: 41714983.78 | J19: 41875476.89 | K19: 5830839.509 | L19: 3743706.539 | M19: 200039.447 | N19: 734369.247 | O19: 732499.517 | P19: 420224.759 | Q19: 9798639.031 | R19: 16308286.03 | S19: 63314375.12
A20: 정부투자기관 Gov't investment | B20: 51 | C20: 888771 | D20: 74954 | E20: 88 | F20: 813729 | G20: 0 | H20: 738232 | I20: 346169 | J20: 392063 | K20: 150539 | L20: 63905 | M20: 0 | N20: 58549 | O20: 18510 | P20: 9575 | Q20: 307969.86 | R20: 91564.94 | S20: 489236.2
A21: 민간기업 Private companies | B21: 60776 | C21: 88532529.18 | D21: 5041369.77 | E21: 36422.44 | F21: 83268323.76 | G21: 186413.213 | H21: 82852228.67 | I21: 41368814.78 | J21: 41483413.89 | K21: 5680300.509 | L21: 3679801.539 | M21: 200039.447 | N21: 675820.247 | O21: 713989.517 | P21: 410649.759 | Q21: 9490669.171 | R21: 16216721.09 | S21: 62825138.92

Sheet 2-11
A1: 2-11) 2022년도 연구수행주체별 외부로부터 받은 연구개발비 및 외부로 지출한 연구개발비
A2: R&D expenditure received and paid to outside by sector of performance, 2022
S4: (단위 : 백만원 Unit : Won, Millions)
A5: 연구수행주체 Sector of performance 재원 Source of funds | B5: 총계 Total | D5: 국·공립연구기관 (의료기관 포함) Nat'l & Pub. Research inst. | F5: 정부출연 Gov't funded | H5: 지방자치단체출연 Local gov't funded | J5: 비영리법인 Non-profit corporation | L5: 국·공립대학 Nat'l & Pub. univ. | N5: 사립대학 Private univ. | P5: 정부투자기관 Gov't investment | R5: 민간기업체 Private companies
B6: 수취 Received | C6: 지불 Paid | D6: 수취 Received | E6: 지불 Paid | F6: 수취 Received | G6: 지불 Paid | H6: 수취 Received | I6: 지불 Paid | J6: 수취 Received | K6: 지불 Paid | L6: 수취 Received | M6: 지불 Paid | N6: 수취 Received | O6: 지불 Paid | P6: 수취 Received | Q6: 지불 Paid | R6: 수취 Received | S6: 지불 Paid
A7: 총계 Total | B7: 31158342.12 | C7: 7010126.379 | D7: 1044988 | E7: 252734 | F7: 9589212 | G7: 840305 | H7: 269320 | I7: 39521 | J7: 2475612.1 | K7: 227540 | L7: 4433067 | M7: 102902 | N7: 5648385 | O7: 105207 | P7: 94978 | Q7: 113192 | R7: 7602780.015 | S7: 5328725.379
A8: 정부·지방자치단체 Gov't · Local gov't | B8: 26180037.87 | C8: 919908.84 | D8: 1034108 | E8: 78034 | F8: 9314513 | G8: 266968 | H8: 262530 | I8: 23591 | J8: 2051805.1 | K8: 48081 | L8: 3672300 | M8: 45162 | N8: 4728458 | O8: 39325 | P8: 74954 | Q8: 20660 | R8: 5041369.77 | S8: 398087.84
A9: 중앙행정기관 Central gov't | B9: 22722861.05 | C9: 0 | D9: 858755 | E9: 0 | F9: 8993610 | G9: 0 | H9: 115298 | I9: 0 | J9: 1849108.1 | K9: 0 | L9: 3231583 | M9: 0 | N9: 4136333 | O9: 0 | P9: 68890 | Q9: 0 | R9: 3469283.952 | S9: 0
A10: 지방자치단체 Local gov't | B10: 1126527.396 | C10: 0 | D10: 83380 | E10: 0 | F10: 186648 | G10: 0 | H10: 143801 | I10: 0 | J10: 174671 | K10: 0 | L10: 151042 | M10: 0 | N10: 217723 | O10: 0 | P10: 1406 | Q10: 0 | R10: 167856.396 | S10: 0
A11: 국·공립대학교 Nat'l & Pub. univ. | B11: 41691.343 | C11: 423488.81 | D11: 43 | E11: 52618 | F11: 5495 | G11: 112088 | H11: 18 | I11: 2942 | J11: 2638 | K11: 29725 | L11: 8793 | M11: 11855 | N11: 9946 | O11: 14690 | P11: 1115 | Q11: 6693 | R11: 13643.343 | S11: 192877.81
A12: 정부출연연구기관 Gov't funded | B12: 1998030.966 | C12: 348104.608 | D12: 6102 | E12: 18685 | F12: 112251 | G12: 123973 | H12: 2078 | I12: 105 | J12: 17965 | K12: 14279 | L12: 236961 | M12: 30777 | N12: 325457 | O12: 21369 | P12: 1543 | Q12: 10378 | R12: 1295673.966 | S12: 128538.608
A13: 지방자치단체출연연구기관 Local gov't funded | B13: 93591.328 | C13: 28534.431 | D13: 400 | E13: 1226 | F13: 453 | G13: 4137 | H13: 1208 | I13: 1994 | J13: 952 | K13: 3921 | L13: 16555 | M13: 1343 | N13: 17408 | O13: 1025 | P13: 1000 | Q13: 0 | R13: 55615.328 | S13: 14888.431
A14: 국·공립연구기관(의료기관 포함) Nat'l & Pub. Research inst. | B14: 197335.785 | C14: 119780.991 | D14: 85428 | E14: 5505 | F14: 16056 | G14: 26770 | H14: 127 | I14: 18550 | J14: 6471 | K14: 156 | L14: 27366 | M14: 1187 | N14: 21591 | O14: 2241 | P14: 1000 | Q14: 3589 | R14: 39296.785 | S14: 61782.991
A15: 공공 Public | B15: 294378.44 | C15: 785513.901 | D15: 255 | E15: 125659 | F15: 64120 | G15: 179435 | H15: 642 | I15: 3108 | J15: 41420 | K15: 49681 | L15: 52571 | M15: 18438 | N15: 98860 | O15: 31362 | P15: 88 | Q15: 17256 | R15: 36422.44 | S15: 360574.901
A16: 사립대학(교) Private univ. | B16: 32530.814 | C16: 495413.751 | D16: 0 | E16: 79870 | F16: 4875 | G16: 144560 | H16: 42 | I16: 3036 | J16: 1056 | K16: 17258 | L16: 3469 | M16: 14166 | N16: 15720 | O16: 27954 | P16: 88 | Q16: 8755 | R16: 7280.814 | S16: 199814.751
A17: 비영리 법인 Non-profit corporation | B17: 261847.626 | C17: 290100.15 | D17: 255 | E17: 45789 | F17: 59245 | G17: 34875 | H17: 600 | I17: 72 | J17: 40364 | K17: 32423 | L17: 49102 | M17: 4272 | N17: 83140 | O17: 3408 | P17: 0 | Q17: 8501 | R17: 29141.626 | S17: 160760.15
A18: 민간 Business enterprises | B18: 4303970.592 | C18: 3321889.649 | D18: 10625 | E18: 47755 | F18: 186503 | G18: 386339 | H18: 5998 | I18: 12822 | J18: 279791 | K18: 111915 | L18: 673358 | M18: 33470 | N18: 789185 | O18: 30766 | P18: 19936 | Q18: 73653 | R18: 2338574.592 | S18: 2625169.649
A19: 민간기업체 Private companies | B19: 4166460.429 | C19: 3297680.629 | D19: 10625 | E19: 45438 | F19: 154581 | G19: 383089 | H19: 4109 | I19: 12815 | J19: 273815 | K19: 101344 | L19: 628542 | M19: 33355 | N19: 761566 | O19: 30526 | P19: 14292 | Q19: 69637 | R19: 2318930.429 | S19: 2621476.629
A20: 정부투자〮재투자기관 Gov't investment | B20: 137510.163 | C20: 24209.02 | D20: 0 | E20: 2317 | F20: 31922 | G20: 3250 | H20: 1889 | I20: 7 | J20: 5976 | K20: 10571 | L20: 44816 | M20: 115 | N20: 27619 | O20: 240 | P20: 5644 | Q20: 4016 | R20: 19644.163 | S20: 3693.02
A21: 외국 Rest of the world | B21: 379955.213 | C21: 1982813.989 | D21: 0 | E21: 1286 | F21: 24076 | G21: 7563 | H21: 150 | I21: 0 | J21: 102596 | K21: 17863 | L21: 34838 | M21: 5832 | N21: 31882 | O21: 3754 | P21: 0 | Q21: 1623 | R21: 186413.213 | S21: 1944892.989
A23: 주 : 1. 연구수행주체 중 '국·공립연구기관(의료기관 포함)'은 '국·공립연구기관'과 '국·공립병원'의 합
A24: 2. 연구수행주체 중 '비영리 법인'는 '기타 비영리'와 '사립병원'의 합

Sheet 2-12
A1: 2-12) 2022년도 연구수행주체별 연구개발인력, 연구원(전공, 학위), 연구원 1인당 연구개발비
A2: R&D personnel, researchers(major field of study, degree) and R&D expenditure per researcher by sector of performance, 2022
Q4: (단위 : 명, 백만원 Unit : Headcount, Won, Millions)
A5: 연구수행주체 Sector of performance | B5: 연구개발인력 R&D personnel | F5: 전공별 연구원 Researchers by major field of study | L5: 학위별 연구원 Researchers by degree | P5: 연구개발비 R&D expenditures
B6: 총계 Total | C6: 연구원 Researchers | D6: 연구보조원 Other R&D personnel | F6: 이학 Natural sciences | G6: 공학 Engineering & technology | H6: 의〮약보건학 Medical & health sciences | I6: 농업과학 Agricultural sciences | J6: 인문학 Humanities | K6: 사회과학 Social sciences | L6: 박사 Doctoral | M6: 석사 Master's | N6: 학사 Bachelor's | O6: 기타 Others | P6: 계 Total | Q6: 연구원1인당 (1,000 won) Per researcher
D7: 연구지원·기능 Technicians and equivalent staff | E7: 연구행정·기타 Other supporting staff
A8: 총계 Total | B8: 813763 | C8: 601530 | D8: 134590 | E8: 77643 | F8: 93889 | G8: 394529 | H8: 36765 | I8: 11388 | J8: 32542 | K8: 32417 | L8: 124290 | M8: 163448 | N8: 282669 | O8: 31123 | P8: 112646008.3 | Q8: =IFERROR(P8*1000/C8,"-") -> 187265.8193
A9: 공공연구기관 Public research institutes | B9: 68501 | C9: 43406 | D9: 13884 | E9: 11211 | F9: 8369 | G9: 22418 | H9: 3247 | I9: 2755 | J9: 893 | K9: 5724 | L9: 22464 | M9: 14792 | N9: 5759 | O9: 391 | P9: 12918586.1 | Q9: =IFERROR(P9*1000/C9,"-") -> 297622.1283
A10: 국·공립 National & Pub. | B10: 13275 | C10: 6087 | D10: 5183 | E10: 2005 | F10: 1850 | G10: 1006 | H10: 580 | I10: 2133 | J10: 256 | K10: 262 | L10: 3095 | M10: 2273 | N10: 683 | O10: 36 | P10: 1019910 | Q10: 167555.446
A11: 정부출연 Gov't funded | B11: 34678 | C11: 22995 | D11: 5273 | E11: 6410 | F11: 4334 | G11: 14135 | H11: 528 | I11: 344 | J11: 184 | K11: 3470 | L11: 14679 | M11: 7016 | N11: 1237 | O11: 63 | P11: 9273677 | Q11: 403291.0198
A12: 지방자치단체출연 Local gov't funded | B12: 2900 | C12: 1940 | D12: 419 | E12: 541 | F12: 326 | G12: 819 | H12: 70 | I12: 72 | J12: 103 | K12: 550 | L12: 928 | M12: 731 | N12: 278 | O12: 3 | P12: 252331 | Q12: 130067.5258
A13: 기타비영리 Other non-profit corporation | B13: 15236 | C13: 11099 | D13: 2057 | E13: 2080 | F13: 1645 | G13: 6374 | H13: 1180 | I13: 177 | J13: 340 | K13: 1383 | L13: 3275 | M13: 4374 | N13: 3192 | O13: 258 | P13: 2172625.1 | Q13: 195749.6261
A14: 국·공립병원 National & Pub. hospital | B14: 721 | C14: 602 | D14: 88 | E14: 31 | F14: 31 | G14: 24 | H14: 497 | I14: 4 | J14: 5 | K14: 41 | L14: 177 | M14: 227 | N14: 187 | O14: 11 | P14: 25799 | Q14: 42855.48173
A15: 사립병원 Private hospital | B15: 1691 | C15: 683 | D15: 864 | E15: 144 | F15: 183 | G15: 60 | H15: 392 | I15: 25 | J15: 5 | K15: 18 | L15: 310 | M15: 171 | N15: 182 | O15: 20 | P15: 174244 | Q15: 255115.6662
A16: 대학 Higher educations | B16: 222280 | C16: 114854 | D16: 60694 | E16: 46732 | F16: 16714 | G16: 41834 | H16: 25682 | I16: 4533 | J16: 10799 | K16: 15292 | L16: 67351 | M16: 38643 | N16: 7906 | O16: 954 | P16: 10306122 | Q16: 89732.37327
A17: 국·공립 National & Pub. | B17: 89807 | C17: 45475 | D17: 23982 | E17: 20350 | F17: 7959 | G17: 17593 | H17: 8794 | I17: 3494 | J17: 2987 | K17: 4648 | L17: 23515 | M17: 18036 | N17: 3560 | O17: 364 | P17: 4531064 | Q17: 99638.57064
A18: 사립 Private | B18: 132473 | C18: 69379 | D18: 36712 | E18: 26382 | F18: 8755 | G18: 24241 | H18: 16888 | I18: 1039 | J18: 7812 | K18: 10644 | L18: 43836 | M18: 20607 | N18: 4346 | O18: 590 | P18: 5775058 | Q18: 83239.2799
A19: 기업체 Business enterprises | B19: 522982 | C19: 443270 | D19: 60012 | E19: 19700 | F19: 68806 | G19: 330277 | H19: 7836 | I19: 4100 | J19: 20850 | K19: 11401 | L19: 34475 | M19: 110013 | N19: 269004 | O19: 29778 | P19: 89421300.18 | Q19: 201730.9996
A20: 정부투자기관 Gov't investment | B20: 3987 | C20: 2836 | D20: 400 | E20: 751 | F20: 182 | G20: 2432 | H20: 30 | I20: 29 | J20: 35 | K20: 128 | L20: 867 | M20: 1147 | N20: 791 | O20: 31 | P20: 888771 | Q20: 313388.9281
A21: 민간기업 Private companies | B21: 518995 | C21: 440434 | D21: 59612 | E21: 18949 | F21: 68624 | G21: 327845 | H21: 7806 | I21: 4071 | J21: 20815 | K21: 11273 | L21: 33608 | M21: 108866 | N21: 268213 | O21: 29747 | P21: 88532529.18 | Q21: 201012.0226

Sheet 2-13
A1: 2-13) 2022년도 전공별 연구원(학위·성)
A2: Researchers(degree & gender) by major field of study, 2022
A5: 전공 Major field of study | B5: 계 Total | E5: 박사 Doctoral | H5: 석사 Master's | K5: 학사 Bachelor's | N5: 기타 Others
C6: 남성 Male | D6: 여성 Female | F6: 남성 Male | G6: 여성 Female | I6: 남성 Male | J6: 여성 Female | L6: 남성 Male | M6: 여성 Female | O6: 남성 Male | P6: 여성 Female
A7: 총계 Total | B7: 601530 | C7: 463244 | D7: 138286 | E7: 124290 | F7: 94613 | G7: 29677 | H7: 163448 | I7: 119990 | J7: 43458 | K7: 282669 | L7: 222685 | M7: 59984 | N7: 31123 | O7: 25956 | P7: 5167
A8: 이학 Natural sciences | B8: 93889 | C8: 64724 | D8: 29165 | E8: 22853 | F8: 16991 | G8: 5862 | H8: 30175 | I8: 18582 | J8: 11593 | K8: 36350 | L8: 25401 | M8: 10949 | N8: 4511 | O8: 3750 | P8: 761
A9: 공학 Engineering & technology | B9: 394529 | C9: 339791 | D9: 54738 | E9: 56673 | F9: 50379 | G9: 6294 | H9: 105503 | I9: 88491 | J9: 17012 | K9: 210598 | L9: 181106 | M9: 29492 | N9: 21755 | O9: 19815 | P9: 1940
A10: 의〮약〮보건학 Medical & health sciences | B10: 36765 | C10: 17800 | D10: 18965 | E10: 17985 | F10: 10270 | G10: 7715 | H10: 11016 | I10: 4561 | J10: 6455 | K10: 6651 | L10: 2452 | M10: 4199 | N10: 1113 | O10: 517 | P10: 596
A11: 농업과학 Agricultural sciences | B11: 11388 | C11: 7546 | D11: 3842 | E11: 4620 | F11: 3451 | G11: 1169 | H11: 4065 | I11: 2275 | J11: 1790 | K11: 2418 | L11: 1603 | M11: 815 | N11: 285 | O11: 217 | P11: 68
A12: 인문학 Humanities | B12: 32542 | C12: 14782 | D12: 17760 | E12: 8525 | F12: 4777 | G12: 3748 | H12: 4558 | I12: 2134 | J12: 2424 | K12: 17216 | L12: 6906 | M12: 10310 | N12: 2243 | O12: 965 | P12: 1278
A13: 사회과학 Social sciences | B13: 32417 | C13: 18601 | D13: 13816 | E13: 13634 | F13: 8745 | G13: 4889 | H13: 8131 | I13: 3947 | J13: 4184 | K13: 9436 | L13: 5217 | M13: 4219 | N13: 1216 | O13: 692 | P13: 524
A14: 공공연구기관 Public research institutes | B14: 43406 | C14: 30645 | D14: 12761 | E14: 22464 | F14: 17610 | G14: 4854 | H14: 14792 | I14: 9477 | J14: 5315 | K14: 5759 | L14: 3320 | M14: 2439 | N14: 391 | O14: 238 | P14: 153
A15: 이학 Natural sciences | B15: 8369 | C15: 5471 | D15: 2898 | E15: 5204 | F15: 3860 | G15: 1344 | H15: 2296 | I15: 1184 | J15: 1112 | K15: 845 | L15: 410 | M15: 435 | N15: 24 | O15: 17 | P15: 7
A16: 공학 Engineering & technology | B16: 22418 | C16: 18593 | D16: 3825 | E16: 11395 | F16: 10110 | G16: 1285 | H16: 8038 | I16: 6327 | J16: 1711 | K16: 2766 | L16: 2003 | M16: 763 | N16: 219 | O16: 153 | P16: 66
A17: 의〮약〮보건학 Medical & health sciences | B17: 3247 | C17: 1332 | D17: 1915 | E17: 1453 | F17: 742 | G17: 711 | H17: 982 | I17: 369 | J17: 613 | K17: 748 | L17: 204 | M17: 544 | N17: 64 | O17: 17 | P17: 47
A18: 농업과학 Agricultural sciences | B18: 2755 | C18: 1806 | D18: 949 | E18: 1499 | F18: 1094 | G18: 405 | H18: 873 | I18: 467 | J18: 406 | K18: 378 | L18: 242 | M18: 136 | N18: 5 | O18: 3 | P18: 2
A19: 인문학 Humanities | B19: 893 | C19: 376 | D19: 517 | E19: 192 | F19: 109 | G19: 83 | H19: 367 | I19: 143 | J19: 224 | K19: 301 | L19: 108 | M19: 193 | N19: 33 | O19: 16 | P19: 17
A20: 사회과학 Social sciences | B20: 5724 | C20: 3067 | D20: 2657 | E20: 2721 | F20: 1695 | G20: 1026 | H20: 2236 | I20: 987 | J20: 1249 | K20: 721 | L20: 353 | M20: 368 | N20: 46 | O20: 32 | P20: 14
A21: 대학 Higher educations | B21: 114854 | C21: 74411 | D21: 40443 | E21: 67351 | F21: 47323 | G21: 20028 | H21: 38643 | I21: 23162 | J21: 15481 | K21: 7906 | L21: 3518 | M21: 4388 | N21: 954 | O21: 408 | P21: 546
A22: 이학 Natural sciences | B22: 16714 | C22: 11315 | D22: 5399 | E22: 9168 | F22: 6706 | G22: 2462 | H22: 6289 | I22: 3933 | J22: 2356 | K22: 1212 | L22: 650 | M22: 562 | N22: 45 | O22: 26 | P22: 19
A23: 공학 Engineering & technology | B23: 41834 | C23: 33310 | D23: 8524 | E23: 21958 | F23: 18796 | G23: 3162 | H23: 17398 | I23: 12968 | J23: 4430 | K23: 2330 | L23: 1449 | M23: 881 | N23: 148 | O23: 97 | P23: 51
A24: 의〮약〮보건학 Medical & health sciences | B24: 25682 | C24: 12537 | D24: 13145 | E24: 15204 | F24: 8702 | G24: 6502 | H24: 6888 | I24: 2687 | J24: 4201 | K24: 3111 | L24: 1004 | M24: 2107 | N24: 479 | O24: 144 | P24: 335
A25: 농업과학 Agricultural sciences | B25: 4533 | C25: 2919 | D25: 1614 | E25: 2576 | F25: 1921 | G25: 655 | H25: 1844 | I25: 954 | J25: 890 | K25: 94 | L25: 35 | M25: 59 | N25: 19 | O25: 9 | P25: 10
A26: 인문학 Humanities | B26: 10799 | C26: 5724 | D26: 5075 | E26: 7984 | F26: 4465 | G26: 3519 | H26: 2430 | I26: 1096 | J26: 1334 | K26: 253 | L26: 99 | M26: 154 | N26: 132 | O26: 64 | P26: 68
A27: 사회과학 Social sciences | B27: 15292 | C27: 8606 | D27: 6686 | E27: 10461 | F27: 6733 | G27: 3728 | H27: 3794 | I27: 1524 | J27: 2270 | K27: 906 | L27: 281 | M27: 625 | N27: 131 | O27: 68 | P27: 63
A28: 기업체 Business enterprises | B28: 443270 | C28: 358188 | D28: 85082 | E28: 34475 | F28: 29680 | G28: 4795 | H28: 110013 | I28: 87351 | J28: 22662 | K28: 269004 | L28: 215847 | M28: 53157 | N28: 29778 | O28: 25310 | P28: 4468
A29: 이학 Natural sciences | B29: 68806 | C29: 47938 | D29: 20868 | E29: 8481 | F29: 6425 | G29: 2056 | H29: 21590 | I29: 13465 | J29: 8125 | K29: 34293 | L29: 24341 | M29: 9952 | N29: 4442 | O29: 3707 | P29: 735
A30: 공학 Engineering & technology | B30: 330277 | C30: 287888 | D30: 42389 | E30: 23320 | F30: 21473 | G30: 1847 | H30: 80067 | I30: 69196 | J30: 10871 | K30: 205502 | L30: 177654 | M30: 27848 | N30: 21388 | O30: 19565 | P30: 1823
A31: 의〮약〮보건학 Medical & health sciences | B31: 7836 | C31: 3931 | D31: 3905 | E31: 1328 | F31: 826 | G31: 502 | H31: 3146 | I31: 1505 | J31: 1641 | K31: 2792 | L31: 1244 | M31: 1548 | N31: 570 | O31: 356 | P31: 214
A32: 농업과학 Agricultural sciences | B32: 4100 | C32: 2821 | D32: 1279 | E32: 545 | F32: 436 | G32: 109 | H32: 1348 | I32: 854 | J32: 494 | K32: 1946 | L32: 1326 | M32: 620 | N32: 261 | O32: 205 | P32: 56
A33: 인문학 Humanities | B33: 20850 | C33: 8682 | D33: 12168 | E33: 349 | F33: 203 | G33: 146 | H33: 1761 | I33: 895 | J33: 866 | K33: 16662 | L33: 6699 | M33: 9963 | N33: 2078 | O33: 885 | P33: 1193
A34: 사회과학 Social sciences | B34: 11401 | C34: 6928 | D34: 4473 | E34: 452 | F34: 317 | G34: 135 | H34: 2101 | I34: 1436 | J34: 665 | K34: 7809 | L34: 4583 | M34: 3226 | N34: 1039 | O34: 592 | P34: 447

Sheet 2-14
A1: 2-14) 2022년도 연구수행주체별 연구원(연령·성)
A2: Researchers(age & gender) by sector of performance, 2022
M4: (단위 : 명 Unit : Headcount)
A5: 연구수행주체 Sector of performance | B5: 계 Total | D5: 29세이하 ~ 29years | F5: 30∼39세 30∼39 years | H5: 40∼49세 40∼49 years | J5: 50∼59세 50∼59 years | L5: 60세이상 60~ years
C6: 여성 Female | E6: 여성 Female | G6: 여성 Female | I6: 여성 Female | K6: 여성 Female | M6: 여성 Female
A7: 총계 Total | B7: 601530 | C7: 138286 | D7: 91889 | E7: 38562 | F7: 221517 | G7: 58564 | H7: 179820 | I7: 29379 | J7: 84321 | K7: 10048 | L7: 23983 | M7: 1733
A8: 공공연구기관 Public research institutes | B8: 43406 | C8: 12761 | D8: 3988 | E8: 2203 | F8: 15311 | G8: 5610 | H8: 13582 | I8: 3587 | J8: 8453 | K8: 1267 | L8: 2072 | M8: 94
A9: 국·공립 National & Pub. | B9: 6087 | C9: 2622 | D9: 478 | E9: 335 | F9: 1954 | G9: 1010 | H9: 2050 | I9: 874 | J9: 1579 | K9: 400 | L9: 26 | M9: 3
A10: 정부출연 Gov't funded | B10: 22995 | C10: 5406 | D10: 1624 | E10: 783 | F10: 7657 | G10: 2457 | H10: 7096 | I10: 1514 | J10: 4958 | K10: 584 | L10: 1660 | M10: 68
A11: 지방자치단체출연 Local gov't funded | B11: 1940 | C11: 717 | D11: 149 | E11: 109 | F11: 728 | G11: 323 | H11: 698 | I11: 215 | J11: 332 | K11: 68 | L11: 33 | M11: 2
A12: 기타비영리 Other non-profit corporation | B12: 11099 | C12: 3325 | D12: 1637 | E12: 902 | F12: 4522 | G12: 1531 | H12: 3229 | I12: 728 | J12: 1398 | K12: 156 | L12: 313 | M12: 8
A13: 국·공립병원 National & Pub. hospital | B13: 602 | C13: 326 | D13: 42 | E13: 28 | F13: 214 | G13: 132 | H13: 238 | I13: 132 | J13: 89 | K13: 29 | L13: 19 | M13: 5
A14: 사립병원 Private hospital | B14: 683 | C14: 365 | D14: 58 | E14: 46 | F14: 236 | G14: 157 | H14: 271 | I14: 124 | J14: 97 | K14: 30 | L14: 21 | M14: 8
A15: 대학 Higher educations | B15: 114854 | C15: 40443 | D15: 21735 | E15: 9045 | F15: 36191 | G15: 13946 | H15: 26383 | I15: 10599 | J15: 20836 | K15: 5586 | L15: 9709 | M15: 1267
A16: 국·공립 National & Pub. | B16: 45475 | C16: 15000 | D16: 10263 | E16: 3936 | F16: 14962 | G16: 5497 | H16: 9727 | I16: 3543 | J16: 7023 | K16: 1693 | L16: 3500 | M16: 331
A17: 사립 Private | B17: 69379 | C17: 25443 | D17: 11472 | E17: 5109 | F17: 21229 | G17: 8449 | H17: 16656 | I17: 7056 | J17: 13813 | K17: 3893 | L17: 6209 | M17: 936
A18: 기업체 Business enterprises | B18: 443270 | C18: 85082 | D18: 66166 | E18: 27314 | F18: 170015 | G18: 39008 | H18: 139855 | I18: 15193 | J18: 55032 | K18: 3195 | L18: 12202 | M18: 372
A19: 정부투자기관 Gov't investment | B19: 2836 | C19: 413 | D19: 172 | E19: 68 | F19: 901 | G19: 178 | H19: 896 | I19: 111 | J19: 808 | K19: 52 | L19: 59 | M19: 4
A20: 민간기업 Private companies | B20: 440434 | C20: 84669 | D20: 65994 | E20: 27246 | F20: 169114 | G20: 38830 | H20: 138959 | I20: 15082 | J20: 54224 | K20: 3143 | L20: 12143 | M20: 368

Sheet 2-15
A1: 2-15) 2022년도 연구수행주체별 연구개발인력(총수, 상근상당)
A2: R&D personnel(Headcount, FTE) by sector of performance, 2022
J4: (단위 : 명 Unit : Headcount, FTE)
A5: 연구수행주체 Sector of performance | B5: 연구원 Researchers | E5: 연구보조원 Other R&D personnel
E6: 연구지원·기능 Technicians and equivalent staff | H6: 연구행정·기타 Other supporting staff
B7: 총수(A) Headcount(A) | C7: 상근상당(B) FTE(B) | D7: B/A | E7: 총수(A) Headcount(A) | F7: 상근상당(B) FTE(B) | G7: B/A | H7: 총수(A) Headcount(A) | I7: 상근상당(B) FTE(B) | J7: B/A
A8: 총계 Total | B8: 601530 | C8: 488773.7625 | D8: 0.8125509326 | E8: 134590 | F8: 79569.24263 | G8: 0.5911972853 | H8: 77643 | I8: 33852.61829 | J8: 0.4360034811
A9: 공공연구기관 Public research institutes | B9: 43406 | C9: 37428.51694 | D9: 0.862289014 | E9: 13884 | F9: 10190.60211 | G9: 0.7339817133 | H9: 11211 | I9: 5781.0441 | J9: 0.5156582018
A10: 국·공립 National & Pub. | B10: 6087 | C10: 4547.173 | D10: 0.7470302284 | E10: 5183 | F10: 3631.85 | G10: 0.7007235192 | H10: 2005 | I10: 709.86 | J10: 0.3540448878
A11: 정부출연 Gov't funded | B11: 22995 | C11: 22007.1712 | D11: 0.957041583 | E11: 5273 | F11: 4278.157 | G11: 0.811332638 | H11: 6410 | I11: 3688.7904 | J11: 0.5754743214
A12: 지방자치단체출연 Local gov't funded | B12: 1940 | C12: 1711.583 | D12: 0.8822592784 | E12: 419 | F12: 266.735 | G12: 0.6365990453 | H12: 541 | I12: 212.6236 | J12: 0.3930195933
A13: 기타비영리 Other non-profit corporation | B13: 11099 | C13: 8438.9028 | D13: 0.7603300117 | E13: 2057 | F13: 1538.304 | G13: 0.7478385999 | H13: 2080 | I13: 1061.5503 | J13: 0.5103607212
A14: 국·공립병원 National & Pub. hospital | B14: 602 | C14: 199.9692 | D14: 0.3321747508 | E14: 88 | F14: 24.6998 | G14: 0.2806795455 | H14: 31 | I14: 20.0498 | J14: 0.6467677419
A15: 사립병원 Private hospital | B15: 683 | C15: 523.7177436 | D15: 0.7667902542 | E15: 864 | F15: 450.8563077 | G15: 0.5218244302 | H15: 144 | I15: 88.17 | J15: 0.6122916667
A16: 대학 Higher educations | B16: 114854 | C16: 47423.18554 | D16: 0.4128997296 | E16: 60694 | F16: 25046.02052 | G16: 0.4126605681 | H16: 46732 | I16: 18969.73419 | J16: 0.4059260076
A17: 국·공립 National & Pub. | B17: 45475 | C17: 17204.36275 | D17: 0.3783257339 | E17: 23982 | F17: 7887.009653 | G17: 0.3288720562 | H17: 20350 | I17: 7670.741934 | J17: 0.3769406356
A18: 사립 Private | B18: 69379 | C18: 30218.82279 | D18: 0.4355615214 | E18: 36712 | F18: 17159.01087 | G18: 0.4673951533 | H18: 26382 | I18: 11298.99225 | J18: 0.4282841427
A19: 기업체 Business enterprises | B19: 443270 | C19: 403922.06 | D19: 0.9112325671 | E19: 60012 | F19: 44332.62 | G19: 0.7387292541 | H19: 19700 | I19: 9101.84 | J19: 0.462022335
A20: 정부투자기관 Gov't investment | B20: 2836 | C20: 2048.81 | D20: 0.7224294781 | E20: 400 | F20: 236.95 | G20: 0.592375 | H20: 751 | I20: 182.97 | J20: 0.2436351531
A21: 민간기업 Private companies | B21: 440434 | C21: 401873.25 | D21: 0.9124482896 | E21: 59612 | F21: 44095.67 | G21: 0.7397112997 | H21: 18949 | I21: 8918.87 | J21: 0.4706776083

Sheet 2-16
A1: 2-16) 2022년도 연구수행주체별 연구개발비(지입, 부담, 지출, 사용)
A2: R&D expenditure(internal and external funds) by sector of performance, 2022
G4: (단위 : 백만원 Unit : Won, Millions)
A5: 연구수행주체 Sector of performance | B5: 연구개발 수행기관 R&D performing inst. | C5: 외부로부터 받은 연구개발비(A) Received outside | D5: 자체부담 연구개발비(B) Financed by own funds | E5: 외부로 지출한 연구개발비(C) Paid outside | F5: 자체사용 연구개발비 (D=A+B-C) Intramural expenditure | G5: 자체부담대비 자체사용비율 D/B(%)
A6: 총계 Total | B6: 61646 | C6: 31158342.11 | D6: 88497792.54 | E6: 7010126.379 | F6: 112646008.3 | G6: 127.2868001
A7: 공공연구기관 Public research institutes | B7: 458 | C7: 13379132.1 | D7: 899554 | E7: 1360100 | F7: 12918586.1 | G7: 1436.110128
A8: 국·공립 National & Pub. | B8: 83 | C8: 1021376 | D8: 250753 | E8: 252219 | F8: 1019910 | G8: 406.7389024
A9: 정부출연 Gov't funded | B9: 74 | C9: 9589212 | D9: 524770 | E9: 840305 | F9: 9273677 | G9: 1767.188864
A10: 지방자치단체출연 Local gov't funded | B10: 59 | C10: 269320 | D10: 22532 | E10: 39521 | F10: 252331 | G10: 1119.878395
A11: 기타비영리 Other non-profit corporation | B11: 201 | C11: 2308850.1 | D11: 77502 | E11: 213727 | F11: 2172625.1 | G11: 2803.314882
A12: 국·공립병원 National & Pub. hospital | B12: 23 | C12: 23612 | D12: 2702 | E12: 515 | F12: 25799 | G12: 954.8112509
A13: 사립병원 Private hospital | B13: 18 | C13: 166762 | D13: 21295 | E13: 13813 | F13: 174244 | G13: 818.2390232
A14: 대학 Higher educations | B14: 361 | C14: 10081452 | D14: 432779 | E14: 208109 | F14: 10306122 | G14: 2381.382184
A15: 국·공립 National & Pub. | B15: 80 | C15: 4433067 | D15: 200899 | E15: 102902 | F15: 4531064 | G15: 2255.394004
A16: 사립 Private | B16: 281 | C16: 5648385 | D16: 231880 | E16: 105207 | F16: 5775058 | G16: 2490.537347
A17: 기업체 Business enterprises | B17: 60827 | C17: 7697758.015 | D17: 87165459.54 | E17: 5441917.379 | F17: 89421300.18 | G17: 102.5879983
A18: 정부투자기관 Gov't investment | B18: 51 | C18: 94978 | D18: 906985 | E18: 113192 | F18: 888771 | G18: 97.99180802
A19: 민간기업 Private companies | B19: 60776 | C19: 7602780.015 | D19: 86258474.54 | E19: 5328725.379 | F19: 88532529.18 | G19: 102.6363261

Sheet 2-17-1
A1: 2-17-1) 2022년도 연구수행주체별 연구개발비(경제사회목적)
A2: R&D expenditure(socio-economic objectives) by sector of performance, 2022
O4: (단위 : 백만원 Unit : Won, Millions)
A5: 연구수행주체 Sector of performance | B5: 연구개발비 R&D expenditure | C5: 경제사회목적 Socio-economic objectives
C7: 지구개발 및 탐사 Exploration and exploitation of the Earth | D7: 환경 Environment | E7: 우주개발 및 탐사 Exploration and exploitation of space | F7: 교통, 전기통신 등 기반시설 Transport, telecommunication and other infrastructures | G7: 에너지 Energy | H7: 산업생산 및 기술 Industrial production and technology | I7: 건강 Health | J7: 농업 Agriculture | K7: 교육 Education | L7: 문화, 휴양, 종교 및 매스미디어 Culture, recreation religion and mass media | M7: 정치·사회시스템, 조직 및 과정 Political and social systems, structures and processes | N7: 지식의 전반적 진보 General advancement of knowledge | O7: 국방 Defence
A9: 총계 Total | B9: 112646008.3 | C9: 749768.0485 | D9: 2665797.93 | E9: 1169076.434 | F9: 10394112.23 | G9: 6407206.052 | H9: 67256951.1 | I9: 10470454.61 | J9: 2022850.797 | K9: 1120934.885 | L9: 1403521.453 | M9: 1097541.944 | N9: 3531951.332 | O9: 4355841.464
A10: 공공연구기관 Public research institutes | B10: 12918586.1 | C10: 405887.0317 | D10: 535290.8286 | E10: 714945.019 | F10: 643938.57 | G10: 974645.239 | H10: 3456295.106 | I10: 1261958.648 | J10: 861983.8521 | K10: 233199.711 | L10: 69205.422 | M10: 398844.2442 | N10: 679693.1695 | O10: 2682699.259
A11: 국·공립 National & Pub. | B11: 1019910 | C11: 17389.791 | D11: 149806.05 | E11: 258.205 | F11: 777.861 | G11: 2558.1 | H11: 7282 | I11: 87530.721 | J11: 682684.35 | K11: 11515.9 | L11: 26830.65 | M11: 6471.388 | N11: 26804.984 | O11: 0
A12: 정부출연 Gov't funded | B12: 9273677 | C12: 381454.5603 | D12: 301458.4654 | E12: 702095.9962 | F12: 556252.0454 | G12: 826101.5598 | H12: 1950886.712 | I12: 629300.1359 | J12: 138338.6549 | K12: 191644.132 | L12: 8675.665 | M12: 291363.816 | N12: 619828.7299 | O12: 2676276.527
A13: 지방자치단체출연 Local gov't funded | B13: 252331 | C13: 404 | D13: 18737.4702 | E13: 537.95 | F13: 27142.8308 | G13: 19131.222 | H13: 79302.221 | I13: 37222.282 | J13: 20617.429 | K13: 1188.677 | L13: 8454.185 | M13: 30273.169 | N13: 9060.192 | O13: 259.372
A14: 기타비영리 Other non-profit corporation | B14: 2172625.1 | C14: 6638.6804 | D14: 65288.843 | E14: 12052.8678 | F14: 59765.8328 | G14: 126854.3572 | H14: 1418738.803 | I14: 307985.1788 | J14: 20343.4182 | K14: 28851.002 | L14: 25244.922 | M14: 70735.8712 | N14: 23965.7636 | O14: 6159.5595
A15: 국·공립병원 National & Pub. hospital | B15: 25799 | C15: 0 | D15: 0 | E15: 0 | F15: 0 | G15: 0 | H15: 79 | I15: 25682.7 | J15: 0 | K15: 0 | L15: 0 | M15: 0 | N15: 33.5 | O15: 3.8
A16: 사립병원 Private hospital | B16: 174244 | C16: 0 | D16: 0 | E16: 0 | F16: 0 | G16: 0 | H16: 6.37 | I16: 174237.63 | J16: 0 | K16: 0 | L16: 0 | M16: 0 | N16: 0 | O16: 0
A17: 대학 Higher educations | B17: 10306122 | C17: 178295.7303 | D17: 410836.7414 | E17: 120111.628 | F17: 895758.4264 | G17: 665466.8542 | H17: 2144447.784 | I17: 2940312.708 | J17: 407883.4821 | K17: 537611.1402 | L17: 287614.1208 | M17: 339130.2611 | N17: 1287359.486 | O17: 91293.63695
A18: 국·공립 National & Pub. | B18: 4531064 | C18: 99972.92267 | D18: 226405.0666 | E18: 83048.44005 | F18: 315040.3603 | G18: 447370.4865 | H18: 941902.6687 | I18: 1166710.287 | J18: 303909.4369 | K18: 244458.4499 | L18: 93837.53515 | M18: 86592.2064 | N18: 464056.903 | O18: 57759.23668
A19: 사립 Private | B19: 5775058 | C19: 78322.8076 | D19: 184431.6749 | E19: 37063.1879 | F19: 580718.0661 | G19: 218096.3678 | H19: 1202545.116 | I19: 1773602.421 | J19: 103974.0452 | K19: 293152.6904 | L19: 193776.5857 | M19: 252538.0547 | N19: 823302.5833 | O19: 33534.40026
A20: 기업체 Business enterprises | B20: 89421300.18 | C20: 165585.2865 | D20: 1719670.36 | E20: 334019.7867 | F20: 8854415.239 | G20: 4767093.959 | H20: 61656208.21 | I20: 6268183.254 | J20: 752983.4623 | K20: 350124.0334 | L20: 1046701.91 | M20: 359567.4384 | N20: 1564898.676 | O20: 1581848.568
A21: 정부투자기관 Gov't investment | B21: 888771 | C21: 37018.8 | D21: 69682.37 | E21: 1121 | F21: 151944.22 | G21: 554500.24 | H21: 14508.9 | I21: 24679.45 | J21: 8766.35 | K21: 0 | L21: 3496.5 | M21: 21860.61 | N21: 1192.56 | O21: 0
A22: 민간기업 Private companies | B22: 88532529.18 | C22: 128566.4865 | D22: 1649987.99 | E22: 332898.7867 | F22: 8702471.019 | G22: 4212593.719 | H22: 61641699.31 | I22: 6243503.804 | J22: 744217.1123 | K22: 350124.0334 | L22: 1043205.41 | M22: 337706.8284 | N22: 1563706.116 | O22: 1581848.568

Sheet 2-17-2
A1: 2-17-2) 2022년도 연구수행주체별 연구개발비 비율(경제사회목적)
A2: R&D expenditure rate(socio-economic objectives) by sector of performance, 2022
O4: (단위 : % Unit : %)
A5: 연구수행주체 Sector of performance | B5: 연구개발비 (백만원) R&D expenditure (Won, Millions) | C5: 경제사회목적 Socio-economic objectives
C7: 지구개발 및 탐사 Exploration and exploitation of the Earth | D7: 환경 Environment | E7: 우주개발 및 탐사 Exploration and exploitation of space | F7: 교통, 전기통신 등 기반시설 Transport, telecommunication and other infrastructures | G7: 에너지 Energy | H7: 산업생산 및 기술 Industrial production and technology | I7: 건강 Health | J7: 농업 Agriculture | K7: 교육 Education | L7: 문화, 휴양, 종교 및 매스미디어 Culture, recreation religion and mass media | M7: 정치·사회시스템, 조직 및 과정 Political and social systems, structures and processes | N7: 지식의 전반적 진보 General advancement of knowledge | O7: 국방 Defence
A9: 총계 Total | B9: ='2-17-1'!B9 -> 112646008.3 | C9: ='2-17-1'!C9/'2-17-2'!$B9*100 -> 0.665596642 | D9: ='2-17-1'!D9/'2-17-2'!$B9*100 -> 2.36652676 | E9: ='2-17-1'!E9/'2-17-2'!$B9*100 -> 1.0378321 | F9: ='2-17-1'!F9/'2-17-2'!$B9*100 -> 9.227235296 | G9: ='2-17-1'!G9/'2-17-2'!$B9*100 -> 5.687912204 | H9: ='2-17-1'!H9/'2-17-2'!$B9*100 -> 59.70646641 | I9: ='2-17-1'!I9/'2-17-2'!$B9*100 -> 9.295007226 | J9: ='2-17-1'!J9/'2-17-2'!$B9*100 -> 1.795758969 | K9: ='2-17-1'!K9/'2-17-2'!$B9*100 -> 0.9950950786 | L9: ='2-17-1'!L9/'2-17-2'!$B9*100 -> 1.245957557 | M9: ='2-17-1'!M9/'2-17-2'!$B9*100 -> 0.9743283055 | N9: ='2-17-1'!N9/'2-17-2'!$B9*100 -> 3.135442956 | O9: ='2-17-1'!O9/'2-17-2'!$B9*100 -> 3.866840495
A10: 공공연구기관 Public research institutes | B10: ='2-17-1'!B10 -> 12918586.1 | C10: ='2-17-1'!C10/'2-17-2'!$B10*100 -> 3.141884325 | D10: ='2-17-1'!D10/'2-17-2'!$B10*100 -> 4.14357132 | E10: ='2-17-1'!E10/'2-17-2'!$B10*100 -> 5.534235817 | F10: ='2-17-1'!F10/'2-17-2'!$B10*100 -> 4.984590148 | G10: ='2-17-1'!G10/'2-17-2'!$B10*100 -> 7.544519434 | H10: ='2-17-1'!H10/'2-17-2'!$B10*100 -> 26.75443798 | I10: ='2-17-1'!I10/'2-17-2'!$B10*100 -> 9.768550815 | J10: ='2-17-1'!J10/'2-17-2'!$B10*100 -> 6.672431839 | K10: ='2-17-1'!K10/'2-17-2'!$B10*100 -> 1.80514887 | L10: ='2-17-1'!L10/'2-17-2'!$B10*100 -> 0.5357043059 | M10: ='2-17-1'!M10/'2-17-2'!$B10*100 -> 3.08736762 | N10: ='2-17-1'!N10/'2-17-2'!$B10*100 -> 5.261358823 | O10: ='2-17-1'!O10/'2-17-2'!$B10*100 -> 20.7661987
A11: 국·공립 National & Pub. | B11: ='2-17-1'!B11 -> 1019910 | C11: ='2-17-1'!C11/'2-17-2'!$B11*100 -> 1.705031915 | D11: ='2-17-1'!D11/'2-17-2'!$B11*100 -> 14.68816366 | E11: ='2-17-1'!E11/'2-17-2'!$B11*100 -> 0.02531644949 | F11: ='2-17-1'!F11/'2-17-2'!$B11*100 -> 0.07626761185 | G11: ='2-17-1'!G11/'2-17-2'!$B11*100 -> 0.2508162485 | H11: ='2-17-1'!H11/'2-17-2'!$B11*100 -> 0.7139845673 | I11: ='2-17-1'!I11/'2-17-2'!$B11*100 -> 8.582200488 | J11: ='2-17-1'!J11/'2-17-2'!$B11*100 -> 66.93574433 | K11: ='2-17-1'!K11/'2-17-2'!$B11*100 -> 1.129109431 | L11: ='2-17-1'!L11/'2-17-2'!$B11*100 -> 2.630688002 | M11: ='2-17-1'!M11/'2-17-2'!$B11*100 -> 0.6345057897 | N11: ='2-17-1'!N11/'2-17-2'!$B11*100 -> 2.628171505 | O11: ='2-17-1'!O11/'2-17-2'!$B11*100 -> 0
A12: 정부출연 Gov't funded | B12: ='2-17-1'!B12 -> 9273677 | C12: ='2-17-1'!C12/'2-17-2'!$B12*100 -> 4.113304359 | D12: ='2-17-1'!D12/'2-17-2'!$B12*100 -> 3.250689725 | E12: ='2-17-1'!E12/'2-17-2'!$B12*100 -> 7.57084807 | F12: ='2-17-1'!F12/'2-17-2'!$B12*100 -> 5.998182225 | G12: ='2-17-1'!G12/'2-17-2'!$B12*100 -> 8.908026016 | H12: ='2-17-1'!H12/'2-17-2'!$B12*100 -> 21.03681972 | I12: ='2-17-1'!I12/'2-17-2'!$B12*100 -> 6.785875074 | J12: ='2-17-1'!J12/'2-17-2'!$B12*100 -> 1.491734669 | K12: ='2-17-1'!K12/'2-17-2'!$B12*100 -> 2.066538785 | L12: ='2-17-1'!L12/'2-17-2'!$B12*100 -> 0.09355151144 | M12: ='2-17-1'!M12/'2-17-2'!$B12*100 -> 3.141837008 | N12: ='2-17-1'!N12/'2-17-2'!$B12*100 -> 6.68374292 | O12: ='2-17-1'!O12/'2-17-2'!$B12*100 -> 28.85884992
A13: 지방자치단체출연 Local gov't funded | B13: ='2-17-1'!B13 -> 252331 | C13: ='2-17-1'!C13/'2-17-2'!$B13*100 -> 0.1601071608 | D13: ='2-17-1'!D13/'2-17-2'!$B13*100 -> 7.425750383 | E13: ='2-17-1'!E13/'2-17-2'!$B13*100 -> 0.213192196 | F13: ='2-17-1'!F13/'2-17-2'!$B13*100 -> 10.75683559 | G13: ='2-17-1'!G13/'2-17-2'!$B13*100 -> 7.581796133 | H13: ='2-17-1'!H13/'2-17-2'!$B13*100 -> 31.42785508 | I13: ='2-17-1'!I13/'2-17-2'!$B13*100 -> 14.75137102 | J13: ='2-17-1'!J13/'2-17-2'!$B13*100 -> 8.17078718 | K13: ='2-17-1'!K13/'2-17-2'!$B13*100 -> 0.4710784644 | L13: ='2-17-1'!L13/'2-17-2'!$B13*100 -> 3.350434548 | M13: ='2-17-1'!M13/'2-17-2'!$B13*100 -> 11.99740381 | N13: ='2-17-1'!N13/'2-17-2'!$B13*100 -> 3.590598064 | O13: ='2-17-1'!O13/'2-17-2'!$B13*100 -> 0.1027903825
A14: 기타비영리 Other non-profit corporation | B14: ='2-17-1'!B14 -> 2172625.1 | C14: ='2-17-1'!C14/'2-17-2'!$B14*100 -> 0.3055603288 | D14: ='2-17-1'!D14/'2-17-2'!$B14*100 -> 3.005067142 | E14: ='2-17-1'!E14/'2-17-2'!$B14*100 -> 0.5547605889 | F14: ='2-17-1'!F14/'2-17-2'!$B14*100 -> 2.750858066 | G14: ='2-17-1'!G14/'2-17-2'!$B14*100 -> 5.838759628 | H14: ='2-17-1'!H14/'2-17-2'!$B14*100 -> 65.30067261 | I14: ='2-17-1'!I14/'2-17-2'!$B14*100 -> 14.17571668 | J14: ='2-17-1'!J14/'2-17-2'!$B14*100 -> 0.9363519827 | K14: ='2-17-1'!K14/'2-17-2'!$B14*100 -> 1.327932831 | L14: ='2-17-1'!L14/'2-17-2'!$B14*100 -> 1.161954817 | M14: ='2-17-1'!M14/'2-17-2'!$B14*100 -> 3.255778974 | N14: ='2-17-1'!N14/'2-17-2'!$B14*100 -> 1.103078649 | O14: ='2-17-1'!O14/'2-17-2'!$B14*100 -> 0.2835077023
A15: 국·공립병원 National & Pub. hospital | B15: ='2-17-1'!B15 -> 25799 | C15: ='2-17-1'!C15/'2-17-2'!$B15*100 -> 0 | D15: ='2-17-1'!D15/'2-17-2'!$B15*100 -> 0 | E15: ='2-17-1'!E15/'2-17-2'!$B15*100 -> 0 | F15: ='2-17-1'!F15/'2-17-2'!$B15*100 -> 0 | G15: ='2-17-1'!G15/'2-17-2'!$B15*100 -> 0 | H15: ='2-17-1'!H15/'2-17-2'!$B15*100 -> 0.3062134191 | I15: ='2-17-1'!I15/'2-17-2'!$B15*100 -> 99.54920733 | J15: ='2-17-1'!J15/'2-17-2'!$B15*100 -> 0 | K15: ='2-17-1'!K15/'2-17-2'!$B15*100 -> 0 | L15: ='2-17-1'!L15/'2-17-2'!$B15*100 -> 0 | M15: ='2-17-1'!M15/'2-17-2'!$B15*100 -> 0 | N15: ='2-17-1'!N15/'2-17-2'!$B15*100 -> 0.1298499942 | O15: ='2-17-1'!O15/'2-17-2'!$B15*100 -> 0.01472925307
A16: 사립병원 Private hospital | B16: ='2-17-1'!B16 -> 174244 | C16: ='2-17-1'!C16/'2-17-2'!$B16*100 -> 0 | D16: ='2-17-1'!D16/'2-17-2'!$B16*100 -> 0 | E16: ='2-17-1'!E16/'2-17-2'!$B16*100 -> 0 | F16: ='2-17-1'!F16/'2-17-2'!$B16*100 -> 0 | G16: ='2-17-1'!G16/'2-17-2'!$B16*100 -> 0 | H16: ='2-17-1'!H16/'2-17-2'!$B16*100 -> 0.003655793026 | I16: ='2-17-1'!I16/'2-17-2'!$B16*100 -> 99.99634421 | J16: ='2-17-1'!J16/'2-17-2'!$B16*100 -> 0 | K16: ='2-17-1'!K16/'2-17-2'!$B16*100 -> 0 | L16: ='2-17-1'!L16/'2-17-2'!$B16*100 -> 0 | M16: ='2-17-1'!M16/'2-17-2'!$B16*100 -> 0 | N16: ='2-17-1'!N16/'2-17-2'!$B16*100 -> 0 | O16: ='2-17-1'!O16/'2-17-2'!$B16*100 -> 0
A17: 대학 Higher educations | B17: ='2-17-1'!B17 -> 10306122 | C17: ='2-17-1'!C17/'2-17-2'!$B17*100 -> 1.72999825 | D17: ='2-17-1'!D17/'2-17-2'!$B17*100 -> 3.986336873 | E17: ='2-17-1'!E17/'2-17-2'!$B17*100 -> 1.165439609 | F17: ='2-17-1'!F17/'2-17-2'!$B17*100 -> 8.691517783 | G17: ='2-17-1'!G17/'2-17-2'!$B17*100 -> 6.457005402 | H17: ='2-17-1'!H17/'2-17-2'!$B17*100 -> 20.80751406 | I17: ='2-17-1'!I17/'2-17-2'!$B17*100 -> 28.52976811 | J17: ='2-17-1'!J17/'2-17-2'!$B17*100 -> 3.957681484 | K17: ='2-17-1'!K17/'2-17-2'!$B17*100 -> 5.216425152 | L17: ='2-17-1'!L17/'2-17-2'!$B17*100 -> 2.790711393 | M17: ='2-17-1'!M17/'2-17-2'!$B17*100 -> 3.290570994 | N17: ='2-17-1'!N17/'2-17-2'!$B17*100 -> 12.4912114 | O17: ='2-17-1'!O17/'2-17-2'!$B17*100 -> 0.8858194862
A18: 국·공립 National & Pub. | B18: ='2-17-1'!B18 -> 4531064 | C18: ='2-17-1'!C18/'2-17-2'!$B18*100 -> 2.206389552 | D18: ='2-17-1'!D18/'2-17-2'!$B18*100 -> 4.996730714 | E18: ='2-17-1'!E18/'2-17-2'!$B18*100 -> 1.832868396 | F18: ='2-17-1'!F18/'2-17-2'!$B18*100 -> 6.952900253 | G18: ='2-17-1'!G18/'2-17-2'!$B18*100 -> 9.873409126 | H18: ='2-17-1'!H18/'2-17-2'!$B18*100 -> 20.78767081 | I18: ='2-17-1'!I18/'2-17-2'!$B18*100 -> 25.74914606 | J18: ='2-17-1'!J18/'2-17-2'!$B18*100 -> 6.707242204 | K18: ='2-17-1'!K18/'2-17-2'!$B18*100 -> 5.395166563 | L18: ='2-17-1'!L18/'2-17-2'!$B18*100 -> 2.070982338 | M18: ='2-17-1'!M18/'2-17-2'!$B18*100 -> 1.911078864 | N18: ='2-17-1'!N18/'2-17-2'!$B18*100 -> 10.24167619 | O18: ='2-17-1'!O18/'2-17-2'!$B18*100 -> 1.274738928
A19: 사립 Private | B19: ='2-17-1'!B19 -> 5775058 | C19: ='2-17-1'!C19/'2-17-2'!$B19*100 -> 1.356225472 | D19: ='2-17-1'!D19/'2-17-2'!$B19*100 -> 3.193590001 | E19: ='2-17-1'!E19/'2-17-2'!$B19*100 -> 0.641780358 | F19: ='2-17-1'!F19/'2-17-2'!$B19*100 -> 10.0556231 | G19: ='2-17-1'!G19/'2-17-2'!$B19*100 -> 3.776522552 | H19: ='2-17-1'!H19/'2-17-2'!$B19*100 -> 20.82308291 | I19: ='2-17-1'!I19/'2-17-2'!$B19*100 -> 30.71142178 | J19: ='2-17-1'!J19/'2-17-2'!$B19*100 -> 1.800398286 | K19: ='2-17-1'!K19/'2-17-2'!$B19*100 -> 5.076186081 | L19: ='2-17-1'!L19/'2-17-2'!$B19*100 -> 3.355405014 | M19: ='2-17-1'!M19/'2-17-2'!$B19*100 -> 4.37290941 | N19: ='2-17-1'!N19/'2-17-2'!$B19*100 -> 14.25617861 | O19: ='2-17-1'!O19/'2-17-2'!$B19*100 -> 0.5806764237
A20: 기업체 Business enterprises | B20: ='2-17-1'!B20 -> 89421300.18 | C20: ='2-17-1'!C20/'2-17-2'!$B20*100 -> 0.1851743222 | D20: ='2-17-1'!D20/'2-17-2'!$B20*100 -> 1.923110441 | E20: ='2-17-1'!E20/'2-17-2'!$B20*100 -> 0.3735349252 | F20: ='2-17-1'!F20/'2-17-2'!$B20*100 -> 9.901908405 | G20: ='2-17-1'!G20/'2-17-2'!$B20*100 -> 5.331049705 | H20: ='2-17-1'!H20/'2-17-2'!$B20*100 -> 68.95024796 | I20: ='2-17-1'!I20/'2-17-2'!$B20*100 -> 7.009720549 | J20: ='2-17-1'!J20/'2-17-2'!$B20*100 -> 0.8420627533 | K20: ='2-17-1'!K20/'2-17-2'!$B20*100 -> 0.391544333 | L20: ='2-17-1'!L20/'2-17-2'!$B20*100 -> 1.170528619 | M20: ='2-17-1'!M20/'2-17-2'!$B20*100 -> 0.4021049097 | N20: ='2-17-1'!N20/'2-17-2'!$B20*100 -> 1.750028989 | O20: ='2-17-1'!O20/'2-17-2'!$B20*100 -> 1.768984084
A21: 정부투자기관 Gov't investment | B21: ='2-17-1'!B21 -> 888771 | C21: ='2-17-1'!C21/'2-17-2'!$B21*100 -> 4.165167405 | D21: ='2-17-1'!D21/'2-17-2'!$B21*100 -> 7.840306446 | E21: ='2-17-1'!E21/'2-17-2'!$B21*100 -> 0.1261292279 | F21: ='2-17-1'!F21/'2-17-2'!$B21*100 -> 17.09599211 | G21: ='2-17-1'!G21/'2-17-2'!$B21*100 -> 62.38955141 | H21: ='2-17-1'!H21/'2-17-2'!$B21*100 -> 1.632467756 | I21: ='2-17-1'!I21/'2-17-2'!$B21*100 -> 2.776806399 | J21: ='2-17-1'!J21/'2-17-2'!$B21*100 -> 0.986345189 | K21: ='2-17-1'!K21/'2-17-2'!$B21*100 -> 0 | L21: ='2-17-1'!L21/'2-17-2'!$B21*100 -> 0.3934084258 | M21: ='2-17-1'!M21/'2-17-2'!$B21*100 -> 2.459644835 | N21: ='2-17-1'!N21/'2-17-2'!$B21*100 -> 0.1341807957 | O21: ='2-17-1'!O21/'2-17-2'!$B21*100 -> 0
A22: 민간기업 Private companies | B22: ='2-17-1'!B22 -> 88532529.18 | C22: ='2-17-1'!C22/'2-17-2'!$B22*100 -> 0.145219489 | D22: ='2-17-1'!D22/'2-17-2'!$B22*100 -> 1.863708182 | E22: ='2-17-1'!E22/'2-17-2'!$B22*100 -> 0.3760186112 | F22: ='2-17-1'!F22/'2-17-2'!$B22*100 -> 9.829687573 | G22: ='2-17-1'!G22/'2-17-2'!$B22*100 -> 4.758243956 | H22: ='2-17-1'!H22/'2-17-2'!$B22*100 -> 69.62604579 | I22: ='2-17-1'!I22/'2-17-2'!$B22*100 -> 7.052214437 | J22: ='2-17-1'!J22/'2-17-2'!$B22*100 -> 0.8406143134 | K22: ='2-17-1'!K22/'2-17-2'!$B22*100 -> 0.3954750153 | L22: ='2-17-1'!L22/'2-17-2'!$B22*100 -> 1.178330067 | M22: ='2-17-1'!M22/'2-17-2'!$B22*100 -> 0.3814494305 | N22: ='2-17-1'!N22/'2-17-2'!$B22*100 -> 1.76625036 | O22: ='2-17-1'!O22/'2-17-2'!$B22*100 -> 1.786742774

Sheet 2-18-1
A1: 2-18-1) 2022년도 연구수행주체별 연구개발비(지역)
A2: R&D expenditure(region) by sector of performance, 2022
S4: (단위 : 백만원 Unit : Won, Millions)
A5: 연구수행주체 Sector of performance | B5: 연구개발비 R&D expenditure | C5: 지역 Region
C6: 서울 Seoul | D6: 부산 Busan | E6: 대구 Daegu | F6: 인천 Incheon | G6: 광주 Gwangju | H6: 대전 Daejeon | I6: 울산 Ulsan | J6: 세종 Sejong | K6: 경기 Gyeonggi | L6: 강원 Gangwon | M6: 충북 Chungbuk | N6: 충남 Chungnam | O6: 전북 Jeonbuk | P6: 전남 Jeonnam | Q6: 경북 Gyeongbuk | R6: 경남 Gyeongnam | S6: 제주 Jeju
A7: 총계 Total | B7: 112646008.3 | C7: 17688534.85 | D7: 2037675.751 | E7: 1578436.331 | F7: 3602927.3 | G7: 1129290.021 | H7: 10379114.61 | I7: 1307877.989 | J7: 751287.294 | K7: 57702830.04 | L7: 763519.96 | M7: 2487439.288 | N7: 4116386.599 | O7: 1475577.777 | P7: 946446.458 | Q7: 3195309.654 | R7: 3255519.088 | S7: 227835.27
A8: 공공연구기관 Public research institutes | B8: 12918586.1 | C8: 1335220.9 | D8: 534594.7 | E8: 270272 | F8: 332318 | G8: 216339.7 | H8: 5538582.6 | I8: 141136 | J8: 335118.8 | K8: 1098648.8 | L8: 162658.2 | M8: 542930.4 | N8: 363194 | O8: 485240.4 | P8: 253771 | Q8: 387295.6 | R8: 815338 | S8: 105927
A9: 국·공립 National & Pub. | B9: 1019910 | C9: 57250.4 | D9: 128631 | E9: 9858 | F9: 79523 | G9: 14842 | H9: 20267 | I9: 13608 | J9: 1495 | K9: 64646 | L9: 49090 | M9: 92361 | N9: 51297 | O9: 183260 | P9: 41779 | Q9: 85174.6 | R9: 69831 | S9: 56997
A10: 정부출연 Gov't funded | B10: 9273677 | C10: 736952.5 | D10: 284785.7 | E10: 66917 | F10: 143745 | G10: 89192.7 | H10: 5487247.6 | I10: 105683 | J10: 330833 | K10: 409651 | L10: 69624.1 | M10: 368109.4 | N10: 136003 | O10: 173960 | P10: 91861 | Q10: 55674 | R10: 696989 | S10: 26449
A11: 지방자치단체출연 Local gov't funded | B11: 252331 | C11: 21757 | D11: 4370 | E11: 0 | F11: 15196 | G11: 1130 | H11: 1234 | I11: 6097 | J11: 0 | K11: 13379 | L11: 28811 | M11: 9971 | N11: 1482 | O11: 27481 | P11: 41930 | Q11: 66317 | R11: 12256 | S11: 920
A12: 기타비영리 Other non-profit corporation | B12: 2172625.1 | C12: 355193 | D12: 116797 | E12: 192474 | F12: 93155 | G12: 111175 | H12: 29834 | I12: 15748 | J12: 2790.8 | K12: 579416.8 | L12: 14023.1 | M12: 72470 | N12: 174224 | O12: 100539.4 | P12: 77987 | Q12: 180130 | R12: 35107 | S12: 21561
A13: 국·공립병원 National & Pub. hospital | B13: 25799 | C13: 23517 | D13: 11 | E13: 0 | F13: 35 | G13: 0 | H13: 0 | I13: 0 | J13: 0 | K13: 906 | L13: 52 | M13: 19 | N13: 188 | O13: 0 | P13: 214 | Q13: 0 | R13: 857 | S13: 0
A14: 사립병원 Private hospital | B14: 174244 | C14: 140551 | D14: 0 | E14: 1023 | F14: 664 | G14: 0 | H14: 0 | I14: 0 | J14: 0 | K14: 30650 | L14: 1058 | M14: 0 | N14: 0 | O14: 0 | P14: 0 | Q14: 0 | R14: 298 | S14: 0
A15: 대학 Higher educations | B15: 10306122 | C15: 3702217.4 | D15: 502030 | E15: 450273 | F15: 261443 | G15: 483855 | H15: 872638 | I15: 226897 | J15: 68583 | K15: 1513457.6 | L15: 285810 | M15: 250700 | N15: 270380 | O15: 389330 | P15: 184671 | Q15: 507816 | R15: 275232 | S15: 60789
A16: 국·공립 National & Pub. | B16: 4531064 | C16: 1121793 | D16: 339461 | E16: 396534 | F16: 429 | G16: 383388 | H16: 762166 | I16: 184220 | J16: 4023 | K16: 118483 | L16: 159094 | M16: 177167 | N16: 77522 | O16: 289754 | P16: 161563 | Q16: 55810 | R16: 239227 | S16: 60430
A17: 사립 Private | B17: 5775058 | C17: 2580424.4 | D17: 162569 | E17: 53739 | F17: 261014 | G17: 100467 | H17: 110472 | I17: 42677 | J17: 64560 | K17: 1394974.6 | L17: 126716 | M17: 73533 | N17: 192858 | O17: 99576 | P17: 23108 | Q17: 452006 | R17: 36005 | S17: 359
A18: 기업체 Business enterprises | B18: 89421300.18 | C18: 12651096.55 | D18: 1001051.051 | E18: 857891.331 | F18: 3009166.3 | G18: 429095.321 | H18: 3967894.012 | I18: 939844.989 | J18: 347585.494 | K18: 55090723.64 | L18: 315051.76 | M18: 1693808.888 | N18: 3482812.599 | O18: 601007.377 | P18: 508004.458 | Q18: 2300198.054 | R18: 2164949.088 | S18: 61119.27
A19: 정부투자기관 Gov't investment | B19: 888771 | C19: 31579 | D19: 2948 | E19: 5533 | F19: 22964 | G19: 81 | H19: 559625 | I19: 3064 | J19: 0 | K19: 114802 | L19: 13719 | M19: 6893 | N19: 4522 | O19: 43003 | P19: 34974 | Q19: 41271 | R19: 2283 | S19: 1510
A20: 민간기업 Private companies | B20: 88532529.18 | C20: 12619517.55 | D20: 998103.051 | E20: 852358.331 | F20: 2986202.3 | G20: 429014.321 | H20: 3408269.012 | I20: 936780.989 | J20: 347585.494 | K20: 54975921.64 | L20: 301332.76 | M20: 1686915.888 | N20: 3478290.599 | O20: 558004.377 | P20: 473030.458 | Q20: 2258927.054 | R20: 2162666.088 | S20: 59609.27

Sheet 2-18-2
A1: 2-18-2) 2022년도 연구수행주체별 연구개발비 비율(지역)
A2: R&D expenditure rate(region) by sector of performance, 2022
S4: (단위 : % Unit : %)
A5: 연구수행주체 Sector of performance | B5: 연구개발비 (백만원) R&D expenditure (Won, Millions) | C5: 지역 Region
C6: 서울 Seoul | D6: 부산 Busan | E6: 대구 Daegu | F6: 인천 Incheon | G6: 광주 Gwangju | H6: 대전 Daejeon | I6: 울산 Ulsan | J6: 세종 Sejong | K6: 경기 Gyeonggi | L6: 강원 Gangwon | M6: 충북 Chungbuk | N6: 충남 Chungnam | O6: 전북 Jeonbuk | P6: 전남 Jeonnam | Q6: 경북 Gyeongbuk | R6: 경남 Gyeongnam | S6: 제주 Jeju
A7: 총계 Total | B7: ='2-18-1'!B7 -> 112646008.3 | C7: ='2-18-1'!C7/'2-18-2'!$B7*100 -> 15.70276224 | D7: ='2-18-1'!D7/'2-18-2'!$B7*100 -> 1.808919625 | E7: ='2-18-1'!E7/'2-18-2'!$B7*100 -> 1.40123592 | F7: ='2-18-1'!F7/'2-18-2'!$B7*100 -> 3.198450931 | G7: ='2-18-1'!G7/'2-18-2'!$B7*100 -> 1.00251224 | H7: ='2-18-1'!H7/'2-18-2'!$B7*100 -> 9.213921355 | I7: ='2-18-1'!I7/'2-18-2'!$B7*100 -> 1.16105134 | J7: ='2-18-1'!J7/'2-18-2'!$B7*100 -> 0.6669453321 | K7: ='2-18-1'!K7/'2-18-2'!$B7*100 -> 51.22492214 | L7: ='2-18-1'!L7/'2-18-2'!$B7*100 -> 0.6778047191 | M7: ='2-18-1'!M7/'2-18-2'!$B7*100 -> 2.208191241 | N7: ='2-18-1'!N7/'2-18-2'!$B7*100 -> 3.654267614 | O7: ='2-18-1'!O7/'2-18-2'!$B7*100 -> 1.309924603 | P7: ='2-18-1'!P7/'2-18-2'!$B7*100 -> 0.8401952918 | Q7: ='2-18-1'!Q7/'2-18-2'!$B7*100 -> 2.836593771 | R7: ='2-18-1'!R7/'2-18-2'!$B7*100 -> 2.890043897 | S7: ='2-18-1'!S7/'2-18-2'!$B7*100 -> 0.2022577395
A8: 공공연구기관 Public research institutes | B8: ='2-18-1'!B8 -> 12918586.1 | C8: ='2-18-1'!C8/'2-18-2'!$B8*100 -> 10.33565817 | D8: ='2-18-1'!D8/'2-18-2'!$B8*100 -> 4.138182738 | E8: ='2-18-1'!E8/'2-18-2'!$B8*100 -> 2.092117496 | F8: ='2-18-1'!F8/'2-18-2'!$B8*100 -> 2.572402254 | G8: ='2-18-1'!G8/'2-18-2'!$B8*100 -> 1.674639146 | H8: ='2-18-1'!H8/'2-18-2'!$B8*100 -> 42.87297818 | I8: ='2-18-1'!I8/'2-18-2'!$B8*100 -> 1.092503459 | J8: ='2-18-1'!J8/'2-18-2'!$B8*100 -> 2.594082645 | K8: ='2-18-1'!K8/'2-18-2'!$B8*100 -> 8.504404364 | L8: ='2-18-1'!L8/'2-18-2'!$B8*100 -> 1.259102186 | M8: ='2-18-1'!M8/'2-18-2'!$B8*100 -> 4.202707601 | N8: ='2-18-1'!N8/'2-18-2'!$B8*100 -> 2.811406737 | O8: ='2-18-1'!O8/'2-18-2'!$B8*100 -> 3.756141703 | P8: ='2-18-1'!P8/'2-18-2'!$B8*100 -> 1.964386799 | Q8: ='2-18-1'!Q8/'2-18-2'!$B8*100 -> 2.997972046 | R8: ='2-18-1'!R8/'2-18-2'!$B8*100 -> 6.311356318 | S8: ='2-18-1'!S8/'2-18-2'!$B8*100 -> 0.8199581532
A9: 국·공립 National & Pub. | B9: ='2-18-1'!B9 -> 1019910 | C9: ='2-18-1'!C9/'2-18-2'!$B9*100 -> 5.613279603 | D9: ='2-18-1'!D9/'2-18-2'!$B9*100 -> 12.61199518 | E9: ='2-18-1'!E9/'2-18-2'!$B9*100 -> 0.9665558726 | F9: ='2-18-1'!F9/'2-18-2'!$B9*100 -> 7.797060525 | G9: ='2-18-1'!G9/'2-18-2'!$B9*100 -> 1.455226442 | H9: ='2-18-1'!H9/'2-18-2'!$B9*100 -> 1.98713612 | I9: ='2-18-1'!I9/'2-18-2'!$B9*100 -> 1.334235374 | J9: ='2-18-1'!J9/'2-18-2'!$B9*100 -> 0.1465815611 | K9: ='2-18-1'!K9/'2-18-2'!$B9*100 -> 6.338402408 | L9: ='2-18-1'!L9/'2-18-2'!$B9*100 -> 4.813169789 | M9: ='2-18-1'!M9/'2-18-2'!$B9*100 -> 9.055799041 | N9: ='2-18-1'!N9/'2-18-2'!$B9*100 -> 5.029561432 | O9: ='2-18-1'!O9/'2-18-2'!$B9*100 -> 17.9682521 | P9: ='2-18-1'!P9/'2-18-2'!$B9*100 -> 4.096341834 | Q9: ='2-18-1'!Q9/'2-18-2'!$B9*100 -> 8.35118785 | R9: ='2-18-1'!R9/'2-18-2'!$B9*100 -> 6.846780598 | S9: ='2-18-1'!S9/'2-18-2'!$B9*100 -> 5.588434274
A10: 정부출연 Gov't funded | B10: ='2-18-1'!B10 -> 9273677 | C10: ='2-18-1'!C10/'2-18-2'!$B10*100 -> 7.946713046 | D10: ='2-18-1'!D10/'2-18-2'!$B10*100 -> 3.070903807 | E10: ='2-18-1'!E10/'2-18-2'!$B10*100 -> 0.7215800162 | F10: ='2-18-1'!F10/'2-18-2'!$B10*100 -> 1.55003242 | G10: ='2-18-1'!G10/'2-18-2'!$B10*100 -> 0.9617835514 | H10: ='2-18-1'!H10/'2-18-2'!$B10*100 -> 59.17013931 | I10: ='2-18-1'!I10/'2-18-2'!$B10*100 -> 1.139601908 | J10: ='2-18-1'!J10/'2-18-2'!$B10*100 -> 3.56744148 | K10: ='2-18-1'!K10/'2-18-2'!$B10*100 -> 4.41735247 | L10: ='2-18-1'!L10/'2-18-2'!$B10*100 -> 0.7507712421 | M10: ='2-18-1'!M10/'2-18-2'!$B10*100 -> 3.969400703 | N10: ='2-18-1'!N10/'2-18-2'!$B10*100 -> 1.466548813 | O10: ='2-18-1'!O10/'2-18-2'!$B10*100 -> 1.875847088 | P10: ='2-18-1'!P10/'2-18-2'!$B10*100 -> 0.9905563888 | Q10: ='2-18-1'!Q10/'2-18-2'!$B10*100 -> 0.6003443941 | R10: ='2-18-1'!R10/'2-18-2'!$B10*100 -> 7.515778261 | S10: ='2-18-1'!S10/'2-18-2'!$B10*100 -> 0.2852051026
A11: 지방자치단체출연 Local gov't funded | B11: ='2-18-1'!B11 -> 252331 | C11: ='2-18-1'!C11/'2-18-2'!$B11*100 -> 8.622404699 | D11: ='2-18-1'!D11/'2-18-2'!$B11*100 -> 1.73185221 | E11: ='2-18-1'!E11/'2-18-2'!$B11*100 -> 0 | F11: ='2-18-1'!F11/'2-18-2'!$B11*100 -> 6.022248554 | G11: ='2-18-1'!G11/'2-18-2'!$B11*100 -> 0.4478244845 | H11: ='2-18-1'!H11/'2-18-2'!$B11*100 -> 0.4890401893 | I11: ='2-18-1'!I11/'2-18-2'!$B11*100 -> 2.416270692 | J11: ='2-18-1'!J11/'2-18-2'!$B11*100 -> 0 | K11: ='2-18-1'!K11/'2-18-2'!$B11*100 -> 5.302162636 | L11: ='2-18-1'!L11/'2-18-2'!$B11*100 -> 11.41793914 | M11: ='2-18-1'!M11/'2-18-2'!$B11*100 -> 3.951555695 | N11: ='2-18-1'!N11/'2-18-2'!$B11*100 -> 0.587323793 | O11: ='2-18-1'!O11/'2-18-2'!$B11*100 -> 10.89085368 | P11: ='2-18-1'!P11/'2-18-2'!$B11*100 -> 16.61706251 | Q11: ='2-18-1'!Q11/'2-18-2'!$B11*100 -> 26.28174897 | R11: ='2-18-1'!R11/'2-18-2'!$B11*100 -> 4.857112285 | S11: ='2-18-1'!S11/'2-18-2'!$B11*100 -> 0.3646004653
A12: 기타비영리 Other non-profit corporation | B12: ='2-18-1'!B12 -> 2172625.1 | C12: ='2-18-1'!C12/'2-18-2'!$B12*100 -> 16.34856377 | D12: ='2-18-1'!D12/'2-18-2'!$B12*100 -> 5.375846942 | E12: ='2-18-1'!E12/'2-18-2'!$B12*100 -> 8.859052581 | F12: ='2-18-1'!F12/'2-18-2'!$B12*100 -> 4.287670247 | G12: ='2-18-1'!G12/'2-18-2'!$B12*100 -> 5.117081635 | H12: ='2-18-1'!H12/'2-18-2'!$B12*100 -> 1.373177545 | I12: ='2-18-1'!I12/'2-18-2'!$B12*100 -> 0.7248374328 | J12: ='2-18-1'!J12/'2-18-2'!$B12*100 -> 0.1284529024 | K12: ='2-18-1'!K12/'2-18-2'!$B12*100 -> 26.66897294 | L12: ='2-18-1'!L12/'2-18-2'!$B12*100 -> 0.6454449965 | M12: ='2-18-1'!M12/'2-18-2'!$B12*100 -> 3.335596187 | N12: ='2-18-1'!N12/'2-18-2'!$B12*100 -> 8.019054921 | O12: ='2-18-1'!O12/'2-18-2'!$B12*100 -> 4.627554013 | P12: ='2-18-1'!P12/'2-18-2'!$B12*100 -> 3.589528631 | Q12: ='2-18-1'!Q12/'2-18-2'!$B12*100 -> 8.290891972 | R12: ='2-18-1'!R12/'2-18-2'!$B12*100 -> 1.615879334 | S12: ='2-18-1'!S12/'2-18-2'!$B12*100 -> 0.9923939478
A13: 국·공립병원 National & Pub.hospital | B13: ='2-18-1'!B13 -> 25799 | C13: ='2-18-1'!C13/'2-18-2'!$B13*100 -> 91.15469592 | D13: ='2-18-1'!D13/'2-18-2'!$B13*100 -> 0.04263731152 | E13: ='2-18-1'!E13/'2-18-2'!$B13*100 -> 0 | F13: ='2-18-1'!F13/'2-18-2'!$B13*100 -> 0.135664173 | G13: ='2-18-1'!G13/'2-18-2'!$B13*100 -> 0 | H13: ='2-18-1'!H13/'2-18-2'!$B13*100 -> 0 | I13: ='2-18-1'!I13/'2-18-2'!$B13*100 -> 0 | J13: ='2-18-1'!J13/'2-18-2'!$B13*100 -> 0 | K13: ='2-18-1'!K13/'2-18-2'!$B13*100 -> 3.511764022 | L13: ='2-18-1'!L13/'2-18-2'!$B13*100 -> 0.2015581999 | M13: ='2-18-1'!M13/'2-18-2'!$B13*100 -> 0.07364626536 | N13: ='2-18-1'!N13/'2-18-2'!$B13*100 -> 0.7287104151 | O13: ='2-18-1'!O13/'2-18-2'!$B13*100 -> 0 | P13: ='2-18-1'!P13/'2-18-2'!$B13*100 -> 0.8294895151 | Q13: ='2-18-1'!Q13/'2-18-2'!$B13*100 -> 0 | R13: ='2-18-1'!R13/'2-18-2'!$B13*100 -> 3.32183418 | S13: ='2-18-1'!S13/'2-18-2'!$B13*100 -> 0
A14: 사립병원 Private hospital | B14: ='2-18-1'!B14 -> 174244 | C14: ='2-18-1'!C14/'2-18-2'!$B14*100 -> 80.6633227 | D14: ='2-18-1'!D14/'2-18-2'!$B14*100 -> 0 | E14: ='2-18-1'!E14/'2-18-2'!$B14*100 -> 0.587107734 | F14: ='2-18-1'!F14/'2-18-2'!$B14*100 -> 0.3810748146 | G14: ='2-18-1'!G14/'2-18-2'!$B14*100 -> 0 | H14: ='2-18-1'!H14/'2-18-2'!$B14*100 -> 0 | I14: ='2-18-1'!I14/'2-18-2'!$B14*100 -> 0 | J14: ='2-18-1'!J14/'2-18-2'!$B14*100 -> 0 | K14: ='2-18-1'!K14/'2-18-2'!$B14*100 -> 17.59027571 | L14: ='2-18-1'!L14/'2-18-2'!$B14*100 -> 0.6071945088 | M14: ='2-18-1'!M14/'2-18-2'!$B14*100 -> 0 | N14: ='2-18-1'!N14/'2-18-2'!$B14*100 -> 0 | O14: ='2-18-1'!O14/'2-18-2'!$B14*100 -> 0 | P14: ='2-18-1'!P14/'2-18-2'!$B14*100 -> 0 | Q14: ='2-18-1'!Q14/'2-18-2'!$B14*100 -> 0 | R14: ='2-18-1'!R14/'2-18-2'!$B14*100 -> 0.1710245403 | S14: ='2-18-1'!S14/'2-18-2'!$B14*100 -> 0
A15: 대학 Higher educations | B15: ='2-18-1'!B15 -> 10306122 | C15: ='2-18-1'!C15/'2-18-2'!$B15*100 -> 35.92250703 | D15: ='2-18-1'!D15/'2-18-2'!$B15*100 -> 4.87118239 | E15: ='2-18-1'!E15/'2-18-2'!$B15*100 -> 4.368985735 | F15: ='2-18-1'!F15/'2-18-2'!$B15*100 -> 2.536773774 | G15: ='2-18-1'!G15/'2-18-2'!$B15*100 -> 4.694830898 | H15: ='2-18-1'!H15/'2-18-2'!$B15*100 -> 8.467180963 | I15: ='2-18-1'!I15/'2-18-2'!$B15*100 -> 2.201574947 | J15: ='2-18-1'!J15/'2-18-2'!$B15*100 -> 0.6654588409 | K15: ='2-18-1'!K15/'2-18-2'!$B15*100 -> 14.68503478 | L15: ='2-18-1'!L15/'2-18-2'!$B15*100 -> 2.773206061 | M15: ='2-18-1'!M15/'2-18-2'!$B15*100 -> 2.432534759 | N15: ='2-18-1'!N15/'2-18-2'!$B15*100 -> 2.623489223 | O15: ='2-18-1'!O15/'2-18-2'!$B15*100 -> 3.77765759 | P15: ='2-18-1'!P15/'2-18-2'!$B15*100 -> 1.791857306 | Q15: ='2-18-1'!Q15/'2-18-2'!$B15*100 -> 4.927323779 | R15: ='2-18-1'!R15/'2-18-2'!$B15*100 -> 2.670568037 | S15: ='2-18-1'!S15/'2-18-2'!$B15*100 -> 0.5898338871
A16: 국·공립 National & Pub. | B16: ='2-18-1'!B16 -> 4531064 | C16: ='2-18-1'!C16/'2-18-2'!$B16*100 -> 24.7578273 | D16: ='2-18-1'!D16/'2-18-2'!$B16*100 -> 7.491860631 | E16: ='2-18-1'!E16/'2-18-2'!$B16*100 -> 8.751454405 | F16: ='2-18-1'!F16/'2-18-2'!$B16*100 -> 0.009467974851 | G16: ='2-18-1'!G16/'2-18-2'!$B16*100 -> 8.461323874 | H16: ='2-18-1'!H16/'2-18-2'!$B16*100 -> 16.82090564 | I16: ='2-18-1'!I16/'2-18-2'!$B16*100 -> 4.065711718 | J16: ='2-18-1'!J16/'2-18-2'!$B16*100 -> 0.08878709283 | K16: ='2-18-1'!K16/'2-18-2'!$B16*100 -> 2.614904579 | L16: ='2-18-1'!L16/'2-18-2'!$B16*100 -> 3.511184128 | M16: ='2-18-1'!M16/'2-18-2'!$B16*100 -> 3.910052915 | N16: ='2-18-1'!N16/'2-18-2'!$B16*100 -> 1.710900574 | O16: ='2-18-1'!O16/'2-18-2'!$B16*100 -> 6.394833531 | P16: ='2-18-1'!P16/'2-18-2'!$B16*100 -> 3.565674641 | Q16: ='2-18-1'!Q16/'2-18-2'!$B16*100 -> 1.231719525 | R16: ='2-18-1'!R16/'2-18-2'!$B16*100 -> 5.279709137 | S16: ='2-18-1'!S16/'2-18-2'!$B16*100 -> 1.333682332
A17: 사립 Private | B17: ='2-18-1'!B17 -> 5775058 | C17: ='2-18-1'!C17/'2-18-2'!$B17*100 -> 44.68222484 | D17: ='2-18-1'!D17/'2-18-2'!$B17*100 -> 2.815019347 | E17: ='2-18-1'!E17/'2-18-2'!$B17*100 -> 0.9305361089 | F17: ='2-18-1'!F17/'2-18-2'!$B17*100 -> 4.519677551 | G17: ='2-18-1'!G17/'2-18-2'!$B17*100 -> 1.73967084 | H17: ='2-18-1'!H17/'2-18-2'!$B17*100 -> 1.912915853 | I17: ='2-18-1'!I17/'2-18-2'!$B17*100 -> 0.7389882491 | J17: ='2-18-1'!J17/'2-18-2'!$B17*100 -> 1.11791085 | K17: ='2-18-1'!K17/'2-18-2'!$B17*100 -> 24.15516173 | L17: ='2-18-1'!L17/'2-18-2'!$B17*100 -> 2.194194413 | M17: ='2-18-1'!M17/'2-18-2'!$B17*100 -> 1.273285913 | N17: ='2-18-1'!N17/'2-18-2'!$B17*100 -> 3.339498928 | O17: ='2-18-1'!O17/'2-18-2'!$B17*100 -> 1.724242423 | P17: ='2-18-1'!P17/'2-18-2'!$B17*100 -> 0.4001345095 | Q17: ='2-18-1'!Q17/'2-18-2'!$B17*100 -> 7.826865115 | R17: ='2-18-1'!R17/'2-18-2'!$B17*100 -> 0.6234569419 | S17: ='2-18-1'!S17/'2-18-2'!$B17*100 -> 0.006216387783
A18: 기업체 Business enterprises | B18: ='2-18-1'!B18 -> 89421300.18 | C18: ='2-18-1'!C18/'2-18-2'!$B18*100 -> 14.14774391 | D18: ='2-18-1'!D18/'2-18-2'!$B18*100 -> 1.119477182 | E18: ='2-18-1'!E18/'2-18-2'!$B18*100 -> 0.9593814106 | F18: ='2-18-1'!F18/'2-18-2'!$B18*100 -> 3.365156058 | G18: ='2-18-1'!G18/'2-18-2'!$B18*100 -> 0.4798580653 | H18: ='2-18-1'!H18/'2-18-2'!$B18*100 -> 4.437302974 | I18: ='2-18-1'!I18/'2-18-2'!$B18*100 -> 1.051030333 | J18: ='2-18-1'!J18/'2-18-2'!$B18*100 -> 0.3887054799 | K18: ='2-18-1'!K18/'2-18-2'!$B18*100 -> 61.60805482 | L18: ='2-18-1'!L18/'2-18-2'!$B18*100 -> 0.352322947 | M18: ='2-18-1'!M18/'2-18-2'!$B18*100 -> 1.89418951 | N18: ='2-18-1'!N18/'2-18-2'!$B18*100 -> 3.894835562 | O18: ='2-18-1'!O18/'2-18-2'!$B18*100 -> 0.6721076251 | P18: ='2-18-1'!P18/'2-18-2'!$B18*100 -> 0.5681022944 | Q18: ='2-18-1'!Q18/'2-18-2'!$B18*100 -> 2.5723156 | R18: ='2-18-1'!R18/'2-18-2'!$B18*100 -> 2.421066439 | S18: ='2-18-1'!S18/'2-18-2'!$B18*100 -> 0.06834978901
A19: 정부투자기관 Gov't investment | B19: ='2-18-1'!B19 -> 888771 | C19: ='2-18-1'!C19/'2-18-2'!$B19*100 -> 3.553108731 | D19: ='2-18-1'!D19/'2-18-2'!$B19*100 -> 0.3316939909 | E19: ='2-18-1'!E19/'2-18-2'!$B19*100 -> 0.622545065 | F19: ='2-18-1'!F19/'2-18-2'!$B19*100 -> 2.583792676 | G19: ='2-18-1'!G19/'2-18-2'!$B19*100 -> 0.009113708706 | H19: ='2-18-1'!H19/'2-18-2'!$B19*100 -> 62.96616339 | I19: ='2-18-1'!I19/'2-18-2'!$B19*100 -> 0.3447457219 | J19: ='2-18-1'!J19/'2-18-2'!$B19*100 -> 0 | K19: ='2-18-1'!K19/'2-18-2'!$B19*100 -> 12.91693811 | L19: ='2-18-1'!L19/'2-18-2'!$B19*100 -> 1.543592219 | M19: ='2-18-1'!M19/'2-18-2'!$B19*100 -> 0.7755653594 | N19: ='2-18-1'!N19/'2-18-2'!$B19*100 -> 0.5087924786 | O19: ='2-18-1'!O19/'2-18-2'!$B19*100 -> 4.838479203 | P19: ='2-18-1'!P19/'2-18-2'!$B19*100 -> 3.935096892 | Q19: ='2-18-1'!Q19/'2-18-2'!$B19*100 -> 4.643603358 | R19: ='2-18-1'!R19/'2-18-2'!$B19*100 -> 0.2568715676 | S19: ='2-18-1'!S19/'2-18-2'!$B19*100 -> 0.1698975327
A20: 민간기업 Private companies | B20: ='2-18-1'!B20 -> 88532529.18 | C20: ='2-18-1'!C20/'2-18-2'!$B20*100 -> 14.25410261 | D20: ='2-18-1'!D20/'2-18-2'!$B20*100 -> 1.127385674 | E20: ='2-18-1'!E20/'2-18-2'!$B20*100 -> 0.9627628838 | F20: ='2-18-1'!F20/'2-18-2'!$B20*100 -> 3.373000103 | G20: ='2-18-1'!G20/'2-18-2'!$B20*100 -> 0.4845838303 | H20: ='2-18-1'!H20/'2-18-2'!$B20*100 -> 3.849736412 | I20: ='2-18-1'!I20/'2-18-2'!$B20*100 -> 1.058120668 | J20: ='2-18-1'!J20/'2-18-2'!$B20*100 -> 0.3926076632 | K20: ='2-18-1'!K20/'2-18-2'!$B20*100 -> 62.09686106 | L20: ='2-18-1'!L20/'2-18-2'!$B20*100 -> 0.3403638897 | M20: ='2-18-1'!M20/'2-18-2'!$B20*100 -> 1.905419289 | N20: ='2-18-1'!N20/'2-18-2'!$B20*100 -> 3.928827778 | O20: ='2-18-1'!O20/'2-18-2'!$B20*100 -> 0.6302817531 | P20: ='2-18-1'!P20/'2-18-2'!$B20*100 -> 0.5343013041 | Q20: ='2-18-1'!Q20/'2-18-2'!$B20*100 -> 2.551522107 | R20: ='2-18-1'!R20/'2-18-2'!$B20*100 -> 2.442792619 | S20: ='2-18-1'!S20/'2-18-2'!$B20*100 -> 0.06733035931

Sheet 2-19-1
A1: 2-19-1) 2022년도 연구수행주체별 연구개발인력(지역)
A2: R&D personnel(region) by sector of performance, 2022
S4: (단위 : 명 Unit : Headcount)
A5: 연구수행주체 Sector of performance | B5: 연구개발 인력 R&D personnel | C5: 지역 Region
C6: 서울 Seoul | D6: 부산 Busan | E6: 대구 Daegu | F6: 인천 Incheon | G6: 광주 Gwangju | H6: 대전 Daejeon | I6: 울산 Ulsan | J6: 세종 Sejong | K6: 경기 Gyeonggi | L6: 강원 Gangwon | M6: 충북 Chungbuk | N6: 충남 Chungnam | O6: 전북 Jeonbuk | P6: 전남 Jeonnam | Q6: 경북 Gyeongbuk | R6: 경남 Gyeongnam | S6: 제주 Jeju
A7: 총계 Total | B7: 813763 | C7: 216378 | D7: 26634 | E7: 20850 | F7: 30104 | G7: 14971 | H7: 56024 | I7: 10747 | J7: 7080 | K7: 271733 | L7: 12348 | M7: 24116 | N7: 27216 | O7: 18579 | P7: 10396 | Q7: 28508 | R7: 33843 | S7: 4236
A8: 공공연구기관 Public research institutes | B8: 68501 | C8: 9235 | D8: 2687 | E8: 1621 | F8: 2410 | G8: 1086 | H8: 16508 | I8: 1105 | J8: 3497 | K8: 7850 | L8: 1897 | M8: 4264 | N8: 2219 | O8: 4244 | P8: 1964 | Q8: 2594 | R8: 4332 | S8: 988
A9: 국·공립 National & Pub. | B9: 13275 | C9: 403 | D9: 405 | E9: 155 | F9: 1170 | G9: 209 | H9: 393 | I9: 230 | J9: 19 | K9: 959 | L9: 1074 | M9: 1449 | N9: 877 | O9: 2534 | P9: 901 | Q9: 955 | R9: 953 | S9: 589
A10: 정부출연 Gov't funded | B10: 34678 | C10: 3320 | D10: 1295 | E10: 449 | F10: 507 | G10: 363 | H10: 15800 | I10: 469 | J10: 3389 | K10: 1943 | L10: 240 | M10: 2155 | N10: 643 | O10: 996 | P10: 396 | Q10: 256 | R10: 2355 | S10: 102
A11: 지방자치단체출연 Local gov't funded | B11: 2900 | C11: 439 | D11: 95 | E11: 0 | F11: 116 | G11: 15 | H11: 21 | I11: 105 | J11: 0 | K11: 296 | L11: 279 | M11: 126 | N11: 101 | O11: 313 | P11: 354 | Q11: 373 | R11: 194 | S11: 73
A12: 기타비영리 Other non-profit corporation | B12: 15236 | C12: 3140 | D12: 888 | E12: 1001 | F12: 593 | G12: 499 | H12: 294 | I12: 301 | J12: 89 | K12: 4417 | L12: 207 | M12: 518 | N12: 586 | O12: 401 | P12: 286 | Q12: 1010 | R12: 782 | S12: 224
A13: 국·공립병원 National & Pub. hospital | B13: 721 | C13: 569 | D13: 4 | E13: 0 | F13: 7 | G13: 0 | H13: 0 | I13: 0 | J13: 0 | K13: 56 | L13: 7 | M13: 16 | N13: 12 | O13: 0 | P13: 27 | Q13: 0 | R13: 23 | S13: 0
A14: 사립병원 Private hospital | B14: 1691 | C14: 1364 | D14: 0 | E14: 16 | F14: 17 | G14: 0 | H14: 0 | I14: 0 | J14: 0 | K14: 179 | L14: 90 | M14: 0 | N14: 0 | O14: 0 | P14: 0 | Q14: 0 | R14: 25 | S14: 0
A15: 대학 Higher educations | B15: 222280 | C15: 80426 | D15: 11577 | E15: 9329 | F15: 4279 | G15: 8746 | H15: 16338 | I15: 3948 | J15: 1542 | K15: 28974 | L15: 7041 | M15: 7609 | N15: 7789 | O15: 7745 | P15: 3855 | Q15: 10993 | R15: 9829 | S15: 2260
